Workbook

Sheet Welcome
A2: Welcome to the 2022 Farm Bill Decision Tool
A16: This Product is supported by the following groups:
A35: Authors: Ben Brown- University of Missouri
A36: Updated: January 6, 2022

Sheet Directions
A2: The 2022 Farm Bill Decision Tool
E6: Legal Disclaimer- By selecting the tabs below and using this tool, the user agrees that this tool and the information accompanying it is produced by The Ohio State University and University of Missouri for educational purposes. All decisions on federal commodity programs that utilize this information are those of the user and are not to be considered decisions or recommendations made by the sponsors or the authors of ths information.
A22: Instructions:
D23: Click Term to Locate Selection
D24: Fillables | E24: Sections | F24: Reset | G24: Definition Boxes | I24: Understanding Charts | L24: Terminology
C26: Fillables | D26: When entering the decision tool- it can seem overwhelming at first. However, we wanted to provide producers the most flexibility possible in making commodity program decisions. This is done by allowing producers to pick their own county, input their own Farm Service Agency Price Loss Coverage Yields (which by the way- could have been updated in 2019), marketing year average prices (reminder this is the national price, not the local cash price)and what if-scenarios for individual county based yields and prices in 2022. We hope this function is useful to you. Anywhere that has red text is available for personalization. Some are drop down boxes (example: county options) and some are fillable boxes (examples: PLC Yields and Average Market Prices)
Q36: We have allowed the option for users to change the market year prices. These prices come from estimates on Market Year Prices by using a crop price model that estimates price 1,000 times for variation. The price used is the average of those trials.
D46: Back to Top
C50: Sections | D50: When entering the tool you will notice that the work book is broken out into four sections. This is an effort by the authors to provide transparency in the calculations, data sources and performance of ARC and PLC programs. Each section provides the user a different option to make a program decision for 2022. The mathematical section (top left)- lays out all the numbers and calculations used to produce the graphics illustrated on the spreadsheet. Producers can see where revenue guarantees and benchmarks are for select years. The Results section (top right) illustrates the estimated payment for the preceding year that has not been finalized yet and estimates for Crop Year 2022. The Program Design and Illustration Section ( bottom right) has two parts: past performance of ARC and PLC (left) and estimates for ARC and PLC (Right)- when the yellow line or bar falls below the black line a payment is made. The Performance Section (bottom left)- is also broken into two sections: a past performace for the county of ARC and PLC (left) and estimates for comparison between ARC and PLC in 2022.
C82: Back to Top
C84: Reset | D84: The purple reset button at the top- takes all selections back to the default option the same as when opening the document for the first time.
Q87: Click on this button, to reset everythign back to the default option.
C100: Back to Top
C102: Definition Boxes
D103: In cells that have a superscript next to the term- a definition box is available. Click on the cell you would like to learn about and a definition box will appear. Also a list of definitions is included below. Most of the definitions are found in the Mathematical Calculations Section
D110: Click on cell
C121: Back to Top
C123: Understanding Charts
D124: The Charts in the section titled Program Design and Illustrationis a useful section because it allows users to get a visual representation of how ARC-CO and PLC work. First ARC-CO (illustrated in the left graph below) is a revenue program that triggers a payment when actual revenue (red bars) fall below a guarantee (black line). PLC (illustrated in right graph below) is a price program that triggers a payment when the actual price (yellow line) falls below a price set by Congress (black line).
D153: The Charts in the section titled Performance are probably of most interest to users because the figure below on the left show the estimated ARC- CO and PLC payments for each year 2021/2022.
C177: Back to Top
A181: PLC Yield Update
E183: Notes: | F183: The 2018 Farm Bill allows owners a one-time opportunity to update their Farm Service Agency Farm PLC Yields in program year 2020.
F184: It is the owner(s) choice to update PLC yields or keep existing PLC yields
F185: Made on a commodity by commodity basisfor the entire farm- PLC can update for one commodity and not others if desired
E187: Formula: | F187: (90% Simple Average of Planted Acre Yield History 2013- 2017)multiplied by (detrended national yield ratio of 2013-2017 in relation to 2008-2012)
F188: Low yielding years between 2013-2017 are replaced with 75% of the county T-Yield
F189: 5-Year Simple Average excludes years of zero planting of respective commodity
E191: Timeline: | F191: Owners have from October 1, 2019 through September 30, 2020 to make a decision on PLC yield updates
E194: The OSU PLC Yield Update Tool allows producers to estimate if an updated yield will be beneficial to them moving forward. Generally- it is benefical to update yields if the updated yield is higher than the current yield on record at the FSA Office as there is no guarantee that their will be yield updates in the future.
E197: The OSU PLC Yield Update Tool is broken down into 4 easy steps:
F198: 1. Select the state, county, and commodity you wish to analyze (drop down menues provide options)
F199: 2. Answer the (Yes, No) questions in the drop down boxes labeled "Select". The question is did you plant "blank" commodity in "blank" year.
F200: 3. If you answered Yes then in the grey boxes the "x" should disappear and you can plug in your actual yield for that year.
F201: 4. The blue box at the end is your updated PLC Yield. Compare it to the yield FSA sent you by mail.
D223: Back to Top
A226: Terminology
C229: Actual Revenue (ARC-CO)
C230: Back to Top | E230: The Actual Revenue for a county is used in the ARC-CO program to determine how much revenue the county brought in for the current year. For program year 2019, the current year revenue would be the 2019 average county yield for your respective county multiplied by the 2019 National Marketing Year Average Price (see below).
C235: Agricultural Risk Coverage- County (ARC-CO)
C236: Back to Top | E236: The Agricultural Risk Coverage- County (ARC-CO) program provides income support tied to historical base acres (see below), not current production, on covered commodities (see below). ARC-CO payments are issued when the Actual Revenue (see above) of a covered commodity is less than the ARC-CO historical guarantee (see Guarantee below).
C240: Base Acres (ARC-CO & PLC)
C241: Back to Top | E241: Base Acres are a farms crop-specific acreage of wheat, feed grains, rice, oilseeds, pulse crops, or peanuts eligible for Farm Service Agency program purposes. Base acres do not necessarily align with current plantings of the farm. Producers had an opportunity to update base acres in the 2014 Farm Bill. There is not an option to update base acres in the 2018 Farm Bill.
C246: Benchmark (ARC-CO)
C247: Back to Top | E247: The Benchmark is used in the ARC-CO calculation to determine if a payment is to be made. It is the historical reference to estimate what county revenue has been the last 5 years. It is calculated by taking the Benchmark Price (see below) times the Benchmark Yield (see below).
C252: Benchmark Price (ARC-CO)
C253: Back to Top | E253: The higher of the effective reference price or the respective marketing year average price for a covered commodity. This benchmark price is multiplied by the benchmark yield to calculate the benchmark revenue used in ARC-CO.
C257: Benchmark Yield (ARC-CO)
C258: Back to Top | E258: The Benchmark Yield is calculated in a specific year for ARC-CO calculations. It is calculated as the higher of the Average County Yield for a respective county or a plug yield. Plug Yields were 70% of the respective county T-Yield in the 2014 Farm Bill and they are 80% of the respective county T-Yield in the 2018 Farm Bill. Increasing the plug yield to 80% of the T-Yield from 70% of the T-Yield will help make the historical benchmark higher by removing relatively low yields and increases the probability of a payment triggering under ARC-CO.
C264: Covered Commodities (ARC-CO & PLC)
C265: Back to Top | E265: Covered Commodities include wheat, oats, barley, corn, grain sorghum, rice, soybeans, sunflower seed, rapeseed, canola, safflower, flaxseed, mustard seed, crambe and sesame seed, dry peas, lentils, small chickpeas, large chickpeas, peanuts and cotton.
C269: Effective Reference Price (PLC)
C270: Back to Top | E270: The Effective Reference Price is the higher of a Congressionally set reference price (Corn-$3.70, Soybeans- $8.40, Wheat $5.50 and so on) or a price that is calculated by taking 85% of the Olympic Average of the 5 previous Marketing Year Average Prices. For example- if the five previous year Marketing Year Average Prices for Corn were ($3.70, $3.61, $3.36, $3.36, $3.61) we would drop the high value of $3.70 and the low value of $3.36 and average the three remaining values ($3.61, $3.36, and $3.61) to get $3.53. Taking 85% of $3.53 gets us $3.00. Because $3.70 is higher than $3.00- $3.70 is used as the effective reference price.
C277: Farm Bill 2014 Yields (ARC-CO)
C278: Back to Top | E278: Yields during the 2014 Farm Bill for ARC-CO were based on county yields first obtained by the National Agricultural Statistics Service and then second by the Risk Management Agency. They were non-trend adjusted yields.
C281: Farm Bill 2018 Yields (ARC-CO)
C282: Back to Top | E282: Yields during the 2018 Farm Bill for ARC-Co are based on county yields first obtained by the Risk Management Agency and then second by the National Agricultural Statistics Service. These yields are also historically trend adjusted similar to historical crop insurance yields. The trend adjustment- will likley increase the historical benchmark and make the probability that the program will trigger a payment higher.
C287: Formula Rate (ARC-CO)
C288: Back to Top | E288: The Formula Rate is used in ARC-CO calculations to see if a payment is to be made. It is calculated by subtracting the Actual Revenue (see above) from the Guarantee (see above). If the value is less than zero, then no payment is made because the Actual Revenue was higher than the Guarantee. However, if the value is positive then a payment will be generated for the base acres in the respective commodity subject to a Maximum Payment Rate (see below).
C293: FSA Farm PLC Yield
C294: Back to Top | E294: The Farm Service Agency (FSA) Farm PLC Yield is the payment yield for your FSA farm based on historic average yields and those available from the FSA. The 2018 Farm Bill provided a one-time opportunity for the landlord (or a producer who has Power of Attorney) to elect to update the payment yield for the FSA farm. The yield that shows up in the OSU Farm Bill Decision Tool is a default yield for the selected county average. Producers will want to input their FSA Farm PLC yield that was received in a letter from FSA in that spot.
C300: Guarantee (ARC-CO)
C301: Back to Top | E301: The Guarantee is used in the ARC-CO calculation to determine if a payment is to be made. The Guarantee is calculated by taking the Benchmark Revenue (see above) times 86%.
C304: Market Year Average (MYA Price)
C305: Back to Top | E305: Reflects the average price received by farmers across the nation at the point of first sale, across all grades and qualities of the crop. The United States Department of Agriculture publishes Marketing Year Average (MYA) Price projections in the monthly World Agricultural Supply and Demand Estimates report. The MYA price is the season average farm price for the covered commodity (see above) as published by the National Agricultural Statistics Service (NASS) or determined by the World Agricultural Outlook Board. The MYA prices used in the OSU Farm Bill Decision Tool are those estimated from the Food, Agriculture and Research Policy Institute at the University of Missouri (FAPRI-MU) in their most recent baseline book. These prices come from a price forecast model that is run 500 times for a distribution of price results. The price reported and shown is the average of those 500 trials.
C314: Maximum Possible Payment (ARC-CO)
C315: Back to Top | E315: The Maximum Possible Payment is used in the ARC-CO program as a form of a payment cap on payments. The maximum payment is calculated by multiplying the Benchmark (see above) by 10%.
C318: National Loan Rate
C319: Back to Top | E319: Marketing Assistance Loans provide producers interim financing at harvest time to meet cash flow needs without having to sell their commodities when market prices are typically at harvest time lows. The 2018 Farm Bill extended the marketing assistance loan program, making production for the 2019 through 2023 crops eligible for loan benefits. Relative to 2018 crop levels, the 2018 Farm Bill also increased the national loan rates for most of these commodities for each of the 2019- 2023 crops (Corn= $2.20/bushel, Soybean= $6.20/bushel, Wheat $3.38/bushel and so on)
C325: Olympic Average 5-Year (ARC-CO)
C326: Back to Top | E326: The Olympic Average of the previous 5 years is when you take five prices ($3.70, $3.61, $3.36, $3.36 and $3.61) you drop the highest value ($3.70) and the lowest value ($3.36) adding the remaining three ($3.61, $3.36, and $3.61) and dividing by three to get $3.53. The 2014 Farm Bill used the immediately previous 5 Marketing Years in the Olympic Average calculations for National Marketing Year Average Prices (See above) and the County Yields. The 2018 Farm Bill has a one- year lag in the 5-Year Olympic Average meaning that for program year 2019 the Marketing Years 2013, 2014, 2015, 2016 and 2017 will be used in the 5-Year Olympic Average for both MYA Price and County Yields.
C333: Payment Acres (ARC & PLC)
C334: Back to Top | E334: Both ARC-CO and PLC make payments on 85% of the base acres for the farm. Base acres are a record of historic planting on the FSA farm available from the Farm Service Agency (FSA). Payments are made using the base acres in place of actual planted acres on the FSA farm. The 2014 Farm Bill provided land owners a one-time opportunity to revise the allocation of base acres for the FSA Farm. The 2018 did not allow for an update to base acres.
C339: Payment Rate (ARC-CO)
C340: Back to Top | E340: The ARC-CO payment rate is the rate that the producer actually receives after being adjusted to being paid on only 85% of the farms base acres and a government sequestration of 6.8%. The Payment Rate is calculated by taking the lower value of the Formula Rate (see above) or the Maximum Payment Possibility (see above).
C344: Payment Rate (PLC)
C345: Back to Top | E345: The PLC payment rate is the rate that the producer actually receives after being adjusted to being paid on only 85% of the farms base acres and a government sequestration of 6.8%. The PLC payment rate is calculated by first subtracting the Marketing Year Average Price (see above) from the Effective Reference Price (see above) if the value is positive then that means the MYA price is lower than the Reference Price and a payment will be triggered. This difference is then multiplied by the FSA Farm PLC Yield to create the per acre payment for PLC.
C351: Price Loss Coverage (PLC)
C352: Back to Top | E352: The Price Loss Coverage (PLC) program makes payment when the higher of the Marketing Year Average Price (see above) or the National Average Loan Rate (see above) for a covered commodity (see above) is less than the respective Effective Reference Price (see above) for the respective commodity.
C356: Reference Price (ARC-CO & PLC)
C357: Back to Top | E357: The Reference Price was created by the 2014 Farm Bill to replace the target price created in the 2002 Farm Bill. It is a commodity-specific fixed price in statute used to determine whether Price Loss Coverage (PLC) program payments are triggered. For a crop year, if the national Marketing Year Average (MYA) price is below the Effective Reference Price (see above), a payment is triggered for the base acres of that commodity. It is also known as the statutory reference price and is also used as a plug for the prices used in the ARC program benchmark calculation, such that any crop year where the MYA is below the reference price the reference price replaces that price for that year.
C364: T-Yield or Transitional Yields
C365: Back to Top | E365: T-Yields are used as "plug yields" in the ARC-CO calculation. The T-Yield is the maximum average production per acre or equivalent measure that is assigned to acreage for a crop year by the Federal Crop Insurance Corporation (FCIC) in accordance with the regulations of the FCIC whenever the producer fails: 1) to certify that acceptable documentation of production and acreage for the crop year is in the possession of the producer; or 2) to present the acceptable documentation on the demand of Farm Service Agency or the insurance company. The 2014 Farm Bill defined plug yields as 70% of the County T-Yield. The 2018 Farm Bill defines plug yields as 80% of the County T-Yield.
C372: Trend- Adjusted Yields (ARC-CO)
C373: Back to Top | E373: The 2018 Farm Bill included a provision to permit the use of a trend adjusted yield factor to adjust the yields used in the ARC program calculations by replacing the yield with the trend-adjusted yield in a manner similar to the yield factor that is used to increase yield history under the endorsement under the Federal Crop Insurance Act.

Sheet Corn
B1: The 2022 Farm Bill Decision Tool- Corn
B2: Worlds colored in Red- Include a drop down list. Click on cell to access alternative choices.
B3: Superscrip numbers are cells that have definitions. Click on the cell to view definition.
B5: State | C5: Missouri | G5: FSA Farm PLC Yields 17 | K5: 2022 County Corn Yield- What If | P5: 2022 National Corn Price- What If
B6: Select County | C6: Adair | G6: 2019 PLC Yield 18 | I6: 119.77 | K6: Zero Change from Forecast | P6: Zero Change from Forecast
B7: Select Practice 1 | C7: Nonirrigated | G7: 2020 Updated Yield | I7: 119.77
B9: Previous Farm Bill (2014-2018) | N9: 2018 Farm Bill
B10: Marketing Years | D10: 2009 | E10: 2010 | F10: 2011 | G10: 2012 | H10: 2013 | I10: 2014 | J10: 2015 | K10: 2016 | L10: 2017 | M10: 2018 | N10: 2019 | O10: 2020 | P10: 2021 | Q10: 2022 | R10: 2023 | S10: 2024
B11: 2014 Farm Bill Yields 2 | D11: =VLOOKUP(($C$5&"_"&$C$6&"_"&$C$7),Data!$G$5:$Q$3296,2,FALSE) -> 138 | E11: =VLOOKUP(($C$5&"_"&$C$6&"_"&$C$7),Data!$G$5:$Q$3296,3,FALSE) -> 92 | F11: =VLOOKUP(($C$5&"_"&$C$6&"_"&$C$7),Data!$G$5:$Q$3296,4,FALSE) -> 120 | G11: =VLOOKUP(($C$5&"_"&$C$6&"_"&$C$7),Data!$G$5:$Q$3296,5,FALSE) -> 92 | H11: =VLOOKUP(($C$5&"_"&$C$6&"_"&$C$7),Data!$G$5:$Q$3296,6,FALSE) -> 122 | I11: =VLOOKUP(($C$5&"_"&$C$6&"_"&$C$7),Data!$G$5:$Q$3296,7,FALSE) -> 179 | J11: =VLOOKUP(($C$5&"_"&$C$6&"_"&$C$7),Data!$G$5:$Q$3296,8,FALSE) -> 123 | K11: =VLOOKUP(($C$5&"_"&$C$6&"_"&$C$7),Data!$G$5:$Q$3296,9,FALSE) -> 169 | L11: =VLOOKUP(($C$5&"_"&$C$6&"_"&$C$7),Data!$G$5:$Q$3296,10,FALSE) -> 181 | M11: =VLOOKUP(($C$5&"_"&$C$6&"_"&$C$7),Data!$G$5:$Q$3296,11,FALSE) -> 176.4444444 | P11: Forecasted Values
B12: 2018 Farm Bill Yields | H12: =VLOOKUP(($C$5&"_"&$C$6&"_"&$C$7),Data!$G$5:$V$3296,12,FALSE) -> 117.9 | I12: =VLOOKUP(($C$5&"_"&$C$6&"_"&$C$7),Data!$G$5:$V$3296,13,FALSE) -> 184.93 | J12: =VLOOKUP(($C$5&"_"&$C$6&"_"&$C$7),Data!$G$5:$V$3296,14,FALSE) -> 130.6 | K12: =VLOOKUP(($C$5&"_"&$C$6&"_"&$C$7),Data!$G$5:$V$3296,15,FALSE) -> 185.9 | L12: =VLOOKUP(($C$5&"_"&$C$6&"_"&$C$7),Data!$G$5:$V$3296,16,FALSE) -> 188.65 | M12: =VLOOKUP(($C$5&"_"&$C$6&"_"&$C$7),Data!$G$5:$AA$3296,17,FALSE) -> 140.81 | N12: =VLOOKUP(($C$5&"_"&$C$6&"_"&$C$7),Data!$G$5:$AA$3296,18,FALSE) -> 126.65 | O12: =VLOOKUP(($C$5&"_"&$C$6&"_"&$C$7),Data!$G$5:$AA$3296,19,FALSE) -> 177.2 | P12: =TREND(H12:O12,H10:O10,P10,TRUE) -> 164.995 | Q12: =TREND(H12:P12,H10:P10,Q10,TRUE)*(VLOOKUP(K6,Data!$BJ$5:$BK$17,2,FALSE)) -> 166.865 | R12: =TREND(H12:Q12,H10:Q10,R10,TRUE) -> 168.735 | S12: =TREND(H12:R12,H10:R10,S10,TRUE) -> 170.605
B13: Market Year Average Price | D13: 3.55 | E13: 5.18 | F13: 6.22 | G13: 6.89 | H13: 4.46 | I13: 3.7 | J13: 3.61 | K13: 3.36 | L13: 3.36 | M13: 3.61 | N13: 3.56 | O13: 4.53 | P13: 5.43 | Q13: =MAX(2.2,4.76*(VLOOKUP(P6,Data!$BJ$30:$BK$42,2,FALSE))) -> 4.76 | R13: 3.64 | S13: 3.61
B14: Benchmark Price 4 | D14: 3.7 | E14: 5.18 | F14: 6.22 | G14: 6.89 | H14: 4.46 | I14: 3.7 | J14: 3.7 | K14: 3.7 | L14: 3.7 | M14: 3.7 | N14: =IF((N13-N15)<0,N15,N13) -> 3.7 | O14: =IF((O13-O15)<0,O15,O13) -> 4.53 | P14: 5.43 | Q14: 4.76 | R14: 3.7 | S14: 3.7
B15: Reference Price | D15: 3.7 | E15: 3.7 | F15: 3.7 | G15: 3.7 | H15: 3.7 | I15: 3.7 | J15: 3.7 | K15: 3.7 | L15: 3.7 | M15: 3.7 | N15: =MAX(3.7,(TRIMMEAN(I13:M13,0.4)*0.85)) -> 3.7 | O15: =MAX(3.7,(TRIMMEAN(J13:N13,0.4)*0.85)) -> 3.7 | P15: 3.7 | Q15: 3.7 | R15: =MAX(3.7,(TRIMMEAN(M13:Q13,0.4)*0.85)) -> 3.7 | S15: 3.7
B16: PLC Price Difference 6 | D16: =D15-D13 -> 0.15 | E16: =E15-E13 -> -1.48 | F16: -2.52 | G16: -3.19 | H16: -0.76 | I16: =I15-I13 -> 0 | J16: 0.09 | K16: 0.34 | L16: 0.34 | M16: 0.09 | N16: 0.14 | O16: -0.83 | P16: -1.73 | Q16: -1.06 | R16: 0.06 | S16: 0.09
B18: ARC Benchmark Price 7 | I18: =ROUND(TRIMMEAN(D14:H14,0.4),2) -> 5.29 | J18: =ROUND(TRIMMEAN(E14:I14,0.4),2) -> 5.29 | K18: =ROUND(TRIMMEAN(F14:J14,0.4),2) -> 4.79 | L18: =ROUND(TRIMMEAN(G14:K14,0.4),2) -> 3.95 | M18: =ROUND(TRIMMEAN(H14:L14,0.4),2) -> 3.7 | N18: =ROUND(TRIMMEAN(H14:L14,0.4),2) -> 3.7 | O18: =ROUND(TRIMMEAN(I14:M14,0.4),2) -> 3.7 | P18: =TRIMMEAN(J14:N14,0.4) -> 3.7 | Q18: 3.7 | R18: 3.976666667 | S18: 4.33
B19: ARC Benchmark Yield 8 | I19: =ROUND(TRIMMEAN(D11:H11,0.4),0) -> 111 | J19: =ROUND(TRIMMEAN(E11:I11,0.4),0) -> 111 | K19: =ROUND(TRIMMEAN(F11:J11,0.4),0) -> 122 | L19: =ROUND(TRIMMEAN(G11:K11,0.4),0) -> 138 | M19: =ROUND(TRIMMEAN(H11:L11,0.4),0) -> 157 | N19: =ROUND(TRIMMEAN(H12:L12,0.4),0) -> 167 | O19: =ROUND(TRIMMEAN(I12:M12,0.4),0) -> 171 | P19: =TRIMMEAN(J12:N12,0.4) -> 152.4366667 | Q19: 167.97 | R19: 161.0016667 | S19: 157.5566667
B20: Benchmark 9 | I20: =I19*I18 -> 587.19 | J20: =J19*J18 -> 587.19 | K20: =K19*K18 -> 584.38 | L20: 545.1 | M20: 580.9 | N20: =N19*N18 -> 617.9 | O20: 632.7 | P20: 564.0156667 | Q20: 621.489 | R20: 640.2499611 | S20: 682.2203667
B21: Guarantee | I21: =I20*0.86 -> 504.9834 | J21: =J20*0.86 -> 504.9834 | K21: 502.5668 | L21: 468.786 | M21: 499.574 | N21: 531.394 | O21: 544.122 | P21: 485.0534733 | Q21: 534.48054 | R21: 550.6149666 | S21: 586.7095153
B22: Actual Revenue | D22: =D13*D11 -> 489.9 | E22: 476.56 | F22: 746.4 | G22: 633.88 | H22: 544.12 | I22: =I13*I11 -> 662.3 | J22: 444.03 | K22: 567.84 | L22: 608.16 | M22: 636.9644444 | N22: =N13*N12 -> 450.874 | O22: 802.716 | P22: =P13*P12 -> 895.92285 | Q22: =Q13*Q12 -> 794.2774 | R22: 614.1954 | S22: 615.88405
B23: Formula Rate 12 | I23: =MAX((I21-I22),0) -> 0 | J23: =MAX((J21-J22),0) -> 60.9534 | K23: 0 | L23: 0 | M23: =MAX((M21-M22),0) -> 0 | N23: 80.52 | O23: 0 | P23: 0 | Q23: 0 | R23: 0 | S23: 0
B24: Maximum Payment Possibility 13 | I24: =I20*0.1 -> 58.719 | J24: 58.719 | K24: 58.438 | L24: 54.51 | M24: 58.09 | N24: 61.79 | O24: 63.27 | P24: 56.40156667 | Q24: 62.1489 | R24: 64.02499611 | S24: 68.22203667
B25: Payment Rate 14 | I25: =MIN(I24,I23) -> 0 | J25: =MIN(J24,J23) -> 58.719 | K25: 0 | L25: 0 | M25: =MIN(M24,M23) -> 0 | N25: 61.79 | O25: 0 | P25: 0 | Q25: 0 | R25: 0 | S25: 0
B27: PLC Yield 15 | H27: ='PLC Yield'!D4 -> 119.77 | I27: =$I$6 -> 119.77 | J27: 119.77 | K27: 119.77 | L27: 119.77 | M27: 119.77 | N27: 119.77 | O27: =$I$7 -> 119.77 | P27: =I7 -> 119.77 | Q27: =I7 -> 119.77 | R27: =I7 -> 119.77 | S27: =$I$6 -> 119.77
B28: PLC Payment Rate 16 | I28: =MIN(MAX(I16,0),(I15-2.2)) -> 0 | J28: =MIN(MAX(J16,0),(J15-2.2)) -> 0.09 | K28: 0.34 | L28: 0.34 | M28: 0.09 | N28: 0.14 | O28: 0 | P28: 0 | Q28: 0 | R28: =MIN(MAX(R16,0),(R15-2.2)) -> 0.06 | S28: =MIN(MAX(S16,0),(S15-2.2)) -> 0.09
B30: PLC Payment /Acre | I30: =I28*I27 -> 0 | J30: =J28*J27 -> 10.7793 | K30: 40.7218 | L30: 40.7218 | M30: 10.7793 | N30: 16.7678 | O30: =O28*O27 -> 0 | P30: =P28*P27 -> 0 | Q30: =Q28*Q27 -> 0 | R30: 7.1862 | S30: 10.7793
B31: ARC Payment/ Acre | I31: =I25 -> 0 | J31: =J25 -> 58.719 | K31: 0 | L31: 0 | M31: =M25 -> 0 | N31: =N25 -> 61.79 | O31: 0 | P31: =P25 -> 0 | Q31: =Q25 -> 0 | R31: 0 | S31: 0
D33: Historical 5-Year Average 2014- 2018 | I33: Estimated 2021 PMT (Paid Oct. 2022) | N33: Projected 2022 PMT (Paid Oct. 2023)
B34: ARC- CO | D34: =AVERAGE(I31:O31) -> 17.21557143 | I34: =AVERAGE(P31) -> 0 | O34: =Q31 -> 0
B35: PLC | D35: =AVERAGE(I30:O30) -> 17.11 | I35: =AVERAGE(P30) -> 0 | O35: =Q30 -> 0
C38: Performance Section | V38: Program Design and Illustration Section
B41: County Performance from Pervious Farm Bill Decision (2014-2020) | K41: Estimates for 2021 & Projection for 2022 Farm Bill Decisions | W41: County Performance from Pervious Farm Bill Decisions (2014-2020) | AI41: Estimates for 2021 & 2022 Farm Bill Decisions

Sheet Soybean
B1: The 2022 Farm Bill Decision Tool- Soybean
B2: Words colored in Red- Include a drop down list. Click on cell to access alternative choices.
B3: Superscrip numbers are cells that have definitions. Click on the cell to view definition.
B5: State | C5: Missouri | G5: FSA Farm PLC Yield 17 | K5: 2022 County Soybean Yield- What If | P5: 2022 County Soybean Price- What If
B6: Select County | C6: Adair | G6: 2019 PLC Yield 18 | I6: 35.18 | K6: Zero Change from Forecast | P6: Zero Change from Forecast
B7: Select Practice 1 | C7: Nonirrigated | G7: 2020 Updated Yield | I7: 35.18
B9: Previous Farm Bill (2014-2018) | N9: 2018 Farm Bill
B10: Marketing Years | D10: 2009 | E10: 2010 | F10: 2011 | G10: 2012 | H10: 2013 | I10: 2014 | J10: 2015 | K10: 2016 | L10: 2017 | M10: 2018 | N10: 2019 | O10: 2020 | P10: 2021 | Q10: 2022 | R10: 2023 | S10: 2024
B11: 2014 Farm Bill Yields 2 | D11: =VLOOKUP(($C$5&"_"&$C$6&"_"&$C$7),'Soybean Data'!$G$5:$Q$3296,2,FALSE) -> 37 | E11: =VLOOKUP(($C$5&"_"&$C$6&"_"&$C$7),'Soybean Data'!$G$5:$Q$3296,3,FALSE) -> 36 | F11: =VLOOKUP(($C$5&"_"&$C$6&"_"&$C$7),'Soybean Data'!$G$5:$Q$3296,4,FALSE) -> 38 | G11: =VLOOKUP(($C$5&"_"&$C$6&"_"&$C$7),'Soybean Data'!$G$5:$Q$3296,5,FALSE) -> 27 | H11: =VLOOKUP(($C$5&"_"&$C$6&"_"&$C$7),'Soybean Data'!$G$5:$Q$3296,6,FALSE) -> 29 | I11: =VLOOKUP(($C$5&"_"&$C$6&"_"&$C$7),'Soybean Data'!$G$5:$Q$3296,7,FALSE) -> 49 | J11: =VLOOKUP(($C$5&"_"&$C$6&"_"&$C$7),'Soybean Data'!$G$5:$Q$3296,8,FALSE) -> 38 | K11: =VLOOKUP(($C$5&"_"&$C$6&"_"&$C$7),'Soybean Data'!$G$5:$Q$3296,9,FALSE) -> 53 | L11: =VLOOKUP(($C$5&"_"&$C$6&"_"&$C$7),'Soybean Data'!$G$5:$Q$3296,10,FALSE) -> 51 | M11: =VLOOKUP(($C$5&"_"&$C$6&"_"&$C$7),'Soybean Data'!$G$5:$Q$3296,11,FALSE) -> 50.52777778 | P11: Forecasted Values
B12: 2018 Farm Bill Yields | H12: =VLOOKUP(($C$5&"_"&$C$6&"_"&$C$7),'Soybean Data'!$G$5:$V$3296,12,FALSE) -> 33 | I12: =VLOOKUP(($C$5&"_"&$C$6&"_"&$C$7),'Soybean Data'!$G$5:$V$3296,13,FALSE) -> 45.61 | J12: =VLOOKUP(($C$5&"_"&$C$6&"_"&$C$7),'Soybean Data'!$G$5:$V$3296,14,FALSE) -> 38.8 | K12: =VLOOKUP(($C$5&"_"&$C$6&"_"&$C$7),'Soybean Data'!$G$5:$AA$3296,15,FALSE) -> 58.52 | L12: =VLOOKUP(($C$5&"_"&$C$6&"_"&$C$7),'Soybean Data'!$G$5:$AA$3296,16,FALSE) -> 52.75 | M12: =VLOOKUP(($C$5&"_"&$C$6&"_"&$C$7),'Soybean Data'!$G$5:$AA$3296,17,FALSE) -> 43.75 | N12: =VLOOKUP(($C$5&"_"&$C$6&"_"&$C$7),'Soybean Data'!$G$5:$AA$3296,18,FALSE) -> 40.65 | O12: =VLOOKUP(($C$5&"_"&$C$6&"_"&$C$7),'Soybean Data'!$G$5:$AA$3296,19,FALSE) -> 45.5 | P12: =TREND(H12:O12,H10:O10,P10,TRUE) -> 48.66785714 | Q12: =TREND(H12:P12,H10:P10,Q10,TRUE)*(VLOOKUP(K6,'Soybean Data'!$BK$5:$BL$17,2,FALSE)) -> 49.52238095 | R12: =TREND(H12:Q12,H10:Q10,R10,TRUE) -> 50.37690476 | S12: =TREND(H12:R12,H10:R10,S10,TRUE) -> 51.23142857
B13: Market Year Average Price | D13: 9.59 | E13: 11.3 | F13: 12.5 | G13: 14.4 | H13: 13 | I13: 10.1 | J13: 8.95 | K13: 9.47 | L13: 9.33 | M13: 8.48 | N13: 8.57 | O13: 10.8 | P13: 12.16 | Q13: =MAX(6.2,11.46*(VLOOKUP(P6,'Soybean Data'!$BK$25:$BL$37,2,FALSE))) -> 11.46 | R13: 8.56 | S13: 8.58
B14: Benchmark Price 4 | D14: =MAX(D13,D15) -> 9.59 | E14: =MAX(E13,E15) -> 11.3 | F14: 12.5 | G14: 14.4 | H14: 13 | I14: 10.1 | J14: 8.95 | K14: 9.47 | L14: 9.33 | M14: 8.48 | N14: =IF((N13-N15)<0,N15,N13) -> 8.57 | O14: =IF((O13-O15)<0,O15,O13) -> 10.8 | P14: 12.16 | Q14: 11.46 | R14: 8.735166667 | S14: 8.735166667
B15: Reference Price | D15: 8.4 | E15: 8.4 | F15: 8.4 | G15: 8.4 | H15: 8.4 | I15: 8.4 | J15: 8.4 | K15: 8.4 | L15: 8.4 | M15: 8.4 | N15: =MAX(8.4,(TRIMMEAN(I13:M13,0.4)*0.85)) -> 8.4 | O15: =MAX(8.4,(TRIMMEAN(J13:N13,0.4)*0.85)) -> 8.4 | P15: =MAX(8.4,(TRIMMEAN(K13:O13,0.4)*0.85)) -> 8.4 | Q15: 8.4 | R15: 8.735166667 | S15: 8.735166667
B16: PLC Price Difference 6 | D16: =D15-D13 -> -1.19 | E16: =E15-E13 -> -2.9 | F16: -4.1 | G16: -6 | H16: -4.6 | I16: -1.7 | J16: -0.55 | K16: -1.07 | L16: -0.93 | M16: -0.08 | N16: -0.17 | O16: -2.4 | P16: -3.76 | Q16: -3.06 | R16: 0.1751666667 | S16: 0.1551666667
B18: ARC Benchmark Price 7 | I18: =ROUND(TRIMMEAN(D14:H14,0.4),2) -> 12.27 | J18: =ROUND(TRIMMEAN(E14:I14,0.4),2) -> 12.27 | K18: =ROUND(TRIMMEAN(F14:J14,0.4),2) -> 11.87 | L18: =ROUND(TRIMMEAN(G14:K14,0.4),2) -> 10.86 | M18: =ROUND(TRIMMEAN(H14:L14,0.4),2) -> 9.63 | N18: =ROUND(TRIMMEAN(H14:L14,0.4),2) -> 9.63 | O18: =ROUND(TRIMMEAN(I14:M14,0.4),2) -> 9.25 | P18: =TRIMMEAN(J14:N14,0.4) -> 8.95 | Q18: 9.123333333 | R18: 9.566666667 | S18: 10.27666667
B19: ARC Benchmark Yield 8 | I19: =ROUND(TRIMMEAN(D11:H11,0.4),0) -> 34 | J19: =ROUND(TRIMMEAN(E11:I11,0.4),0) -> 34 | K19: =ROUND(TRIMMEAN(F11:J11,0.4),0) -> 35 | L19: =ROUND(TRIMMEAN(G11:K11,0.4),0) -> 39 | M19: =ROUND(TRIMMEAN(H11:L11,0.4),0) -> 46 | N19: =ROUND(TRIMMEAN(H12:L12,0.4),0) -> 46 | O19: =ROUND(TRIMMEAN(I12:M12,0.4),0) -> 47 | P19: =TRIMMEAN(J12:N12,0.4) -> 45.71666667 | Q19: 47.33333333 | R19: 45.97261905 | S19: 45.97261905
B20: Benchmark 9 | I20: =I19*I18 -> 417.18 | J20: =J19*J18 -> 417.18 | K20: 415.45 | L20: 423.54 | M20: 442.98 | N20: =N19*N18 -> 442.98 | O20: 434.75 | P20: 409.1641667 | Q20: 431.8377778 | R20: 439.8047222 | S20: 472.4452817
B21: Guarantee | I21: =I20*0.86 -> 358.7748 | J21: =J20*0.86 -> 358.7748 | K21: 357.287 | L21: 364.2444 | M21: 380.9628 | N21: 380.9628 | O21: 373.885 | P21: 351.8811833 | Q21: 371.3804889 | R21: 378.2320611 | S21: 406.3029423
B22: Actual Revenue | D22: =D13*D11 -> 354.83 | E22: 406.8 | F22: 475 | G22: 388.8 | H22: 377 | I22: 494.9 | J22: 340.1 | K22: 501.91 | L22: 475.83 | M22: 428.4755556 | N22: =N13*N12 -> 348.3705 | O22: 491.4 | P22: 591.8011429 | Q22: 567.5264857 | R22: 431.2263048 | S22: 439.5656571
B23: Formula Rate 12 | I23: =MAX((I21-I22),0) -> 0 | J23: 18.6748 | K23: 0 | L23: 0 | M23: =MAX((M21-M22),0) -> 0 | N23: 32.5923 | O23: 0 | P23: 0 | Q23: 0 | R23: 0 | S23: 0
B24: Maximum Payment Possibility 13 | I24: =I20*0.1 -> 41.718 | J24: 41.718 | K24: 41.545 | L24: 42.354 | M24: 44.298 | N24: 44.298 | O24: 43.475 | P24: 40.91641667 | Q24: 43.18377778 | R24: 43.98047222 | S24: 47.24452817
B25: Payment Rate 14 | I25: =MIN(I24,I23) -> 0 | J25: 18.6748 | K25: 0 | L25: 0 | M25: =MIN(M24,M23) -> 0 | N25: 32.5923 | O25: 0 | P25: 0 | Q25: 0 | R25: 0 | S25: 0
B27: PLC Yield 15 | H27: ='PLC Yield'!I3 -> 35.18 | I27: =$I$6 -> 35.18 | J27: 35.18 | K27: 35.18 | L27: 35.18 | M27: 35.18 | N27: 35.18 | O27: =$I$7 -> 35.18 | P27: =I7 -> 35.18 | Q27: =I7 -> 35.18 | R27: =I7 -> 35.18 | S27: =$I$6 -> 35.18
B28: PLC Payment Rate 16 | I28: =MIN(MAX(I16,0),(I15-6.2)) -> 0 | J28: =MIN(MAX(J16,0),(J15-6.2)) -> 0 | K28: 0 | L28: 0 | M28: 0 | N28: 0 | O28: 0 | P28: 0 | Q28: 0 | R28: 0.1751666667 | S28: 0.1551666667
B30: PLC Payment /Acre | I30: =I28*I27 -> 0 | J30: =J28*J27 -> 0 | K30: 0 | L30: 0 | M30: 0 | N30: 0 | O30: 0 | P30: =P28*P27 -> 0 | Q30: =Q28*Q27 -> 0 | R30: 6.162363333 | S30: 5.458763333
B31: ARC Payment/ Acre | I31: =I25 -> 0 | J31: 18.6748 | K31: 0 | L31: 0 | M31: =M25 -> 0 | N31: =N25 -> 32.5923 | O31: 0 | P31: =P25 -> 0 | Q31: =Q25 -> 0 | R31: 0 | S31: 0
D33: Historical 5-Year Average 2014- 2020 | I33: Estimated 2021 PMT (Paid Oct. 2022) | N33: Projected 2022 PMT (Paid Oct. 2023)
B34: ARC- CO | D34: =AVERAGE(I31:O31) -> 7.323871429 | I34: =AVERAGE(P31) -> 0 | N34: =Q31 -> 0
B35: PLC | D35: =AVERAGE(I30:O30) -> 0 | I35: =AVERAGE(P30) -> 0 | N35: =Q30 -> 0
C38: Performance Section | V38: Program Design and Illustration Section
B41: County Performance from Pervious Farm Bill Decision (2014-2018) | K41: Estimates for 2021 & 2022 Farm Bill Decisions | W41: County Performance from Pervious Farm Bill Decision (2014-2020) | AI41: Estimates for 2021 & 2022 Farm Bill Decision

Sheet Wheat
B1: The 2022 Farm Bill Decision Tool- Wheat
B2: Words colored in Red- Include a drop down list. Click on cell to access alternative choices.
B3: Superscrip numbers are cells that have definitions. Click on the cell to view definition.
B5: State | C5: Missouri | G5: FSA Farm PLC Yield 17 | K5: 2022 County Wheat Yield- What If | P5: 2022 County Wheat Price- What If
B6: Select County | C6: Adair | G6: 2019 PLC Yield 18 | I6: 40.31 | K6: Zero Change from Forecast | P6: Zero Change from Forecast
B7: Select Practice 1 | C7: Nonirrigated | G7: 2020 Updated Yield | I7: 40.31
B9: Previous Farm Bill (2014-2018) | N9: 2018 Farm Bill
B10: Marketing Years | D10: 2009 | E10: 2010 | F10: 2011 | G10: 2012 | H10: 2013 | I10: 2014 | J10: 2015 | K10: 2016 | L10: 2017 | M10: 2018 | N10: 2019 | O10: 2020 | P10: 2021 | Q10: 2022 | R10: 2023 | S10: 2024
B11: 2014 Farm Bill Yields 2 | D11: =VLOOKUP(($C$5&"_"&$C$6&"_"&$C$7),'Wheat Data'!$G$5:$Q$3296,2,FALSE) -> 32 | E11: =VLOOKUP(($C$5&"_"&$C$6&"_"&$C$7),'Wheat Data'!$G$5:$Q$3296,3,FALSE) -> 35 | F11: =VLOOKUP(($C$5&"_"&$C$6&"_"&$C$7),'Wheat Data'!$G$5:$Q$3296,4,FALSE) -> 43 | G11: =VLOOKUP(($C$5&"_"&$C$6&"_"&$C$7),'Wheat Data'!$G$5:$Q$3296,5,FALSE) -> 61 | H11: =VLOOKUP(($C$5&"_"&$C$6&"_"&$C$7),'Wheat Data'!$G$5:$Q$3296,6,FALSE) -> 54 | I11: =VLOOKUP(($C$5&"_"&$C$6&"_"&$C$7),'Wheat Data'!$G$5:$Q$3296,7,FALSE) -> 38 | J11: =VLOOKUP(($C$5&"_"&$C$6&"_"&$C$7),'Wheat Data'!$G$5:$Q$3296,8,FALSE) -> 32 | K11: =VLOOKUP(($C$5&"_"&$C$6&"_"&$C$7),'Wheat Data'!$G$5:$Q$3296,9,FALSE) -> 78 | L11: =VLOOKUP(($C$5&"_"&$C$6&"_"&$C$7),'Wheat Data'!$G$5:$Q$3296,10,FALSE) -> 69 | M11: =VLOOKUP(($C$5&"_"&$C$6&"_"&$C$7),'Wheat Data'!$G$5:$Q$3296,11,FALSE) -> 58 | N11: Yield Estimates
B12: 2018 Farm Bill Yields | H12: =VLOOKUP(($C$5&"_"&$C$6&"_"&$C$7),'Wheat Data'!$G$5:$V$3296,12,FALSE) -> 48.85 | I12: =VLOOKUP(($C$5&"_"&$C$6&"_"&$C$7),'Wheat Data'!$G$5:$V$3296,13,FALSE) -> 41.33 | J12: =VLOOKUP(($C$5&"_"&$C$6&"_"&$C$7),'Wheat Data'!$G$5:$V$3296,14,FALSE) -> 37.8 | K12: =VLOOKUP(($C$5&"_"&$C$6&"_"&$C$7),'Wheat Data'!$G$5:$AB$3296,15,FALSE) -> 61.93 | L12: =VLOOKUP(($C$5&"_"&$C$6&"_"&$C$7),'Wheat Data'!$G$5:$AB$3296,16,FALSE) -> 64.03 | M12: =VLOOKUP(($C$5&"_"&$C$6&"_"&$C$7),'Wheat Data'!$G$5:$AB$3296,17,FALSE) -> 58.5 | N12: =VLOOKUP(($C$5&"_"&$C$6&"_"&$C$7),'Wheat Data'!$G$5:$AB$3296,18,FALSE) -> 33.97 | O12: =VLOOKUP(($C$5&"_"&$C$6&"_"&$C$7),'Wheat Data'!$G$5:$AB$3296,19,FALSE) -> 44.97 | P12: =TREND(K12:M12,K10:M10,P10,TRUE) -> 54.62666667 | Q12: =TREND(K12:M12,K10:M10,Q10,TRUE)*(VLOOKUP(K6,'Wheat Data'!$BJ$5:$BK$17,2,FALSE)) -> 52.91166667 | R12: =TREND(H12:Q12,H10:Q10,R10,TRUE) -> 52.42755556 | S12: =TREND(H12:R12,H10:R10,S10,TRUE) -> 52.88859596
B13: Market Year Average Price | D13: 4.87 | E13: 5.7 | F13: 7.24 | G13: 7.77 | H13: 6.87 | I13: 5.99 | J13: 4.89 | K13: 3.89 | L13: 4.72 | M13: 5.16 | N13: 4.58 | O13: 5.05 | P13: 7.01 | Q13: =MAX(3.38,6.18*(VLOOKUP(P6,'Wheat Data'!$BJ$25:$BK$37,2,FALSE))) -> 6.18 | R13: 5.08 | S13: 5.15
B14: Benchmark Price 4 | D14: =MAX(D13,D15) -> 5.5 | E14: =MAX(E13,E15) -> 5.7 | F14: 7.24 | G14: 7.77 | H14: 6.87 | I14: 5.99 | J14: 5.5 | K14: 5.5 | L14: 5.5 | M14: 5.5 | N14: =IF((N13-N15)<0,N15,N13) -> 5.5 | O14: =IF((O13-O15)<0,O15,O13) -> 5.5 | P14: 7.01 | Q14: 6.18 | R14: 5.5 | S14: 5.5
B15: Reference Price | D15: 5.5 | E15: 5.5 | F15: 5.5 | G15: 5.5 | H15: 5.5 | I15: 5.5 | J15: 5.5 | K15: 5.5 | L15: 5.5 | M15: 5.5 | N15: =MAX(5.5,(TRIMMEAN(I13:M13,0.4)*0.85)) -> 5.5 | O15: 5.5 | P15: 5.5 | Q15: 5.5 | R15: 5.5 | S15: 5.5
B16: PLC Price Difference 6 | D16: =D15-D13 -> 0.63 | E16: =E15-E13 -> -0.2 | F16: 0 | G16: -2.27 | H16: -1.37 | I16: -0.49 | J16: 0.61 | K16: 1.61 | L16: 0.78 | M16: 0.34 | N16: 0.92 | O16: 0.45 | P16: -1.51 | Q16: -0.68 | R16: 0.42 | S16: 0.35
B18: ARC Benchmark Price 7 | I18: =ROUND(TRIMMEAN(D14:H14,0.4),2) -> 6.6 | J18: =ROUND(TRIMMEAN(E14:I14,0.4),2) -> 6.7 | K18: =ROUND(TRIMMEAN(F14:J14,0.4),2) -> 6.7 | L18: =ROUND(TRIMMEAN(G14:K14,0.4),2) -> 6.12 | M18: =ROUND(TRIMMEAN(H14:L14,0.4),2) -> 5.66 | N18: =ROUND(TRIMMEAN(H14:L14,0.4),2) -> 5.66 | O18: =ROUND(TRIMMEAN(I14:M14,0.4),2) -> 5.5 | P18: =TRIMMEAN(J14:N14,0.4) -> 5.5 | Q18: 5.5 | R18: 5.5 | S18: 5.726666667
B19: ARC Benchmark Yield 8 | I19: =ROUND(TRIMMEAN(D11:H11,0.4),0) -> 44 | J19: =ROUND(TRIMMEAN(E11:I11,0.4),0) -> 45 | K19: =ROUND(TRIMMEAN(F11:J11,0.4),0) -> 45 | L19: =ROUND(TRIMMEAN(G11:K11,0.4),0) -> 51 | M19: =ROUND(TRIMMEAN(H11:L11,0.4),0) -> 54 | N19: =ROUND(TRIMMEAN(H12:L12,0.4),0) -> 51 | O19: =ROUND(TRIMMEAN(I12:M12,0.4),0) -> 54 | P19: =TRIMMEAN(J12:N12,0.4) -> 52.74333333 | Q19: 55.13333333 | R19: 52.69888889 | S19: 50.83611111
B20: Benchmark 9 | I20: =I19*I18 -> 290.4 | J20: =J19*J18 -> 301.5 | K20: 301.5 | L20: 312.12 | M20: 305.64 | N20: =N19*N18 -> 288.66 | O20: 297 | P20: 290.0883333 | Q20: 303.2333333 | R20: 289.8438889 | S20: 291.121463
B21: Guarantee | I21: =I20*0.86 -> 249.744 | J21: =J20*0.86 -> 259.29 | K21: 259.29 | L21: 268.4232 | M21: 262.8504 | N21: 248.2476 | O21: 255.42 | P21: 249.4759667 | Q21: 260.7806667 | R21: 249.2657444 | S21: 250.3644581
B22: Actual Revenue | D22: =D13*D11 -> 155.84 | E22: 199.5 | F22: 311.32 | G22: 473.97 | H22: 370.98 | I22: 227.62 | J22: 156.48 | K22: 303.42 | L22: 325.68 | M22: 299.28 | N22: =N13*N12 -> 155.5826 | O22: 227.0985 | P22: 382.9329333 | Q22: 326.9941 | R22: 266.3319822 | S22: 272.3762692
B23: Formula Rate 12 | I23: =MAX((I21-I22),0) -> 22.124 | J23: 102.81 | K23: 0 | L23: 0 | M23: =MAX((M21-M22),0) -> 0 | N23: 92.665 | O23: 28.3215 | P23: 0 | Q23: 0 | R23: 0 | S23: 0
B24: Maximum Payment Possibility 13 | I24: =I20*0.1 -> 29.04 | J24: 30.15 | K24: 30.15 | L24: 31.212 | M24: 30.564 | N24: 28.866 | O24: 29.7 | P24: 29.00883333 | Q24: 30.32333333 | R24: 28.98438889 | S24: 29.1121463
B25: Payment Rate 14 | I25: =MIN(I24,I23) -> 22.124 | J25: 30.15 | K25: 0 | L25: 0 | M25: =MIN(M24,M23) -> 0 | N25: 28.866 | O25: 28.3215 | P25: 0 | Q25: 0 | R25: 0 | S25: 0
B27: PLC Yield 15 | H27: ='PLC Yield'!M3 -> 40.31 | I27: =$I$6 -> 40.31 | J27: 40.31 | K27: 40.31 | L27: 40.31 | M27: 40.31 | N27: 40.31 | O27: =$I$7 -> 40.31 | P27: =I7 -> 40.31 | Q27: =I7 -> 40.31 | R27: =I7 -> 40.31 | S27: =$I$6 -> 40.31
B28: PLC Payment Rate 16 | I28: =MIN(MAX(I16,0),(I15-3.38)) -> 0 | J28: =MIN(MAX(J16,0),(J15-3.38)) -> 0.61 | K28: 1.61 | L28: 0.78 | M28: 0.34 | N28: 0.92 | O28: 0.45 | P28: =MIN(MAX(P16,0),(P15-3.38)) -> 0 | Q28: 0 | R28: 0.42 | S28: 0.35 | T28: -3.38 | U28: -3.38
B30: PLC Payment /Acre | I30: =I28*I27 -> 0 | J30: 24.5891 | K30: 64.8991 | L30: 31.4418 | M30: 13.7054 | N30: 37.0852 | O30: 18.1395 | P30: =P28*P27 -> 0 | Q30: =Q28*Q27 -> 0 | R30: 16.9302 | S30: 14.1085
B31: ARC Payment/ Acre | I31: =I25 -> 22.124 | J31: 30.15 | K31: 0 | L31: 0 | M31: =M25 -> 0 | N31: =N25 -> 28.866 | O31: =O25 -> 28.3215 | P31: =P25 -> 0 | Q31: =Q25 -> 0 | R31: 0 | S31: 0
E33: Historical 5-Year Average 2014- 2020 | I33: Estimated 2021 PMT (Paid Oct. 2022) | N33: Projected 2022 PMT (Paid Oct. 2023)
B34: ARC- CO | E34: =AVERAGE(I31:O31) -> 15.63735714 | I34: =AVERAGE(P31) -> 0 | O34: =Q31 -> 0
B35: PLC | E35: =AVERAGE(I30:O30) -> 27.12287143 | I35: =AVERAGE(P30) -> 0 | O35: =Q30 -> 0
C38: Performance Section | U38: Program Design and Illustration Section
B41: County Performance from Pervious Farm Bill Decision (2014-2020) | K41: Estimates for 2021 & 2022 Farm Bill Decision | V41: County Performance from Pervious Farm Bill Decision (2014-2020) | AH41: Estimates for 2021 & 2022 Farm Bill Decision

Sheet PLC Sub Yields (hidden)
A1: PLC Substitute County Yields (75% of the average of yields for crop years 2013-2017)
A2: ST_Cty | B2: State Name | C2: County Name | D2: Crop Name | E2: Unit | G2: PLC Substitute Yields | I2: Commodities | L2: States | N2: Alabama | O2: Arizona | P2: Arkansas | Q2: California | R2: Colorado | S2: Connecticut | T2: Delaware | U2: Florida | V2: Georgia | W2: Idaho | X2: Illinois | Y2: Indiana | Z2: Iowa | AA2: Kansas | AB2: Kentucky | AC2: Louisiana | AD2: Maine | AE2: Maryland | AF2: Massachusetts | AG2: Michigan | AH2: Minnesota | AI2: Mississippi | AJ2: Missouri | AK2: Montana | AL2: Nebraska | AM2: Nevada | AN2: New Hampshire | AO2: New Jersey | AP2: New Mexico | AQ2: New York | AR2: North Carolina | AS2: North Dakota | AT2: Ohio | AU2: Oklahoma | AV2: Oregon | AW2: Pennsylvania | AX2: Rhode Island | AY2: South Carolina | AZ2: South Dakota | BA2: Tennessee | BB2: Texas | BC2: Utah | BD2: Vermont | BE2: Virginia | BF2: Washington | BG2: West Virginia | BH2: Wisconsin | BI2: Wyoming
A3: 01001 | B3: Alabama | C3: Autauga | D3: Barley | E3: Bushel | F3: Alabama_Autauga_Barley | G3: 34.13 | I3: Barley | J3: 0.9437 | L3: Alabama | N3: Autauga | O3: Cochise | P3: Arkansas | Q3: Alameda | R3: Adams | S3: Fairfield | T3: Kent | U3: Alachua | V3: Appling | W3: Ada | X3: Adams | Y3: Adams | Z3: Adair | AA3: Allen | AB3: Adair | AC3: Acadia | AD3: Androscoggin | AE3: Allegany | AF3: Barnstable | AG3: Alcona | AH3: Aitkin | AI3: Adams | AJ3: Adair | AK3: Beaverhead | AL3: Adams | AM3: Churchill | AN3: Belknap | AO3: Atlantic | AP3: Chaves | AQ3: Albany | AR3: Alamance | AS3: Adams | AT3: Adams | AU3: Adair | AV3: Baker | AW3: Adams | AX3: Bristol | AY3: Abbeville | AZ3: Aurora | BA3: Anderson | BB3: Anderson | BC3: Beaver | BD3: Addison | BE3: Accomack | BF3: Adams | BG3: Barbour | BH3: Adams | BI3: Big Horn
A4: 01001 | B4: Alabama | C4: Autauga | D4: Corn | E4: Bushel | F4: Alabama_Autauga_Corn | G4: 91.7 | I4: Canola | J4: 0.9634 | L4: Arizona | N4: Baldwin | O4: Graham | P4: Ashley | Q4: Amador | R4: Alamosa | S4: Hartford | T4: New Castle | U4: Baker | V4: Atkinson | W4: Bannock | X4: Alexander | Y4: Allen | Z4: Adams | AA4: Anderson | AB4: Allen | AC4: Allen | AD4: Houlton | AE4: Anne Arundel | AF4: Berkshire | AG4: Alger | AH4: Anoka | AI4: Alcorn | AJ4: Andrew | AK4: Big Horn | AL4: Antelope | AM4: Clark | AN4: Carroll | AO4: Burlington | AP4: Curry | AQ4: Allegany | AR4: Alexander | AS4: Barnes | AT4: Allen | AU4: Alfalfa | AV4: Benton | AW4: Allegheny | AX4: Kent | AY4: Aiken | AZ4: Beadle | BA4: Bedford | BB4: Andrews | BC4: Box Elder | BD4: Bennington | BE4: Albemarle, Charlottesville City | BF4: Asotin | BG4: Berkeley | BH4: Ashland | BI4: Campbell
A5: 01001 | B5: Alabama | C5: Autauga | D5: Grain Sorghum | E5: Bushel | F5: Alabama_Autauga_Grain Sorghum | G5: 34.05 | I5: Chickpeas, Large | J5: 1 | L5: Arkansas | N5: Barbour | O5: Greenlee | P5: Benton | Q5: Butte | R5: Arapahoe | S5: Litchfield | T5: Sussex | U5: Bradford | V5: Bacon | W5: Bear Lake | X5: Bond | Y5: Bartholomew | Z5: Allamakee | AA5: Atchison | AB5: Anderson | AC5: Ascension | AD5: Aroostook | AE5: Baltimore | AF5: Bristol | AG5: Allegan | AH5: Becker | AI5: Amite | AJ5: Atchison | AK5: Blaine | AL5: Arthur | AM5: Elko | AN5: Cheshire | AO5: Camden | AP5: Dona Ana | AQ5: Broome | AR5: Alleghany | AS5: Benson | AT5: Ashland | AU5: Atoka | AV5: Clackamas | AW5: Armstrong | AX5: Newport | AY5: Allendale | AZ5: Bennett | BA5: Benton | BB5: Angelina | BC5: Cache | BD5: Caledonia | BE5: Alleghany, Covington City | BF5: Benton | BG5: Boone | BH5: Barron | BI5: Carbon
A6: 01001 | B6: Alabama | C6: Autauga | D6: Oats | E6: Bushel | F6: Alabama_Autauga_Oats | G6: 37.2 | I6: Chickpeas, Small | J6: 0.976 | L6: California | N6: Bibb | O6: La Paz | P6: Chicot | Q6: Colusa | R6: Baca | S6: Middlesex | U6: Calhoun | V6: Baker | W6: Benewah, South Shoshone | X6: Boone | Y6: Benton | Z6: Appanoose | AA6: Barber | AB6: Ballard | AC6: Assumption | AD6: Fort Kent | AE6: Calvert | AF6: Essex | AG6: Alpena | AH6: Beltrami | AI6: Attala | AJ6: Audrain | AK6: Broadwater | AL6: Banner | AM6: Humboldt | AN6: Coos | AO6: Cape May | AP6: Eddy | AQ6: Cattaraugus | AR6: Anson | AS6: Billings | AT6: Ashtabula | AU6: Beaver | AV6: Columbia | AW6: Beaver | AX6: Providence | AY6: Anderson | AZ6: Bon Homme | BA6: Bledsoe | BB6: Aransas | BC6: Carbon | BD6: Chittenden | BE6: Alleghany | BF6: Chelan | BG6: Braxton | BH6: Bayfield | BI6: Converse
A7: 01001 | B7: Alabama | C7: Autauga | D7: Peanuts | E7: Pound | F7: Alabama_Autauga_Peanuts | G7: 2356.05 | I7: Corn | J7: 0.9 | L7: Colorado | N7: Blount | O7: Maricopa | P7: Clay | Q7: Contra Costa | R7: Bent | S7: New Haven | U7: Columbia | V7: Baldwin | W7: Benewah | X7: Brown | Y7: Blackford | Z7: Audubon | AA7: Barton | AB7: Barren | AC7: Avoyelles | AD7: Cumberland | AE7: Caroline | AF7: Franklin | AG7: Aplena | AH7: Benton | AI7: Benton | AJ7: Barry | AK7: Carbon | AL7: Blaine | AM7: Pershing | AN7: Grafton | AO7: Cumberland | AP7: Hidalgo | AQ7: Cayuga | AR7: Ashe | AS7: Bottineau | AT7: Athens | AU7: Beckham | AV7: Crook | AW7: Bedford | AX7: Washington | AY7: Bamberg | AZ7: Brookings | BA7: Blount | BB7: Archer | BC7: Davis | BD7: Essex | BE7: Amelia | BF7: Clallam | BG7: Brooke | BH7: Brown | BI7: Crook
A8: 01001 | B8: Alabama | C8: Autauga | D8: Seed Cotton | E8: Pound | F8: Alabama_Autauga_Seed Cotton | G8: 1603.62 | I8: Crambe | J8: 1 | L8: Connecticut | N8: Bullock | O8: Mohave | P8: Conway | Q8: Fresno | R8: Boulder | S8: New London | U8: Dixie | V8: Banks | W8: Bingham | X8: Bureau | Y8: Boone | Z8: Benton | AA8: Bourbon | AB8: Bath | AC8: Beauregard | AD8: Franklin | AE8: Carroll | AF8: Hampden | AG8: Antrim | AH8: Big Stone | AI8: Bolivar | AJ8: Barton | AK8: Carter | AL8: Boone | AM8: White Pine | AN8: Hillsborough | AO8: Gloucester | AP8: Lea | AQ8: Chautauqua | AR8: Avery | AS8: Bowman | AT8: Auglaize | AU8: Blaine | AV8: Deschutes | AW8: Berks | AY8: Barnwell | AZ8: Brown | BA8: Bradley | BB8: Armstrong | BC8: Duchesne | BD8: Franklin | BE8: Amherst | BF8: Clark | BG8: Cabell | BH8: Buffalo | BI8: Fremont
A9: 01001 | B9: Alabama | C9: Autauga | D9: Sesame Seed | E9: Pound | F9: Alabama_Autauga_Sesame Seed | G9: 384.9 | I9: Flaxseed | J9: 1 | L9: Delaware | N9: Butler | O9: Pima | P9: Craighead | Q9: Glenn | R9: Cheyenne | S9: Tolland | U9: Escambia | V9: Barrow | W9: Blaine | X9: Calhoun | Y9: Brown | Z9: Black Hawk | AA9: Brown | AB9: Boone | AC9: Bienville | AD9: Hancock | AE9: Cecil | AF9: Hampshire | AG9: Arenac | AH9: Blue Earth | AI9: Calhoun | AJ9: Bates | AK9: Cascade | AL9: Box Butte | AN9: Merrimack | AO9: Hunterdon | AP9: Luna | AQ9: Chemung | AR9: Beaufort | AS9: Burke | AT9: Belmont | AU9: Bryan | AV9: Gilliam | AW9: Blair | AY9: Beaufort | AZ9: Brule | BA9: Campbell | BB9: Atascosa | BC9: Emery | BD9: Grand Isle | BE9: Appomattox | BF9: Columbia | BG9: Calhoun | BH9: Burnett | BI9: Goshen
A10: 01001 | B10: Alabama | C10: Autauga | D10: Soybeans | E10: Bushel | F10: Alabama_Autauga_Soybeans | G10: 29.9 | I10: Grain Sorghum | J10: 0.9077 | L10: Florida | N10: Calhoun | O10: Pinal | P10: Crawford | Q10: Imperial | R10: Conejos | S10: Windham | U10: Flagler | V10: Bartow | W10: Bonner | X10: Carroll | Y10: Carroll | Z10: Boone | AA10: Butler | AB10: Bourbon | AC10: Bossier | AD10: Kennebec | AE10: Charles | AF10: Middlesex | AG10: Baraga | AH10: Brown | AI10: Carroll | AJ10: Benton | AK10: Chouteau | AL10: Boyd | AN10: Rockingham | AO10: Mercer | AP10: Otero | AQ10: Chenango | AR10: Bertie | AS10: Burleigh | AT10: Brown | AU10: Caddo | AV10: Harney | AW10: Bradford | AY10: Berkeley | AZ10: Buffalo | BA10: Cannon | BB10: Austin | BC10: Iron | BD10: Lamoille | BE10: Augusta | BF10: Douglas | BG10: Clay | BH10: Calumet | BI10: Hot Springs
A11: 01001 | B11: Alabama | C11: Autauga | D11: Sunflower Seed | E11: Pound | F11: Alabama_Autauga_Sunflower Seed | G11: 868.5 | I11: Lentils | J11: 1 | L11: Georgia | N11: Chambers | O11: Yuma | P11: Crittenden | Q11: Kern | R11: Costilla | U11: Gadsden | V11: Ben Hill | W11: Bonneville | X11: Cass | Y11: Cass | Z11: Bremer | AA11: Chase | AB11: Boyd | AC11: Caddo | AD11: Knox | AE11: Dorchester | AF11: Norfolk | AG11: Barry | AH11: Carlton | AI11: Chickasaw | AJ11: Bollinger | AK11: Custer | AL11: Brown | AN11: Strafford | AO11: Middlesex | AP11: Quay | AQ11: Clinton | AR11: Bladen | AS11: Cass | AT11: Butler | AU11: Canadian | AV11: Hood River | AW11: Bucks | AY11: Calhoun | AZ11: Butte | BA11: Carroll | BB11: Bailey | BC11: Juab | BD11: Orange | BE11: Bath | BF11: Ferry | BG11: Fayette | BH11: Chippewa | BI11: Johnson
A12: 01001 | B12: Alabama | C12: Autauga | D12: Wheat | E12: Bushel | F12: Alabama_Autauga_Wheat | G12: 38.42 | I12: Mustard Seed | J12: 0.946 | L12: Idaho | N12: Cherokee | P12: Cross | Q12: Kings | R12: Crowley | U12: Gilchrist | V12: Berrien | W12: Boundary | X12: Champaign | Y12: Clark | Z12: Buchanan | AA12: Chautauqua | AB12: Boyle | AC12: Calcasieu | AD12: Lincoln | AE12: Frederick | AF12: Plymouth | AG12: Bay | AH12: Carver | AI12: Choctaw | AJ12: Boone | AK12: Daniels | AL12: Buffalo | AN12: Sullivan | AO12: Monmouth | AP12: Rio Arriba | AQ12: Columbia | AR12: Brunswick | AS12: Cavalier | AT12: Carroll | AU12: Carter | AV12: Jackson | AW12: Butler | AY12: Charleston | AZ12: Campbell | BA12: Carter | BB12: Bastrop | BC12: Millard | BD12: Orleans | BE12: Bedford | BF12: Franklin | BG12: Gilmer | BH12: Clark | BI12: Laramie
A13: 01003 | B13: Alabama | C13: Baldwin | D13: Grain Sorghum | E13: Bushel | F13: Alabama_Baldwin_Grain Sorghum | G13: 33.42 | I13: Oats | J13: 0.9524 | L13: Illinois | N13: Chilton | P13: Desha | Q13: Lake | R13: Custer | U13: Hamilton | V13: Bibb | W13: Butte | X13: Christian | Y13: Clay | Z13: Buena Vista | AA13: Cherokee | AB13: Bracken | AC13: Caldwell | AD13: Oxford | AE13: Garrett | AF13: Worcester | AG13: Benzie | AH13: Cass | AI13: Claiborne | AJ13: Buchanan | AK13: Dawson | AL13: Burt | AO13: Morris | AP13: Roosevelt | AQ13: Cortland | AR13: Buncombe | AS13: Dickey | AT13: Champaign | AU13: Cherokee | AV13: Jefferson | AW13: Cambria | AY13: Cherokee | AZ13: Charles Mix | BA13: Cheatham | BB13: Baylor | BC13: Morgan | BD13: Rutland | BE13: Bland | BF13: Garfield | BG13: Grant | BH13: Columbia | BI13: Lincoln
A14: 01003 | B14: Alabama | C14: Baldwin | D14: Oats | E14: Bushel | F14: Alabama_Baldwin_Oats | G14: 43.68 | I14: Peanuts | J14: 0.9273 | L14: Indiana | N14: Choctaw | P14: Drew | Q14: Lassen | R14: Delta | U14: Holmes | V14: Bleckley | W14: Camas | X14: Clark | Y14: Clinton | Z14: Butler | AA14: Cheyenne | AB14: Breckinridge | AC14: Cameron | AD14: Penobscot | AE14: Harford | AG14: Berrien | AH14: Chippewa | AI14: Clarke | AJ14: Butler | AK14: Fallon | AL14: Butler | AO14: Ocean | AP14: San Juan | AQ14: Delaware | AR14: Burke | AS14: Divide | AT14: Clark | AU14: Choctaw | AV14: Klamath | AW14: Cameron | AY14: Chester | AZ14: Clark | BA14: Chester | BB14: Bee | BC14: Piute | BD14: Washington | BE14: Botetourt | BF14: Grant | BG14: Greenbrier | BH14: Crawford | BI14: Natrona
A15: 01003 | B15: Alabama | C15: Baldwin | D15: Peanuts | E15: Pound | F15: Alabama_Baldwin_Peanuts | G15: 3190.83 | I15: Peas, Dry | J15: 0.9988 | L15: Iowa | N15: Clarke | P15: Faulkner | Q15: Madera | R15: Denver | U15: Jackson | V15: Brantley | W15: Canyon | X15: Clay | Y15: Crawford | Z15: Calhoun | AA15: Clark | AB15: Bullitt | AC15: Catahoula | AD15: Piscataquis | AE15: Howard | AG15: Branch | AH15: Chisago | AI15: Clay | AJ15: Caldwell | AK15: Fergus | AL15: Cass | AO15: Salem | AP15: Santa Fe | AQ15: Dutchess | AR15: Cabarrus | AS15: Dunn | AT15: Clermont | AU15: Cimarron | AV15: Lake | AW15: Carbon | AY15: Chesterfield | AZ15: Clay | BA15: Claiborne | BB15: Bell | BC15: Rich | BD15: Windham | BE15: Brunswick | BF15: Island | BG15: Hampshire | BH15: Dane | BI15: Niobrara
A16: 01003 | B16: Alabama | C16: Baldwin | D16: Rice_Long Grain | E16: Pound | F16: Alabama_Baldwin_Rice_Long Grain | G16: 33.75 | I16: Rapeseed | J16: 1 | L16: Kansas | N16: Clay | P16: Franklin | Q16: Marin | R16: Dolores | U16: Jefferson | V16: Brooks | W16: Caribou | X16: Clinton | Y16: Daviess | Z16: Carroll | AA16: Clay | AB16: Butler | AC16: Claiborne | AD16: Sagadahoc | AE16: Kent | AG16: Calhoun | AH16: Clay | AI16: Coahoma | AJ16: Callaway | AK16: Flathead | AL16: Cedar | AO16: Somerset | AP16: Sierra | AQ16: Erie | AR16: Caldwell | AS16: Eddy | AT16: Clinton | AU16: Cleveland | AV16: Lane | AW16: Centre | AY16: Clarendon | AZ16: Codington | BA16: Clay | BB16: Bexar | BC16: Salt Lake | BD16: Windsor | BE16: Buchanan | BF16: South King | BG16: Hardy | BH16: Dodge | BI16: Park
A17: 01003 | B17: Alabama | C17: Baldwin | D17: Seed Cotton | E17: Pound | F17: Alabama_Baldwin_Seed Cotton | G17: 1660.22 | I17: Rice, Long | J17: 0.933 | L17: Kentucky | N17: Cleburne | P17: Greene | Q17: Merced | R17: Douglas | U17: Lafayette | V17: Bryan | W17: Cassia | X17: Coles | Y17: Dearborn | Z17: Cass | AA17: Cloud | AB17: Caldwell | AC17: Concordia | AD17: Somerset | AE17: Montgomery | AG17: Cass | AH17: Clearwater | AI17: Copiah | AJ17: Camden | AK17: Gallatin | AL17: Chase | AO17: Sussex | AP17: Taos | AQ17: Essex | AR17: Camden | AS17: Emmons | AT17: Columbiana | AU17: Coal | AV17: Linn | AW17: Chester | AY17: Colleton | AZ17: Corson | BA17: Cocke | BB17: Blanco | BC17: San Juan | BE17: Buckingham | BF17: Kittitas | BG17: Harrison | BH17: Door | BI17: Platte
A18: 01003 | B18: Alabama | C18: Baldwin | D18: Soybeans | E18: Bushel | F18: Alabama_Baldwin_Soybeans | G18: 30.64 | I18: Rice, Medium | J18: 0.9887 | L18: Louisiana | N18: Coffee | P18: Hempstead | Q18: Modoc | R18: Elbert | U18: Leon | V18: Bulloch | W18: Clark | X18: Cook | Y18: Decatur | Z18: Cedar | AA18: Coffey | AB18: Calloway | AC18: De Soto | AD18: Waldo | AE18: Prince George'S | AG18: Charlevoix | AH18: Cottonwood | AI18: Covington | AJ18: Cape Girardeau | AK18: Garfield | AL18: Cherry | AO18: Warren | AP18: Torrance | AQ18: Franklin | AR18: Carteret | AS18: Foster | AT18: Coshocton | AU18: Comanche | AV18: Malheur | AW18: Clarion | AY18: Darlington | AZ18: Custer | BA18: Coffee | BB18: Borden | BC18: Sanpete | BE18: Campbell, Lynchburg City | BF18: Klickitat | BG18: Jackson | BH18: Douglas | BI18: Washakie
A19: 01003 | B19: Alabama | C19: Baldwin | D19: Sunflower Seed | E19: Pound | F19: Alabama_Baldwin_Sunflower Seed | G19: 868.5 | I19: Rice, Temp Japonica | J19: 0.9591 | L19: Maine | N19: Colbert | P19: Howard | Q19: Monterey | R19: El Paso | U19: Levy | V19: Burke | W19: Clearwater | X19: Crawford | Y19: De Kalb | Z19: Cerro Gordo | AA19: Comanche | AB19: Campbell | AC19: East Baton Rouge | AD19: York | AE19: Prince Georges | AG19: Cheboygan | AH19: Crow Wing | AI19: Desoto | AJ19: Carroll | AK19: Glacier | AL19: Cheyenne | AO19: Warren, Bergen, Essex, Hudson, Passaic | AP19: Union | AQ19: Fulton | AR19: Caswell | AS19: Golden Valley | AT19: Crawford | AU19: Cotton | AV19: Marion | AW19: Clearfield | AY19: Dillon | AZ19: Davison | BA19: Crockett | BB19: Bosque | BC19: Sevier | BE19: Campbell | BF19: Lewis | BG19: Jefferson | BH19: Dunn | BI19: Weston
A20: 01003 | B20: Alabama | C20: Baldwin | D20: Wheat | E20: Bushel | F20: Alabama_Baldwin_Wheat | G20: 33.08 | I20: Safflower | J20: 1 | L20: Maryland | N20: Conecuh | P20: Independence | Q20: Placer | R20: Garfield | U20: Madison | V20: Butts | W20: South Custer | X20: Cumberland | Y20: Dekalb | Z20: Cherokee | AA20: Cowley | AB20: Carlisle | AC20: East Carroll | AE20: Queen Anne'S | AG20: Chebooygan | AH20: Dakota | AI20: De Soto | AJ20: Cass | AK20: Golden Valley | AL20: Clay | AP20: Valencia | AQ20: Genesee | AR20: Catawba | AS20: Grand Forks | AT20: Cuyahoga | AU20: Craig | AV20: Morrow | AW20: Clinton | AY20: Dorchester | AZ20: Day | BA20: Cumberland | BB20: Bowie | BC20: Tooele | BE20: Campbell-Lynchburg City | BF20: Lincoln | BG20: Kanawha | BH20: Eau Claire
A21: 01005 | B21: Alabama | C21: Barbour | D21: Corn | E21: Bushel | F21: Alabama_Barbour_Corn | G21: 121.43 | I21: Seed Cotton | J21: 0.9 | L21: Massachusetts | N21: Covington | P21: Jackson | Q21: Riverside | R21: Huerfano | U21: Marion | V21: Calhoun | W21: Elmore | X21: DeKalb | Y21: Delaware | Z21: Chickasaw | AA21: Crawford | AB21: Carroll | AC21: East Feliciana | AE21: St. Mary'S | AG21: Chippewa | AH21: Dodge | AI21: Forrest | AJ21: Cedar | AK21: Granite | AL21: Colfax | AQ21: Greene | AR21: Chatham | AS21: Grant | AT21: Darke | AU21: Creek | AV21: Multnomah | AW21: Columbia | AY21: Edgefield | AZ21: Deuel | BA21: Davidson | BB21: Brazoria | BC21: Uintah | BE21: Caroline | BF21: Okanogan | BG21: Lewis | BH21: Florence
A22: 01005 | B22: Alabama | C22: Barbour | D22: Grain Sorghum | E22: Bushel | F22: Alabama_Barbour_Grain Sorghum | G22: 33.92 | I22: Sesame Seed | J22: 0.9673 | L22: Michigan | N22: Crenshaw | P22: Jefferson | Q22: Sacramento | R22: Kiowa | U22: Nassau | V22: Candler | W22: Franklin | X22: De Kalb | Y22: Dubois | Z22: Clarke | AA22: Decatur | AB22: Carter | AC22: Evangeline | AE22: Somerset | AG22: Clare | AH22: Douglas | AI22: Franklin | AJ22: Chariton | AK22: Hill | AL22: Cuming | AQ22: Herkimer | AR22: Cherokee | AS22: Griggs | AT22: Defiance | AU22: Custer | AV22: Polk | AW22: Crawford | AY22: Fairfield | AZ22: Dewey | BA22: Decatur | BB22: Brazos | BC22: Utah | BE22: Carroll, East Galax City | BF22: Pend Oreille | BG22: Lincoln | BH22: Fond Du Lac
A23: 01005 | B23: Alabama | C23: Barbour | D23: Oats | E23: Bushel | F23: Alabama_Barbour_Oats | G23: 35.85 | I23: Soybeans | J23: 0.9 | L23: Minnesota | N23: Cullman | P23: Johnson | Q23: San Benito | R23: Kit Carson | U23: Okaloosa | V23: Carroll | W23: Fremont | X23: Dewitt | Y23: Elkhart | Z23: Clay | AA23: Dickinson | AB23: Casey | AC23: Franklin | AE23: Talbot | AG23: Clinton | AH23: Faribault | AI23: George | AJ23: Christian | AK23: Jefferson | AL23: Custer | AQ23: Jefferson | AR23: Chowan | AS23: Hettinger | AT23: Delaware | AU23: Delaware | AV23: Sherman | AW23: Cumberland | AY23: Florence | AZ23: Douglas | BA23: Dekalb | BB23: Briscoe | BC23: Washington | BE23: Carroll | BF23: Pierce | BG23: Logan, Mingo | BH23: Forest
A24: 01005 | B24: Alabama | C24: Barbour | D24: Peanuts | E24: Pound | F24: Alabama_Barbour_Peanuts | G24: 2475.51 | I24: Sunflower Seed | J24: 0.9396 | L24: Mississippi | N24: Dale | P24: Lafayette | Q24: San Bernardino | R24: La Plata | U24: Palm Beach | V24: Catoosa | W24: Gem | X24: Douglas | Y24: Fayette | Z24: Clayton | AA24: Doniphan | AB24: Christian | AC24: Grant | AE24: Washington | AG24: Delta | AH24: Fillmore | AI24: Greene | AJ24: Clark | AK24: Judith Basin | AL24: Dakota | AQ24: Lewis | AR24: Clay | AS24: Kidder | AT24: Erie | AU24: Dewey | AV24: Umatilla | AW24: Dauphin | AY24: Georgetown | AZ24: Edmunds | BA24: De Kalb | BB24: Brooks | BC24: Wayne | BE24: Charles City | BF24: Skagit | BG24: Marion | BH24: Grant
A25: 01005 | B25: Alabama | C25: Barbour | D25: Seed Cotton | E25: Pound | F25: Alabama_Barbour_Seed Cotton | G25: 1590.96 | I25: Wheat | J25: 0.9545 | L25: Missouri | N25: Dallas | P25: Lawrence | Q25: San Joaquin | R25: Larimer | U25: Putnam | V25: Charlton | W25: Gooding | X25: Dupage | Y25: Floyd | Z25: Clinton | AA25: Douglas | AB25: Clark | AC25: Iberia | AE25: Wicomico | AG25: Dickinson | AH25: Freeborn | AI25: Grenada | AJ25: Clay | AK25: Lake | AL25: Dawes-N. Sioux | AQ25: Livingston | AR25: Cleveland | AS25: Lamoure | AT25: Fairfield | AU25: Ellis | AV25: Union | AW25: Delaware | AY25: Greenville | AZ25: Fall River | BA25: Dickson | BB25: Brown | BC25: Weber | BE25: Charlotte | BF25: Snohomish, North King | BG25: Marshall | BH25: Green
A26: 01005 | B26: Alabama | C26: Barbour | D26: Sesame Seed | E26: Pound | F26: Alabama_Barbour_Sesame Seed | G26: 395.4 | L26: Montana | N26: Dekalb | P26: Lee | Q26: San Luis Obispo | R26: Las Animas | U26: St. Johns | V26: Chatham | W26: Idaho | X26: Edgar | Y26: Fountain | Z26: Crawford | AA26: Edwards | AB26: Clay | AC26: Iberville | AE26: Worcester | AG26: Eaton | AH26: Goodhue | AI26: Hancock | AJ26: Clinton | AK26: Lewis And Clark | AL26: Dawes | AQ26: Madison | AR26: Columbus | AS26: Logan | AT26: Fayette | AU26: Garfield | AV26: Wallowa | AW26: Elk | AY26: Greenwood | AZ26: Faulk | BA26: Dyer | BB26: Burleson | BE26: Chesterfield | BF26: Spokane | BG26: Mason | BH26: Green Lake
A27: 01005 | B27: Alabama | C27: Barbour | D27: Soybeans | E27: Bushel | F27: Alabama_Barbour_Soybeans | G27: 29.06 | L27: Nebraska | N27: Elmore | P27: Lincoln | Q27: Santa Barbara | R27: Lincoln | U27: St Johns | V27: Chattooga | W27: Jefferson | X27: Edwards | Y27: Franklin | Z27: Dallas | AA27: Elk | AB27: Clinton | AC27: Jefferson Davis | AG27: Emmet | AH27: Grant | AI27: Hinds | AJ27: Cole | AK27: Liberty | AL27: Dawes, North Sioux | AQ27: Monroe | AR27: Craven | AS27: Mchenry | AT27: Franklin | AU27: Garvin | AV27: Wasco | AW27: Erie | AY27: Hampton | AZ27: Grant | BA27: Fayette | BB27: Caldwell | BE27: Clarke | BF27: Stevens | BG27: Mercer, Mcdowell | BH27: Iowa
A28: 01005 | B28: Alabama | C28: Barbour | D28: Wheat | E28: Bushel | F28: Alabama_Barbour_Wheat | G28: 42.2 | L28: Nevada | N28: Escambia | P28: Little River | Q28: Santa Clara | R28: Logan | U28: Santa Rosa | V28: Cherokee | W28: Jerome | X28: Effingham | Y28: Fulton | Z28: Davis | AA28: Ellis | AB28: Crittenden | AC28: Lafayette | AG28: Genesee | AH28: Hennepin | AI28: Holmes | AJ28: Cooper | AK28: Mccone | AL28: Dawson | AQ28: Montgomery | AR28: Cumberland | AS28: Mcintosh | AT28: Fulton | AU28: Grady | AV28: Washington | AW28: Fayette | AY28: Horry | AZ28: Gregory | BA28: Fentress | BB28: Calhoun | BE28: Craig | BF28: Thurston | BG28: Mineral | BH28: Iron
A29: 01007 | B29: Alabama | C29: Bibb | D29: Seed Cotton | E29: Pound | F29: Alabama_Bibb_Seed Cotton | G29: 1563.48 | I29: per base acre of | L29: New Hampshire | N29: Etowah | P29: Logan | Q29: Shasta | R29: Mesa | U29: Sumter | V29: Clarke | W29: Kootenai | X29: Fayette | Y29: Gibson | Z29: Decatur | AA29: Ellsworth | AB29: Cumberland | AC29: Lafourche | AG29: Gladwin | AH29: Houston | AI29: Humphreys | AJ29: Crawford | AK29: Madison | AL29: Deuel | AQ29: Niagara | AR29: Currituck | AS29: Mckenzie | AT29: Gallia | AU29: Grant | AV29: Wheeler | AW29: Forest | AY29: Jasper | AZ29: Haakon | BA29: Franklin | BB29: Callahan | BE29: Culpeper | BF29: Walla Walla | BG29: Monongalia | BH29: Jackson
A30: 01009 | B30: Alabama | C30: Blount | D30: Corn | E30: Bushel | F30: Alabama_Blount_Corn | G30: 104.63 | L30: New Jersey | N30: Fayette | P30: Lonoke | Q30: Siskiyou | R30: Moffat | U30: Suwannee | V30: Clay | W30: Kootenai, North Shoshone | X30: Ford | Y30: Grant | Z30: Delaware | AA30: Finney | AB30: Daviess | AC30: La Salle | AG30: Gogebic | AH30: Hubbard | AI30: Issaquena | AJ30: Dade | AK30: Meagher | AL30: Dixon | AQ30: Oneida | AR30: Dare | AS30: Mclean | AT30: Geauga | AU30: Greer | AV30: Yamhill | AW30: Franklin | AY30: Kershaw | AZ30: Hamlin | BA30: Gibson | BB30: Cameron | BE30: Cumberland | BF30: Whatcom | BG30: Monroe | BH30: Jefferson
A31: 01009 | B31: Alabama | C31: Blount | D31: Grain Sorghum | E31: Bushel | F31: Alabama_Blount_Grain Sorghum | G31: 34.2 | I31: Did you plant | L31: New Mexico | N31: Franklin | P31: Miller | Q31: Solano | R31: Montezuma | U31: Taylor | V31: Clinch | W31: Latah | X31: Franklin | Y31: Greene | Z31: Des Moines | AA31: Ford | AB31: Edmonson | AC31: Lasalle | AG31: Grand Traverse | AH31: Isanti | AI31: Itawamba | AJ31: Dallas | AK31: Missoula | AL31: Dodge | AQ31: Onondaga | AR31: Davidson | AS31: Mercer | AT31: Greene | AU31: Harmon | AW31: Fulton | AY31: Lancaster | AZ31: Hand | BA31: Giles | BB31: Carson | BE31: Dinwiddie, Petersburg City | BF31: Whitman | BG31: Morgan | BH31: Juneau
A32: 01009 | B32: Alabama | C32: Blount | D32: Oats | E32: Bushel | F32: Alabama_Blount_Oats | G32: 44.25 | I32: =#REF! ->  | L32: New York | N32: Geneva | P32: Mississippi | Q32: Sonoma | R32: Montrose | U32: Union | V32: Coffee | W32: Lemhi, North Custer | X32: Fulton | Y32: Hamilton | Z32: Dickinson | AA32: Franklin | AB32: Elliott | AC32: Madison | AG32: Gratiot | AH32: Itasca | AI32: Jackson | AJ32: Daviess | AK32: Musselshell | AL32: Douglas | AQ32: Ontario | AR32: Davie | AS32: Morton | AT32: Guernsey | AU32: Harper | AW32: Greene | AY32: Laurens | AZ32: Hanson | BA32: Grainger | BB32: Castro | BE32: Dinwiddie | BF32: Yakima | BG32: Nicholas | BH32: Kenosha
A33: 01009 | B33: Alabama | C33: Blount | D33: Peanuts | E33: Pound | F33: Alabama_Blount_Peanuts | G33: 2214.15 | I33: during the respective year? | L33: North Carolina | N33: Greene | P33: Monroe | Q33: Stanislaus | R33: Morgan | U33: Wakulla | V33: Colquitt | W33: Lemhi | X33: Gallatin | Y33: Hancock | Z33: Dubuque | AA33: Geary | AB33: Estill | AC33: Morehouse | AG33: Hillsdale | AH33: Jackson | AI33: Jasper | AJ33: De Kalb | AK33: Park | AL33: Dundy | AQ33: Orange | AR33: Duplin | AS33: Mountrail | AT33: Hamilton | AU33: Haskell | AW33: Huntingdon | AY33: Lee | AZ33: Harding | BA33: Greene | BB33: Chambers | BE33: Dinwiddie-Petersburg City | BG33: Ohio | BH33: Kewaunee
A34: 01009 | B34: Alabama | C34: Blount | D34: Seed Cotton | E34: Pound | F34: Alabama_Blount_Seed Cotton | G34: 1994.51 | L34: North Dakota | N34: Hale | P34: Nevada | Q34: Sutter | R34: Otero | U34: Walton | V34: Cook | W34: Lewis | X34: Greene | Y34: Harrison | Z34: Emmet | AA34: Gove | AB34: Fayette | AC34: Natchitoches | AG34: Houghton | AH34: Kanabec | AI34: Jefferson | AJ34: Dekalb | AK34: Petroleum | AL34: Fillmore | AQ34: Orange, Rockland | AR34: Durham | AS34: Nelson | AT34: Hancock | AU34: Hughes | AW34: Indiana | AY34: Lexington | AZ34: Hughes | BA34: Grundy | BB34: Childress | BE34: Essex | BG34: Pendleton | BH34: La Crosse
A35: 01009 | B35: Alabama | C35: Blount | D35: Soybeans | E35: Bushel | F35: Alabama_Blount_Soybeans | G35: 31.1 | I35: Select | L35: Ohio | N35: Henry | P35: Perry | Q35: Tehama | R35: Phillips | U35: Washington | V35: Coweta | W35: Lincoln | X35: Grundy | Y35: Hendricks | Z35: Fayette | AA35: Graham | AB35: Fleming | AC35: Ouachita | AG35: Huron | AH35: Kandiyohi | AI35: Jefferson Davis | AJ35: Dent | AK35: Phillips | AL35: Franklin | AQ35: Orleans | AR35: Edgecombe | AS35: Oliver | AT35: Hardin | AU35: Jackson | AW35: Jefferson | AY35: McCormick | AZ35: Hutchinson | BA35: Hamblen | BB35: Clay | BE35: Fauquier | BG35: Pleasants | BH35: Lafayette
A36: 01009 | B36: Alabama | C36: Blount | D36: Wheat | E36: Bushel | F36: Alabama_Blount_Wheat | G36: 47.63 | I36: Yes | L36: Oklahoma | N36: Houston | P36: Phillips | Q36: Tulare | R36: Pitkin | V36: Crawford | W36: Madison | X36: Hamilton | Y36: Henry | Z36: Floyd | AA36: Grant | AB36: Franklin | AC36: Pointe Coupee | AG36: Ingham | AH36: Kittson | AI36: Jeffersondavis | AJ36: Dunklin | AK36: Pondera | AL36: Frontier | AQ36: Oswego | AR36: Forsyth | AS36: Pembina | AT36: Harrison | AU36: Jefferson | AW36: Juniata | AY36: Marion | AZ36: Hyde | BA36: Hamilton | BB36: Cochran | BE36: Floyd | BG36: Pocahontas | BH36: Langlade
A37: 01011 | B37: Alabama | C37: Bullock | D37: Corn | E37: Bushel | F37: Alabama_Bullock_Corn | G37: 92.87 | I37: No | L37: Oregon | N37: Jackson | P37: Pike | Q37: Yolo | R37: Prowers | V37: Crisp | W37: Minidoka | X37: Hancock | Y37: Howard | Z37: Franklin | AA37: Gray | AB37: Fulton | AC37: Rapides | AG37: Ionia | AH37: Koochiching | AI37: Jones | AJ37: Franklin | AK37: Powder River | AL37: Furnas | AQ37: Otsego | AR37: Franklin | AS37: Pierce | AT37: Henry | AU37: Johnston | AW37: Lackawanna | AY37: Marlboro | AZ37: Jackson | BA37: Hancock | BB37: Coke | BE37: Fluvanna | BG37: Preston | BH37: Lincoln
A38: 01011 | B38: Alabama | C38: Bullock | D38: Grain Sorghum | E38: Bushel | F38: Alabama_Bullock_Grain Sorghum | G38: 33 | L38: Pennsylvania | N38: Jefferson | P38: Poinsett | Q38: Yuba | R38: Pueblo | V38: Dade | W38: Nez Perce | X38: Hardin | Y38: Huntington | Z38: Fremont | AA38: Greeley | AB38: Gallatin | AC38: Red River | AG38: Iosco | AH38: Lac Qui Parle | AI38: Kemper | AJ38: Gasconade | AK38: Powell | AL38: Gage | AQ38: Putnam | AR38: Gaston | AS38: Ramsey | AT38: Highland | AU38: Kay | AW38: Lancaster | AY38: Newberry | AZ38: Jerauld | BA38: Hardeman | BB38: Coleman | BE38: Franklin | BG38: Putnam | BH38: Manitowoc
A39: 01011 | B39: Alabama | C39: Bullock | D39: Oats | E39: Bushel | F39: Alabama_Bullock_Oats | G39: 38.7 | L39: Rhode Island | N39: Lamar | P39: Pope | R39: Rio Blanco | V39: Dawson | W39: Oneida | X39: Henderson | Y39: Jackson | Z39: Greene | AA39: Greenwood | AB39: Garrard | AC39: Richland | AG39: Iron | AH39: Lake Of The Woods | AI39: Lafayette | AJ39: Gentry | AK39: Prairie | AL39: Garden | AQ39: Rensselaer | AR39: Gates | AS39: Ransom | AT39: Hocking | AU39: Kingfisher | AW39: Lawrence | AY39: Oconee | AZ39: Jones | BA39: Hardin | BB39: Collin | BE39: Frederick, Winchester City | BG39: Raleigh | BH39: Marathon
A40: 01011 | B40: Alabama | C40: Bullock | D40: Rice_Long Grain | E40: Pound | F40: Alabama_Bullock_Rice_Long Grain | G40: 33.75 | L40: South Carolina | N40: Lauderdale | P40: Prairie | R40: Rio Grande | V40: Decatur | W40: Owyhee | X40: Henry | Y40: Jasper | Z40: Grundy | AA40: Hamilton | AB40: Grant | AC40: St. Helena | AG40: Isabella | AH40: Le Sueur | AI40: Lamar | AJ40: Greene | AK40: Ravalli | AL40: Garfield | AQ40: St. Lawrence | AR40: Graham | AS40: Renville | AT40: Holmes | AU40: Kiowa | AW40: Lebanon | AY40: Orangeburg | AZ40: Kingsbury | BA40: Hawkins | BB40: Collingsworth | BE40: Giles | BG40: Randolph | BH40: Marinette
A41: 01011 | B41: Alabama | C41: Bullock | D41: Seed Cotton | E41: Pound | F41: Alabama_Bullock_Seed Cotton | G41: 1760 | L41: South Dakota | N41: Lawrence | P41: Pulaski | R41: Routt | V41: Dodge | W41: Payette | X41: Iroquois | Y41: Jay | Z41: Guthrie | AA41: Harper | AB41: Graves | AC41: St Helena | AG41: Jackson | AH41: Lincoln | AI41: Lauderdale | AJ41: Grundy | AK41: Richland | AL41: Gosper | AQ41: Saratoga | AR41: Granville | AS41: Richland | AT41: Huron | AU41: Le Flore | AW41: Lehigh | AY41: Pickens | AZ41: Lake | BA41: Haywood | BB41: Colorado | BE41: Gloucester | BG41: Ritchie | BH41: Marquette
A42: 01011 | B42: Alabama | C42: Bullock | D42: Soybeans | E42: Bushel | F42: Alabama_Bullock_Soybeans | G42: 24.12 | L42: Tennessee | N42: Lee | P42: Randolph | R42: Saguache | V42: Dooly | W42: Power | X42: Jackson | Y42: Jefferson | Z42: Hamilton | AA42: Harvey | AB42: Grayson | AC42: St. James | AG42: Kalamazoo | AH42: Lyon | AI42: Lawrence | AJ42: Harrison | AK42: Roosevelt | AL42: Greeley | AQ42: Schenectady | AR42: Greene | AS42: Rolette | AT42: Jackson | AU42: Lincoln | AW42: Luzerne | AY42: Richland | AZ42: Lawrence | BA42: Henderson | BB42: Comanche | BE42: Goochland | BG42: Roane | BH42: Menominee
A43: 01011 | B43: Alabama | C43: Bullock | D43: Wheat | E43: Bushel | F43: Alabama_Bullock_Wheat | G43: 43.65 | L43: Texas | N43: Limestone | P43: St. Francis | R43: San Miguel | V43: Dougherty | W43: Teton | X43: Jasper | Y43: Jennings | Z43: Hancock | AA43: Haskell | AB43: Green | AC43: St James | AG43: Kalkaska | AH43: Mcleod | AI43: Leake | AJ43: Henry | AK43: Rosebud | AL43: Hall | AQ43: Schoharie | AR43: Guilford | AS43: Sargent | AT43: Jefferson | AU43: Logan | AW43: Lycoming | AY43: Saluda | AZ43: Lincoln | BA43: Henry | BB43: Concho | BE43: Grayson, West Galax City | BG43: Summers | BH43: Milwaukee
A44: 01013 | B44: Alabama | C44: Butler | D44: Corn | E44: Bushel | F44: Alabama_Butler_Corn | G44: 73.41 | L44: Utah | N44: Lowndes | P44: Sebastian | R44: Sedgwick | V44: Early | W44: Twin Falls | X44: Jefferson | Y44: Johnson | Z44: Hardin | AA44: Hodgeman | AB44: Greenup | AC44: St. Landry | AG44: Kent | AH44: Mahnomen | AI44: Lee | AJ44: Hickory | AK44: Sanders | AL44: Hamilton | AQ44: Schuyler | AR44: Halifax | AS44: Sheridan | AT44: Knox | AU44: Love | AW44: Mckean | AY44: Spartanburg | AZ44: Lyman | BA44: Hickman | BB44: Cooke | BE44: Grayson | BG44: Taylor | BH44: Monroe
A45: 01013 | B45: Alabama | C45: Butler | D45: Grain Sorghum | E45: Bushel | F45: Alabama_Butler_Grain Sorghum | G45: 35.85 | L45: Vermont | N45: Macon | P45: Sevier | R45: Washington | V45: Echols | W45: Valley | X45: Jersey | Y45: Knox | Z45: Harrison | AA45: Jackson | AB45: Hancock | AC45: St. Martin | AG45: Lake | AH45: Marshall | AI45: Leflore | AJ45: Holt | AK45: Sheridan | AL45: Harlan | AQ45: Seneca | AR45: Harnett | AS45: Sioux | AT45: Lake | AU45: Mcclain | AW45: Mercer | AY45: Sumter | AZ45: Mccook | BA45: Houston | BB45: Coryell | BE45: Greene | BG45: Tucker | BH45: Oconto
A46: 01013 | B46: Alabama | C46: Butler | D46: Oats | E46: Bushel | F46: Alabama_Butler_Oats | G46: 40.5 | L46: Virginia | N46: Madison | P46: Sharp | R46: Weld | V46: Effingham | W46: Washington | X46: Jo Daviess | Y46: Kosciusko | Z46: Henry | AA46: Jefferson | AB46: Hardin | AC46: St Martin | AG46: Lapeer | AH46: Martin | AI46: Lincoln | AJ46: Howard | AK46: Stillwater | AL46: Hayes | AQ46: Steuben | AR46: Haywood | AS46: Slope | AT46: Lawrence | AU46: Mccurtain | AW46: Mifflin | AY46: Union | AZ46: Mcpherson | BA46: Humphreys | BB46: Cottle | BE46: Greensville | BG46: Tyler | BH46: Oneida
A47: 01013 | B47: Alabama | C47: Butler | D47: Peanuts | E47: Pound | F47: Alabama_Butler_Peanuts | G47: 2317.41 | L47: Washington | N47: Marengo | P47: Stone | R47: Yuma | V47: Elbert | X47: Johnson | Y47: Lagrange | Z47: Howard | AA47: Jewell | AB47: Harrison | AC47: St. Mary | AG47: Leelanau | AH47: Meeker | AI47: Lowndes | AJ47: Howell | AK47: Sweet Grass | AL47: Hitchcock | AQ47: Suffolk | AR47: Henderson | AS47: Stark | AT47: Licking | AU47: McIntosh | AW47: Monroe | AY47: Williamsburg | AZ47: Marshall | BA47: Jackson | BB47: Crockett | BE47: Greensville, Emporia City | BG47: Upshur | BH47: Outagamie
A48: 01013 | B48: Alabama | C48: Butler | D48: Seed Cotton | E48: Pound | F48: Alabama_Butler_Seed Cotton | G48: 1509.84 | L48: West Virginia | N48: Marion | P48: White | V48: Emanuel | X48: Kane | Y48: Lake | Z48: Humboldt | AA48: Johnson | AB48: Hart | AC48: St. Tammany | AG48: Lenawee | AH48: Mille Lacs | AI48: Madison | AJ48: Iron | AK48: Teton | AL48: Holt | AQ48: Suffolk, Nassau | AR48: Hertford | AS48: Steele | AT48: Logan | AU48: Major | AW48: Montgomery | AY48: York | AZ48: Meade | BA48: Jefferson | BB48: Crosby | BE48: Greensville-Emporia City | BG48: Wayne | BH48: Ozaukee
A49: 01013 | B49: Alabama | C49: Butler | D49: Soybeans | E49: Bushel | F49: Alabama_Butler_Soybeans | G49: 24.92 | L49: Wisconsin | N49: Marshall | P49: Woodruff | V49: Evans | X49: Kankakee | Y49: La Porte | Z49: Ida | AA49: Kearny | AB49: Henderson | AC49: Tangipahoa | AG49: Livingston | AH49: Morrison | AI49: Marion | AJ49: Jackson | AK49: Toole | AL49: Howard | AQ49: Sullivan | AR49: Hoke | AS49: Stutsman | AT49: Lorain | AU49: Marshall | AW49: Montour | AZ49: Mellette | BA49: Johnson | BB49: Culberson | BE49: Halifax | BG49: Webster | BH49: Pepin
A50: 01013 | B50: Alabama | C50: Butler | D50: Wheat | E50: Bushel | F50: Alabama_Butler_Wheat | G50: 42 | L50: Wyoming | N50: Mobile | P50: Yell | V50: Fannin | X50: Kendall | Y50: Laporte | Z50: Iowa | AA50: Kingman | AB50: Henry | AC50: Tensas | AG50: Luce | AH50: Mower | AI50: Marshall | AJ50: Jasper | AK50: Treasure | AL50: Jefferson | AQ50: Tioga | AR50: Hyde | AS50: Towner | AT50: East Lucas | AU50: Mayes | AW50: Northampton | AZ50: Miner | BA50: Knox | BB50: Dallam | BE50: Hanover | BG50: Wirt | BH50: Pierce
A51: 01015 | B51: Alabama | C51: Calhoun | D51: Barley | E51: Bushel | F51: Alabama_Calhoun_Barley | G51: 45.9 | N51: Monroe | V51: Fayette | X51: Knox | Y51: Lawrence | Z51: Jackson | AA51: Kiowa | AB51: Hickman | AC51: Vermilion | AG51: Mackinac | AH51: Murray | AI51: Monroe | AJ51: Jefferson | AK51: Valley | AL51: Johnson | AQ51: Tompkins | AR51: Iredell | AS51: Traill | AT51: West Lucas | AU51: Murray | AW51: Northumberland | AZ51: Minnehaha | BA51: Lake | BB51: Dallas | BE51: Henrico, Richmond City | BG51: Wood | BH51: Polk
A52: 01015 | B52: Alabama | C52: Calhoun | D52: Corn | E52: Bushel | F52: Alabama_Calhoun_Corn | G52: 98.25 | N52: Montgomery | V52: Floyd | X52: Lake | Y52: Madison | Z52: Jasper | AA52: Labette | AB52: Hopkins | AC52: Washington | AG52: Macomb | AH52: Nicollet | AI52: Montgomery | AJ52: Johnson | AK52: Wheatland | AL52: Kearney | AQ52: Ulster | AR52: Jackson | AS52: Walsh | AT52: Madison | AU52: Muskogee | AW52: Perry | AZ52: Moody | BA52: Lauderdale | BB52: Dawson | BE52: Henrico-Richmond City | BH52: Portage
A53: 01015 | B53: Alabama | C53: Calhoun | D53: Grain Sorghum | E53: Bushel | F53: Alabama_Calhoun_Grain Sorghum | G53: 34.35 | N53: Morgan | V53: Franklin | X53: Lasalle | Y53: Marion | Z53: Jefferson | AA53: Lane | AB53: Jackson | AC53: Webster | AG53: Manistee | AH53: Nobles | AI53: Neshoba | AJ53: Knox | AK53: Wibaux | AL53: Keith | AQ53: Warren | AR53: Johnston | AS53: Ward | AT53: Mahoning | AU53: Noble | AW53: Pike | AZ53: Pennington | BA53: Lawrence | BB53: Deaf Smith | BE53: Henrico | BH53: Price
A54: 01015 | B54: Alabama | C54: Calhoun | D54: Oats | E54: Bushel | F54: Alabama_Calhoun_Oats | G54: 44.25 | N54: Perry | V54: Gilmer | X54: Lawrence | Y54: Marshall | Z54: Johnson | AA54: Leavenworth | AB54: Jefferson | AC54: West Baton Rouge | AG54: Marquette | AH54: Norman | AI54: Newton | AJ54: Laclede | AK54: Yellowstone | AL54: Keya Paha | AQ54: Washington | AR54: Jones | AS54: Wells | AT54: Marion | AU54: Nowata | AW54: Potter | AZ54: Perkins | BA54: Lewis | BB54: Delta | BE54: Henry, Martinsville City | BH54: Racine
A55: 01015 | B55: Alabama | C55: Calhoun | D55: Seed Cotton | E55: Pound | F55: Alabama_Calhoun_Seed Cotton | G55: 1901.92 | N55: Pickens | V55: Glascock | X55: Lee | Y55: Martin | Z55: Jones | AA55: Lincoln | AB55: Jessamine | AC55: West Baton RougeCarroll | AG55: Mason | AH55: Olmsted | AI55: Noxubee | AJ55: Lafayette | AL55: Kimball | AQ55: Wayne | AR55: Lee | AS55: Williams | AT55: Medina | AU55: Okfuskee | AW55: Schuylkill | AZ55: Potter | BA55: Lincoln | BB55: Denton | BE55: Highland | BH55: Richland
A56: 01015 | B56: Alabama | C56: Calhoun | D56: Soybeans | E56: Bushel | F56: Alabama_Calhoun_Soybeans | G56: 26.87 | N56: Pike | V56: Gordon | X56: Livingston | Y56: Miami | Z56: Keokuk | AA56: Linn | AB56: Johnson | AC56: West Carroll | AG56: Mecosta | AH56: East Otter Tail | AI56: Oktibbeha | AJ56: Lawrence | AL56: Knox | AQ56: Wyoming | AR56: Lenoir | AT56: Meigs | AU56: Oklahoma | AW56: Snyder | AZ56: Roberts | BA56: Loudon | BB56: Dewitt | BE56: Isle Of Wight | BH56: Rock
A57: 01015 | B57: Alabama | C57: Calhoun | D57: Wheat | E57: Bushel | F57: Alabama_Calhoun_Wheat | G57: 46.08 | N57: Randolph | V57: Grady | X57: Logan | Y57: Monroe | Z57: Kossuth | AA57: Logan | AB57: Kenton | AC57: West Feliciana | AG57: Menominee | AH57: Otter Tail | AI57: Panola | AJ57: Lewis | AL57: Lancaster | AQ57: Yates | AR57: Lincoln | AT57: Mercer | AU57: Okmulgee | AW57: Somerset | AZ57: Sanborn | BA57: Mcminn | BB57: Dickens | BE57: James City, Williamsburg City | BH57: Rusk
A58: 01017 | B58: Alabama | C58: Chambers | D58: Corn | E58: Bushel | F58: Alabama_Chambers_Corn | G58: 90.32 | N58: Russell | V58: Greene | X58: Mcdonough | Y58: Montgomery | Z58: Lee | AA58: Lyon | AB58: Knox | AC58: Winn | AG58: Midland | AH58: West Otter Tail | AI58: Pearl River | AJ58: Lincoln | AL58: Lincoln | AR58: Mcdowell | AT58: Miami | AU58: Osage | AW58: Sullivan | AZ58: Oglala Lakota | BA58: Mcnairy | BB58: Dimmit | BE58: James City | BH58: St. Croix
A59: 01017 | B59: Alabama | C59: Chambers | D59: Grain Sorghum | E59: Bushel | F59: Alabama_Chambers_Grain Sorghum | G59: 34.8 | N59: St. Clair | V59: Gwinnett | X59: Mchenry | Y59: Morgan | Z59: Linn | AA59: Mcpherson | AB59: Larue | AG59: Missaukee | AH59: Pennington | AI59: Perry | AJ59: Linn | AL59: Logan | AR59: Macon | AT59: Monroe | AU59: Ottawa | AW59: Susquehanna | AZ59: Spink | BA59: Macon | BB59: Donley | BE59: King And Queen | BH59: St Croix
A60: 01017 | B60: Alabama | C60: Chambers | D60: Oats | E60: Bushel | F60: Alabama_Chambers_Oats | G60: 39.15 | N60: Shelby | V60: Habersham | X60: Mclean | Y60: Newton | Z60: Louisa | AA60: Marion | AB60: Laurel | AG60: Monroe | AH60: Pine | AI60: Pike | AJ60: Livingston | AL60: Loup | AR60: Madison | AT60: Montgomery | AU60: Pawnee | AW60: Tioga | AZ60: Stanley | BA60: Madison | BB60: Duval | BE60: King & Queen | BH60: Sauk
A61: 01017 | B61: Alabama | C61: Chambers | D61: Peanuts | E61: Pound | F61: Alabama_Chambers_Peanuts | G61: 2581.5 | N61: Sumter | V61: Hall | X61: Macon | Y61: Noble | Z61: Lucas | AA61: Marshall | AB61: Lawrence | AG61: Montcalm | AH61: Pipestone | AI61: Pontotoc | AJ61: McDonald | AL61: Mcpherson | AR61: Martin | AT61: Morgan | AU61: Payne | AW61: Union | AZ61: Sully | BA61: Marion | BB61: Eastland | BE61: King George | BH61: Sawyer
A62: 01017 | B62: Alabama | C62: Chambers | D62: Seed Cotton | E62: Pound | F62: Alabama_Chambers_Seed Cotton | G62: 1455.84 | N62: Talladega | V62: Hancock | X62: Macoupin | Y62: Ohio | Z62: Lyon | AA62: Meade | AB62: Lewis | AG62: Montmorency | AH62: East Polk | AI62: Prentiss | AJ62: Macon | AL62: Madison | AR62: Mecklenburg | AT62: Morrow | AU62: Pittsburg | AW62: Venango | AZ62: Todd | BA62: Marshall | BB62: Ellis | BE62: King William | BH62: Shawano
A63: 01017 | B63: Alabama | C63: Chambers | D63: Soybeans | E63: Bushel | F63: Alabama_Chambers_Soybeans | G63: 27 | N63: Tallapoosa | V63: Haralson | X63: Madison | Y63: Orange | Z63: Madison | AA63: Miami | AB63: Lincoln | AG63: Muskegon | AH63: Polk | AI63: Quitman | AJ63: Madison | AL63: Merrick | AR63: Mitchell | AT63: Muskingum | AU63: Pontotoc | AW63: Warren | AZ63: Tripp | BA63: Maury | BB63: El Paso | BE63: Lancaster | BH63: Sheboygan
A64: 01017 | B64: Alabama | C64: Chambers | D64: Sunflower Seed | E64: Pound | F64: Alabama_Chambers_Sunflower Seed | G64: 868.5 | N64: Tuscaloosa | V64: Hart | X64: Marion | Y64: Owen | Z64: Mahaska | AA64: Mitchell | AB64: Livingston | AG64: Newaygo | AH64: West Polk | AI64: Rankin | AJ64: Maries | AL64: Morrill | AR64: Montgomery | AT64: Noble | AU64: Pottawatomie | AW64: Washington | AZ64: Turner | BA64: Meigs | BB64: Erath | BE64: Lee | BH64: Taylor
A65: 01017 | B65: Alabama | C65: Chambers | D65: Wheat | E65: Bushel | F65: Alabama_Chambers_Wheat | G65: 43.5 | N65: Walker | V65: Heard | X65: Marshall | Y65: Parke | Z65: Marion | AA65: Montgomery | AB65: Logan | AG65: Oakland | AH65: Pope | AI65: Scott | AJ65: Marion | AL65: Nance | AR65: Moore | AT65: Ottawa | AU65: Roger Mills | AW65: Wayne | AZ65: Union | BA65: Monroe | BB65: Falls | BE65: Loudoun | BH65: Trempealeau
A66: 01019 | B66: Alabama | C66: Cherokee | D66: Barley | E66: Bushel | F66: Alabama_Cherokee_Barley | G66: 44.4 | N66: Washington | V66: Henry | X66: Mason | Y66: Perry | Z66: Marshall | AA66: Morris | AB66: Lyon | AG66: Oceana | AH66: Red Lake | AI66: Sharkey | AJ66: Mercer | AL66: Nemaha | AR66: Nash | AT66: Paulding | AU66: Rogers | AW66: Westmoreland | AZ66: Walworth | BA66: Montgomery | BB66: Fannin | BE66: Louisa | BH66: Vernon
A67: 01019 | B67: Alabama | C67: Cherokee | D67: Canola | E67: Pound | F67: Alabama_Cherokee_Canola | G67: 1183.35 | N67: Wilcox | V67: Houston | X67: Massac | Y67: Pike | Z67: Mills | AA67: Morton | AB67: Mccracken | AG67: Ogemaw | AH67: Redwood | AI67: Simpson | AJ67: Miller | AL67: Nuckolls | AR67: New Hanover | AT67: Perry | AU67: Seminole | AW67: Wyoming | AZ67: Yankton | BA67: Moore | BB67: Fayette | BE67: Lunenburg | BH67: Vilas
A68: 01019 | B68: Alabama | C68: Cherokee | D68: Corn | E68: Bushel | F68: Alabama_Cherokee_Corn | G68: 96.35 | N68: Winston | V68: Irwin | X68: Menard | Y68: Porter | Z68: Mitchell | AA68: Nemaha | AB68: Mccreary | AG68: Ontonagon | AH68: Renville | AI68: Smith | AJ68: Mississippi | AL68: Otoe | AR68: Northampton | AT68: Pickaway | AU68: Sequoyah | AW68: York | AZ68: Ziebach | BA68: Morgan | BB68: Fisher | BE68: Madison | BH68: Walworth
A69: 01019 | B69: Alabama | C69: Cherokee | D69: Grain Sorghum | E69: Bushel | F69: Alabama_Cherokee_Grain Sorghum | G69: 34.35 | V69: Jackson | X69: Mercer | Y69: Posey | Z69: Monona | AA69: Neosho | AB69: Mclean | AG69: Osceola | AH69: Rice | AI69: Stone | AJ69: Moniteau | AL69: Pawnee | AR69: Onslow | AT69: Pike | AU69: Stephens | BA69: Obion | BB69: Floyd | BE69: Mathews | BH69: Washburn
A70: 01019 | B70: Alabama | C70: Cherokee | D70: Oats | E70: Bushel | F70: Alabama_Cherokee_Oats | G70: 45.3 | V70: Jasper | X70: Monroe | Y70: Pulaski | Z70: Monroe | AA70: Ness | AB70: Madison | AG70: Oscoda | AH70: Rock | AI70: Sunflower | AJ70: Monroe | AL70: Perkins | AR70: Orange | AT70: Portage | AU70: Texas | BA70: Overton | BB70: Foard | BE70: Mecklenburg | BH70: Washington
A71: 01019 | B71: Alabama | C71: Cherokee | D71: Seed Cotton | E71: Pound | F71: Alabama_Cherokee_Seed Cotton | G71: 1677.46 | V71: Jeff Davis | X71: Montgomery | Y71: Putnam | Z71: Montgomery | AA71: Norton | AB71: Marion | AG71: Otsego | AH71: Roseau | AI71: Tallahatchie | AJ71: Montgomery | AL71: Phelps | AR71: Pamlico | AT71: Preble | AU71: Tillman | BA71: Perry | BB71: Fort Bend | BE71: Middlesex | BH71: Waukesha
A72: 01019 | B72: Alabama | C72: Cherokee | D72: Soybeans | E72: Bushel | F72: Alabama_Cherokee_Soybeans | G72: 26.87 | V72: Jefferson | X72: Morgan | Y72: Randolph | Z72: Muscatine | AA72: Osage | AB72: Marshall | AG72: Ottawa | AH72: North St. Louis | AI72: Tate | AJ72: Morgan | AL72: Pierce | AR72: Pasquotank | AT72: Putnam | AU72: Tulsa | BA72: Pickett | BB72: Frio | BE72: Montgomery, Radford City | BH72: Waupaca
A73: 01019 | B73: Alabama | C73: Cherokee | D73: Sunflower Seed | E73: Pound | F73: Alabama_Cherokee_Sunflower Seed | G73: 823.35 | V73: Jenkins | X73: Moultrie | Y73: Ripley | Z73: O'Brien | AA73: Osborne | AB73: Mason | AG73: Presque Isle | AH73: St Louis | AI73: Tippah | AJ73: New Madrid | AL73: Platte | AR73: Pender | AT73: Richland | AU73: Wagoner | BA73: Polk | BB73: Gaines | BE73: Montgomery | BH73: Waushara
A74: 01019 | B74: Alabama | C74: Cherokee | D74: Wheat | E74: Bushel | F74: Alabama_Cherokee_Wheat | G74: 46.19 | V74: Johnson | X74: Ogle | Y74: Rush | Z74: Osceola | AA74: Ottawa | AB74: Meade | AG74: Roscommon | AH74: South St Louis | AI74: Tishomingo | AJ74: Newton | AL74: Polk | AR74: Perquimans | AT74: Ross | AU74: Washington | BA74: Putnam | BB74: Galveston | BE74: Nelson | BH74: Winnebago
A75: 01021 | B75: Alabama | C75: Chilton | D75: Corn | E75: Bushel | F75: Alabama_Chilton_Corn | G75: 79.55 | V75: Jones | X75: Peoria | Y75: St Joseph | Z75: Page | AA75: Pawnee | AB75: Mercer | AG75: Saginaw | AH75: South St. Louis | AI75: Tunica | AJ75: Nodaway | AL75: Red Willow | AR75: Person | AT75: Sandusky | AU75: Washita | BA75: Rhea | BB75: Garza | BE75: New Kent | BH75: Wood
A76: 01021 | B76: Alabama | C76: Chilton | D76: Grain Sorghum | E76: Bushel | F76: Alabama_Chilton_Grain Sorghum | G76: 33.9 | V76: Lamar | X76: Perry | Y76: St. Joseph | Z76: Palo Alto | AA76: Phillips | AB76: Metcalfe | AG76: St. Clair | AH76: Scott | AI76: Union | AJ76: Osage | AL76: Richardson | AR76: Pitt | AT76: Scioto | AU76: Woods | BA76: Roane | BB76: Gillespie | BE76: Northampton
A77: 01021 | B77: Alabama | C77: Chilton | D77: Oats | E77: Bushel | F77: Alabama_Chilton_Oats | G77: 37.35 | V77: Lanier | X77: Piatt | Y77: Scott | Z77: Plymouth | AA77: Pottawatomie | AB77: Monroe | AG77: St Clair | AH77: Sherburne | AI77: Walthall | AJ77: Pemiscot | AL77: Rock | AR77: Polk | AT77: Seneca | AU77: Woodward | BA77: Robertson | BB77: Glasscock | BE77: Northumberland
A78: 01021 | B78: Alabama | C78: Chilton | D78: Seed Cotton | E78: Pound | F78: Alabama_Chilton_Seed Cotton | G78: 1590.84 | V78: Laurens | X78: Pike | Y78: Shelby | Z78: Pocahontas | AA78: Pratt | AB78: Montgomery | AG78: St. Joseph | AH78: Sibley | AI78: Warren | AJ78: Perry | AL78: Saline | AR78: Randolph | AT78: Shelby | BA78: Rutherford | BB78: Goliad | BE78: Nottoway
A79: 01021 | B79: Alabama | C79: Chilton | D79: Soybeans | E79: Bushel | F79: Alabama_Chilton_Soybeans | G79: 24.59 | V79: Lee | X79: Pope | Y79: Spencer | Z79: Polk | AA79: Rawlins | AB79: Morgan | AG79: St Joseph | AH79: Stearns | AI79: Washington | AJ79: Pettis | AL79: Sarpy | AR79: Richmond | AT79: Stark | BA79: Scott | BB79: Gonzales | BE79: Orange
A80: 01021 | B80: Alabama | C80: Chilton | D80: Wheat | E80: Bushel | F80: Alabama_Chilton_Wheat | G80: 35.93 | V80: Liberty | X80: Pulaski | Y80: Starke | Z80: East Pottawattamie | AA80: Reno | AB80: Muhlenberg | AG80: Sanilac | AH80: Steele | AI80: Wayne | AJ80: Phelps | AL80: Saunders | AR80: Robeson | AT80: Summit | BA80: Sequatchie | BB80: Gray | BE80: Page
A81: 01023 | B81: Alabama | C81: Choctaw | D81: Corn | E81: Bushel | F81: Alabama_Choctaw_Corn | G81: 86.85 | V81: Lincoln | X81: Putnam | Y81: Steuben | Z81: West Pottawattamie | AA81: Republic | AB81: Nelson | AG81: Schoolcraft | AH81: Stevens | AI81: Webster | AJ81: Pike | AL81: Scottsbluff | AR81: Rockingham | AT81: Trumbull | BA81: Sevier | BB81: Grayson | BE81: Patrick
A82: 01023 | B82: Alabama | C82: Choctaw | D82: Seed Cotton | E82: Pound | F82: Alabama_Choctaw_Seed Cotton | G82: 1346.04 | V82: Long | X82: Randolph | Y82: Sullivan | Z82: Poweshiek | AA82: Rice | AB82: Nicholas | AG82: Shiawassee | AH82: Swift | AI82: Wilkinson | AJ82: Platte | AL82: Scotts Bluff | AR82: Rowan | AT82: Tuscarawas | BA82: Shelby | BB82: Grimes | BE82: Pittsylvania
A83: 01025 | B83: Alabama | C83: Clarke | D83: Corn | E83: Bushel | F83: Alabama_Clarke_Corn | G83: 86.55 | V83: Lowndes | X83: Richland | Y83: Switzerland | Z83: Ringgold | AA83: Riley | AB83: Ohio | AG83: Tuscola | AH83: Todd | AI83: Winston | AJ83: Polk | AL83: Seward | AR83: Rutherford | AT83: Union | BA83: Smith | BB83: Guadalupe | BE83: Powhatan
A84: 01025 | B84: Alabama | C84: Clarke | D84: Grain Sorghum | E84: Bushel | F84: Alabama_Clarke_Grain Sorghum | G84: 32.55 | V84: Mcduffie | X84: Rock Island | Y84: Tippecanoe | Z84: Sac | AA84: Rooks | AB84: Oldham | AG84: Van Buren | AH84: Traverse | AI84: Yalobusha | AJ84: Pulaski | AL84: Sheridan | AR84: Sampson | AT84: Van Wert | BA84: Stewart | BB84: Hale | BE84: Prince Edward
A85: 01025 | B85: Alabama | C85: Clarke | D85: Oats | E85: Bushel | F85: Alabama_Clarke_Oats | G85: 38.7 | V85: Macon | X85: St Clair | Y85: Tipton | Z85: Scott | AA85: Rush | AB85: Owen | AG85: Washtenaw | AH85: Wabasha | AI85: Yazoo | AJ85: Putnam | AL85: Sherman | AR85: Scotland | AT85: Vinton | BA85: Sullivan | BB85: Hall | BE85: Prince George
A86: 01025 | B86: Alabama | C86: Clarke | D86: Peanuts | E86: Pound | F86: Alabama_Clarke_Peanuts | G86: 2954.25 | V86: Madison | X86: St. Clair | Y86: Union | Z86: Shelby | AA86: Russell | AB86: Pendleton | AG86: Wayne | AH86: Wadena | AJ86: Ralls | AL86: Sioux | AR86: Stanly | AT86: Warren | BA86: Sumner | BB86: Hamilton | BE86: Prince William
A87: 01025 | B87: Alabama | C87: Clarke | D87: Seed Cotton | E87: Pound | F87: Alabama_Clarke_Seed Cotton | G87: 1325.16 | V87: Marion | X87: Saline | Y87: Vanderburgh | Z87: Sioux | AA87: Saline | AB87: Powell | AG87: Wexford | AH87: Waseca | AJ87: Randolph | AL87: South Sioux | AR87: Stokes | AT87: Washington | BA87: Tipton | BB87: Hansford | BE87: Pulaski
A88: 01025 | B88: Alabama | C88: Clarke | D88: Wheat | E88: Bushel | F88: Alabama_Clarke_Wheat | G88: 42.75 | V88: Miller | X88: Sangamon | Y88: Vermillion | Z88: Story | AA88: Scott | AB88: Pulaski | AH88: Washington | AJ88: Ray | AL88: Stanton | AR88: Surry | AT88: Wayne | BA88: Trousdale | BB88: Hardeman | BE88: Rappahannock
A89: 01027 | B89: Alabama | C89: Clay | D89: Corn | E89: Bushel | F89: Alabama_Clay_Corn | G89: 91.5 | V89: Mitchell | X89: Schuyler | Y89: Vigo | Z89: Tama | AA89: Sedgwick | AB89: Robertson | AH89: Watonwan | AJ89: Reynolds | AL89: Thayer | AR89: Swain | AT89: Williams | BA89: Union | BB89: Harris | BE89: Richmond
A90: 01027 | B90: Alabama | C90: Clay | D90: Grain Sorghum | E90: Bushel | F90: Alabama_Clay_Grain Sorghum | G90: 34.5 | V90: Monroe | X90: Scott | Y90: Wabash | Z90: Taylor | AA90: Seward | AB90: Rockcastle | AH90: Wilkin | AJ90: Ripley | AL90: Thomas | AR90: Transylvania | AT90: Wood | BA90: Van Buren | BB90: Harrison | BE90: Roanoke, Roanoke City, Salem City
A91: 01027 | B91: Alabama | C91: Clay | D91: Oats | E91: Bushel | F91: Alabama_Clay_Oats | G91: 43.05 | V91: Montgomery | X91: Shelby | Y91: Warren | Z91: Union | AA91: Shawnee | AB91: Rowan | AH91: Winona | AJ91: St Charles | AL91: Thurston | AR91: Tyrrell | AT91: Wyandot | BA91: Warren | BB91: Hartley | BE91: Roanoke
A92: 01027 | B92: Alabama | C92: Clay | D92: Seed Cotton | E92: Pound | F92: Alabama_Clay_Seed Cotton | G92: 1772.28 | V92: Morgan | X92: Stark | Y92: Warrick | Z92: Van Buren | AA92: Sheridan | AB92: Russell | AH92: Wright | AJ92: St. Charles | AL92: Valley | AR92: Union | BA92: Washington | BB92: Haskell | BE92: Rockbridge, Buena Vista City, Lexington City
A93: 01027 | B93: Alabama | C93: Clay | D93: Soybeans | E93: Bushel | F93: Alabama_Clay_Soybeans | G93: 27.9 | V93: Murray | X93: Stephenson | Y93: Washington | Z93: Wapello | AA93: Sherman | AB93: Scott | AH93: Yellow Medicine | AJ93: St Clair | AL93: Washington | AR93: Vance | BA93: Wayne | BB93: Hays | BE93: Rockbridge
A94: 01027 | B94: Alabama | C94: Clay | D94: Wheat | E94: Bushel | F94: Alabama_Clay_Wheat | G94: 44.7 | V94: Newton | X94: Tazewell | Y94: Wayne | Z94: Warren | AA94: Smith | AB94: Shelby | AJ94: St. Clair | AL94: Wayne | AR94: Wake | BA94: Weakley | BB94: Hemphill | BE94: Rockingham, Harrisonburg City
A95: 01029 | B95: Alabama | C95: Cleburne | D95: Corn | E95: Bushel | F95: Alabama_Cleburne_Corn | G95: 96.17 | V95: Oconee | X95: Union | Y95: Wells | Z95: Washington | AA95: Stafford | AB95: Simpson | AJ95: St Francois | AL95: Webster | AR95: Warren | BA95: White | BB95: Hidalgo | BE95: Rockingham
A96: 01029 | B96: Alabama | C96: Cleburne | D96: Grain Sorghum | E96: Bushel | F96: Alabama_Cleburne_Grain Sorghum | G96: 34.35 | V96: Oglethorpe | X96: Vermilion | Y96: White | Z96: Wayne | AA96: Stanton | AB96: Spencer | AJ96: St. Francois | AL96: Wheeler | AR96: Washington | BA96: Williamson | BB96: Hill | BE96: Russell
A97: 01029 | B97: Alabama | C97: Cleburne | D97: Oats | E97: Bushel | F97: Alabama_Cleburne_Oats | G97: 45.3 | V97: Peach | X97: Wabash | Y97: Whitley | Z97: Webster | AA97: Stevens | AB97: Taylor | AJ97: St. Louis | AL97: York | AR97: Watauga | BA97: Wilson | BB97: Hockley | BE97: Scott
A98: 01029 | B98: Alabama | C98: Cleburne | D98: Soybeans | E98: Bushel | F98: Alabama_Cleburne_Soybeans | G98: 25.95 | V98: Pierce | X98: Warren | Z98: Winnebago | AA98: Sumner | AB98: Todd | AJ98: Ste Genevieve | AR98: Wayne | BB98: Hopkins | BE98: Shenandoah
A99: 01029 | B99: Alabama | C99: Cleburne | D99: Wheat | E99: Bushel | F99: Alabama_Cleburne_Wheat | G99: 45.45 | V99: Pike | X99: Washington | Z99: Winneshiek | AA99: Thomas | AB99: Trigg | AJ99: Ste. Genevieve | AR99: Wilkes | BB99: Houston | BE99: Smyth
A100: 01031 | B100: Alabama | C100: Coffee | D100: Canola | E100: Pound | F100: Alabama_Coffee_Canola | G100: 1124.55 | V100: Polk | X100: Wayne | Z100: Woodbury | AA100: Trego | AB100: Trimble | AJ100: St. Genevieve | AR100: Wilson | BB100: Howard | BE100: Southampton
A101: 01031 | B101: Alabama | C101: Coffee | D101: Corn | E101: Bushel | F101: Alabama_Coffee_Corn | G101: 85.63 | V101: Pulaski | X101: White | Z101: Worth | AA101: Wabaunsee | AB101: Union | AJ101: Saline | AR101: Yadkin | BB101: Hudspeth | BE101: Southampton, Franklin City
A102: 01031 | B102: Alabama | C102: Coffee | D102: Grain Sorghum | E102: Bushel | F102: Alabama_Coffee_Grain Sorghum | G102: 27.84 | V102: Putnam | X102: Whiteside | Z102: Wright | AA102: Wallace | AB102: Warren | AJ102: Schuyler | AR102: Yancey | BB102: Hunt | BE102: Southampton-Franklin City
A103: 01031 | B103: Alabama | C103: Coffee | D103: Oats | E103: Bushel | F103: Alabama_Coffee_Oats | G103: 36.62 | V103: Quitman | X103: Will | AA103: Washington | AB103: Washington | AJ103: Scotland | BB103: Hutchinson | BE103: Spotsylvania, Fredericksburg City
A104: 01031 | B104: Alabama | C104: Coffee | D104: Peanuts | E104: Pound | F104: Alabama_Coffee_Peanuts | G104: 2245.4 | V104: Randolph | X104: Williamson | AA104: Wichita | AB104: Wayne | AJ104: Scott | BB104: Irion | BE104: Stafford
A105: 01031 | B105: Alabama | C105: Coffee | D105: Seed Cotton | E105: Pound | F105: Alabama_Coffee_Seed Cotton | G105: 1350.86 | V105: Richmond | X105: Winnebago | AA105: Wilson | AB105: Webster | AJ105: Shelby | BB105: Jack | BE105: Surry
A106: 01031 | B106: Alabama | C106: Coffee | D106: Soybeans | E106: Bushel | F106: Alabama_Coffee_Soybeans | G106: 28.43 | V106: Rockdale | X106: Woodford | AA106: Woodson | AB106: Whitley | AJ106: Stoddard | BB106: Jackson | BE106: Sussex
A107: 01031 | B107: Alabama | C107: Coffee | D107: Wheat | E107: Bushel | F107: Alabama_Coffee_Wheat | G107: 27.93 | V107: Schley | AA107: Wyandotte | AB107: Wolfe | AJ107: Sullivan | BB107: Jaskson | BE107: Tazewell
A108: 01033 | B108: Alabama | C108: Colbert | D108: Canola | E108: Pound | F108: Alabama_Colbert_Canola | G108: 1165.8 | V108: Screven | AB108: Woodford | AJ108: Texas | BB108: Jefferson | BE108: Warren
A109: 01033 | B109: Alabama | C109: Colbert | D109: Corn | E109: Bushel | F109: Alabama_Colbert_Corn | G109: 126.68 | V109: Seminole | AJ109: Vernon | BB109: Jim Hogg | BE109: Washington
A110: 01033 | B110: Alabama | C110: Colbert | D110: Grain Sorghum | E110: Bushel | F110: Alabama_Colbert_Grain Sorghum | G110: 39.6 | V110: Spalding | AJ110: Warren | BB110: Jim Wells | BE110: Westmoreland
A111: 01033 | B111: Alabama | C111: Colbert | D111: Oats | E111: Bushel | F111: Alabama_Colbert_Oats | G111: 37.05 | V111: Stewart | AJ111: Wayne | BB111: Johnson | BE111: Wise
A112: 01033 | B112: Alabama | C112: Colbert | D112: Seed Cotton | E112: Pound | F112: Alabama_Colbert_Seed Cotton | G112: 1805.85 | V112: Sumter | AJ112: Webster | BB112: Jones | BE112: Wythe
A113: 01033 | B113: Alabama | C113: Colbert | D113: Sesame Seed | E113: Pound | F113: Alabama_Colbert_Sesame Seed | G113: 384.9 | V113: Talbot | AJ113: Worth | BB113: Karnes | BE113: York, Poquoson City
A114: 01033 | B114: Alabama | C114: Colbert | D114: Soybeans | E114: Bushel | F114: Alabama_Colbert_Soybeans | G114: 32.91 | V114: Taliaferro | AJ114: Wright | BB114: Kaufman | BE114: Chesapeake City
A115: 01033 | B115: Alabama | C115: Colbert | D115: Sunflower Seed | E115: Pound | F115: Alabama_Colbert_Sunflower Seed | G115: 863.85 | V115: Tattnall | BB115: Kendall | BE115: Chesapeake
A116: 01033 | B116: Alabama | C116: Colbert | D116: Wheat | E116: Bushel | F116: Alabama_Colbert_Wheat | G116: 60.36 | V116: Taylor | BB116: Kent | BE116: Suffolk
A117: 01035 | B117: Alabama | C117: Conecuh | D117: Canola | E117: Pound | F117: Alabama_Conecuh_Canola | G117: 1104.9 | V117: Telfair | BB117: Kerr | BE117: Virginia Beach City
A118: 01035 | B118: Alabama | C118: Conecuh | D118: Corn | E118: Bushel | F118: Alabama_Conecuh_Corn | G118: 79.94 | V118: Terrell | BB118: King | BE118: Virginia Beach
A119: 01035 | B119: Alabama | C119: Conecuh | D119: Grain Sorghum | E119: Bushel | F119: Alabama_Conecuh_Grain Sorghum | G119: 35.7 | V119: Thomas | BB119: Kinney
A120: 01035 | B120: Alabama | C120: Conecuh | D120: Oats | E120: Bushel | F120: Alabama_Conecuh_Oats | G120: 38.7 | V120: Tift | BB120: Kleberg
A121: 01035 | B121: Alabama | C121: Conecuh | D121: Peanuts | E121: Pound | F121: Alabama_Conecuh_Peanuts | G121: 2356.04 | V121: Toombs | BB121: Knox
A122: 01035 | B122: Alabama | C122: Conecuh | D122: Seed Cotton | E122: Pound | F122: Alabama_Conecuh_Seed Cotton | G122: 1565.54 | V122: Towns | BB122: Lamar
A123: 01035 | B123: Alabama | C123: Conecuh | D123: Soybeans | E123: Bushel | F123: Alabama_Conecuh_Soybeans | G123: 24.21 | V123: Treutlen | BB123: Lamb
A124: 01035 | B124: Alabama | C124: Conecuh | D124: Wheat | E124: Bushel | F124: Alabama_Conecuh_Wheat | G124: 41.03 | V124: Turner | BB124: Lampasas
A125: 01039 | B125: Alabama | C125: Covington | D125: Corn | E125: Bushel | F125: Alabama_Covington_Corn | G125: 77.04 | V125: Twiggs | BB125: La Salle
A126: 01039 | B126: Alabama | C126: Covington | D126: Grain Sorghum | E126: Bushel | F126: Alabama_Covington_Grain Sorghum | G126: 34.65 | V126: Union | BB126: Lavaca
A127: 01039 | B127: Alabama | C127: Covington | D127: Oats | E127: Bushel | F127: Alabama_Covington_Oats | G127: 35.1 | V127: Upson | BB127: Lee
A128: 01039 | B128: Alabama | C128: Covington | D128: Peanuts | E128: Pound | F128: Alabama_Covington_Peanuts | G128: 2359.73 | V128: Walker | BB128: Leon
A129: 01039 | B129: Alabama | C129: Covington | D129: Seed Cotton | E129: Pound | F129: Alabama_Covington_Seed Cotton | G129: 1571.15 | V129: Walton | BB129: Liberty
A130: 01039 | B130: Alabama | C130: Covington | D130: Soybeans | E130: Bushel | F130: Alabama_Covington_Soybeans | G130: 24.77 | V130: Ware | BB130: Limestone
A131: 01039 | B131: Alabama | C131: Covington | D131: Wheat | E131: Bushel | F131: Alabama_Covington_Wheat | G131: 35.54 | V131: Warren | BB131: Lipscomb
A132: 01041 | B132: Alabama | C132: Crenshaw | D132: Corn | E132: Bushel | F132: Alabama_Crenshaw_Corn | G132: 87.5 | V132: Washington | BB132: Live Oak
A133: 01041 | B133: Alabama | C133: Crenshaw | D133: Grain Sorghum | E133: Bushel | F133: Alabama_Crenshaw_Grain Sorghum | G133: 34.05 | V133: Wayne | BB133: Lubbock
A134: 01041 | B134: Alabama | C134: Crenshaw | D134: Oats | E134: Bushel | F134: Alabama_Crenshaw_Oats | G134: 40.05 | V134: Webster | BB134: Lynn
A135: 01041 | B135: Alabama | C135: Crenshaw | D135: Peanuts | E135: Pound | F135: Alabama_Crenshaw_Peanuts | G135: 1746.05 | V135: Wheeler | BB135: Mcculloch
A136: 01041 | B136: Alabama | C136: Crenshaw | D136: Seed Cotton | E136: Pound | F136: Alabama_Crenshaw_Seed Cotton | G136: 1443.78 | V136: White | BB136: Mclennan
A137: 01041 | B137: Alabama | C137: Crenshaw | D137: Soybeans | E137: Bushel | F137: Alabama_Crenshaw_Soybeans | G137: 22.08 | V137: Whitfield | BB137: Martin
A138: 01041 | B138: Alabama | C138: Crenshaw | D138: Wheat | E138: Bushel | F138: Alabama_Crenshaw_Wheat | G138: 32.18 | V138: Wilcox | BB138: Mason
A139: 01043 | B139: Alabama | C139: Cullman | D139: Barley | E139: Bushel | F139: Alabama_Cullman_Barley | G139: 38.1 | V139: Wilkes | BB139: Matagorda
A140: 01043 | B140: Alabama | C140: Cullman | D140: Corn | E140: Bushel | F140: Alabama_Cullman_Corn | G140: 110.43 | V140: Wilkinson | BB140: Medina
A141: 01043 | B141: Alabama | C141: Cullman | D141: Grain Sorghum | E141: Bushel | F141: Alabama_Cullman_Grain Sorghum | G141: 34.35 | V141: Worth | BB141: Menard
A142: 01043 | B142: Alabama | C142: Cullman | D142: Oats | E142: Bushel | F142: Alabama_Cullman_Oats | G142: 45.3 | BB142: Midland
A143: 01043 | B143: Alabama | C143: Cullman | D143: Seed Cotton | E143: Pound | F143: Alabama_Cullman_Seed Cotton | G143: 1969.56 | BB143: Milam
A144: 01043 | B144: Alabama | C144: Cullman | D144: Soybeans | E144: Bushel | F144: Alabama_Cullman_Soybeans | G144: 34.62 | BB144: Mills
A145: 01043 | B145: Alabama | C145: Cullman | D145: Wheat | E145: Bushel | F145: Alabama_Cullman_Wheat | G145: 50.31 | BB145: Mitchell
A146: 01045 | B146: Alabama | C146: Dale | D146: Corn | E146: Bushel | F146: Alabama_Dale_Corn | G146: 77.15 | BB146: Montague
A147: 01045 | B147: Alabama | C147: Dale | D147: Grain Sorghum | E147: Bushel | F147: Alabama_Dale_Grain Sorghum | G147: 33.3 | BB147: Moore
A148: 01045 | B148: Alabama | C148: Dale | D148: Oats | E148: Bushel | F148: Alabama_Dale_Oats | G148: 35.25 | BB148: Motley
A149: 01045 | B149: Alabama | C149: Dale | D149: Peanuts | E149: Pound | F149: Alabama_Dale_Peanuts | G149: 2274.84 | BB149: Navarro
A150: 01045 | B150: Alabama | C150: Dale | D150: Seed Cotton | E150: Pound | F150: Alabama_Dale_Seed Cotton | G150: 1345.28 | BB150: Nolan
A151: 01045 | B151: Alabama | C151: Dale | D151: Soybeans | E151: Bushel | F151: Alabama_Dale_Soybeans | G151: 19.52 | BB151: Nueces
A152: 01045 | B152: Alabama | C152: Dale | D152: Wheat | E152: Bushel | F152: Alabama_Dale_Wheat | G152: 32.69 | BB152: Ochiltree
A153: 01047 | B153: Alabama | C153: Dallas | D153: Corn | E153: Bushel | F153: Alabama_Dallas_Corn | G153: 81.51 | BB153: Oldham
A154: 01047 | B154: Alabama | C154: Dallas | D154: Grain Sorghum | E154: Bushel | F154: Alabama_Dallas_Grain Sorghum | G154: 34.05 | BB154: Palo Pinto
A155: 01047 | B155: Alabama | C155: Dallas | D155: Oats | E155: Bushel | F155: Alabama_Dallas_Oats | G155: 37.05 | BB155: Parker
A156: 01047 | B156: Alabama | C156: Dallas | D156: Peanuts | E156: Pound | F156: Alabama_Dallas_Peanuts | G156: 2539.62 | BB156: Parmer
A157: 01047 | B157: Alabama | C157: Dallas | D157: Seed Cotton | E157: Pound | F157: Alabama_Dallas_Seed Cotton | G157: 1498.63 | BB157: Pecos
A158: 01047 | B158: Alabama | C158: Dallas | D158: Soybeans | E158: Bushel | F158: Alabama_Dallas_Soybeans | G158: 23.93 | BB158: Potter
A159: 01047 | B159: Alabama | C159: Dallas | D159: Wheat | E159: Bushel | F159: Alabama_Dallas_Wheat | G159: 31.47 | BB159: Presidio
A160: 01049 | B160: Alabama | C160: Dekalb | D160: Barley | E160: Bushel | F160: Alabama_Dekalb_Barley | G160: 39.6 | BB160: Rains
A161: 01049 | B161: Alabama | C161: Dekalb | D161: Corn | E161: Bushel | F161: Alabama_Dekalb_Corn | G161: 111.33 | BB161: Randall
A162: 01049 | B162: Alabama | C162: Dekalb | D162: Grain Sorghum | E162: Bushel | F162: Alabama_Dekalb_Grain Sorghum | G162: 34.35 | BB162: Reagan
A163: 01049 | B163: Alabama | C163: Dekalb | D163: Oats | E163: Bushel | F163: Alabama_Dekalb_Oats | G163: 45.3 | BB163: Red River
A164: 01049 | B164: Alabama | C164: DeKalb | D164: Seed Cotton | E164: Pound | F164: Alabama_DeKalb_Seed Cotton | G164: 1785.6 | BB164: Reeves
A165: 01049 | B165: Alabama | C165: Dekalb | D165: Soybeans | E165: Bushel | F165: Alabama_Dekalb_Soybeans | G165: 31.85 | BB165: Refugio
A166: 01049 | B166: Alabama | C166: Dekalb | D166: Wheat | E166: Bushel | F166: Alabama_Dekalb_Wheat | G166: 47.51 | BB166: Roberts
A167: 01051 | B167: Alabama | C167: Elmore | D167: Corn | E167: Bushel | F167: Alabama_Elmore_Corn | G167: 127.37 | BB167: Robertson
A168: 01051 | B168: Alabama | C168: Elmore | D168: Grain Sorghum | E168: Bushel | F168: Alabama_Elmore_Grain Sorghum | G168: 33.15 | BB168: Rockwall
A169: 01051 | B169: Alabama | C169: Elmore | D169: Oats | E169: Bushel | F169: Alabama_Elmore_Oats | G169: 39 | BB169: Runnels
A170: 01051 | B170: Alabama | C170: Elmore | D170: Peanuts | E170: Pound | F170: Alabama_Elmore_Peanuts | G170: 2401.65 | BB170: Rusk
A171: 01051 | B171: Alabama | C171: Elmore | D171: Seed Cotton | E171: Pound | F171: Alabama_Elmore_Seed Cotton | G171: 1534.61 | BB171: San Patricio
A172: 01051 | B172: Alabama | C172: Elmore | D172: Soybeans | E172: Bushel | F172: Alabama_Elmore_Soybeans | G172: 24.39 | BB172: San Saba
A173: 01051 | B173: Alabama | C173: Elmore | D173: Wheat | E173: Bushel | F173: Alabama_Elmore_Wheat | G173: 36.09 | BB173: Schleicher
A174: 01053 | B174: Alabama | C174: Escambia | D174: Corn | E174: Bushel | F174: Alabama_Escambia_Corn | G174: 133.31 | BB174: Scurry
A175: 01053 | B175: Alabama | C175: Escambia | D175: Grain Sorghum | E175: Bushel | F175: Alabama_Escambia_Grain Sorghum | G175: 35.7 | BB175: Shackelford
A176: 01053 | B176: Alabama | C176: Escambia | D176: Oats | E176: Bushel | F176: Alabama_Escambia_Oats | G176: 38.7 | BB176: Sherman
A177: 01053 | B177: Alabama | C177: Escambia | D177: Peanuts | E177: Pound | F177: Alabama_Escambia_Peanuts | G177: 3180.67 | BB177: Starr
A178: 01053 | B178: Alabama | C178: Escambia | D178: Seed Cotton | E178: Pound | F178: Alabama_Escambia_Seed Cotton | G178: 1723.65 | BB178: Stephens
A179: 01053 | B179: Alabama | C179: Escambia | D179: Sesame Seed | E179: Pound | F179: Alabama_Escambia_Sesame Seed | G179: 384.9 | BB179: Stonewall
A180: 01053 | B180: Alabama | C180: Escambia | D180: Soybeans | E180: Bushel | F180: Alabama_Escambia_Soybeans | G180: 33.36 | BB180: Sutton
A181: 01053 | B181: Alabama | C181: Escambia | D181: Sunflower Seed | E181: Pound | F181: Alabama_Escambia_Sunflower Seed | G181: 868.5 | BB181: Swisher
A182: 01053 | B182: Alabama | C182: Escambia | D182: Wheat | E182: Bushel | F182: Alabama_Escambia_Wheat | G182: 38.39 | BB182: Tarrant
A183: 01055 | B183: Alabama | C183: Etowah | D183: Barley | E183: Bushel | F183: Alabama_Etowah_Barley | G183: 38.25 | BB183: Taylor
A184: 01055 | B184: Alabama | C184: Etowah | D184: Corn | E184: Bushel | F184: Alabama_Etowah_Corn | G184: 104.87 | BB184: Terry
A185: 01055 | B185: Alabama | C185: Etowah | D185: Grain Sorghum | E185: Bushel | F185: Alabama_Etowah_Grain Sorghum | G185: 35.7 | BB185: Throckmorton
A186: 01055 | B186: Alabama | C186: Etowah | D186: Oats | E186: Bushel | F186: Alabama_Etowah_Oats | G186: 43.8 | BB186: Tom Green
A187: 01055 | B187: Alabama | C187: Etowah | D187: Seed Cotton | E187: Pound | F187: Alabama_Etowah_Seed Cotton | G187: 1778 | BB187: Travis
A188: 01055 | B188: Alabama | C188: Etowah | D188: Soybeans | E188: Bushel | F188: Alabama_Etowah_Soybeans | G188: 29.75 | BB188: Upton
A189: 01055 | B189: Alabama | C189: Etowah | D189: Wheat | E189: Bushel | F189: Alabama_Etowah_Wheat | G189: 43.91 | BB189: Uvalde
A190: 01057 | B190: Alabama | C190: Fayette | D190: Corn | E190: Bushel | F190: Alabama_Fayette_Corn | G190: 89.31 | BB190: Van Zandt
A191: 01057 | B191: Alabama | C191: Fayette | D191: Grain Sorghum | E191: Bushel | F191: Alabama_Fayette_Grain Sorghum | G191: 35.55 | BB191: Victoria
A192: 01057 | B192: Alabama | C192: Fayette | D192: Oats | E192: Bushel | F192: Alabama_Fayette_Oats | G192: 36.45 | BB192: Walker
A193: 01057 | B193: Alabama | C193: Fayette | D193: Peanuts | E193: Pound | F193: Alabama_Fayette_Peanuts | G193: 2648.85 | BB193: Waller
A194: 01057 | B194: Alabama | C194: Fayette | D194: Seed Cotton | E194: Pound | F194: Alabama_Fayette_Seed Cotton | G194: 1642.18 | BB194: Ward
A195: 01057 | B195: Alabama | C195: Fayette | D195: Soybeans | E195: Bushel | F195: Alabama_Fayette_Soybeans | G195: 18.36 | BB195: Washington
A196: 01057 | B196: Alabama | C196: Fayette | D196: Wheat | E196: Bushel | F196: Alabama_Fayette_Wheat | G196: 45.6 | BB196: Webb
A197: 01059 | B197: Alabama | C197: Franklin | D197: Barley | E197: Bushel | F197: Alabama_Franklin_Barley | G197: 38.1 | BB197: Wharton
A198: 01059 | B198: Alabama | C198: Franklin | D198: Corn | E198: Bushel | F198: Alabama_Franklin_Corn | G198: 100.14 | BB198: Wheeler
A199: 01059 | B199: Alabama | C199: Franklin | D199: Grain Sorghum | E199: Bushel | F199: Alabama_Franklin_Grain Sorghum | G199: 42.45 | BB199: Wichita
A200: 01059 | B200: Alabama | C200: Franklin | D200: Oats | E200: Bushel | F200: Alabama_Franklin_Oats | G200: 38.85 | BB200: Wilbarger
... 4300 more rows

Sheet Data (hidden)
A1: ARC-CO TREND ADJUSTED YIELDS, BENCHMARK YIELDS AND GUARANTEE REVENUES FOR PROGRAM YEAR 2019 | AE1: ARC-CO TREND ADJUSTED YIELDS, BENCHMARK YIELDS AND GUARANTEE REVENUES FOR PROGRAM YEAR 2022 | AR1: Program Year 2022 Benchmark Yields and Revenues | AZ1: Program Year 2019 Benchmark Yields and Revenues
AR2: A | AS2: B | AT2: C | AU2: D | AV2: E | AZ2: A | BA2: B | BB2: C | BC2: D | BD2: E
H3: 2014 Farm Bill Data | R3: 2018 Farm Bill Data | AT3: (A * B) | AU3: (86% of C) | AV3: (10% of C) | BB3: (A * B) | BC3: (86% of C) | BD3: (10% of C)
A4: ST_Cty | B4: State Name | C4: County Name | D4: Crop Name | E4: Unit | F4: ARC-CO Yield Designation | G4: OSU Decision Tool Identification | H4: 2009 non trend adjusted (county yield or 70% of T yield) | I4: 2010 non trend adjusted (county yield or 70% of T yield) | J4: 2011 non trend adjusted (county yield or 70% of T yield) | K4: 2012 non trend adjusted (county yield or 70% of T yield) | L4: 2013 non trend adjusted (county yield or 70% of T yield) | M4: 2014 non trend adjusted (county yield or 70% of T yield) | N4: 2015 non trend adjusted (county yield or 70% of T yield) | O4: 2016 non trend adjusted (county yield or 70% of T yield) | P4: 2017 non trend adjusted (county yield or 70% of T yield) | Q4: 2018 non trend adjusted (county yield or 70% of T Yield) | R4: 2013 trend adjusted (county yield or 80% of T) | S4: 2014 trend adjusted (county yield or 80% of T) | T4: 2015 trend adjusted (county yield or 80% of T) | U4: 2016 trend adjusted (county yield or 80% of T) | V4: 2017 trend adjusted (county yield or 80% of T) | W4: 2018 trend adjusted (county yield or 80% of T) | X4: 2019 trend adjusted (county yield or 80% of T) | Y4: 2020 trend adjusted (county yield or 80% of T) | Z4: 2021 trend adjusted (county yield or 80% of T) | AA4: 2022 trend adjusted (county yield or 80% of T) | AE4: ST_Cty | AF4: State Name | AG4: County Name | AH4: Sub County | AI4: Crop Name | AJ4: Unit | AK4: ARC-CO Yield Designation | AL4: 2016 trend adjusted (county yield or 80% of T) | AM4: 2017 trend adjusted (county yield or 80% of T) | AN4: 2018 trend adjusted (county yield or 80% of T) | AO4: 2019 trend adjusted (county yield or 80% of T) | AP4: 2020 trend adjusted (county yield or 80% of T) | AR4: 2022 Bench Mark (2015-19 olympic avg) | AS4: 2022 Bench Mark Price (2015-19 olympic avg) | AT4: 2022 Benchmark Revenue | AU4: 2022 Guarantee Revenue | AV4: 2022 Maximum Payment Rate | AZ4: 2019 Bench Mark (2013-17 olympic avg) | BA4: 2019 Bench Mark Price (2013-17 olympic avg) | BB4: 2019 Benchmark Revenue | BC4: 2019 Guarantee Revenue | BD4: 2019 Maximum Payment Rate | BG4: ='Corn '!C6 -> Adair | BM4: Select State | BN4: Arizona | BP4: Name Selection
A5: 01001 | B5: Alabama | C5: Autauga | D5: Corn | E5: Bushel | F5: Nonirrigated | G5: Alabama_Autauga_Nonirrigated | H5: 66 | I5: 64 | J5: 109 | K5: 132 | L5: 96 | M5: 130 | N5: 138 | O5: 76 | P5: 171 | Q5: 165 | R5: 119.64 | S5: 138.07 | T5: 144.72 | U5: 89.88 | V5: 169.2 | W5: 179.33 | X5: 144.11 | Y5: 180.77 | AD5: Alabama_Autauga_Nonirrigated | AE5: 01001 | AF5: Alabama | AG5: Autauga | AI5: Corn | AJ5: Bushel | AK5: Nonirrigated | AL5: 89.88 | AM5: 169.2 | AN5: 179.33 | AO5: 144.11 | AP5: 180.77 | AR5: 164.21 | AS5: 3.7 | AT5: 607.58 | AU5: 522.52 | AV5: 60.76 | AZ5: 166.94 | BA5: 3.7 | BB5: 617.68 | BC5: 531.2 | BD5: 61.77 | BF5: County, | BG5: 2014-2020 Farm Bill Performance for | BJ5: 20% Yield Increase | BK5: 1.2 | BM5: Select County | BN5: Maricopa
A6: 01003 | B6: Alabama | C6: Baldwin | D6: Corn | E6: Bushel | F6: Irrigated | G6: Alabama_Baldwin_Irrigated | Q6: 152 | R6: 179.05 | S6: 159.05 | T6: 150.16 | U6: 198.38 | V6: 186.65 | W6: 179.21 | X6: 164.23 | Y6: 208.98 | AD6: Alabama_Baldwin_Irrigated | AE6: 01003 | AF6: Alabama | AG6: Baldwin | AI6: Corn | AJ6: Bushel | AK6: Irrigated | AL6: 198.38 | AM6: 186.65 | AN6: 179.21 | AO6: 164.23 | AP6: 208.98 | AR6: 188.08 | AS6: 3.7 | AT6: 695.9 | AU6: 598.47 | AV6: 69.59 | AZ6: 176.65 | BA6: 3.7 | BB6: 653.61 | BC6: 562.1 | BD6: 65.36 | BF6: ='Corn '!C5 -> Missouri | BG6: =BF5&" "&BF6&"-"&BF7 -> County, Missouri-Corn | BJ6: 15% Yield Increase | BK6: 1.15
A7: 01003 | B7: Alabama | C7: Baldwin | D7: Corn | E7: Bushel | F7: Nonirrigated | G7: Alabama_Baldwin_Nonirrigated | H7: 121 | I7: 162 | J7: 76 | K7: 123 | L7: 157 | M7: 138 | N7: 147 | O7: 152 | P7: 162 | Q7: 152 | R7: 164.45 | S7: 161.82 | T7: 153.86 | U7: 169.72 | V7: 171.39 | W7: 154.14 | X7: 143.14 | Y7: 159.4 | AD7: Alabama_Baldwin_Nonirrigated | AE7: 01003 | AF7: Alabama | AG7: Baldwin | AI7: Corn | AJ7: Bushel | AK7: Nonirrigated | AL7: 169.72 | AM7: 171.39 | AN7: 154.14 | AO7: 143.14 | AP7: 159.4 | AR7: 161.09 | AS7: 3.7 | AT7: 596.03 | AU7: 512.59 | AV7: 59.6 | AZ7: 155.89 | BA7: 3.7 | BB7: 576.79 | BC7: 496.04 | BD7: 57.68 | BF7: Corn | BJ7: 10% Yield Increase | BK7: 1.1
A8: 01005 | B8: Alabama | C8: Barbour | D8: Corn | E8: Bushel | F8: Irrigated | G8: Alabama_Barbour_Irrigated | H8: 128 | I8: 133 | J8: 140 | K8: 113 | L8: 217 | M8: 209 | N8: 214 | O8: 124 | P8: 222 | Q8: 216.0833333 | R8: 226.72 | S8: 217.27 | T8: 220.5 | U8: 137.26 | V8: 233.47 | W8: 163.84 | X8: 199.85 | Y8: 209.15 | AD8: Alabama_Barbour_Irrigated | AE8: 01005 | AF8: Alabama | AG8: Barbour | AI8: Corn | AJ8: Bushel | AK8: Irrigated | AL8: 137.26 | AM8: 233.47 | AN8: 163.84 | AO8: 199.85 | AP8: 209.15 | AR8: 190.95 | AS8: 3.7 | AT8: 706.52 | AU8: 607.61 | AV8: 70.65 | AZ8: 155.54 | BA8: 3.7 | BB8: 575.5 | BC8: 494.93 | BD8: 57.55 | BG8: Estimated 2021 & Projected 2022 ARC-CO Performance for | BJ8: 5% Yield Increase | BK8: 1.05 | BP8: Alabama | BQ8: Arizona | BR8: Arkansas | BS8: California | BT8: Colorado | BU8: Connecticut | BV8: Delaware | BW8: Florida | BX8: Georgia | BY8: Idaho | BZ8: Illinois | CA8: Indiana | CB8: Iowa | CC8: Kansas | CD8: Kentucky | CE8: Louisiana | CF8: Maine | CG8: Maryland | CH8: Massachusetts | CI8: Michigan | CJ8: Minnesota | CK8: Mississippi | CL8: Missouri | CM8: Montana | CN8: Nebraska | CO8: Nevada | CP8: New Hampshire | CQ8: New Jersey | CR8: New Mexico | CS8: New York | CT8: North Carolina | CU8: North Dakota | CV8: Ohio | CW8: Oklahoma | CX8: Oregon | CY8: Pennsylvania | CZ8: Rhode Island | DA8: South Carolina | DB8: South Dakota | DC8: Tennessee | DD8: Texas | DE8: Utah | DF8: Vermont | DG8: Virginia | DH8: Washington | DI8: West Virginia | DJ8: Wisconsin | DK8: Wyoming
A9: 01005 | B9: Alabama | C9: Barbour | D9: Corn | E9: Bushel | F9: Nonirrigated | G9: Alabama_Barbour_Nonirrigated | H9: 50 | I9: 62 | J9: 50 | K9: 91 | L9: 63 | M9: 67 | N9: 83 | O9: 108 | P9: 144 | Q9: 126.1111111 | R9: 69.86 | S9: 72.95 | T9: 87.05 | U9: 115.32 | V9: 150.67 | W9: 101.96 | X9: 139.2 | Y9: 116.94 | AD9: Alabama_Barbour_Nonirrigated | AE9: 01005 | AF9: Alabama | AG9: Barbour | AI9: Corn | AJ9: Bushel | AK9: Nonirrigated | AL9: 115.32 | AM9: 150.67 | AN9: 101.96 | AO9: 139.2 | AP9: 116.94 | AR9: 123.82 | AS9: 3.7 | AT9: 458.13 | AU9: 393.99 | AV9: 45.81 | AZ9: 156.6 | BA9: 3.7 | BB9: 579.42 | BC9: 498.3 | BD9: 57.94 | BJ9: Zero Change from Forecast | BK9: 1 | BP9: Autauga | BQ9: Cochise | BR9: Arkansas | BS9: Alameda | BT9: Adams | BU9: Fairfield | BV9: Kent | BW9: Alachua | BX9: Appling | BY9: Ada | BZ9: Adams | CA9: Adams | CB9: Adair | CC9: Allen | CD9: Adair | CE9: Acadia | CF9: Androscoggin | CG9: Allegany | CH9: Berkshire | CI9: Alcona | CJ9: Aitkin | CK9: Adams | CL9: Adair | CM9: Big Horn | CN9: Adams | CO9: Churchill | CP9: Belknap | CQ9: Atlantic | CR9: Chaves | CS9: Albany | CT9: Alamance | CU9: Adams | CV9: Adams | CW9: Adair | CX9: Baker | CY9: Adams | CZ9: Bristol | DA9: Abbeville | DB9: Aurora | DC9: Anderson | DD9: Andrews | DE9: Beaver | DF9: Addison | DG9: Accomack | DH9: Adams | DI9: Barbour | DJ9: Adams | DK9: Big Horn
A10: 01009 | B10: Alabama | C10: Blount | D10: Corn | E10: Bushel | F10: Nonirrigated | G10: Alabama_Blount_Nonirrigated | H10: 110 | I10: 114 | J10: 109 | K10: 70 | L10: 138 | M10: 144 | N10: 128 | O10: 101 | P10: 155 | Q10: 139.8611111 | R10: 164.69 | S10: 163.68 | T10: 139.67 | U10: 114.24 | V10: 166.33 | W10: 188.54 | X10: 161.29 | Y10: 174.52 | AD10: Alabama_Blount_Nonirrigated | AE10: 01009 | AF10: Alabama | AG10: Blount | AI10: Corn | AJ10: Bushel | AK10: Nonirrigated | AL10: 114.24 | AM10: 166.33 | AN10: 188.54 | AO10: 161.29 | AP10: 174.52 | AR10: 167.38 | AS10: 3.7 | AT10: 619.31 | AU10: 532.61 | AV10: 61.93 | AZ10: 170.89 | BA10: 3.7 | BB10: 632.29 | BC10: 543.77 | BD10: 63.23 | BJ10: 5% Yield Decrease | BK10: 0.95 | BP10: Baldwin | BQ10: La Paz | BR10: Ashley | BS10: Amador | BT10: Alamosa | BU10: Hartford | BV10: Kent | BW10: Baker | BX10: Atkinson | BY10: Bingham | BZ10: Alexander | CA10: Allen | CB10: Adams | CC10: Anderson | CD10: Allen | CE10: Allen | CF10: Houlton | CG10: Anne Arundel | CH10: Bristol | CI10: Alger | CJ10: Anoka | CK10: Alcorn | CL10: Andrew | CM10: Blaine | CN10: Antelope | CO10: Pershing | CP10: Carroll | CQ10: Burlington | CR10: Curry | CS10: Allegany | CT10: Alexander | CU10: Barnes | CV10: Allen | CW10: Alfalfa | CX10: Clackamas | CY10: Allegheny | CZ10: Kent | DA10: Aiken | DB10: Beadle | DC10: Bedford | DD10: Archer | DE10: Box Elder | DF10: Bennington | DG10: Albemarle, Charlottesville City | DH10: Benton | DI10: Berkeley | DJ10: Adams | DK10: Converse
A11: 01011 | B11: Alabama | C11: Bullock | D11: Corn | E11: Bushel | F11: Nonirrigated | G11: Alabama_Bullock_Nonirrigated | H11: 88 | I11: 129 | J11: 73 | K11: 135 | L11: 96 | M11: 155 | N11: 140 | O11: 70 | P11: 135 | Q11: 127.1944444 | R11: 121.59 | S11: 155.14 | T11: 139.69 | U11: 80 | V11: 135 | W11: 130.94 | X11: 124.82 | Y11: 157 | AD11: Alabama_Bullock_Nonirrigated | AE11: 01011 | AF11: Alabama | AG11: Bullock | AI11: Corn | AJ11: Bushel | AK11: Nonirrigated | AL11: 80 | AM11: 135 | AN11: 130.94 | AO11: 124.82 | AP11: 157 | AR11: 130.25 | AS11: 3.7 | AT11: 481.93 | AU11: 414.46 | AV11: 48.19 | AZ11: 127.4 | BA11: 3.7 | BB11: 471.38 | BC11: 405.39 | BD11: 47.14 | BF11: Lable | BG11: =Data!BG5&""&'Corn '!C6&" "&Data!BG6 -> 2014-2020 Farm Bill Performance for Adair County, Missouri-Corn | BJ11: 10% Yield Decrease | BK11: 0.9 | BP11: Barbour | BQ11: Maricopa | BR11: Benton | BS11: Colusa | BT11: Arapahoe | BU11: Litchfield | BV11: New Castle | BW11: Bradford | BX11: Bacon | BY11: Blaine | BZ11: Bond | CA11: Bartholomew | CB11: Allamakee | CC11: Atchison | CD11: Anderson | CE11: Ascension | CF11: Aroostook | CG11: Baltimore | CH11: Essex | CI11: Allegan | CJ11: Becker | CK11: Amite | CL11: Atchison | CM11: Carbon | CN11: Arthur | CO11: White Pine | CP11: Cheshire | CQ11: Camden | CR11: Dona Ana | CS11: Broome | CT11: Alleghany | CU11: Benson | CV11: Ashland | CW11: Atoka | CX11: Columbia | CY11: Armstrong | CZ11: Newport | DA11: Allendale | DB11: Bennett | DC11: Benton | DD11: Armstrong | DE11: Cache | DF11: Caledonia | DG11: Alleghany, Covington City | DH11: Columbia | DI11: Boone | DJ11: Ashland | DK11: Crook
A12: 01013 | B12: Alabama | C12: Butler | D12: Corn | E12: Bushel | F12: Nonirrigated | G12: Alabama_Butler_Nonirrigated | H12: 95 | I12: 61 | J12: 50 | K12: 118 | L12: 115 | M12: 103 | N12: 130 | O12: 88 | P12: 64 | Q12: 100.0555556 | R12: 122.75 | S12: 97.99 | T12: 134.84 | U12: 98.98 | V12: 73.15 | W12: 118.59 | X12: 56.69 | Y12: 101.02 | AD12: Alabama_Butler_Nonirrigated | AE12: 01013 | AF12: Alabama | AG12: Butler | AI12: Corn | AJ12: Bushel | AK12: Nonirrigated | AL12: 98.98 | AM12: 73.15 | AN12: 118.59 | AO12: 56.69 | AP12: 101.02 | AR12: 91.05 | AS12: 3.7 | AT12: 336.89 | AU12: 289.73 | AV12: 33.69 | AZ12: 191.01 | BA12: 3.7 | BB12: 706.74 | BC12: 607.8 | BD12: 70.67 | BF12: Lable | BG12: =Data!BG8&" "&'Corn '!C6&" "&Data!BG6 -> Estimated 2021 & Projected 2022 ARC-CO Performance for Adair County, Missouri-Corn | BJ12: 15% Yield Decrease | BK12: 0.85 | BP12: Blount | BQ12: Pinal | BR12: Chicot | BS12: Contra Costa | BT12: Baca | BU12: Middlesex | BV12: Sussex | BW12: Calhoun | BX12: Baker | BY12: Bonneville | BZ12: Boone | CA12: Benton | CB12: Appanoose | CC12: Barber | CD12: Ballard | CE12: Avoyelles | CF12: Cumberland | CG12: Calvert | CH12: Franklin | CI12: Alpena | CJ12: Beltrami | CK12: Attala | CL12: Audrain | CM12: Carter | CN12: Banner | CP12: Coos | CQ12: Cumberland | CR12: Eddy | CS12: Cattaraugus | CT12: Anson | CU12: Billings | CV12: Ashtabula | CW12: Beaver | CX12: Deschutes | CY12: Beaver | CZ12: Providence | DA12: Anderson | DB12: Bon Homme | DC12: Bledsoe | DD12: Atascosa | DE12: Carbon | DF12: Chittenden | DG12: Amelia | DH12: Douglas | DI12: Braxton | DJ12: Barron | DK12: Fremont
A13: 01015 | B13: Alabama | C13: Calhoun | D13: Corn | E13: Bushel | F13: Nonirrigated | G13: Alabama_Calhoun_Nonirrigated | H13: 103 | I13: 118 | J13: 120 | K13: 99 | L13: 119 | M13: 136 | N13: 141 | O13: 88 | P13: 174 | Q13: 156.2 | R13: 128.6 | S13: 144.45 | T13: 147.6 | U13: 101.14 | V13: 182.04 | W13: 182.02 | X13: 157.61 | Y13: 149.08 | AD13: Alabama_Calhoun_Nonirrigated | AE13: 01015 | AF13: Alabama | AG13: Calhoun | AI13: Corn | AJ13: Bushel | AK13: Nonirrigated | AL13: 101.14 | AM13: 182.04 | AN13: 182.02 | AO13: 157.61 | AP13: 149.08 | AR13: 162.9 | AS13: 3.7 | AT13: 602.73 | AU13: 518.35 | AV13: 60.27 | AZ13: 180.47 | BA13: 3.7 | BB13: 667.74 | BC13: 574.26 | BD13: 66.77 | BJ13: 20% Yield Decrease | BK13: 0.8 | BP13: Bullock | BQ13: Yuma | BR13: Clay | BS13: Fresno | BT13: Bent | BU13: New Haven | BW13: Columbia | BX13: Baldwin | BY13: Canyon | BZ13: Brown | CA13: Blackford | CB13: Audubon | CC13: Barton | CD13: Barren | CE13: Beauregard | CF13: Franklin | CG13: Caroline | CH13: Hampden | CI13: Antrim | CJ13: Benton | CK13: Benton | CL13: Barry | CM13: Cascade | CN13: Blaine | CP13: Grafton | CQ13: Gloucester | CR13: Hidalgo | CS13: Cayuga | CT13: Ashe | CU13: Bottineau | CV13: Athens | CW13: Beckham | CX13: Gilliam | CY13: Bedford | CZ13: Washington | DA13: Bamberg | DB13: Brookings | DC13: Blount | DD13: Austin | DE13: Davis | DF13: Essex | DG13: Amherst | DH13: Franklin | DI13: Brooke | DJ13: Bayfield | DK13: Goshen
A14: 01017 | B14: Alabama | C14: Chambers | D14: Corn | E14: Bushel | F14: Nonirrigated | G14: Alabama_Chambers_Nonirrigated | H14: 101 | I14: 109 | J14: 101 | K14: 119 | L14: 138 | M14: 150 | N14: 129 | O14: 87 | P14: 98 | Q14: 115.4166667 | R14: 138 | S14: 150 | T14: 129.07 | U14: 87 | V14: 98 | W14: 144 | X14: 115.66 | Y14: 133.95 | AD14: Alabama_Chambers_Nonirrigated | AE14: 01017 | AF14: Alabama | AG14: Chambers | AI14: Corn | AJ14: Bushel | AK14: Nonirrigated | AL14: 87 | AM14: 98 | AN14: 144 | AO14: 115.66 | AP14: 133.95 | AR14: 115.87 | AS14: 3.7 | AT14: 428.72 | AU14: 368.7 | AV14: 42.87 | AZ14: 123.6 | BA14: 3.7 | BB14: 457.32 | BC14: 393.3 | BD14: 45.73 | BJ14: 25% Yield Decrease | BK14: 0.75 | BP14: Butler | BR14: Conway | BS14: Glenn | BT14: Boulder | BU14: New London | BW14: Dixie | BX14: Banks | BY14: Cassia | BZ14: Bureau | CA14: Boone | CB14: Benton | CC14: Bourbon | CD14: Bath | CE14: Bienville | CF14: Hancock | CG14: Carroll | CH14: Hampshire | CI14: Arenac | CJ14: Big Stone | CK14: Bolivar | CL14: Barton | CM14: Chouteau | CN14: Boone | CP14: Hillsborough | CQ14: Hunterdon | CR14: Lea | CS14: Chautauqua | CT14: Avery | CU14: Bowman | CV14: Auglaize | CW14: Blaine | CX14: Jackson | CY14: Berks | DA14: Barnwell | DB14: Brown | DC14: Bradley | DD14: Bailey | DE14: Duchesne | DF14: Franklin | DG14: Appomattox | DH14: Garfield | DI14: Cabell | DJ14: Brown | DK14: Hot Springs
A15: 01019 | B15: Alabama | C15: Cherokee | D15: Corn | E15: Bushel | F15: Nonirrigated | G15: Alabama_Cherokee_Nonirrigated | H15: 81 | I15: 68 | J15: 115 | K15: 81 | L15: 123 | M15: 113 | N15: 90 | O15: 91 | P15: 147 | Q15: 127.25 | R15: 166.72 | S15: 137.32 | T15: 118.19 | U15: 124.96 | V15: 142.91 | W15: 158.46 | X15: 126.52 | Y15: 99.4 | AD15: Alabama_Cherokee_Nonirrigated | AE15: 01019 | AF15: Alabama | AG15: Cherokee | AI15: Corn | AJ15: Bushel | AK15: Nonirrigated | AL15: 124.96 | AM15: 142.91 | AN15: 158.46 | AO15: 126.52 | AP15: 99.4 | AR15: 131.46 | AS15: 3.7 | AT15: 486.4 | AU15: 418.3 | AV15: 48.64 | AZ15: 225.66 | BA15: 3.7 | BB15: 834.94 | BC15: 718.05 | BD15: 83.49 | BJ15: 30% Yield Decrease | BK15: 0.7 | BP15: Calhoun | BR15: Craighead | BS15: Imperial | BT15: Cheyenne | BU15: Tolland | BW15: Escambia | BX15: Barrow | BY15: Clark | BZ15: Calhoun | CA15: Brown | CB15: Black Hawk | CC15: Brown | CD15: Boone | CE15: Bossier | CF15: Kennebec | CG15: Cecil | CH15: Middlesex | CI15: Baraga | CJ15: Blue Earth | CK15: Calhoun | CL15: Bates | CM15: Custer | CN15: Box Butte | CP15: Merrimack | CQ15: Mercer | CR15: Luna | CS15: Chemung | CT15: Beaufort | CU15: Burke | CV15: Belmont | CW15: Bryan | CX15: Jefferson | CY15: Blair | DA15: Beaufort | DB15: Brule | DC15: Campbell | DD15: Bastrop | DE15: Emery | DF15: Grand Isle | DG15: Augusta | DH15: Grant | DI15: Calhoun | DJ15: Buffalo | DK15: Johnson
A16: 01021 | B16: Alabama | C16: Chilton | D16: Corn | E16: Bushel | F16: Nonirrigated | G16: Alabama_Chilton_Nonirrigated | H16: 101 | I16: 109 | J16: 101 | K16: 119 | L16: 68 | M16: 150 | N16: 133 | O16: 93 | P16: 86 | Q16: 105.5833333 | R16: 76.8 | S16: 150 | T16: 133 | U16: 93 | V16: 86 | W16: 144 | X16: 135.44 | Y16: 119.79 | AD16: Alabama_Chilton_Nonirrigated | AE16: 01021 | AF16: Alabama | AG16: Chilton | AI16: Corn | AJ16: Bushel | AK16: Nonirrigated | AL16: 93 | AM16: 86 | AN16: 144 | AO16: 135.44 | AP16: 119.79 | AR16: 116.08 | AS16: 3.7 | AT16: 429.5 | AU16: 369.37 | AV16: 42.95 | AZ16: 191.51 | BA16: 3.7 | BB16: 708.59 | BC16: 609.39 | BD16: 70.86 | BG16: Historical 2014-2020 ARC-CO Performance for | BJ16: 35% Yield Decrease | BK16: 0.65 | BP16: Chambers | BR16: Crawford | BS16: Kern | BT16: Conejos | BU16: Windham | BW16: Flagler | BX16: Bartow | BY16: Elmore | BZ16: Carroll | CA16: Carroll | CB16: Boone | CC16: Butler | CD16: Bourbon | CE16: Caddo | CF16: Knox | CG16: Charles | CH16: Norfolk | CI16: Barry | CJ16: Brown | CK16: Carroll | CL16: Benton | CM16: Daniels | CN16: Boyd | CP16: Rockingham | CQ16: Middlesex | CR16: Quay | CS16: Chenango | CT16: Bertie | CU16: Burleigh | CV16: Brown | CW16: Caddo | CX16: Lane | CY16: Bradford | DA16: Berkeley | DB16: Buffalo | DC16: Cannon | DD16: Bee | DE16: Iron | DF16: Lamoille | DG16: Bath | DH16: Island | DI16: Clay | DJ16: Burnett | DK16: Laramie
A17: 01023 | B17: Alabama | C17: Choctaw | D17: Corn | E17: Bushel | F17: Nonirrigated | G17: Alabama_Choctaw_Nonirrigated | H17: 95 | I17: 112 | J17: 52 | K17: 117 | L17: 135 | M17: 135 | N17: 130 | O17: 108 | P17: 71 | Q17: 111.6111111 | R17: 135 | S17: 135 | T17: 130 | U17: 108 | V17: 71 | W17: 145 | X17: 127 | Y17: 154 | AD17: Alabama_Choctaw_Nonirrigated | AE17: 01023 | AF17: Alabama | AG17: Choctaw | AI17: Corn | AJ17: Bushel | AK17: Nonirrigated | AL17: 108 | AM17: 71 | AN17: 145 | AO17: 127 | AP17: 154 | AR17: 126.67 | AS17: 3.7 | AT17: 468.68 | AU17: 403.06 | AV17: 46.87 | AZ17: 195.02 | BA17: 3.7 | BB17: 721.57 | BC17: 620.55 | BD17: 72.16 | BF17: Lable | BG17: =BG16&" "&BG4&" "&BG6 -> Historical 2014-2020 ARC-CO Performance for Adair County, Missouri-Corn | BJ17: 40% Yield Decrease | BK17: 0.6 | BP17: Cherokee | BR17: Crittenden | BS17: Kings | BT17: Crowley | BW17: Gadsden | BX17: Ben Hill | BY17: Franklin | BZ17: Cass | CA17: Cass | CB17: Bremer | CC17: Chase | CD17: Boyd | CE17: Calcasieu | CF17: Lincoln | CG17: Dorchester | CH17: Plymouth | CI17: Bay | CJ17: Carlton | CK17: Chickasaw | CL17: Bollinger | CM17: Dawson | CN17: Brown | CP17: Strafford | CQ17: Monmouth | CR17: Rio Arriba | CS17: Clinton | CT17: Bladen | CU17: Cass | CV17: Butler | CW17: Canadian | CX17: Linn | CY17: Bucks | DA17: Calhoun | DB17: Butte | DC17: Carroll | DD17: Bell | DE17: Juab | DF17: Orange | DG17: Bedford | DH17: South King | DI17: Fayette | DJ17: Calumet | DK17: Natrona
A18: 01025 | B18: Alabama | C18: Clarke | D18: Corn | E18: Bushel | F18: Nonirrigated | G18: Alabama_Clarke_Nonirrigated | H18: 95 | I18: 112 | J18: 52 | K18: 117 | L18: 135 | M18: 135 | N18: 130 | O18: 106 | P18: 71 | Q18: 110.8888889 | R18: 135 | S18: 135 | T18: 130 | U18: 106 | V18: 71 | W18: 145 | X18: 129 | Y18: 150 | AD18: Alabama_Clarke_Nonirrigated | AE18: 01025 | AF18: Alabama | AG18: Clarke | AI18: Corn | AJ18: Bushel | AK18: Nonirrigated | AL18: 106 | AM18: 71 | AN18: 145 | AO18: 129 | AP18: 150 | AR18: 126.67 | AS18: 3.7 | AT18: 468.68 | AU18: 403.06 | AV18: 46.87 | AZ18: 191.6 | BA18: 3.7 | BB18: 708.92 | BC18: 609.67 | BD18: 70.89 | BP18: Chilton | BR18: Cross | BS18: Merced | BT18: Delta | BW18: Gilchrist | BX18: Berrien | BY18: Fremont | BZ18: Champaign | CA18: Clark | CB18: Buchanan | CC18: Chautauqua | CD18: Boyle | CE18: Caldwell | CF18: Oxford | CG18: Frederick | CH18: Worcester | CI18: Benzie | CJ18: Carver | CK18: Choctaw | CL18: Boone | CM18: Fallon | CN18: Buffalo | CP18: Sullivan | CQ18: Morris | CR18: Roosevelt | CS18: Columbia | CT18: Brunswick | CU18: Cavalier | CV18: Carroll | CW18: Carter | CX18: Malheur | CY18: Butler | DA18: Charleston | DB18: Campbell | DC18: Carter | DD18: Bexar | DE18: Millard | DF18: Orleans | DG18: Bland | DH18: Kittitas | DI18: Gilmer | DJ18: Chippewa | DK18: Niobrara
A19: 01027 | B19: Alabama | C19: Clay | D19: Corn | E19: Bushel | F19: Nonirrigated | G19: Alabama_Clay_Nonirrigated | H19: 101 | I19: 109 | J19: 101 | K19: 119 | L19: 138 | M19: 150 | N19: 133 | O19: 83 | P19: 106 | Q19: 118.6388889 | R19: 138 | S19: 150 | T19: 133 | U19: 83 | V19: 106 | W19: 144 | X19: 130 | Y19: 104 | AD19: Alabama_Clay_Nonirrigated | AE19: 01027 | AF19: Alabama | AG19: Clay | AI19: Corn | AJ19: Bushel | AK19: Nonirrigated | AL19: 83 | AM19: 106 | AN19: 144 | AO19: 130 | AP19: 104 | AR19: 113.33 | AS19: 3.7 | AT19: 419.32 | AU19: 360.62 | AV19: 41.93 | AZ19: 212.18 | BA19: 3.7 | BB19: 785.07 | BC19: 675.16 | BD19: 78.51 | BP19: Choctaw | BR19: Desha | BS19: Placer | BT19: Denver | BW19: Hamilton | BX19: Bibb | BY19: Gem | BZ19: Christian | CA19: Clay | CB19: Buena Vista | CC19: Cherokee | CD19: Bracken | CE19: Cameron | CF19: Penobscot | CG19: Garrett | CI19: Berrien | CJ19: Cass | CK19: Claiborne | CL19: Buchanan | CM19: Gallatin | CN19: Burt | CQ19: Ocean | CR19: San Juan | CS19: Cortland | CT19: Buncombe | CU19: Dickey | CV19: Champaign | CW19: Cherokee | CX19: Marion | CY19: Cambria | DA19: Cherokee | DB19: Charles Mix | DC19: Cheatham | DD19: Bosque | DE19: Morgan | DF19: Rutland | DG19: Botetourt | DH19: Klickitat | DI19: Grant | DJ19: Clark | DK19: Park
A20: 01029 | B20: Alabama | C20: Cleburne | D20: Corn | E20: Bushel | F20: Nonirrigated | G20: Alabama_Cleburne_Nonirrigated | H20: 106 | I20: 99 | J20: 89 | K20: 101 | L20: 132 | M20: 144 | N20: 129 | O20: 125 | P20: 111 | Q20: 133.5277778 | R20: 132 | S20: 144 | T20: 129 | U20: 125 | V20: 111.11 | W20: 142.82 | X20: 132 | Y20: 119 | AD20: Alabama_Cleburne_Nonirrigated | AE20: 01029 | AF20: Alabama | AG20: Cleburne | AI20: Corn | AJ20: Bushel | AK20: Nonirrigated | AL20: 125 | AM20: 111.11 | AN20: 142.82 | AO20: 132 | AP20: 119 | AR20: 125.33 | AS20: 3.7 | AT20: 463.72 | AU20: 398.8 | AV20: 46.37 | AZ20: 157.71 | BA20: 3.7 | BB20: 583.53 | BC20: 501.84 | BD20: 58.35 | BG20: Historical 2014-2020 PLC Performance for | BP20: Clarke | BR20: Drew | BS20: Riverside | BT20: Dolores | BW20: Holmes | BX20: Bleckley | BY20: Gooding | BZ20: Clark | CA20: Clinton | CB20: Butler | CC20: Cheyenne | CD20: Breckinridge | CE20: Catahoula | CF20: Piscataquis | CG20: Harford | CI20: Branch | CJ20: Chippewa | CK20: Clarke | CL20: Butler | CM20: Garfield | CN20: Butler | CQ20: Salem | CR20: Santa Fe | CS20: Delaware | CT20: Burke | CU20: Divide | CV20: Clark | CW20: Choctaw | CX20: Morrow | CY20: Cameron | DA20: Chester | DB20: Clark | DC20: Chester | DD20: Bowie | DE20: Piute | DF20: Washington | DG20: Brunswick | DH20: Lincoln | DI20: Greenbrier | DJ20: Columbia | DK20: Platte
A21: 01031 | B21: Alabama | C21: Coffee | D21: Corn | E21: Bushel | F21: Irrigated | G21: Alabama_Coffee_Irrigated | R21: 193.97 | S21: 179.81 | T21: 224.35 | U21: 191.69 | V21: 203.2 | W21: 207.09 | X21: 208.84 | Y21: 219.59 | AD21: Alabama_Coffee_Irrigated | AE21: 01031 | AF21: Alabama | AG21: Coffee | AI21: Corn | AJ21: Bushel | AK21: Irrigated | AL21: 191.69 | AM21: 203.2 | AN21: 207.09 | AO21: 208.84 | AP21: 219.59 | AR21: 206.38 | AS21: 3.7 | AT21: 763.61 | AU21: 656.7 | AV21: 76.36 | AZ21: 150.6 | BA21: 3.7 | BB21: 557.22 | BC21: 479.21 | BD21: 55.72 | BF21: Lable | BG21: =BG20&" "&BG4&" "&BG6 -> Historical 2014-2020 PLC Performance for Adair County, Missouri-Corn | BJ21: Irrigated | BP21: Clay | BR21: Faulkner | BS21: Sacramento | BT21: Elbert | BW21: Jackson | BX21: Brantley | BY21: Jefferson | BZ21: Clay | CA21: Crawford | CB21: Calhoun | CC21: Clark | CD21: Bullitt | CE21: Claiborne | CF21: Sagadahoc | CG21: Howard | CI21: Calhoun | CJ21: Chisago | CK21: Clay | CL21: Caldwell | CM21: Golden Valley | CN21: Cass | CQ21: Somerset | CR21: Torrance | CS21: Dutchess | CT21: Cabarrus | CU21: Dunn | CV21: Clermont | CW21: Cimarron | CX21: Multnomah | CY21: Carbon | DA21: Chesterfield | DB21: Clay | DC21: Claiborne | DD21: Brazoria | DE21: Salt Lake | DF21: Windham | DG21: Buchanan | DH21: Okanogan | DI21: Hampshire | DJ21: Crawford | DK21: Washakie
A22: 01031 | B22: Alabama | C22: Coffee | D22: Corn | E22: Bushel | F22: Nonirrigated | G22: Alabama_Coffee_Nonirrigated | H22: 62 | I22: 72 | J22: 62 | K22: 74 | L22: 106 | M22: 106 | N22: 105 | O22: 104 | P22: 120 | Q22: 127.2777778 | R22: 141.99 | S22: 101.39 | T22: 92.85 | U22: 94.8 | V22: 106.94 | W22: 94.5 | X22: 60.11 | Y22: 112.7 | AD22: Alabama_Coffee_Nonirrigated | AE22: 01031 | AF22: Alabama | AG22: Coffee | AI22: Corn | AJ22: Bushel | AK22: Nonirrigated | AL22: 94.8 | AM22: 106.94 | AN22: 94.5 | AO22: 60.11 | AP22: 112.7 | AR22: 98.75 | AS22: 3.7 | AT22: 365.38 | AU22: 314.23 | AV22: 36.54 | AZ22: 182.87 | BA22: 3.7 | BB22: 676.62 | BC22: 581.89 | BD22: 67.66 | BJ22: Nonirrigated | BP22: Cleburne | BR22: Franklin | BS22: San Benito | BT22: El Paso | BW22: Jefferson | BX22: Brooks | BY22: Jerome | BZ22: Clinton | CA22: Daviess | CB22: Carroll | CC22: Clay | CD22: Butler | CE22: Concordia | CF22: Somerset | CG22: Kent | CI22: Cass | CJ22: Clay | CK22: Coahoma | CL22: Callaway | CM22: Hill | CN22: Cedar | CQ22: Sussex | CR22: Union | CS22: Erie | CT22: Caldwell | CU22: Eddy | CV22: Clinton | CW22: Cleveland | CX22: Polk | CY22: Centre | DA22: Clarendon | DB22: Codington | DC22: Clay | DD22: Brazos | DE22: San Juan | DF22: Windsor | DG22: Buckingham | DH22: Pierce | DI22: Hardy | DJ22: Dane | DK22: Weston
A23: 01033 | B23: Alabama | C23: Colbert | D23: Corn | E23: Bushel | F23: Irrigated | G23: Alabama_Colbert_Irrigated | Q23: 153.6 | R23: 217.37 | S23: 227.98 | T23: 209.59 | U23: 237.82 | V23: 247.69 | W23: 217.59 | X23: 219.16 | Y23: 177.6 | AD23: Alabama_Colbert_Irrigated | AE23: 01033 | AF23: Alabama | AG23: Colbert | AI23: Corn | AJ23: Bushel | AK23: Irrigated | AL23: 237.82 | AM23: 247.69 | AN23: 217.59 | AO23: 219.16 | AP23: 177.6 | AR23: 224.86 | AS23: 3.7 | AT23: 831.98 | AU23: 715.5 | AV23: 83.2 | AZ23: 145.33 | BA23: 3.7 | BB23: 537.72 | BC23: 462.44 | BD23: 53.77 | BG23: Estimated 2021 & Projected 2022 PLC Performance for | BP23: Coffee | BR23: Fulton | BS23: San Joaquin | BT23: Garfield | BW23: Lafayette | BX23: Bryan | BY23: Lemhi | BZ23: Coles | CA23: Dearborn | CB23: Cass | CC23: Cloud | CD23: Caldwell | CE23: De Soto | CF23: Waldo | CG23: Montgomery | CI23: Charlevoix | CJ23: Clearwater | CK23: Copiah | CL23: Cape Girardeau | CM23: Lake | CN23: Chase | CQ23: Warren, Bergen, Essex, Hudson, Passaic | CR23: Valencia | CS23: Essex | CT23: Camden | CU23: Emmons | CV23: Columbiana | CW23: Coal | CX23: Umatilla | CY23: Chester | DA23: Colleton | DB23: Corson | DC23: Cocke | DD23: Briscoe | DE23: Sanpete | DG23: Campbell, Lynchburg City | DH23: Skagit | DI23: Harrison | DJ23: Dodge
A24: 01033 | B24: Alabama | C24: Colbert | D24: Corn | E24: Bushel | F24: Nonirrigated | G24: Alabama_Colbert_Nonirrigated | H24: 126 | I24: 145 | J24: 131 | K24: 102 | L24: 184 | M24: 191 | N24: 159 | O24: 126 | P24: 195 | Q24: 153.6 | R24: 202.07 | S24: 196.79 | T24: 162.57 | U24: 131.2 | V24: 205.5 | W24: 174.83 | X24: 176.61 | Y24: 179.51 | AD24: Alabama_Colbert_Nonirrigated | AE24: 01033 | AF24: Alabama | AG24: Colbert | AI24: Corn | AJ24: Bushel | AK24: Nonirrigated | AL24: 131.2 | AM24: 205.5 | AN24: 174.83 | AO24: 176.61 | AP24: 179.51 | AR24: 176.98 | AS24: 3.7 | AT24: 654.83 | AU24: 563.15 | AV24: 65.48 | AZ24: 184.97 | BA24: 3.7 | BB24: 684.39 | BC24: 588.58 | BD24: 68.44 | BF24: Lable | BG24: =BG23&" "&BG4&" "&BG6 -> Estimated 2021 & Projected 2022 PLC Performance for Adair County, Missouri-Corn | BP24: Colbert | BR24: Greene | BS24: Solano | BT24: Huerfano | BW24: Leon | BX24: Bulloch | BY24: Lincoln | BZ24: Cook | CA24: Decatur | CB24: Cedar | CC24: Coffey | CD24: Calloway | CE24: East Carroll | CF24: York | CG24: Prince George'S | CI24: Cheboygan | CJ24: Cottonwood | CK24: Covington | CL24: Carroll | CM24: Liberty | CN24: Cherry | CS24: Franklin | CT24: Carteret | CU24: Foster | CV24: Coshocton | CW24: Comanche | CX24: Union | CY24: Clarion | DA24: Darlington | DB24: Custer | DC24: Coffee | DD24: Brown | DE24: Sevier | DG24: Caroline | DH24: Snohomish, North King | DI24: Jackson | DJ24: Door
A25: 01035 | B25: Alabama | C25: Conecuh | D25: Corn | E25: Bushel | F25: Nonirrigated | G25: Alabama_Conecuh_Nonirrigated | H25: 71 | I25: 55 | J25: 50 | K25: 124 | L25: 128 | M25: 116 | N25: 50 | O25: 115 | P25: 121 | Q25: 150 | R25: 103.72 | S25: 120.8 | T25: 94.22 | U25: 123.81 | V25: 122.76 | W25: 95.09 | X25: 86.64 | Y25: 110.64 | AD25: Alabama_Conecuh_Nonirrigated | AE25: 01035 | AF25: Alabama | AG25: Conecuh | AI25: Corn | AJ25: Bushel | AK25: Nonirrigated | AL25: 123.81 | AM25: 122.76 | AN25: 95.09 | AO25: 86.64 | AP25: 110.64 | AR25: 109.5 | AS25: 3.7 | AT25: 405.15 | AU25: 348.43 | AV25: 40.52 | AZ25: 169.43 | BA25: 3.7 | BB25: 626.89 | BC25: 539.13 | BD25: 62.69 | BP25: Conecuh | BR25: Hempstead | BS25: Sonoma | BT25: Kiowa | BW25: Levy | BX25: Burke | BY25: Minidoka | BZ25: Crawford | CA25: Dekalb | CB25: Cerro Gordo | CC25: Comanche | CD25: Campbell | CE25: East Feliciana | CG25: Queen Anne'S | CI25: Chippewa | CJ25: Crow Wing | CK25: Desoto | CL25: Cass | CM25: Mccone | CN25: Cheyenne | CS25: Fulton | CT25: Caswell | CU25: Golden Valley | CV25: Crawford | CW25: Cotton | CX25: Washington | CY25: Clearfield | DA25: Dillon | DB25: Davison | DC25: Crockett | DD25: Burleson | DE25: Tooele | DG25: Carroll, East Galax City | DH25: Spokane | DI25: Jefferson | DJ25: Douglas
A26: 01039 | B26: Alabama | C26: Covington | D26: Corn | E26: Bushel | F26: Nonirrigated | G26: Alabama_Covington_Nonirrigated | H26: 51 | I26: 113 | J26: 51 | K26: 125 | L26: 118 | M26: 88 | N26: 88 | O26: 105 | P26: 142 | Q26: 129.3055556 | R26: 130.14 | S26: 92.5 | T26: 91.36 | U26: 92.58 | V26: 134.95 | W26: 98.85 | X26: 59.93 | Y26: 90.56 | AD26: Alabama_Covington_Nonirrigated | AE26: 01039 | AF26: Alabama | AG26: Covington | AI26: Corn | AJ26: Bushel | AK26: Nonirrigated | AL26: 92.58 | AM26: 134.95 | AN26: 98.85 | AO26: 59.93 | AP26: 90.56 | AR26: 94 | AS26: 3.7 | AT26: 347.8 | AU26: 299.11 | AV26: 34.78 | AZ26: 175.7 | BA26: 3.7 | BB26: 650.09 | BC26: 559.08 | BD26: 65.01 | BP26: Covington | BR26: Howard | BS26: Stanislaus | BT26: Kit Carson | BW26: Madison | BX26: Butts | BY26: Oneida | BZ26: Cumberland | CA26: Delaware | CB26: Cherokee | CC26: Cowley | CD26: Carlisle | CE26: Evangeline | CG26: St. Mary'S | CI26: Clare | CJ26: Dakota | CK26: Forrest | CL26: Cedar | CM26: Missoula | CN26: Clay | CS26: Genesee | CT26: Catawba | CU26: Grand Forks | CV26: Cuyahoga | CW26: Craig | CX26: Yamhill | CY26: Clinton | DA26: Dorchester | DB26: Day | DC26: Cumberland | DD26: Caldwell | DE26: Uintah | DG26: Charles City | DH26: Stevens | DI26: Kanawha | DJ26: Dunn
A27: 01041 | B27: Alabama | C27: Crenshaw | D27: Corn | E27: Bushel | F27: Nonirrigated | G27: Alabama_Crenshaw_Nonirrigated | H27: 85 | I27: 59 | J27: 77 | K27: 113 | L27: 123 | M27: 69 | N27: 104 | O27: 103 | P27: 145 | Q27: 113.2 | R27: 130.58 | S27: 99.23 | T27: 109 | U27: 111.28 | V27: 166.2 | W27: 129.12 | X27: 72.88 | Y27: 108.06 | AD27: Alabama_Crenshaw_Nonirrigated | AE27: 01041 | AF27: Alabama | AG27: Crenshaw | AI27: Corn | AJ27: Bushel | AK27: Nonirrigated | AL27: 111.28 | AM27: 166.2 | AN27: 129.12 | AO27: 72.88 | AP27: 108.06 | AR27: 116.15 | AS27: 3.7 | AT27: 429.76 | AU27: 369.59 | AV27: 42.98 | AZ27: 183.95 | BA27: 3.7 | BB27: 680.62 | BC27: 585.33 | BD27: 68.06 | BG27: Implied 2022 ARC/PLC Annual Payments for | BP27: Crenshaw | BR27: Independence | BS27: Sutter | BT27: La Plata | BW27: Nassau | BX27: Calhoun | BY27: Owyhee | BZ27: Dekalb | CA27: Dubois | CB27: Chickasaw | CC27: Crawford | CD27: Carroll | CE27: Franklin | CG27: Somerset | CI27: Clinton | CJ27: Dodge | CK27: Franklin | CL27: Chariton | CM27: Musselshell | CN27: Colfax | CS27: Greene | CT27: Chatham | CU27: Grant | CV27: Darke | CW27: Creek | CY27: Columbia | DA27: Edgefield | DB27: Deuel | DC27: Davidson | DD27: Calhoun | DE27: Utah | DG27: Charlotte | DH27: Thurston | DI27: Lewis | DJ27: Eau Claire
A28: 01043 | B28: Alabama | C28: Cullman | D28: Corn | E28: Bushel | F28: Nonirrigated | G28: Alabama_Cullman_Nonirrigated | H28: 104 | I28: 91 | J28: 129 | K28: 92 | L28: 131 | M28: 164 | N28: 161 | O28: 115 | P28: 176 | Q28: 181.5 | R28: 143.59 | S28: 199.04 | T28: 159.96 | U28: 119.89 | V28: 173.27 | W28: 201.1 | X28: 170.08 | Y28: 189.37 | AD28: Alabama_Cullman_Nonirrigated | AE28: 01043 | AF28: Alabama | AG28: Cullman | AI28: Corn | AJ28: Bushel | AK28: Nonirrigated | AL28: 119.89 | AM28: 173.27 | AN28: 201.1 | AO28: 170.08 | AP28: 189.37 | AR28: 177.57 | AS28: 3.7 | AT28: 657.01 | AU28: 565.03 | AV28: 65.7 | AZ28: 195.5 | BA28: 3.7 | BB28: 723.35 | BC28: 622.08 | BD28: 72.34 | BF28: Lable | BG28: =BG27&" "&BG4&" "&BG6 -> Implied 2022 ARC/PLC Annual Payments for Adair County, Missouri-Corn | BP28: Cullman | BR28: Jackson | BS28: Tehama | BT28: Larimer | BW28: Okaloosa | BX28: Candler | BY28: Payette | BZ28: Dewitt | CA28: Fayette | CB28: Clarke | CC28: Decatur | CD28: Carter | CE28: Grant | CG28: Talbot | CI28: Delta | CJ28: Douglas | CK28: George | CL28: Christian | CM28: Petroleum | CN28: Cuming | CS28: Herkimer | CT28: Cherokee | CU28: Griggs | CV28: Defiance | CW28: Custer | CY28: Crawford | DA28: Fairfield | DB28: Dewey | DC28: Decatur | DD28: Callahan | DE28: Washington | DG28: Chesterfield | DH28: Walla Walla | DI28: Lincoln | DJ28: Florence
A29: 01045 | B29: Alabama | C29: Dale | D29: Corn | E29: Bushel | F29: Nonirrigated | G29: Alabama_Dale_Nonirrigated | H29: 50 | I29: 101 | J29: 48 | K29: 103 | L29: 136 | M29: 111 | N29: 119 | O29: 131 | P29: 144 | Q29: 156.1111111 | R29: 111.76 | S29: 109.5 | T29: 98.17 | U29: 102.95 | V29: 128.35 | W29: 128.99 | X29: 69.65 | Y29: 134.98 | AD29: Alabama_Dale_Nonirrigated | AE29: 01045 | AF29: Alabama | AG29: Dale | AI29: Corn | AJ29: Bushel | AK29: Nonirrigated | AL29: 102.95 | AM29: 128.35 | AN29: 128.99 | AO29: 69.65 | AP29: 134.98 | AR29: 120.1 | AS29: 3.7 | AT29: 444.37 | AU29: 382.16 | AV29: 44.44 | AZ29: 196.13 | BA29: 3.7 | BB29: 725.68 | BC29: 624.08 | BD29: 72.57 | BP29: Dale | BR29: Jefferson | BS29: Tulare | BT29: Las Animas | BW29: Putnam | BX29: Catoosa | BY29: Power | BZ29: Douglas | CA29: Floyd | CB29: Clay | CC29: Dickinson | CD29: Casey | CE29: Iberia | CG29: Washington | CI29: Dickinson | CJ29: Faribault | CK29: Greene | CL29: Clark | CM29: Phillips | CN29: Custer | CS29: Jefferson | CT29: Chowan | CU29: Hettinger | CV29: Delaware | CW29: Delaware | CY29: Cumberland | DA29: Florence | DB29: Douglas | DC29: Dekalb | DD29: Cameron | DE29: Wayne | DG29: Clarke | DH29: Whatcom | DI29: Logan, Mingo | DJ29: Fond Du Lac
A30: 01047 | B30: Alabama | C30: Dallas | D30: Corn | E30: Bushel | F30: Nonirrigated | G30: Alabama_Dallas_Nonirrigated | H30: 76 | I30: 103 | J30: 67 | K30: 116 | L30: 115 | M30: 111 | N30: 89 | O30: 119 | P30: 148 | Q30: 137.3 | R30: 118.91 | S30: 117.6 | T30: 95.49 | U30: 121.75 | V30: 144.27 | W30: 132.27 | X30: 136.94 | Y30: 152.62 | AD30: Alabama_Dallas_Nonirrigated | AE30: 01047 | AF30: Alabama | AG30: Dallas | AI30: Corn | AJ30: Bushel | AK30: Nonirrigated | AL30: 121.75 | AM30: 144.27 | AN30: 132.27 | AO30: 136.94 | AP30: 152.62 | AR30: 137.83 | AS30: 3.7 | AT30: 509.97 | AU30: 438.57 | AV30: 51 | AZ30: 176.44 | BA30: 3.7 | BB30: 652.83 | BC30: 561.43 | BD30: 65.28 | BJ30: 20% Price Increase | BK30: 1.2 | BP30: Dallas | BR30: Johnson | BS30: Yolo | BT30: Lincoln | BW30: St. Johns | BX30: Charlton | BY30: Twin Falls | BZ30: Dupage | CA30: Fountain | CB30: Clayton | CC30: Doniphan | CD30: Christian | CE30: Iberville | CG30: Wicomico | CI30: Eaton | CJ30: Fillmore | CK30: Grenada | CL30: Clay | CM30: Prairie | CN30: Dakota | CS30: Lewis | CT30: Clay | CU30: Kidder | CV30: Erie | CW30: Dewey | CY30: Dauphin | DA30: Georgetown | DB30: Edmunds | DC30: Dickson | DD30: Carson | DE30: Weber | DG30: Craig | DH30: Whitman | DI30: Marion | DJ30: Forest
A31: 01049 | B31: Alabama | C31: Dekalb | D31: Corn | E31: Bushel | F31: Nonirrigated | G31: Alabama_Dekalb_Nonirrigated | H31: 117 | I31: 87 | J31: 130 | K31: 104 | L31: 141 | M31: 144 | N31: 151 | O31: 97 | P31: 163 | Q31: 150.6666667 | R31: 173.13 | S31: 185.16 | T31: 154.75 | U31: 106.44 | V31: 172.13 | W31: 187.79 | X31: 160.2 | Y31: 167.57 | AD31: Alabama_DeKalb_Nonirrigated | AE31: 01049 | AF31: Alabama | AG31: DeKalb | AI31: Corn | AJ31: Bushel | AK31: Nonirrigated | AL31: 106.44 | AM31: 172.13 | AN31: 187.79 | AO31: 160.2 | AP31: 167.57 | AR31: 166.63 | AS31: 3.7 | AT31: 616.53 | AU31: 530.22 | AV31: 61.65 | AZ31: 189.56 | BA31: 3.7 | BB31: 701.37 | BC31: 603.18 | BD31: 70.14 | BJ31: 15% Price Increase | BK31: 1.15 | BP31: Dekalb | BR31: Lafayette | BS31: Yuba | BT31: Logan | BW31: Santa Rosa | BX31: Chatham | BY31: Washington | BZ31: Edgar | CA31: Franklin | CB31: Clinton | CC31: Douglas | CD31: Clark | CE31: Jefferson Davis | CG31: Worcester | CI31: Emmet | CJ31: Freeborn | CK31: Hancock | CL31: Clinton | CM31: Richland | CN31: Dawes, North Sioux | CS31: Livingston | CT31: Cleveland | CU31: Lamoure | CV31: Fairfield | CW31: Ellis | CY31: Delaware | DA31: Greenville | DB31: Fall River | DC31: Dyer | DD31: Castro | DG31: Culpeper | DH31: Yakima | DI31: Marshall | DJ31: Grant
A32: 01051 | B32: Alabama | C32: Elmore | D32: Corn | E32: Bushel | F32: Nonirrigated | G32: Alabama_Elmore_Nonirrigated | H32: 78 | I32: 79 | J32: 69 | K32: 110 | L32: 124 | M32: 118 | N32: 153 | O32: 88 | P32: 161 | Q32: 170.5 | R32: 174.03 | S32: 176.65 | T32: 188.48 | U32: 169.82 | V32: 189.86 | W32: 185.38 | X32: 163.96 | Y32: 159.21 | AD32: Alabama_Elmore_Nonirrigated | AE32: 01051 | AF32: Alabama | AG32: Elmore | AI32: Corn | AJ32: Bushel | AK32: Nonirrigated | AL32: 169.82 | AM32: 189.86 | AN32: 185.38 | AO32: 163.96 | AP32: 159.21 | AR32: 173.05 | AS32: 3.7 | AT32: 640.29 | AU32: 550.65 | AV32: 64.03 | AZ32: 174.22 | BA32: 3.7 | BB32: 644.61 | BC32: 554.36 | BD32: 64.46 | BJ32: 10% Price Increase | BK32: 1.1 | BP32: Elmore | BR32: Lawrence | BT32: Mesa | BW32: Suwannee | BX32: Chattooga | BZ32: Edwards | CA32: Fulton | CB32: Crawford | CC32: Edwards | CD32: Clay | CE32: Lafayette | CI32: Genesee | CJ32: Goodhue | CK32: Hinds | CL32: Cole | CM32: Roosevelt | CN32: Dawson | CS32: Madison | CT32: Columbus | CU32: Logan | CV32: Fayette | CW32: Garfield | CY32: Elk | DA32: Greenwood | DB32: Faulk | DC32: Fayette | DD32: Chambers | DG32: Cumberland | DI32: Mason | DJ32: Green
A33: 01053 | B33: Alabama | C33: Escambia | D33: Corn | E33: Bushel | F33: Irrigated | G33: Alabama_Escambia_Irrigated | Q33: 176.8 | R33: 202.15 | S33: 157.5 | T33: 173.95 | U33: 196.28 | V33: 185.27 | W33: 182.52 | X33: 172.94 | Y33: 208.28 | AD33: Alabama_Escambia_Irrigated | AE33: 01053 | AF33: Alabama | AG33: Escambia | AI33: Corn | AJ33: Bushel | AK33: Irrigated | AL33: 196.28 | AM33: 185.27 | AN33: 182.52 | AO33: 172.94 | AP33: 208.28 | AR33: 188.02 | AS33: 3.7 | AT33: 695.67 | AU33: 598.28 | AV33: 69.57 | AZ33: 139.95 | BA33: 3.7 | BB33: 517.82 | BC33: 445.33 | BD33: 51.78 | BJ33: 5% PriceIncrease | BK33: 1.05 | BP33: Escambia | BR33: Lee | BT33: Montezuma | BW33: Taylor | BX33: Clarke | BZ33: Effingham | CA33: Gibson | CB33: Dallas | CC33: Elk | CD33: Clinton | CE33: La Salle | CI33: Gladwin | CJ33: Grant | CK33: Holmes | CL33: Cooper | CM33: Rosebud | CN33: Deuel | CS33: Monroe | CT33: Craven | CU33: Mchenry | CV33: Franklin | CW33: Garvin | CY33: Erie | DA33: Hampton | DB33: Grant | DC33: Fentress | DD33: Cochran | DG33: Dinwiddie, Petersburg City | DI33: Mercer, Mcdowell | DJ33: Green Lake
A34: 01053 | B34: Alabama | C34: Escambia | D34: Corn | E34: Bushel | F34: Nonirrigated | G34: Alabama_Escambia_Nonirrigated | H34: 81 | I34: 99 | J34: 60 | K34: 113 | L34: 97 | M34: 163 | N34: 124 | O34: 143 | P34: 140 | Q34: 176.8 | R34: 170.36 | S34: 183.16 | T34: 157.14 | U34: 188.44 | V34: 200.28 | W34: 130 | X34: 153.98 | Y34: 158.51 | AD34: Alabama_Escambia_Nonirrigated | AE34: 01053 | AF34: Alabama | AG34: Escambia | AI34: Corn | AJ34: Bushel | AK34: Nonirrigated | AL34: 188.44 | AM34: 200.28 | AN34: 130 | AO34: 153.98 | AP34: 158.51 | AR34: 166.98 | AS34: 3.7 | AT34: 617.83 | AU34: 531.33 | AV34: 61.78 | AZ34: 202.07 | BA34: 3.7 | BB34: 747.66 | BC34: 642.99 | BD34: 74.77 | BJ34: Zero Change from Forecast | BK34: 1 | BP34: Etowah | BR34: Lincoln | BT34: Montrose | BW34: Union | BX34: Clay | BZ34: Fayette | CA34: Grant | CB34: Davis | CC34: Ellis | CD34: Crittenden | CE34: Madison | CI34: Grand Traverse | CJ34: Hennepin | CK34: Humphreys | CL34: Dade | CM34: Sheridan | CN34: Dixon | CS34: Montgomery | CT34: Cumberland | CU34: Mcintosh | CV34: Fulton | CW34: Grady | CY34: Fayette | DA34: Horry | DB34: Gregory | DC34: Franklin | DD34: Coleman | DG34: Essex | DI34: Mineral | DJ34: Iowa
A35: 01055 | B35: Alabama | C35: Etowah | D35: Corn | E35: Bushel | F35: Nonirrigated | G35: Alabama_Etowah_Nonirrigated | H35: 85 | I35: 109 | J35: 135 | K35: 83 | L35: 133 | M35: 121 | N35: 95 | O35: 92 | P35: 119 | Q35: 111.5833333 | R35: 168.85 | S35: 176.61 | T35: 118.8 | U35: 103.51 | V35: 176.44 | W35: 168.56 | X35: 133.07 | Y35: 150.03 | AD35: Alabama_Etowah_Nonirrigated | AE35: 01055 | AF35: Alabama | AG35: Etowah | AI35: Corn | AJ35: Bushel | AK35: Nonirrigated | AL35: 103.51 | AM35: 176.44 | AN35: 168.56 | AO35: 133.07 | AP35: 150.03 | AR35: 150.55 | AS35: 3.7 | AT35: 557.04 | AU35: 479.05 | AV35: 55.7 | AZ35: 141.35 | BA35: 3.7 | BB35: 523 | BC35: 449.78 | BD35: 52.3 | BJ35: 5% Price Decrease | BK35: 0.95 | BP35: Fayette | BR35: Little River | BT35: Morgan | BW35: Wakulla | BX35: Clinch | BZ35: Ford | CA35: Greene | CB35: Decatur | CC35: Ellsworth | CD35: Cumberland | CE35: Morehouse | CI35: Gratiot | CJ35: Houston | CK35: Issaquena | CL35: Dallas | CM35: Stillwater | CN35: Dodge | CS35: Niagara | CT35: Currituck | CU35: Mckenzie | CV35: Gallia | CW35: Grant | CY35: Forest | DA35: Jasper | DB35: Haakon | DC35: Gibson | DD35: Collin | DG35: Fauquier | DI35: Monongalia | DJ35: Iron
A36: 01057 | B36: Alabama | C36: Fayette | D36: Corn | E36: Bushel | F36: Nonirrigated | G36: Alabama_Fayette_Nonirrigated | H36: 65 | I36: 98 | J36: 101 | K36: 85 | L36: 104 | M36: 143 | N36: 133 | O36: 85 | P36: 131 | Q36: 124.3 | R36: 117.3 | S36: 153.5 | T36: 141.8 | U36: 96.64 | V36: 140.47 | W36: 142.77 | X36: 105.82 | Y36: 129.67 | AD36: Alabama_Fayette_Nonirrigated | AE36: 01057 | AF36: Alabama | AG36: Fayette | AI36: Corn | AJ36: Bushel | AK36: Nonirrigated | AL36: 96.64 | AM36: 140.47 | AN36: 142.77 | AO36: 105.82 | AP36: 129.67 | AR36: 125.32 | AS36: 3.7 | AT36: 463.68 | AU36: 398.76 | AV36: 46.37 | AZ36: 189.94 | BA36: 3.7 | BB36: 702.78 | BC36: 604.39 | BD36: 70.28 | BJ36: 10% Price Decrease | BK36: 0.9 | BP36: Franklin | BR36: Logan | BT36: Otero | BW36: Walton | BX36: Coffee | BZ36: Franklin | CA36: Hamilton | CB36: Delaware | CC36: Finney | CD36: Daviess | CE36: Natchitoches | CI36: Hillsdale | CJ36: Hubbard | CK36: Itawamba | CL36: Daviess | CM36: Teton | CN36: Douglas | CS36: Oneida | CT36: Dare | CU36: Mclean | CV36: Geauga | CW36: Greer | CY36: Franklin | DA36: Kershaw | DB36: Hamlin | DC36: Giles | DD36: Colorado | DG36: Floyd | DI36: Monroe | DJ36: Jackson
A37: 01059 | B37: Alabama | C37: Franklin | D37: Corn | E37: Bushel | F37: Nonirrigated | G37: Alabama_Franklin_Nonirrigated | H37: 109 | I37: 87 | J37: 113 | K37: 83 | L37: 88 | M37: 142 | N37: 105 | O37: 86 | P37: 179 | Q37: 100 | R37: 145.2 | S37: 126.77 | T37: 104.95 | U37: 118.63 | V37: 172.15 | W37: 96.17 | X37: 152.89 | Y37: 139.92 | AD37: Alabama_Franklin_Nonirrigated | AE37: 01059 | AF37: Alabama | AG37: Franklin | AI37: Corn | AJ37: Bushel | AK37: Nonirrigated | AL37: 118.63 | AM37: 172.15 | AN37: 96.17 | AO37: 152.89 | AP37: 139.92 | AR37: 137.15 | AS37: 3.7 | AT37: 507.46 | AU37: 436.42 | AV37: 50.75 | AZ37: 174.79 | BA37: 3.7 | BB37: 646.72 | BC37: 556.18 | BD37: 64.67 | BJ37: 15% Price Decrease | BK37: 0.85 | BP37: Geneva | BR37: Lonoke | BT37: Phillips | BW37: Washington | BX37: Colquitt | BZ37: Fulton | CA37: Hancock | CB37: Des Moines | CC37: Ford | CD37: Edmonson | CE37: Ouachita | CI37: Houghton | CJ37: Isanti | CK37: Jasper | CL37: Dekalb | CM37: Toole | CN37: Dundy | CS37: Onondaga | CT37: Davidson | CU37: Mercer | CV37: Greene | CW37: Harmon | CY37: Fulton | DA37: Lancaster | DB37: Hand | DC37: Grainger | DD37: Comanche | DG37: Fluvanna | DI37: Morgan | DJ37: Jefferson
A38: 01061 | B38: Alabama | C38: Geneva | D38: Corn | E38: Bushel | F38: Irrigated | G38: Alabama_Geneva_Irrigated | Q38: 109.5 | R38: 168.4 | S38: 150.49 | T38: 199.73 | U38: 205.34 | V38: 198.56 | W38: 194.05 | X38: 187.13 | Y38: 181.9 | AD38: Alabama_Geneva_Irrigated | AE38: 01061 | AF38: Alabama | AG38: Geneva | AI38: Corn | AJ38: Bushel | AK38: Irrigated | AL38: 205.34 | AM38: 198.56 | AN38: 194.05 | AO38: 187.13 | AP38: 181.9 | AR38: 193.25 | AS38: 3.7 | AT38: 715.03 | AU38: 614.93 | AV38: 71.5 | AZ38: 164.5 | BA38: 3.7 | BB38: 608.65 | BC38: 523.44 | BD38: 60.87 | BJ38: 20% Price Decrease | BK38: 0.8 | BP38: Greene | BR38: Miller | BT38: Prowers | BX38: Cook | BZ38: Gallatin | CA38: Harrison | CB38: Dickinson | CC38: Franklin | CD38: Elliott | CE38: Pointe Coupee | CI38: Huron | CJ38: Itasca | CK38: Jefferson | CL38: Dent | CM38: Treasure | CN38: Fillmore | CS38: Ontario | CT38: Davie | CU38: Morton | CV38: Guernsey | CW38: Harper | CY38: Greene | DA38: Laurens | DB38: Hanson | DC38: Greene | DD38: Concho | DG38: Franklin | DI38: Nicholas | DJ38: Juneau
A39: 01061 | B39: Alabama | C39: Geneva | D39: Corn | E39: Bushel | F39: Nonirrigated | G39: Alabama_Geneva_Nonirrigated | H39: 71 | I39: 77 | J39: 77 | K39: 121 | L39: 139 | M39: 114 | N39: 124 | O39: 128 | P39: 130 | Q39: 109.5 | R39: 132.56 | S39: 108.31 | T39: 101.77 | U39: 84.21 | V39: 112.41 | W39: 124.42 | X39: 61.58 | Y39: 132.8 | AD39: Alabama_Geneva_Nonirrigated | AE39: 01061 | AF39: Alabama | AG39: Geneva | AI39: Corn | AJ39: Bushel | AK39: Nonirrigated | AL39: 84.21 | AM39: 112.41 | AN39: 124.42 | AO39: 61.58 | AP39: 132.8 | AR39: 107.01 | AS39: 3.7 | AT39: 395.94 | AU39: 340.51 | AV39: 39.59 | AZ39: 139.75 | BA39: 3.7 | BB39: 517.08 | BC39: 444.69 | BD39: 51.71 | BJ39: 25% Price Decrease | BK39: 0.75 | BP39: Hale | BR39: Mississippi | BT39: Pueblo | BX39: Crawford | BZ39: Greene | CA39: Hendricks | CB39: Dubuque | CC39: Geary | CD39: Estill | CE39: Rapides | CI39: Ingham | CJ39: Jackson | CK39: Jefferson Davis | CL39: Dunklin | CM39: Valley | CN39: Franklin | CS39: Orange, Rockland | CT39: Duplin | CU39: Mountrail | CV39: Hamilton | CW39: Haskell | CY39: Huntingdon | DA39: Lee | DB39: Harding | DC39: Grundy | DD39: Cooke | DG39: Frederick, Winchester City | DI39: Ohio | DJ39: Kenosha
A40: 01063 | B40: Alabama | C40: Greene | D40: Corn | E40: Bushel | F40: Nonirrigated | G40: Alabama_Greene_Nonirrigated | H40: 82 | I40: 93 | J40: 67 | K40: 124 | L40: 67 | M40: 134 | N40: 67 | O40: 67 | P40: 86 | Q40: 83.11111111 | R40: 88.44 | S40: 143.7 | T40: 84.56 | U40: 87.96 | V40: 95.3 | W40: 158.44 | X40: 132.08 | Y40: 172.72 | AD40: Alabama_Greene_Nonirrigated | AE40: 01063 | AF40: Alabama | AG40: Greene | AI40: Corn | AJ40: Bushel | AK40: Nonirrigated | AL40: 87.96 | AM40: 95.3 | AN40: 158.44 | AO40: 132.08 | AP40: 172.72 | AR40: 128.61 | AS40: 3.7 | AT40: 475.86 | AU40: 409.24 | AV40: 47.59 | AZ40: 184.15 | BA40: 3.7 | BB40: 681.36 | BC40: 585.97 | BD40: 68.14 | BJ40: 30% Price Decrease | BK40: 0.7 | BP40: Henry | BR40: Monroe | BT40: Rio Grande | BX40: Crisp | BZ40: Grundy | CA40: Henry | CB40: Emmet | CC40: Gove | CD40: Fayette | CE40: Red River | CI40: Ionia | CJ40: Kanabec | CK40: Jones | CL40: Franklin | CM40: Wheatland | CN40: Frontier | CS40: Orleans | CT40: Durham | CU40: Nelson | CV40: Hancock | CW40: Hughes | CY40: Indiana | DA40: Lexington | DB40: Hughes | DC40: Hamblen | DD40: Coryell | DG40: Giles | DI40: Pendleton | DJ40: Kewaunee
A41: 01065 | B41: Alabama | C41: Hale | D41: Corn | E41: Bushel | F41: Nonirrigated | G41: Alabama_Hale_Nonirrigated | H41: 76 | I41: 95 | J41: 85 | K41: 144 | L41: 125 | M41: 140 | N41: 138 | O41: 116 | P41: 97 | Q41: 133.6388889 | R41: 137.24 | S41: 150.2 | T41: 146.16 | U41: 131.14 | V41: 123.3 | W41: 161.32 | X41: 164.34 | Y41: 176.89 | AD41: Alabama_Hale_Nonirrigated | AE41: 01065 | AF41: Alabama | AG41: Hale | AI41: Corn | AJ41: Bushel | AK41: Nonirrigated | AL41: 131.14 | AM41: 123.3 | AN41: 161.32 | AO41: 164.34 | AP41: 176.89 | AR41: 152.27 | AS41: 3.7 | AT41: 563.4 | AU41: 484.52 | AV41: 56.34 | AZ41: 193.08 | BA41: 3.7 | BB41: 714.4 | BC41: 614.38 | BD41: 71.44 | BJ41: 35% Price Decrease | BK41: 0.65 | BP41: Houston | BR41: Nevada | BT41: Saguache | BX41: Dade | BZ41: Hamilton | CA41: Howard | CB41: Fayette | CC41: Graham | CD41: Fleming | CE41: Richland | CI41: Iosco | CJ41: Kandiyohi | CK41: Lafayette | CL41: Gasconade | CM41: Wibaux | CN41: Furnas | CS41: Oswego | CT41: Edgecombe | CU41: Oliver | CV41: Hardin | CW41: Jackson | CY41: Jefferson | DA41: Marion | DB41: Hutchinson | DC41: Hamilton | DD41: Crosby | DG41: Gloucester | DI41: Pleasants | DJ41: La Crosse
A42: 01067 | B42: Alabama | C42: Henry | D42: Corn | E42: Bushel | F42: Irrigated | G42: Alabama_Henry_Irrigated | Q42: 162.3 | R42: 193.18 | S42: 210.87 | T42: 184.87 | U42: 151.1 | V42: 165.22 | W42: 202.26 | X42: 214.08 | Y42: 161.51 | AD42: Alabama_Henry_Irrigated | AE42: 01067 | AF42: Alabama | AG42: Henry | AI42: Corn | AJ42: Bushel | AK42: Irrigated | AL42: 151.1 | AM42: 165.22 | AN42: 202.26 | AO42: 214.08 | AP42: 161.51 | AR42: 176.33 | AS42: 3.7 | AT42: 652.42 | AU42: 561.08 | AV42: 65.24 | AZ42: 164.27 | BA42: 3.7 | BB42: 607.8 | BC42: 522.71 | BD42: 60.78 | BJ42: 40% Price Decrease | BK42: 0.6 | BP42: Jackson | BR42: Perry | BT42: Sedgwick | BX42: Dawson | BZ42: Hancock | CA42: Huntington | CB42: Floyd | CC42: Grant | CD42: Franklin | CE42: St. Helena | CI42: Iron | CJ42: Kittson | CK42: Lamar | CL42: Gentry | CM42: Yellowstone | CN42: Gage | CS42: Otsego | CT42: Forsyth | CU42: Pembina | CV42: Harrison | CW42: Jefferson | CY42: Juniata | DA42: Marlboro | DB42: Hyde | DC42: Hancock | DD42: Culberson | DG42: Goochland | DI42: Pocahontas | DJ42: Lafayette
A43: 01067 | B43: Alabama | C43: Henry | D43: Corn | E43: Bushel | F43: Nonirrigated | G43: Alabama_Henry_Nonirrigated | H43: 57 | I43: 70 | J43: 58 | K43: 96 | L43: 105 | M43: 137 | N43: 144 | O43: 139 | P43: 133 | Q43: 162.3 | R43: 85.24 | S43: 92.29 | T43: 123.83 | U43: 60.87 | V43: 109.96 | W43: 95.99 | X43: 47.25 | Y43: 86.52 | AD43: Alabama_Henry_Nonirrigated | AE43: 01067 | AF43: Alabama | AG43: Henry | AI43: Corn | AJ43: Bushel | AK43: Nonirrigated | AL43: 60.87 | AM43: 109.96 | AN43: 95.99 | AO43: 47.25 | AP43: 86.52 | AR43: 81.13 | AS43: 3.7 | AT43: 300.18 | AU43: 258.15 | AV43: 30.02 | AZ43: 144.68 | BA43: 3.7 | BB43: 535.32 | BC43: 460.38 | BD43: 53.53 | BP43: Jefferson | BR43: Phillips | BT43: Washington | BX43: Decatur | BZ43: Hardin | CA43: Jackson | CB43: Franklin | CC43: Gray | CD43: Fulton | CE43: St. Landry | CI43: Isabella | CJ43: Koochiching | CK43: Lauderdale | CL43: Greene | CN43: Garden | CS43: Putnam | CT43: Franklin | CU43: Pierce | CV43: Henry | CW43: Johnston | CY43: Lackawanna | DA43: Newberry | DB43: Jackson | DC43: Hardeman | DD43: Dallam | DG43: Grayson, West Galax City | DI43: Preston | DJ43: Langlade
A44: 01069 | B44: Alabama | C44: Houston | D44: Corn | E44: Bushel | F44: Irrigated | G44: Alabama_Houston_Irrigated | Q44: 100 | R44: 142.84 | S44: 188.4 | T44: 219.55 | U44: 144.36 | V44: 205.36 | W44: 207.88 | X44: 195.74 | Y44: 194.61 | AD44: Alabama_Houston_Irrigated | AE44: 01069 | AF44: Alabama | AG44: Houston | AI44: Corn | AJ44: Bushel | AK44: Irrigated | AL44: 144.36 | AM44: 205.36 | AN44: 207.88 | AO44: 195.74 | AP44: 194.61 | AR44: 198.57 | AS44: 3.7 | AT44: 734.71 | AU44: 631.85 | AV44: 73.47 | AZ44: 177.82 | BA44: 3.7 | BB44: 657.93 | BC44: 565.82 | BD44: 65.79 | BP44: Lamar | BR44: Pike | BT44: Weld | BX44: Dodge | BZ44: Henderson | CA44: Jasper | CB44: Fremont | CC44: Greeley | CD44: Gallatin | CE44: St. Martin | CI44: Jackson | CJ44: Lac Qui Parle | CK44: Lawrence | CL44: Grundy | CN44: Garfield | CS44: Rensselaer | CT44: Gaston | CU44: Ramsey | CV44: Highland | CW44: Kay | CY44: Lancaster | DA44: Oconee | DB44: Jerauld | DC44: Hardin | DD44: Dallas | DG44: Greene | DI44: Putnam | DJ44: Lincoln
A45: 01069 | B45: Alabama | C45: Houston | D45: Corn | E45: Bushel | F45: Nonirrigated | G45: Alabama_Houston_Nonirrigated | H45: 70 | I45: 88 | J45: 67 | K45: 133 | L45: 127 | M45: 138 | N45: 158 | O45: 103 | P45: 164 | Q45: 100 | R45: 119.63 | S45: 105.65 | T45: 97.27 | U45: 97.55 | V45: 136.36 | W45: 111.38 | X45: 55.3 | Y45: 72.57 | AD45: Alabama_Houston_Nonirrigated | AE45: 01069 | AF45: Alabama | AG45: Houston | AI45: Corn | AJ45: Bushel | AK45: Nonirrigated | AL45: 97.55 | AM45: 136.36 | AN45: 111.38 | AO45: 55.3 | AP45: 72.57 | AR45: 93.83 | AS45: 3.7 | AT45: 347.17 | AU45: 298.57 | AV45: 34.72 | AZ45: 166.69 | BA45: 3.7 | BB45: 616.75 | BC45: 530.41 | BD45: 61.68 | BP45: Lauderdale | BR45: Poinsett | BT45: Yuma | BX45: Dooly | BZ45: Henry | CA45: Jay | CB45: Greene | CC45: Greenwood | CD45: Garrard | CE45: Tangipahoa | CI45: Kalamazoo | CJ45: Lake Of The Woods | CK45: Leake | CL45: Harrison | CN45: Gosper | CS45: St. Lawrence | CT45: Gates | CU45: Ransom | CV45: Hocking | CW45: Kingfisher | CY45: Lawrence | DA45: Orangeburg | DB45: Jones | DC45: Hawkins | DD45: Dawson | DG45: Greensville, Emporia City | DI45: Raleigh | DJ45: Manitowoc
A46: 01071 | B46: Alabama | C46: Jackson | D46: Corn | E46: Bushel | F46: Nonirrigated | G46: Alabama_Jackson_Nonirrigated | H46: 110 | I46: 108 | J46: 117 | K46: 110 | L46: 132 | M46: 150 | N46: 148 | O46: 80 | P46: 150 | Q46: 155.3 | R46: 151.01 | S46: 162.89 | T46: 155.01 | U46: 102.68 | V46: 156.49 | W46: 170.11 | X46: 135.71 | Y46: 148.35 | AD46: Alabama_Jackson_Nonirrigated | AE46: 01071 | AF46: Alabama | AG46: Jackson | AI46: Corn | AJ46: Bushel | AK46: Nonirrigated | AL46: 102.68 | AM46: 156.49 | AN46: 170.11 | AO46: 135.71 | AP46: 148.35 | AR46: 146.85 | AS46: 3.7 | AT46: 543.35 | AU46: 467.28 | AV46: 54.34 | AZ46: 126.47 | BA46: 3.7 | BB46: 467.94 | BC46: 402.43 | BD46: 46.79 | BP46: Lawrence | BR46: Pope | BX46: Dougherty | BZ46: Iroquois | CA46: Jefferson | CB46: Grundy | CC46: Hamilton | CD46: Grant | CE46: Tensas | CI46: Kalkaska | CJ46: Le Sueur | CK46: Lee | CL46: Henry | CN46: Greeley | CS46: Saratoga | CT46: Graham | CU46: Renville | CV46: Holmes | CW46: Kiowa | CY46: Lebanon | DA46: Pickens | DB46: Kingsbury | DC46: Haywood | DD46: Deaf Smith | DG46: Halifax | DI46: Randolph | DJ46: Marathon
A47: 01073 | B47: Alabama | C47: Jefferson | D47: Corn | E47: Bushel | F47: Nonirrigated | G47: Alabama_Jefferson_Nonirrigated | H47: 101 | I47: 109 | J47: 101 | K47: 119 | L47: 138 | M47: 150 | N47: 133 | O47: 85 | P47: 106 | Q47: 119.3611111 | R47: 138 | S47: 150 | T47: 133 | U47: 100.8 | V47: 106 | W47: 144 | X47: 130 | Y47: 145 | AD47: Alabama_Jefferson_Nonirrigated | AE47: 01073 | AF47: Alabama | AG47: Jefferson | AI47: Corn | AJ47: Bushel | AK47: Nonirrigated | AL47: 100.8 | AM47: 106 | AN47: 144 | AO47: 130 | AP47: 145 | AR47: 126.67 | AS47: 3.7 | AT47: 468.68 | AU47: 403.06 | AV47: 46.87 | AZ47: 163.23 | BA47: 3.7 | BB47: 603.95 | BC47: 519.4 | BD47: 60.4 | BP47: Lee | BR47: Prairie | BX47: Early | BZ47: Jackson | CA47: Jennings | CB47: Guthrie | CC47: Harper | CD47: Graves | CE47: Vermilion | CI47: Kent | CJ47: Lincoln | CK47: Leflore | CL47: Hickory | CN47: Hall | CS47: Schenectady | CT47: Granville | CU47: Richland | CV47: Huron | CW47: Le Flore | CY47: Lehigh | DA47: Richland | DB47: Lake | DC47: Henderson | DD47: Delta | DG47: Hanover | DI47: Ritchie | DJ47: Marinette
A48: 01075 | B48: Alabama | C48: Lamar | D48: Corn | E48: Bushel | F48: Nonirrigated | G48: Alabama_Lamar_Nonirrigated | H48: 75 | I48: 109 | J48: 101 | K48: 113 | L48: 125 | M48: 150 | N48: 133 | O48: 79 | P48: 83 | Q48: 111.1388889 | R48: 139.2 | S48: 161.75 | T48: 142.4 | U48: 95.7 | V48: 92.75 | W48: 151.8 | X48: 141.29 | Y48: 154.9 | AD48: Alabama_Lamar_Nonirrigated | AE48: 01075 | AF48: Alabama | AG48: Lamar | AI48: Corn | AJ48: Bushel | AK48: Nonirrigated | AL48: 95.7 | AM48: 92.75 | AN48: 151.8 | AO48: 141.29 | AP48: 154.9 | AR48: 129.6 | AS48: 3.7 | AT48: 479.52 | AU48: 412.39 | AV48: 47.95 | AZ48: 145.33 | BA48: 3.7 | BB48: 537.72 | BC48: 462.44 | BD48: 53.77 | BP48: Limestone | BR48: Pulaski | BX48: Echols | BZ48: Jasper | CA48: Johnson | CB48: Hamilton | CC48: Harvey | CD48: Grayson | CE48: Washington | CI48: Lake | CJ48: Lyon | CK48: Lincoln | CL48: Holt | CN48: Hamilton | CS48: Schoharie | CT48: Greene | CU48: Rolette | CV48: Jackson | CW48: Lincoln | CY48: Luzerne | DA48: Saluda | DB48: Lawrence | DC48: Henry | DD48: Denton | DG48: Henrico, Richmond City | DI48: Roane | DJ48: Marquette
A49: 01077 | B49: Alabama | C49: Lauderdale | D49: Corn | E49: Bushel | F49: Nonirrigated | G49: Alabama_Lauderdale_Nonirrigated | H49: 130 | I49: 127 | J49: 124 | K49: 76 | L49: 156 | M49: 184 | N49: 162 | O49: 107 | P49: 178 | Q49: 165.3 | R49: 187.58 | S49: 203.32 | T49: 174.49 | U49: 124.66 | V49: 195.45 | W49: 179.11 | X49: 189.81 | Y49: 176.36 | AD49: Alabama_Lauderdale_Nonirrigated | AE49: 01077 | AF49: Alabama | AG49: Lauderdale | AI49: Corn | AJ49: Bushel | AK49: Nonirrigated | AL49: 124.66 | AM49: 195.45 | AN49: 179.11 | AO49: 189.81 | AP49: 176.36 | AR49: 181.76 | AS49: 3.7 | AT49: 672.51 | AU49: 578.36 | AV49: 67.25 | AZ49: 139.58 | BA49: 3.7 | BB49: 516.45 | BC49: 444.15 | BD49: 51.65 | BP49: Lowndes | BR49: Randolph | BX49: Effingham | BZ49: Jefferson | CA49: Knox | CB49: Hancock | CC49: Haskell | CD49: Green | CE49: Webster | CI49: Lapeer | CJ49: Mcleod | CK49: Lowndes | CL49: Howard | CN49: Harlan | CS49: Schuyler | CT49: Guilford | CU49: Sargent | CV49: Jefferson | CW49: Logan | CY49: Lycoming | DA49: Spartanburg | DB49: Lincoln | DC49: Hickman | DD49: Dewitt | DG49: Henry, Martinsville City | DI49: Summers | DJ49: Menominee
A50: 01079 | B50: Alabama | C50: Lawrence | D50: Corn | E50: Bushel | F50: Irrigated | G50: Alabama_Lawrence_Irrigated | Q50: 176.9 | R50: 215.18 | S50: 226.09 | T50: 191.02 | U50: 197.36 | V50: 236.82 | W50: 218.36 | X50: 226.44 | Y50: 216.24 | AD50: Alabama_Lawrence_Irrigated | AE50: 01079 | AF50: Alabama | AG50: Lawrence | AI50: Corn | AJ50: Bushel | AK50: Irrigated | AL50: 197.36 | AM50: 236.82 | AN50: 218.36 | AO50: 226.44 | AP50: 216.24 | AR50: 220.35 | AS50: 3.7 | AT50: 815.3 | AU50: 701.16 | AV50: 81.53 | AZ50: 178.63 | BA50: 3.7 | BB50: 660.93 | BC50: 568.4 | BD50: 66.09 | BP50: Macon | BR50: St. Francis | BX50: Emanuel | BZ50: Jersey | CA50: Kosciusko | CB50: Hardin | CC50: Hodgeman | CD50: Greenup | CE50: West Baton Rouge | CI50: Leelanau | CJ50: Mahnomen | CK50: Madison | CL50: Howell | CN50: Hayes | CS50: Seneca | CT50: Halifax | CU50: Sheridan | CV50: Knox | CW50: Love | CY50: Mckean | DA50: Sumter | DB50: Lyman | DC50: Houston | DD50: Donley | DG50: Highland | DI50: Taylor | DJ50: Milwaukee
A51: 01079 | B51: Alabama | C51: Lawrence | D51: Corn | E51: Bushel | F51: Nonirrigated | G51: Alabama_Lawrence_Nonirrigated | H51: 112 | I51: 145 | J51: 133 | K51: 79 | L51: 174 | M51: 187 | N51: 140 | O51: 117 | P51: 204 | Q51: 176.9 | R51: 196.91 | S51: 204.9 | T51: 141.36 | U51: 122.87 | V51: 207.87 | W51: 185.84 | X51: 170.29 | Y51: 175.35 | AD51: Alabama_Lawrence_Nonirrigated | AE51: 01079 | AF51: Alabama | AG51: Lawrence | AI51: Corn | AJ51: Bushel | AK51: Nonirrigated | AL51: 122.87 | AM51: 207.87 | AN51: 185.84 | AO51: 170.29 | AP51: 175.35 | AR51: 177.16 | AS51: 3.7 | AT51: 655.49 | AU51: 563.72 | AV51: 65.55 | AZ51: 166.12 | BA51: 3.7 | BB51: 614.64 | BC51: 528.59 | BD51: 61.46 | BP51: Madison | BR51: Sebastian | BX51: Evans | BZ51: Jo Daviess | CA51: Lake | CB51: Harrison | CC51: Jackson | CD51: Hancock | CE51: West Carroll | CI51: Lenawee | CJ51: Marshall | CK51: Marion | CL51: Iron | CN51: Hitchcock | CS51: Steuben | CT51: Harnett | CU51: Sioux | CV51: Lake | CW51: Mcclain | CY51: Mercer | DA51: Union | DB51: Mccook | DC51: Humphreys | DD51: Ellis | DG51: Isle Of Wight | DI51: Tucker | DJ51: Monroe
A52: 01081 | B52: Alabama | C52: Lee | D52: Corn | E52: Bushel | F52: Nonirrigated | G52: Alabama_Lee_Nonirrigated | H52: 101 | I52: 109 | J52: 101 | K52: 119 | L52: 138 | M52: 150 | N52: 133 | O52: 100 | R52: 138 | S52: 150 | T52: 133 | U52: 100 | V52: 117 | W52: 132 | X52: 135.44 | Y52: 113.71 | AD52: Alabama_Lee_Nonirrigated | AE52: 01081 | AF52: Alabama | AG52: Lee | AI52: Corn | AJ52: Bushel | AK52: Nonirrigated | AL52: 100 | AM52: 117 | AN52: 132 | AO52: 135.44 | AP52: 113.71 | AR52: 120.9 | AS52: 3.7 | AT52: 447.33 | AU52: 384.7 | AV52: 44.73 | AZ52: 161.94 | BA52: 3.7 | BB52: 599.18 | BC52: 515.29 | BD52: 59.92 | BP52: Marengo | BR52: Sevier | BX52: Fannin | BZ52: Johnson | CA52: Laporte | CB52: Henry | CC52: Jefferson | CD52: Hardin | CE52: Winn | CI52: Livingston | CJ52: Martin | CK52: Marshall | CL52: Jackson | CN52: Holt | CS52: Suffolk, Nassau | CT52: Haywood | CU52: Slope | CV52: Lawrence | CW52: Mccurtain | CY52: Mifflin | DA52: Williamsburg | DB52: Mcpherson | DC52: Jackson | DD52: El Paso | DG52: James City, Williamsburg City | DI52: Tyler | DJ52: Oconto
A53: 01083 | B53: Alabama | C53: Limestone | D53: Corn | E53: Bushel | F53: Irrigated | G53: Alabama_Limestone_Irrigated | Q53: 183.2 | R53: 223.58 | S53: 240.36 | T53: 223 | U53: 213.72 | V53: 257.39 | W53: 239.88 | X53: 242.29 | Y53: 226.07 | AD53: Alabama_Limestone_Irrigated | AE53: 01083 | AF53: Alabama | AG53: Limestone | AI53: Corn | AJ53: Bushel | AK53: Irrigated | AL53: 213.72 | AM53: 257.39 | AN53: 239.88 | AO53: 242.29 | AP53: 226.07 | AR53: 236.08 | AS53: 3.7 | AT53: 873.5 | AU53: 751.21 | AV53: 87.35 | AZ53: 183.76 | BA53: 3.7 | BB53: 679.91 | BC53: 584.72 | BD53: 67.99 | BP53: Marion | BR53: Sharp | BX53: Fayette | BZ53: Kane | CA53: Lawrence | CB53: Howard | CC53: Jewell | CD53: Harrison | CI53: Luce | CJ53: Meeker | CK53: Monroe | CL53: Jasper | CN53: Howard | CS53: Sullivan | CT53: Henderson | CU53: Stark | CV53: Licking | CW53: McIntosh | CY53: Monroe | DA53: York | DB53: Marshall | DC53: Jefferson | DD53: Falls | DG53: King And Queen | DI53: Upshur | DJ53: Oneida
A54: 01083 | B54: Alabama | C54: Limestone | D54: Corn | E54: Bushel | F54: Nonirrigated | G54: Alabama_Limestone_Nonirrigated | H54: 140 | I54: 147 | J54: 128 | K54: 81 | L54: 161 | M54: 182 | N54: 171 | O54: 113 | P54: 199 | Q54: 183.2 | R54: 190.92 | S54: 198.12 | T54: 163.53 | U54: 103.54 | V54: 209.52 | W54: 178.78 | X54: 169.42 | Y54: 177.76 | AD54: Alabama_Limestone_Nonirrigated | AE54: 01083 | AF54: Alabama | AG54: Limestone | AI54: Corn | AJ54: Bushel | AK54: Nonirrigated | AL54: 103.54 | AM54: 209.52 | AN54: 178.78 | AO54: 169.42 | AP54: 177.76 | AR54: 175.32 | AS54: 3.7 | AT54: 648.68 | AU54: 557.86 | AV54: 64.87 | AZ54: 189.19 | BA54: 3.7 | BB54: 700 | BC54: 602 | BD54: 70 | BP54: Marshall | BR54: White | BX54: Floyd | BZ54: Kankakee | CA54: Madison | CB54: Humboldt | CC54: Johnson | CD54: Hart | CI54: Mackinac | CJ54: Mille Lacs | CK54: Montgomery | CL54: Jefferson | CN54: Jefferson | CS54: Tioga | CT54: Hertford | CU54: Steele | CV54: Logan | CW54: Major | CY54: Montgomery | DB54: Meade | DC54: Johnson | DD54: Fannin | DG54: King George | DI54: Wayne | DJ54: Outagamie
A55: 01085 | B55: Alabama | C55: Lowndes | D55: Corn | E55: Bushel | F55: Nonirrigated | G55: Alabama_Lowndes_Nonirrigated | H55: 80 | I55: 91 | J55: 73 | K55: 122 | L55: 122 | M55: 70 | N55: 147 | O55: 128 | R55: 134.3 | S55: 119.75 | T55: 134.2 | U55: 156.68 | V55: 141.5 | W55: 135.6 | X55: 133.7 | Y55: 145.27 | AD55: Alabama_Lowndes_Nonirrigated | AE55: 01085 | AF55: Alabama | AG55: Lowndes | AI55: Corn | AJ55: Bushel | AK55: Nonirrigated | AL55: 156.68 | AM55: 141.5 | AN55: 135.6 | AO55: 133.7 | AP55: 145.27 | AR55: 140.79 | AS55: 3.7 | AT55: 520.92 | AU55: 447.99 | AV55: 52.09 | AZ55: 188.99 | BA55: 3.7 | BB55: 699.26 | BC55: 601.36 | BD55: 69.93 | BP55: Mobile | BR55: Woodruff | BX55: Franklin | BZ55: Kendall | CA55: Marion | CB55: Ida | CC55: Kearny | CD55: Henderson | CI55: Macomb | CJ55: Morrison | CK55: Newton | CL55: Johnson | CN55: Johnson | CS55: Tompkins | CT55: Hoke | CU55: Stutsman | CV55: Lorain | CW55: Marshall | CY55: Montour | DB55: Mellette | DC55: Knox | DD55: Fayette | DG55: King William | DI55: Webster | DJ55: Ozaukee
A56: 01087 | B56: Alabama | C56: Macon | D56: Corn | E56: Bushel | F56: Nonirrigated | G56: Alabama_Macon_Nonirrigated | H56: 102 | I56: 86 | J56: 69 | K56: 124 | L56: 125 | M56: 134 | N56: 138 | O56: 124 | P56: 151 | Q56: 155.1666667 | R56: 135.38 | S56: 142.65 | T56: 144.92 | U56: 168.74 | V56: 162.85 | W56: 160.28 | X56: 175.91 | Y56: 169.91 | AD56: Alabama_Macon_Nonirrigated | AE56: 01087 | AF56: Alabama | AG56: Macon | AI56: Corn | AJ56: Bushel | AK56: Nonirrigated | AL56: 168.74 | AM56: 162.85 | AN56: 160.28 | AO56: 175.91 | AP56: 169.91 | AR56: 167.17 | AS56: 3.7 | AT56: 618.53 | AU56: 531.94 | AV56: 61.85 | AZ56: 150.43 | BA56: 3.7 | BB56: 556.59 | BC56: 478.67 | BD56: 55.66 | BP56: Monroe | BR56: Yell | BX56: Gilmer | BZ56: Knox | CA56: Marshall | CB56: Iowa | CC56: Kingman | CD56: Henry | CI56: Manistee | CJ56: Mower | CK56: Noxubee | CL56: Knox | CN56: Kearney | CS56: Ulster | CT56: Hyde | CU56: Towner | CV56: East Lucas | CW56: Mayes | CY56: Northampton | DB56: Miner | DC56: Lake | DD56: Fisher | DG56: Lancaster | DI56: Wirt | DJ56: Pepin
A57: 01089 | B57: Alabama | C57: Madison | D57: Corn | E57: Bushel | F57: Irrigated | G57: Alabama_Madison_Irrigated | Q57: 159.8 | R57: 231.2 | S57: 222.95 | T57: 230.58 | U57: 225 | V57: 252.7 | W57: 241.03 | X57: 239.88 | Y57: 231.67 | AD57: Alabama_Madison_Irrigated | AE57: 01089 | AF57: Alabama | AG57: Madison | AI57: Corn | AJ57: Bushel | AK57: Irrigated | AL57: 225 | AM57: 252.7 | AN57: 241.03 | AO57: 239.88 | AP57: 231.67 | AR57: 237.53 | AS57: 3.7 | AT57: 878.86 | AU57: 755.82 | AV57: 87.89 | AZ57: 182.45 | BA57: 3.7 | BB57: 675.07 | BC57: 580.56 | BD57: 67.51 | BP57: Montgomery | BX57: Glascock | BZ57: Lake | CA57: Martin | CB57: Jackson | CC57: Kiowa | CD57: Hickman | CI57: Marquette | CJ57: Murray | CK57: Oktibbeha | CL57: Laclede | CN57: Keith | CS57: Warren | CT57: Iredell | CU57: Traill | CV57: West Lucas | CW57: Murray | CY57: Northumberland | DB57: Minnehaha | DC57: Lauderdale | DD57: Floyd | DG57: Lee | DI57: Wood | DJ57: Pierce
A58: 01089 | B58: Alabama | C58: Madison | D58: Corn | E58: Bushel | F58: Nonirrigated | G58: Alabama_Madison_Nonirrigated | H58: 127 | I58: 114 | J58: 148 | K58: 111 | L58: 162 | M58: 169 | N58: 173 | O58: 151 | P58: 177 | Q58: 159.8 | R58: 181.4 | S58: 182.37 | T58: 161.46 | U58: 129.64 | V58: 189.75 | W58: 172.98 | X58: 172.48 | Y58: 174.24 | AD58: Alabama_Madison_Nonirrigated | AE58: 01089 | AF58: Alabama | AG58: Madison | AI58: Corn | AJ58: Bushel | AK58: Nonirrigated | AL58: 129.64 | AM58: 189.75 | AN58: 172.98 | AO58: 172.48 | AP58: 174.24 | AR58: 173.23 | AS58: 3.7 | AT58: 640.95 | AU58: 551.22 | AV58: 64.1 | AZ58: 144.28 | BA58: 3.7 | BB58: 533.84 | BC58: 459.1 | BD58: 53.38 | BP58: Morgan | BX58: Gordon | BZ58: Lasalle | CA58: Miami | CB58: Jasper | CC58: Labette | CD58: Hopkins | CI58: Mason | CJ58: Nicollet | CK58: Panola | CL58: Lafayette | CN58: Keya Paha | CS58: Washington | CT58: Jackson | CU58: Walsh | CV58: Madison | CW58: Muskogee | CY58: Perry | DB58: Moody | DC58: Lawrence | DD58: Fort Bend | DG58: Loudoun | DJ58: Polk
A59: 01091 | B59: Alabama | C59: Marengo | D59: Corn | E59: Bushel | F59: Nonirrigated | G59: Alabama_Marengo_Nonirrigated | H59: 82 | I59: 93 | J59: 69 | K59: 65 | L59: 119 | M59: 134 | N59: 136 | O59: 137 | P59: 84 | Q59: 130.6944444 | R59: 109.97 | S59: 142.9 | T59: 143.52 | U59: 91.46 | V59: 93.55 | W59: 158.64 | X59: 118.73 | Y59: 155.39 | AD59: Alabama_Marengo_Nonirrigated | AE59: 01091 | AF59: Alabama | AG59: Marengo | AI59: Corn | AJ59: Bushel | AK59: Nonirrigated | AL59: 91.46 | AM59: 93.55 | AN59: 158.64 | AO59: 118.73 | AP59: 155.39 | AR59: 122.56 | AS59: 3.7 | AT59: 453.47 | AU59: 389.98 | AV59: 45.35 | AZ59: 170.62 | BA59: 3.7 | BB59: 631.29 | BC59: 542.91 | BD59: 63.13 | BP59: Perry | BX59: Grady | BZ59: Lawrence | CA59: Monroe | CB59: Jefferson | CC59: Lane | CD59: Jackson | CI59: Mecosta | CJ59: Nobles | CK59: Pearl River | CL59: Lawrence | CN59: Kimball | CS59: Wayne | CT59: Johnston | CU59: Ward | CV59: Mahoning | CW59: Noble | CY59: Pike | DB59: Pennington | DC59: Lewis | DD59: Frio | DG59: Louisa | DJ59: Portage
A60: 01093 | B60: Alabama | C60: Marion | D60: Corn | E60: Bushel | F60: Nonirrigated | G60: Alabama_Marion_Nonirrigated | H60: 99 | I60: 111 | J60: 114 | K60: 97 | L60: 151 | M60: 165 | N60: 144 | O60: 102 | P60: 164 | Q60: 157.5277778 | R60: 167.2 | S60: 178.65 | T60: 166.99 | U60: 137.29 | V60: 167.7 | W60: 164.89 | X60: 155.36 | Y60: 161.6 | AD60: Alabama_Marion_Nonirrigated | AE60: 01093 | AF60: Alabama | AG60: Marion | AI60: Corn | AJ60: Bushel | AK60: Nonirrigated | AL60: 137.29 | AM60: 167.7 | AN60: 164.89 | AO60: 155.36 | AP60: 161.6 | AR60: 160.62 | AS60: 3.7 | AT60: 594.29 | AU60: 511.09 | AV60: 59.43 | AZ60: 170.91 | BA60: 3.7 | BB60: 632.37 | BC60: 543.84 | BD60: 63.24 | BP60: Pickens | BX60: Greene | BZ60: Lee | CA60: Montgomery | CB60: Johnson | CC60: Leavenworth | CD60: Jefferson | CI60: Menominee | CJ60: Norman | CK60: Perry | CL60: Lewis | CN60: Knox | CS60: Wyoming | CT60: Jones | CU60: Wells | CV60: Marion | CW60: Nowata | CY60: Potter | DB60: Perkins | DC60: Lincoln | DD60: Gaines | DG60: Lunenburg | DJ60: Price
A61: 01095 | B61: Alabama | C61: Marshall | D61: Corn | E61: Bushel | F61: Nonirrigated | G61: Alabama_Marshall_Nonirrigated | H61: 77 | I61: 105 | J61: 132 | K61: 87 | L61: 121 | M61: 145 | N61: 146 | O61: 94 | P61: 156 | Q61: 148.8611111 | R61: 172.28 | S61: 179 | T61: 153 | U61: 126.18 | V61: 179.39 | W61: 193.2 | X61: 143.6 | Y61: 157.92 | AD61: Alabama_Marshall_Nonirrigated | AE61: 01095 | AF61: Alabama | AG61: Marshall | AI61: Corn | AJ61: Bushel | AK61: Nonirrigated | AL61: 126.18 | AM61: 179.39 | AN61: 193.2 | AO61: 143.6 | AP61: 157.92 | AR61: 160.3 | AS61: 3.7 | AT61: 593.11 | AU61: 510.07 | AV61: 59.31 | AZ61: 190.54 | BA61: 3.7 | BB61: 705 | BC61: 606.3 | BD61: 70.5 | BP61: Pike | BX61: Gwinnett | BZ61: Livingston | CA61: Morgan | CB61: Jones | CC61: Lincoln | CD61: Jessamine | CI61: Midland | CJ61: Olmsted | CK61: Pike | CL61: Lincoln | CN61: Lancaster | CS61: Yates | CT61: Lee | CU61: Williams | CV61: Medina | CW61: Okfuskee | CY61: Schuylkill | DB61: Potter | DC61: Loudon | DD61: Gillespie | DG61: Madison | DJ61: Racine
A62: 01097 | B62: Alabama | C62: Mobile | D62: Corn | E62: Bushel | F62: Nonirrigated | G62: Alabama_Mobile_Nonirrigated | H62: 95 | I62: 130 | J62: 89 | K62: 117 | L62: 165 | M62: 135 | N62: 130 | O62: 111 | P62: 107 | Q62: 127.4722222 | R62: 172.4 | S62: 141.25 | T62: 135 | U62: 117.24 | V62: 112.2 | W62: 149.16 | X62: 133.12 | Y62: 132.08 | AD62: Alabama_Mobile_Nonirrigated | AE62: 01097 | AF62: Alabama | AG62: Mobile | AI62: Corn | AJ62: Bushel | AK62: Nonirrigated | AL62: 117.24 | AM62: 112.2 | AN62: 149.16 | AO62: 133.12 | AP62: 132.08 | AR62: 127.48 | AS62: 3.7 | AT62: 471.68 | AU62: 405.64 | AV62: 47.17 | AZ62: 136.13 | BA62: 3.7 | BB62: 503.68 | BC62: 433.16 | BD62: 50.37 | BP62: Randolph | BX62: Habersham | BZ62: Logan | CA62: Newton | CB62: Keokuk | CC62: Linn | CD62: Johnson | CI62: Missaukee | CJ62: East Otter Tail | CK62: Pontotoc | CL62: Linn | CN62: Lincoln | CT62: Lenoir | CV62: Meigs | CW62: Oklahoma | CY62: Snyder | DB62: Roberts | DC62: Mcminn | DD62: Goliad | DG62: Mathews | DJ62: Richland
A63: 01099 | B63: Alabama | C63: Monroe | D63: Corn | E63: Bushel | F63: Nonirrigated | G63: Alabama_Monroe_Nonirrigated | H63: 74 | I63: 92 | J63: 64 | K63: 118 | L63: 125 | M63: 149 | N63: 167 | O63: 122 | P63: 172 | Q63: 157.6 | R63: 145.87 | S63: 118.68 | T63: 120.27 | U63: 125.18 | V63: 163.68 | W63: 146.96 | X63: 116.17 | Y63: 153.17 | AD63: Alabama_Monroe_Nonirrigated | AE63: 01099 | AF63: Alabama | AG63: Monroe | AI63: Corn | AJ63: Bushel | AK63: Nonirrigated | AL63: 125.18 | AM63: 163.68 | AN63: 146.96 | AO63: 116.17 | AP63: 153.17 | AR63: 141.77 | AS63: 3.7 | AT63: 524.55 | AU63: 451.11 | AV63: 52.46 | AZ63: 181.27 | BA63: 3.7 | BB63: 670.7 | BC63: 576.8 | BD63: 67.07 | BP63: Russell | BX63: Hall | BZ63: Mcdonough | CA63: Noble | CB63: Kossuth | CC63: Logan | CD63: Kenton | CI63: Monroe | CJ63: West Otter Tail | CK63: Prentiss | CL63: Livingston | CN63: Logan | CT63: Lincoln | CV63: Mercer | CW63: Okmulgee | CY63: Somerset | DB63: Sanborn | DC63: Mcnairy | DD63: Gonzales | DG63: Mecklenburg | DJ63: Rock
A64: 01101 | B64: Alabama | C64: Montgomery | D64: Corn | E64: Bushel | F64: Nonirrigated | G64: Alabama_Montgomery_Nonirrigated | H64: 79 | I64: 111 | J64: 80 | K64: 124 | L64: 134 | M64: 119 | N64: 166 | O64: 125 | P64: 155 | Q64: 164.1944444 | R64: 130.9 | S64: 119.01 | T64: 166.31 | U64: 125.28 | V64: 154.55 | W64: 150.63 | X64: 89.98 | Y64: 160.2 | AD64: Alabama_Montgomery_Nonirrigated | AE64: 01101 | AF64: Alabama | AG64: Montgomery | AI64: Corn | AJ64: Bushel | AK64: Nonirrigated | AL64: 125.28 | AM64: 154.55 | AN64: 150.63 | AO64: 89.98 | AP64: 160.2 | AR64: 143.49 | AS64: 3.7 | AT64: 530.91 | AU64: 456.58 | AV64: 53.09 | AZ64: 133.8 | BA64: 3.7 | BB64: 495.06 | BC64: 425.75 | BD64: 49.51 | BP64: St. Clair | BX64: Hancock | BZ64: Mchenry | CA64: Ohio | CB64: Lee | CC64: Lyon | CD64: Knox | CI64: Montcalm | CJ64: Pennington | CK64: Quitman | CL64: McDonald | CN64: Loup | CT64: Mcdowell | CV64: Miami | CW64: Osage | CY64: Sullivan | DB64: Oglala Lakota | DC64: Macon | DD64: Gray | DG64: Middlesex | DJ64: Rusk
A65: 01103 | B65: Alabama | C65: Morgan | D65: Corn | E65: Bushel | F65: Nonirrigated | G65: Alabama_Morgan_Nonirrigated | H65: 124 | I65: 102 | J65: 113 | K65: 67 | L65: 130 | M65: 173 | N65: 142 | O65: 101 | P65: 183 | Q65: 176.9 | R65: 164.89 | S65: 186.27 | T65: 153.54 | U65: 121.75 | V65: 179.15 | W65: 184.25 | X65: 143.28 | Y65: 177.21 | AD65: Alabama_Morgan_Nonirrigated | AE65: 01103 | AF65: Alabama | AG65: Morgan | AI65: Corn | AJ65: Bushel | AK65: Nonirrigated | AL65: 121.75 | AM65: 179.15 | AN65: 184.25 | AO65: 143.28 | AP65: 177.21 | AR65: 166.55 | AS65: 3.7 | AT65: 616.24 | AU65: 529.97 | AV65: 61.62 | AZ65: 167.54 | BA65: 3.7 | BB65: 619.9 | BC65: 533.11 | BD65: 61.99 | BP65: Shelby | BX65: Haralson | BZ65: Mclean | CA65: Orange | CB65: Linn | CC65: Mcpherson | CD65: Larue | CI65: Montmorency | CJ65: Pine | CK65: Rankin | CL65: Macon | CN65: Mcpherson | CT65: Macon | CV65: Monroe | CW65: Ottawa | CY65: Susquehanna | DB65: Spink | DC65: Madison | DD65: Grayson | DG65: Montgomery, Radford City | DJ65: St. Croix
A66: 01105 | B66: Alabama | C66: Perry | D66: Corn | E66: Bushel | F66: Nonirrigated | G66: Alabama_Perry_Nonirrigated | H66: 65 | I66: 98 | J66: 65 | K66: 127 | L66: 130 | M66: 146 | N66: 128 | O66: 124 | P66: 122 | Q66: 145.2 | R66: 124.42 | S66: 150.21 | T66: 128.4 | U66: 113.78 | V66: 144.83 | W66: 99.83 | X66: 103.28 | Y66: 143.28 | AD66: Alabama_Perry_Nonirrigated | AE66: 01105 | AF66: Alabama | AG66: Perry | AI66: Corn | AJ66: Bushel | AK66: Nonirrigated | AL66: 113.78 | AM66: 144.83 | AN66: 99.83 | AO66: 103.28 | AP66: 143.28 | AR66: 120.11 | AS66: 3.7 | AT66: 444.41 | AU66: 382.19 | AV66: 44.44 | AZ66: 159.79 | BA66: 3.7 | BB66: 591.22 | BC66: 508.45 | BD66: 59.12 | BP66: Sumter | BX66: Hart | BZ66: Macon | CA66: Owen | CB66: Louisa | CC66: Marion | CD66: Laurel | CI66: Muskegon | CJ66: Pipestone | CK66: Scott | CL66: Madison | CN66: Madison | CT66: Madison | CV66: Montgomery | CW66: Pawnee | CY66: Tioga | DB66: Stanley | DC66: Marion | DD66: Guadalupe | DG66: Nelson | DJ66: Sauk
A67: 01107 | B67: Alabama | C67: Pickens | D67: Corn | E67: Bushel | F67: Nonirrigated | G67: Alabama_Pickens_Nonirrigated | H67: 85 | I67: 117 | J67: 108 | K67: 138 | L67: 138 | M67: 150 | N67: 175 | O67: 182 | P67: 199 | Q67: 209.9722222 | R67: 151.56 | S67: 161.3 | T67: 184.44 | U67: 195.18 | V67: 209.81 | W67: 214.91 | X67: 170.59 | Y67: 179.89 | AD67: Alabama_Pickens_Nonirrigated | AE67: 01107 | AF67: Alabama | AG67: Pickens | AI67: Corn | AJ67: Bushel | AK67: Nonirrigated | AL67: 195.18 | AM67: 209.81 | AN67: 214.91 | AO67: 170.59 | AP67: 179.89 | AR67: 194.96 | AS67: 3.7 | AT67: 721.35 | AU67: 620.36 | AV67: 72.14 | AZ67: 145.4 | BA67: 3.7 | BB67: 537.98 | BC67: 462.66 | BD67: 53.8 | BP67: Talladega | BX67: Heard | BZ67: Macoupin | CA67: Parke | CB67: Lucas | CC67: Marshall | CD67: Lawrence | CI67: Newaygo | CJ67: East Polk | CK67: Sharkey | CL67: Maries | CN67: Merrick | CT67: Martin | CV67: Morgan | CW67: Payne | CY67: Union | DB67: Sully | DC67: Marshall | DD67: Hale | DG67: New Kent | DJ67: Sawyer
A68: 01109 | B68: Alabama | C68: Pike | D68: Corn | E68: Bushel | F68: Irrigated | G68: Alabama_Pike_Irrigated | R68: 199.4 | S68: 201.05 | T68: 237.44 | U68: 218.35 | V68: 218.05 | W68: 217.64 | X68: 135.23 | Y68: 219.77 | AD68: Alabama_Pike_Irrigated | AE68: 01109 | AF68: Alabama | AG68: Pike | AI68: Corn | AJ68: Bushel | AK68: Irrigated | AL68: 218.35 | AM68: 218.05 | AN68: 217.64 | AO68: 135.23 | AP68: 219.77 | AR68: 218.01 | AS68: 3.7 | AT68: 806.64 | AU68: 693.71 | AV68: 80.66 | AZ68: 169.82 | BA68: 3.7 | BB68: 628.33 | BC68: 540.36 | BD68: 62.83 | BP68: Tallapoosa | BX68: Henry | BZ68: Madison | CA68: Perry | CB68: Lyon | CC68: Meade | CD68: Lewis | CI68: Oakland | CJ68: West Polk | CK68: Simpson | CL68: Marion | CN68: Morrill | CT68: Mecklenburg | CV68: Morrow | CW68: Pittsburg | CY68: Venango | DB68: Todd | DC68: Maury | DD68: Hamilton | DG68: Northampton | DJ68: Shawano
A69: 01109 | B69: Alabama | C69: Pike | D69: Corn | E69: Bushel | F69: Nonirrigated | G69: Alabama_Pike_Nonirrigated | H69: 76 | I69: 70 | J69: 50 | K69: 106 | L69: 91 | M69: 102 | N69: 81 | O69: 124 | P69: 124 | Q69: 125.8888889 | R69: 106.28 | S69: 85.6 | T69: 53.36 | U69: 99.11 | V69: 126.68 | W69: 128.79 | X69: 47.72 | Y69: 115.85 | AD69: Alabama_Pike_Nonirrigated | AE69: 01109 | AF69: Alabama | AG69: Pike | AI69: Corn | AJ69: Bushel | AK69: Nonirrigated | AL69: 99.11 | AM69: 126.68 | AN69: 128.79 | AO69: 47.72 | AP69: 115.85 | AR69: 113.88 | AS69: 3.7 | AT69: 421.36 | AU69: 362.37 | AV69: 42.14 | AZ69: 166.45 | BA69: 3.7 | BB69: 615.87 | BC69: 529.65 | BD69: 61.59 | BP69: Tuscaloosa | BX69: Houston | BZ69: Marion | CA69: Pike | CB69: Madison | CC69: Miami | CD69: Lincoln | CI69: Oceana | CJ69: Pope | CK69: Smith | CL69: Mercer | CN69: Nance | CT69: Mitchell | CV69: Muskingum | CW69: Pontotoc | CY69: Warren | DB69: Tripp | DC69: Meigs | DD69: Hansford | DG69: Northumberland | DJ69: Sheboygan
A70: 01111 | B70: Alabama | C70: Randolph | D70: Corn | E70: Bushel | F70: Nonirrigated | G70: Alabama_Randolph_Nonirrigated | H70: 101 | I70: 75 | J70: 67 | K70: 80 | L70: 103 | M70: 99 | N70: 94 | O70: 97 | P70: 92 | Q70: 101.5 | R70: 108.2 | S70: 107.9 | T70: 111.44 | U70: 87.28 | V70: 86.28 | W70: 80.1 | X70: 89.81 | Y70: 74.55 | AD70: Alabama_Randolph_Nonirrigated | AE70: 01111 | AF70: Alabama | AG70: Randolph | AI70: Corn | AJ70: Bushel | AK70: Nonirrigated | AL70: 87.28 | AM70: 86.28 | AN70: 80.1 | AO70: 89.81 | AP70: 74.55 | AR70: 84.55 | AS70: 3.7 | AT70: 312.84 | AU70: 269.04 | AV70: 31.28 | AZ70: 169.3 | BA70: 3.7 | BB70: 626.41 | BC70: 538.71 | BD70: 62.64 | BP70: Walker | BX70: Irwin | BZ70: Marshall | CA70: Porter | CB70: Mahaska | CC70: Mitchell | CD70: Livingston | CI70: Ogemaw | CJ70: Red Lake | CK70: Stone | CL70: Miller | CN70: Nemaha | CT70: Montgomery | CV70: Noble | CW70: Pottawatomie | CY70: Washington | DB70: Turner | DC70: Monroe | DD70: Hardeman | DG70: Nottoway | DJ70: Taylor
A71: 01113 | B71: Alabama | C71: Russell | D71: Corn | E71: Bushel | F71: Nonirrigated | G71: Alabama_Russell_Nonirrigated | H71: 103 | I71: 77 | J71: 77 | K71: 77 | L71: 136 | M71: 107 | N71: 99 | O71: 86 | P71: 110 | Q71: 107.6388889 | R71: 171.85 | S71: 115.5 | T71: 105.33 | U71: 97.8 | V71: 119.04 | W71: 106.49 | X71: 92.02 | Y71: 112.11 | AD71: Alabama_Russell_Nonirrigated | AE71: 01113 | AF71: Alabama | AG71: Russell | AI71: Corn | AJ71: Bushel | AK71: Nonirrigated | AL71: 97.8 | AM71: 119.04 | AN71: 106.49 | AO71: 92.02 | AP71: 112.11 | AR71: 105.47 | AS71: 3.7 | AT71: 390.24 | AU71: 335.61 | AV71: 39.02 | AZ71: 197.95 | BA71: 3.7 | BB71: 732.42 | BC71: 629.88 | BD71: 73.24 | BP71: Washington | BX71: Jackson | BZ71: Mason | CA71: Posey | CB71: Marion | CC71: Montgomery | CD71: Logan | CI71: Ontonagon | CJ71: Redwood | CK71: Sunflower | CL71: Mississippi | CN71: Nuckolls | CT71: Moore | CV71: Ottawa | CW71: Roger Mills | CY71: Wayne | DB71: Union | DC71: Montgomery | DD71: Harris | DG71: Orange | DJ71: Trempealeau
A72: 01115 | B72: Alabama | C72: St. Clair | D72: Corn | E72: Bushel | F72: Nonirrigated | G72: Alabama_St. Clair_Nonirrigated | H72: 106 | I72: 99 | J72: 121 | K72: 101 | L72: 132 | M72: 144 | N72: 141 | O72: 93 | P72: 103 | Q72: 119.9722222 | R72: 132 | S72: 144 | T72: 141 | U72: 93 | V72: 103 | W72: 161 | X72: 130 | Y72: 152 | AD72: Alabama_Shelby_Nonirrigated | AE72: 01117 | AF72: Alabama | AG72: Shelby | AI72: Corn | AJ72: Bushel | AK72: Nonirrigated | AL72: 88 | AM72: 140.59 | AN72: 125.63 | AO72: 121.91 | AP72: 146.62 | AR72: 129.38 | AS72: 3.7 | AT72: 478.71 | AU72: 411.69 | AV72: 47.87 | AZ72: 189 | BA72: 3.7 | BB72: 699.3 | BC72: 601.4 | BD72: 69.93 | BP72: Wilcox | BX72: Jeff Davis | BZ72: Massac | CA72: Pulaski | CB72: Marshall | CC72: Morris | CD72: Lyon | CI72: Osceola | CJ72: Renville | CK72: Tallahatchie | CL72: Moniteau | CN72: Otoe | CT72: Nash | CV72: Paulding | CW72: Rogers | CY72: Westmoreland | DB72: Walworth | DC72: Moore | DD72: Hartley | DG72: Page | DJ72: Vernon
A73: 01117 | B73: Alabama | C73: Shelby | D73: Corn | E73: Bushel | F73: Nonirrigated | G73: Alabama_Shelby_Nonirrigated | H73: 114 | I73: 89 | J73: 102 | K73: 137 | L73: 92 | M73: 143 | N73: 133 | O73: 94 | P73: 141 | Q73: 132.0277778 | R73: 141.87 | S73: 131.15 | T73: 133 | U73: 88 | V73: 140.59 | W73: 125.63 | X73: 121.91 | Y73: 146.62 | AD73: Alabama_St. Clair_Nonirrigated | AE73: 01115 | AF73: Alabama | AG73: St. Clair | AI73: Corn | AJ73: Bushel | AK73: Nonirrigated | AL73: 93 | AM73: 103 | AN73: 161 | AO73: 130 | AP73: 152 | AR73: 128.33 | AS73: 3.7 | AT73: 474.82 | AU73: 408.35 | AV73: 47.48 | AZ73: 183.39 | BA73: 3.7 | BB73: 678.54 | BC73: 583.54 | BD73: 67.85 | BP73: Winston | BX73: Jefferson | BZ73: Menard | CA73: Putnam | CB73: Mills | CC73: Morton | CD73: Mccracken | CI73: Oscoda | CJ73: Rice | CK73: Tate | CL73: Monroe | CN73: Pawnee | CT73: New Hanover | CV73: Perry | CW73: Seminole | CY73: Wyoming | DB73: Yankton | DC73: Morgan | DD73: Haskell | DG73: Patrick | DJ73: Vilas
A74: 01119 | B74: Alabama | C74: Sumter | D74: Corn | E74: Bushel | F74: Nonirrigated | G74: Alabama_Sumter_Nonirrigated | H74: 82 | I74: 93 | J74: 69 | K74: 124 | L74: 125 | M74: 159 | N74: 138 | O74: 128 | P74: 80 | Q74: 133.3888889 | R74: 137.84 | S74: 169.5 | T74: 146.56 | U74: 139.28 | V74: 89.4 | W74: 158.52 | X74: 132.14 | Y74: 161.76 | AD74: Alabama_Sumter_Nonirrigated | AE74: 01119 | AF74: Alabama | AG74: Sumter | AI74: Corn | AJ74: Bushel | AK74: Nonirrigated | AL74: 139.28 | AM74: 89.4 | AN74: 158.52 | AO74: 132.14 | AP74: 161.76 | AR74: 143.31 | AS74: 3.7 | AT74: 530.25 | AU74: 456.02 | AV74: 53.03 | AZ74: 149.04 | BA74: 3.7 | BB74: 551.45 | BC74: 474.25 | BD74: 55.15 | BX74: Jenkins | BZ74: Mercer | CA74: Randolph | CB74: Mitchell | CC74: Nemaha | CD74: Mccreary | CI74: Otsego | CJ74: Rock | CK74: Tippah | CL74: Montgomery | CN74: Perkins | CT74: Northampton | CV74: Pickaway | CW74: Sequoyah | CY74: York | DB74: Ziebach | DC74: Obion | DD74: Hays | DG74: Pittsylvania | DJ74: Walworth
A75: 01121 | B75: Alabama | C75: Talladega | D75: Corn | E75: Bushel | F75: Irrigated | G75: Alabama_Talladega_Irrigated | Q75: 139.2 | R75: 176.35 | S75: 210.74 | T75: 190.96 | U75: 205.72 | V75: 230.57 | W75: 225.2 | X75: 203.36 | Y75: 218.71 | AD75: Alabama_Talladega_Irrigated | AE75: 01121 | AF75: Alabama | AG75: Talladega | AI75: Corn | AJ75: Bushel | AK75: Irrigated | AL75: 205.72 | AM75: 230.57 | AN75: 225.2 | AO75: 203.36 | AP75: 218.71 | AR75: 216.54 | AS75: 3.7 | AT75: 801.2 | AU75: 689.03 | AV75: 80.12 | AZ75: 189.28 | BA75: 3.7 | BB75: 700.34 | BC75: 602.29 | BD75: 70.03 | BX75: Johnson | BZ75: Monroe | CA75: Ripley | CB75: Monona | CC75: Neosho | CD75: Mclean | CI75: Ottawa | CJ75: Roseau | CK75: Tishomingo | CL75: Morgan | CN75: Phelps | CT75: Onslow | CV75: Pike | CW75: Stephens | DC75: Overton | DD75: Hidalgo | DG75: Powhatan | DJ75: Washburn
A76: 01121 | B76: Alabama | C76: Talladega | D76: Corn | E76: Bushel | F76: Nonirrigated | G76: Alabama_Talladega_Nonirrigated | H76: 121 | I76: 123 | J76: 120 | K76: 130 | L76: 160 | M76: 144 | N76: 133 | O76: 134 | P76: 139 | Q76: 139.2 | R76: 164.41 | S76: 146.92 | T76: 137.44 | U76: 97.51 | V76: 179.84 | W76: 195.22 | X76: 150.37 | Y76: 170.86 | AD76: Alabama_Talladega_Nonirrigated | AE76: 01121 | AF76: Alabama | AG76: Talladega | AI76: Corn | AJ76: Bushel | AK76: Nonirrigated | AL76: 97.51 | AM76: 179.84 | AN76: 195.22 | AO76: 150.37 | AP76: 170.86 | AR76: 167.02 | AS76: 3.7 | AT76: 617.97 | AU76: 531.45 | AV76: 61.8 | AZ76: 186.69 | BA76: 3.7 | BB76: 690.75 | BC76: 594.05 | BD76: 69.08 | BX76: Jones | BZ76: Montgomery | CA76: Rush | CB76: Monroe | CC76: Ness | CD76: Madison | CI76: Presque Isle | CJ76: North St. Louis | CK76: Tunica | CL76: New Madrid | CN76: Pierce | CT76: Orange | CV76: Portage | CW76: Texas | DC76: Perry | DD76: Hill | DG76: Prince Edward | DJ76: Washington
A77: 01123 | B77: Alabama | C77: Tallapoosa | D77: Corn | E77: Bushel | F77: Nonirrigated | G77: Alabama_Tallapoosa_Nonirrigated | H77: 70 | I77: 70 | J77: 70 | K77: 70 | L77: 70 | M77: 70 | N77: 194 | O77: 89 | P77: 99 | Q77: 124.1944444 | R77: 118 | S77: 150 | T77: 193.9 | U77: 173 | V77: 132 | W77: 153 | X77: 152 | Y77: 142.24 | AD77: Alabama_Tallapoosa_Nonirrigated | AE77: 01123 | AF77: Alabama | AG77: Tallapoosa | AI77: Corn | AJ77: Bushel | AK77: Nonirrigated | AL77: 173 | AM77: 132 | AN77: 153 | AO77: 152 | AP77: 142.24 | AR77: 149.08 | AS77: 3.7 | AT77: 551.6 | AU77: 474.38 | AV77: 55.16 | AZ77: 171.22 | BA77: 3.7 | BB77: 633.51 | BC77: 544.82 | BD77: 63.35 | BX77: Lamar | BZ77: Morgan | CA77: St. Joseph | CB77: Montgomery | CC77: Norton | CD77: Marion | CI77: Roscommon | CJ77: South St. Louis | CK77: Union | CL77: Newton | CN77: Platte | CT77: Pamlico | CV77: Preble | CW77: Tillman | DC77: Pickett | DD77: Hockley | DG77: Prince George | DJ77: Waukesha
A78: 01125 | B78: Alabama | C78: Tuscaloosa | D78: Corn | E78: Bushel | F78: Nonirrigated | G78: Alabama_Tuscaloosa_Nonirrigated | H78: 99 | I78: 119 | J78: 97 | K78: 101 | L78: 149 | M78: 137 | N78: 129 | O78: 132 | P78: 183 | Q78: 124.7 | R78: 156.01 | S78: 118.36 | T78: 121.95 | U78: 137.16 | V78: 180.91 | W78: 146.74 | X78: 169.56 | Y78: 154.64 | AD78: Alabama_Tuscaloosa_Nonirrigated | AE78: 01125 | AF78: Alabama | AG78: Tuscaloosa | AI78: Corn | AJ78: Bushel | AK78: Nonirrigated | AL78: 137.16 | AM78: 180.91 | AN78: 146.74 | AO78: 169.56 | AP78: 154.64 | AR78: 156.98 | AS78: 3.7 | AT78: 580.83 | AU78: 499.51 | AV78: 58.08 | AZ78: 217.22 | BA78: 3.7 | BB78: 803.71 | BC78: 691.19 | BD78: 80.37 | BX78: Lanier | BZ78: Moultrie | CA78: Scott | CB78: Muscatine | CC78: Osage | CD78: Marshall | CI78: Saginaw | CJ78: Scott | CK78: Walthall | CL78: Nodaway | CN78: Polk | CT78: Pasquotank | CV78: Putnam | CW78: Tulsa | DC78: Polk | DD78: Hopkins | DG78: Prince William | DJ78: Waupaca
A79: 01127 | B79: Alabama | C79: Walker | D79: Corn | E79: Bushel | F79: Nonirrigated | G79: Alabama_Walker_Nonirrigated | H79: 101 | I79: 109 | J79: 101 | K79: 119 | L79: 137 | M79: 140 | N79: 131 | O79: 133 | P79: 106 | Q79: 123.2 | R79: 136.9 | S79: 140 | T79: 130.6 | U79: 133 | V79: 106 | W79: 123.19 | X79: 111.43 | Y79: 123.68 | AD79: Alabama_Walker_Nonirrigated | AE79: 01127 | AF79: Alabama | AG79: Walker | AI79: Corn | AJ79: Bushel | AK79: Nonirrigated | AL79: 133 | AM79: 106 | AN79: 123.19 | AO79: 111.43 | AP79: 123.68 | AR79: 119.43 | AS79: 3.7 | AT79: 441.89 | AU79: 380.03 | AV79: 44.19 | AZ79: 189.4 | BA79: 3.7 | BB79: 700.78 | BC79: 602.67 | BD79: 70.08 | BX79: Laurens | BZ79: Ogle | CA79: Shelby | CB79: O'Brien | CC79: Osborne | CD79: Mason | CI79: St. Clair | CJ79: Sherburne | CK79: Warren | CL79: Osage | CN79: Red Willow | CT79: Pender | CV79: Richland | CW79: Wagoner | DC79: Putnam | DD79: Houston | DG79: Pulaski | DJ79: Waushara
A80: 01129 | B80: Alabama | C80: Washington | D80: Corn | E80: Bushel | F80: Nonirrigated | G80: Alabama_Washington_Nonirrigated | H80: 73 | I80: 114 | J80: 50 | K80: 117 | L80: 95 | M80: 135 | N80: 166 | O80: 125 | P80: 178 | Q80: 175.5833333 | R80: 104.3 | S80: 142.75 | T80: 171.77 | U80: 133.73 | V80: 185.35 | W80: 185.94 | X80: 168.32 | Y80: 161.28 | AD80: Alabama_Washington_Nonirrigated | AE80: 01129 | AF80: Alabama | AG80: Washington | AI80: Corn | AJ80: Bushel | AK80: Nonirrigated | AL80: 133.73 | AM80: 185.35 | AN80: 185.94 | AO80: 168.32 | AP80: 161.28 | AR80: 171.65 | AS80: 3.7 | AT80: 635.11 | AU80: 546.19 | AV80: 63.51 | AZ80: 181.86 | BA80: 3.7 | BB80: 672.88 | BC80: 578.68 | BD80: 67.29 | BX80: Lee | BZ80: Peoria | CA80: Spencer | CB80: Osceola | CC80: Ottawa | CD80: Meade | CI80: St. Joseph | CJ80: Sibley | CK80: Washington | CL80: Pemiscot | CN80: Richardson | CT80: Perquimans | CV80: Ross | CW80: Washington | DC80: Rhea | DD80: Hudspeth | DG80: Rappahannock | DJ80: Winnebago
A81: 01131 | B81: Alabama | C81: Wilcox | D81: Corn | E81: Bushel | F81: Nonirrigated | G81: Alabama_Wilcox_Nonirrigated | H81: 95 | I81: 112 | J81: 70 | K81: 112 | L81: 118 | M81: 95 | N81: 109 | O81: 73 | P81: 90 | Q81: 90.77777778 | R81: 126.84 | S81: 112.97 | T81: 114.71 | U81: 89.66 | V81: 98.05 | W81: 151.44 | X81: 130.07 | Y81: 120.56 | AD81: Alabama_Wilcox_Nonirrigated | AE81: 01131 | AF81: Alabama | AG81: Wilcox | AI81: Corn | AJ81: Bushel | AK81: Nonirrigated | AL81: 89.66 | AM81: 98.05 | AN81: 151.44 | AO81: 130.07 | AP81: 120.56 | AR81: 116.23 | AS81: 3.7 | AT81: 430.05 | AU81: 369.84 | AV81: 43.01 | AZ81: 188.47 | BA81: 3.7 | BB81: 697.34 | BC81: 599.71 | BD81: 69.73 | BX81: Liberty | BZ81: Perry | CA81: Starke | CB81: Page | CC81: Pawnee | CD81: Mercer | CI81: Sanilac | CJ81: Stearns | CK81: Wayne | CL81: Perry | CN81: Rock | CT81: Person | CV81: Sandusky | CW81: Washita | DC81: Roane | DD81: Hunt | DG81: Richmond | DJ81: Wood
A82: 01133 | B82: Alabama | C82: Winston | D82: Corn | E82: Bushel | F82: Nonirrigated | G82: Alabama_Winston_Nonirrigated | H82: 122 | I82: 133 | J82: 131 | K82: 87 | L82: 165 | M82: 181 | N82: 159 | O82: 105 | P82: 89 | Q82: 124.7222222 | R82: 165 | S82: 181 | T82: 159 | U82: 105 | V82: 89 | W82: 167 | X82: 166.75 | Y82: 149 | AD82: Alabama_Winston_Nonirrigated | AE82: 01133 | AF82: Alabama | AG82: Winston | AI82: Corn | AJ82: Bushel | AK82: Nonirrigated | AL82: 105 | AM82: 89 | AN82: 167 | AO82: 166.75 | AP82: 149 | AR82: 140.25 | AS82: 3.7 | AT82: 518.93 | AU82: 446.28 | AV82: 51.89 | AZ82: 180.42 | BA82: 3.7 | BB82: 667.55 | BC82: 574.09 | BD82: 66.76 | BX82: Lincoln | BZ82: Piatt | CA82: Steuben | CB82: Palo Alto | CC82: Phillips | CD82: Metcalfe | CI82: Schoolcraft | CJ82: Steele | CK82: Webster | CL82: Pettis | CN82: Saline | CT82: Pitt | CV82: Scioto | CW82: Woodward | DC82: Robertson | DD82: Hutchinson | DG82: Roanoke, Roanoke City, Salem City
A83: 04003 | B83: Arizona | C83: Cochise | D83: Corn | E83: Bushel | F83: Nonirrigated | G83: Arizona_Cochise_Nonirrigated | H83: 198 | I83: 215 | J83: 201 | K83: 211 | L83: 216 | M83: 234 | R83: 217.46 | S83: 234.53 | T83: 242.83 | U83: 236.19 | V83: 238.96 | W83: 237.7 | X83: 233.26 | Y83: 215.57 | AD83: Arizona_Cochise_Nonirrigated | AE83: 04003 | AF83: Arizona | AG83: Cochise | AI83: Corn | AJ83: Bushel | AK83: Nonirrigated | AL83: 236.19 | AM83: 238.96 | AN83: 237.7 | AO83: 233.26 | AP83: 215.57 | AR83: 235.72 | AS83: 3.7 | AT83: 872.16 | AU83: 750.06 | AV83: 87.22 | AZ83: 173.79 | BA83: 3.7 | BB83: 643.02 | BC83: 553 | BD83: 64.3 | BX83: Long | BZ83: Pike | CA83: Sullivan | CB83: Plymouth | CC83: Pottawatomie | CD83: Monroe | CI83: Shiawassee | CJ83: Stevens | CK83: Wilkinson | CL83: Phelps | CN83: Sarpy | CT83: Polk | CV83: Seneca | DC83: Rutherford | DD83: Jack | DG83: Rockbridge, Buena Vista City, Lexington City
A84: 04012 | B84: Arizona | C84: La Paz | D84: Corn | E84: Bushel | F84: Nonirrigated | G84: Arizona_La Paz_Nonirrigated | H84: 175 | I84: 210 | J84: 180 | K84: 195 | L84: 180 | M84: 237 | N84: 210 | O84: 195 | P84: 241 | Q84: 229.3055556 | R84: 180 | S84: 237 | T84: 210 | U84: 195 | V84: 241 | W84: 250 | X84: 250 | Y84: 250 | AD84: Arizona_Graham_Nonirrigated | AE84: 04009 | AF84: Arizona | AG84: Graham | AI84: Corn | AJ84: Bushel | AK84: Nonirrigated | AL84: 175.64 | AM84: 173.87 | AN84: 226.82 | AO84: 250.64 | AP84: 225.94 | AR84: 209.47 | AS84: 3.7 | AT84: 775.04 | AU84: 666.53 | AV84: 77.5 | AZ84: 144.17 | BA84: 3.7 | BB84: 533.43 | BC84: 458.75 | BD84: 53.34 | BX84: Lowndes | BZ84: Pope | CA84: Switzerland | CB84: Pocahontas | CC84: Pratt | CD84: Montgomery | CI84: Tuscola | CJ84: Swift | CK84: Winston | CL84: Pike | CN84: Saunders | CT84: Randolph | CV84: Shelby | DC84: Scott | DD84: Jackson | DG84: Rockingham, Harrisonburg City
A85: 04013 | B85: Arizona | C85: Maricopa | D85: Corn | E85: Bushel | F85: Nonirrigated | G85: Arizona_Maricopa_Nonirrigated | H85: 175 | I85: 210 | J85: 180 | K85: 195 | L85: 180 | M85: 237 | N85: 210 | O85: 226 | P85: 241 | Q85: 240.5 | R85: 185.88 | S85: 241.9 | T85: 213.92 | U85: 233.56 | V85: 247.3 | W85: 205.04 | X85: 203.78 | Y85: 227.58 | AD85: Arizona_La Paz_Nonirrigated | AE85: 04012 | AF85: Arizona | AG85: La Paz | AI85: Corn | AJ85: Bushel | AK85: Nonirrigated | AL85: 195 | AM85: 241 | AN85: 250 | AO85: 250 | AP85: 250 | AR85: 247 | AS85: 3.7 | AT85: 913.9 | AU85: 785.95 | AV85: 91.39 | AZ85: 119.63 | BA85: 3.7 | BB85: 442.63 | BC85: 380.66 | BD85: 44.26 | BX85: Mcduffie | BZ85: Pulaski | CA85: Tippecanoe | CB85: Polk | CC85: Rawlins | CD85: Morgan | CI85: Van Buren | CJ85: Todd | CK85: Yalobusha | CL85: Platte | CN85: Scotts Bluff | CT85: Richmond | CV85: Stark | DC85: Sequatchie | DD85: Jim Wells | DG85: Russell
A86: 04021 | B86: Arizona | C86: Pinal | D86: Corn | E86: Bushel | F86: Nonirrigated | G86: Arizona_Pinal_Nonirrigated | H86: 175 | I86: 210 | J86: 180 | K86: 195 | L86: 180 | M86: 237 | N86: 210 | O86: 214 | P86: 241 | Q86: 236.1666667 | R86: 185.46 | S86: 241.55 | T86: 213.64 | U86: 222.34 | V86: 247.95 | W86: 280.56 | X86: 279.17 | Y86: 277.78 | AD86: Arizona_Maricopa_Nonirrigated | AE86: 04013 | AF86: Arizona | AG86: Maricopa | AI86: Corn | AJ86: Bushel | AK86: Nonirrigated | AL86: 233.56 | AM86: 247.3 | AN86: 205.04 | AO86: 203.78 | AP86: 227.58 | AR86: 222.06 | AS86: 3.7 | AT86: 821.62 | AU86: 706.59 | AV86: 82.16 | AZ86: 175.73 | BA86: 3.7 | BB86: 650.2 | BC86: 559.17 | BD86: 65.02 | BX86: Macon | BZ86: Putnam | CA86: Tipton | CB86: East Pottawattamie | CC86: Reno | CD86: Muhlenberg | CI86: Washtenaw | CJ86: Traverse | CK86: Yazoo | CL86: Polk | CN86: Seward | CT86: Robeson | CV86: Summit | DC86: Sevier | DD86: Johnson | DG86: Scott
A87: 04027 | B87: Arizona | C87: Yuma | D87: Corn | E87: Bushel | F87: Nonirrigated | G87: Arizona_Yuma_Nonirrigated | H87: 175 | I87: 210 | J87: 180 | K87: 195 | L87: 180 | M87: 237 | R87: 180 | S87: 237 | T87: 123 | U87: 195 | V87: 241.4 | W87: 250 | X87: 250 | Y87: 250 | AD87: Arizona_Pinal_Nonirrigated | AE87: 04021 | AF87: Arizona | AG87: Pinal | AI87: Corn | AJ87: Bushel | AK87: Nonirrigated | AL87: 222.34 | AM87: 247.95 | AN87: 280.56 | AO87: 279.17 | AP87: 277.78 | AR87: 268.3 | AS87: 3.7 | AT87: 992.71 | AU87: 853.73 | AV87: 99.27 | AZ87: 143.87 | BA87: 3.7 | BB87: 532.32 | BC87: 457.8 | BD87: 53.23 | BX87: Madison | BZ87: Randolph | CA87: Union | CB87: West Pottawattamie | CC87: Republic | CD87: Nelson | CI87: Wayne | CJ87: Wabasha | CL87: Pulaski | CN87: Sheridan | CT87: Rockingham | CV87: Trumbull | DC87: Shelby | DD87: Jones | DG87: Shenandoah
A88: 05001 | B88: Arkansas | C88: Arkansas | D88: Corn | E88: Bushel | F88: Nonirrigated | G88: Arkansas_Arkansas_Nonirrigated | H88: 160 | I88: 172 | J88: 160 | K88: 189 | L88: 200 | M88: 189 | N88: 189 | O88: 182 | P88: 192 | Q88: 187 | R88: 204.19 | S88: 188.9 | T88: 189.1 | U88: 182 | V88: 192.32 | W88: 186.97 | X88: 194.05 | Y88: 182.85 | AD88: Arizona_Yuma_Nonirrigated | AE88: 04027 | AF88: Arizona | AG88: Yuma | AI88: Corn | AJ88: Bushel | AK88: Nonirrigated | AL88: 195 | AM88: 241.4 | AN88: 250 | AO88: 250 | AP88: 250 | AR88: 247.13 | AS88: 3.7 | AT88: 914.38 | AU88: 786.37 | AV88: 91.44 | AZ88: 181.34 | BA88: 3.7 | BB88: 670.96 | BC88: 577.03 | BD88: 67.1 | BX88: Marion | BZ88: Richland | CA88: Vanderburgh | CB88: Poweshiek | CC88: Rice | CD88: Nicholas | CI88: Wexford | CJ88: Wadena | CL88: Putnam | CN88: Sherman | CT88: Rowan | CV88: Tuscarawas | DC88: Smith | DD88: Karnes | DG88: Smyth
A89: 05003 | B89: Arkansas | C89: Ashley | D89: Corn | E89: Bushel | F89: Nonirrigated | G89: Arkansas_Ashley_Nonirrigated | H89: 145 | I89: 169 | J89: 161 | K89: 186 | L89: 186 | M89: 193 | N89: 191 | O89: 186 | P89: 196 | Q89: 194.5 | R89: 207.86 | S89: 214.92 | T89: 198.79 | U89: 178.92 | V89: 206.6 | W89: 196.35 | X89: 178.11 | Y89: 173.9 | AD89: Arkansas_Arkansas_Nonirrigated | AE89: 05001 | AF89: Arkansas | AG89: Arkansas | AI89: Corn | AJ89: Bushel | AK89: Nonirrigated | AL89: 182 | AM89: 192.32 | AN89: 186.97 | AO89: 194.05 | AP89: 182.85 | AR89: 187.38 | AS89: 3.7 | AT89: 693.31 | AU89: 596.25 | AV89: 69.33 | AZ89: 178.64 | BA89: 3.7 | BB89: 660.97 | BC89: 568.43 | BD89: 66.1 | BX89: Miller | BZ89: Rock Island | CA89: Vermillion | CB89: Ringgold | CC89: Riley | CD89: Ohio | CJ89: Waseca | CL89: Ralls | CN89: South Sioux | CT89: Rutherford | CV89: Union | DC89: Stewart | DD89: Kaufman | DG89: Southampton, Franklin City
A90: 05007 | B90: Arkansas | C90: Benton | D90: Corn | E90: Bushel | F90: Nonirrigated | G90: Arkansas_Benton_Nonirrigated | H90: 137 | I90: 135 | J90: 60 | K90: 60 | L90: 67 | M90: 163 | N90: 103 | O90: 135 | P90: 115 | Q90: 116.75 | R90: 68 | S90: 163 | T90: 103 | U90: 134.62 | V90: 114.51 | W90: 78.59 | X90: 139 | Y90: 175.34 | AD90: Arkansas_Ashley_Nonirrigated | AE90: 05003 | AF90: Arkansas | AG90: Ashley | AI90: Corn | AJ90: Bushel | AK90: Nonirrigated | AL90: 178.92 | AM90: 206.6 | AN90: 196.35 | AO90: 178.11 | AP90: 173.9 | AR90: 184.46 | AS90: 3.7 | AT90: 682.5 | AU90: 586.95 | AV90: 68.25 | AZ90: 168.27 | BA90: 3.7 | BB90: 622.6 | BC90: 535.44 | BD90: 62.26 | BX90: Mitchell | BZ90: St. Clair | CA90: Vigo | CB90: Sac | CC90: Rooks | CD90: Oldham | CJ90: Washington | CL90: Randolph | CN90: Stanton | CT90: Sampson | CV90: Van Wert | DC90: Sullivan | DD90: Kinney | DG90: Spotsylvania, Fredericksburg City
A91: 05017 | B91: Arkansas | C91: Chicot | D91: Corn | E91: Bushel | F91: Irrigated | G91: Arkansas_Chicot_Irrigated | Q91: 181.4 | R91: 198.5 | S91: 209.85 | T91: 176.86 | U91: 166.29 | V91: 193.38 | W91: 183.88 | X91: 160.03 | Y91: 184.2 | AD91: Arkansas_Benton_Nonirrigated | AE91: 05007 | AF91: Arkansas | AG91: Benton | AI91: Corn | AJ91: Bushel | AK91: Nonirrigated | AL91: 134.62 | AM91: 114.51 | AN91: 78.59 | AO91: 139 | AP91: 175.34 | AR91: 129.38 | AS91: 3.7 | AT91: 478.71 | AU91: 411.69 | AV91: 47.87 | AZ91: 194.49 | BA91: 3.7 | BB91: 719.61 | BC91: 618.86 | BD91: 71.96 | BX91: Monroe | BZ91: Saline | CA91: Wabash | CB91: Scott | CC91: Rush | CD91: Owen | CJ91: Watonwan | CL91: Ray | CN91: Thayer | CT91: Scotland | CV91: Vinton | DC91: Sumner | DD91: Kleberg | DG91: Stafford
A92: 05017 | B92: Arkansas | C92: Chicot | D92: Corn | E92: Bushel | F92: Nonirrigated | G92: Arkansas_Chicot_Nonirrigated | H92: 137 | I92: 156 | J92: 154 | K92: 188 | L92: 186 | M92: 189 | N92: 188 | O92: 175 | P92: 181 | Q92: 181.4 | R92: 168.93 | S92: 203.72 | T92: 133.28 | U92: 122.01 | V92: 91.95 | W92: 142.95 | X92: 89.09 | Y92: 95.66 | AD92: Arkansas_Chicot_Irrigated | AE92: 05017 | AF92: Arkansas | AG92: Chicot | AI92: Corn | AJ92: Bushel | AK92: Irrigated | AL92: 166.29 | AM92: 193.38 | AN92: 183.88 | AO92: 160.03 | AP92: 184.2 | AR92: 178.12 | AS92: 3.7 | AT92: 659.04 | AU92: 566.77 | AV92: 65.9 | AZ92: 168.1 | BA92: 3.7 | BB92: 621.97 | BC92: 534.89 | BD92: 62.2 | BX92: Montgomery | BZ92: Sangamon | CA92: Warren | CB92: Shelby | CC92: Russell | CD92: Pendleton | CJ92: Wilkin | CL92: Reynolds | CN92: Thomas | CT92: Stanly | CV92: Warren | DC92: Tipton | DD92: Knox | DG92: Surry
A93: 05021 | B93: Arkansas | C93: Clay | D93: Corn | E93: Bushel | F93: Irrigated | G93: Arkansas_Clay_Irrigated | Q93: 189.7 | R93: 209.54 | S93: 186.3 | T93: 180.44 | U93: 180.24 | V93: 217.51 | W93: 204.27 | X93: 198.37 | Y93: 203.47 | AD93: Arkansas_Chicot_Nonirrigated | AE93: 05017 | AF93: Arkansas | AG93: Chicot | AI93: Corn | AJ93: Bushel | AK93: Nonirrigated | AL93: 122.01 | AM93: 91.95 | AN93: 142.95 | AO93: 89.09 | AP93: 95.66 | AR93: 103.21 | AS93: 3.7 | AT93: 381.88 | AU93: 328.42 | AV93: 38.19 | AZ93: 150.83 | BA93: 3.7 | BB93: 558.07 | BC93: 479.94 | BD93: 55.81 | BX93: Morgan | BZ93: Schuyler | CA93: Warrick | CB93: Sioux | CC93: Saline | CD93: Powell | CJ93: Winona | CL93: Ripley | CN93: Thurston | CT93: Stokes | CV93: Washington | DC93: Trousdale | DD93: Lamar | DG93: Sussex
A94: 05021 | B94: Arkansas | C94: Clay | D94: Corn | E94: Bushel | F94: Nonirrigated | G94: Arkansas_Clay_Nonirrigated | H94: 163 | I94: 156 | J94: 140 | K94: 183 | L94: 193 | M94: 184 | N94: 181 | O94: 171 | P94: 203 | Q94: 189.7 | R94: 128.01 | S94: 191.7 | T94: 150.6 | U94: 170.74 | V94: 177.9 | W94: 191.99 | X94: 167.24 | Y94: 145.73 | AD94: Arkansas_Clark_Nonirrigated | AE94: 05019 | AF94: Arkansas | AG94: Clark | AI94: Corn | AJ94: Bushel | AK94: Nonirrigated | AL94: 124 | AM94: 165 | AN94: 150 | AO94: 124 | AP94: 175.34 | AR94: 146.33 | AS94: 3.7 | AT94: 541.42 | AU94: 465.62 | AV94: 54.14 | AZ94: 200.15 | BA94: 3.7 | BB94: 740.56 | BC94: 636.88 | BD94: 74.06 | BX94: Murray | BZ94: Scott | CA94: Washington | CB94: Story | CC94: Scott | CD94: Pulaski | CJ94: Wright | CL94: St. Charles | CN94: Valley | CT94: Surry | CV94: Wayne | DC94: Union | DD94: Lamb | DG94: Tazewell
A95: 05029 | B95: Arkansas | C95: Conway | D95: Corn | E95: Bushel | F95: Irrigated | G95: Arkansas_Conway_Irrigated | H95: 135 | I95: 140 | J95: 106 | K95: 127 | L95: 167 | M95: 178 | N95: 108 | O95: 152 | P95: 160 | Q95: 157.3611111 | R95: 184.16 | S95: 191.97 | T95: 119.49 | U95: 167.07 | V95: 172.83 | W95: 166.91 | X95: 120.33 | Y95: 157.99 | AD95: Arkansas_Clay_Irrigated | AE95: 05021 | AF95: Arkansas | AG95: Clay | AI95: Corn | AJ95: Bushel | AK95: Irrigated | AL95: 180.24 | AM95: 217.51 | AN95: 204.27 | AO95: 198.37 | AP95: 203.47 | AR95: 202.04 | AS95: 3.7 | AT95: 747.55 | AU95: 642.89 | AV95: 74.76 | AZ95: 174.57 | BA95: 3.7 | BB95: 645.91 | BC95: 555.48 | BD95: 64.59 | BX95: Newton | BZ95: Shelby | CA95: Wayne | CB95: Tama | CC95: Sedgwick | CD95: Robertson | CJ95: Yellow Medicine | CL95: St. Clair | CN95: Washington | CT95: Swain | CV95: Williams | DC95: Van Buren | DD95: Lavaca | DG95: Warren
A96: 05029 | B96: Arkansas | C96: Conway | D96: Corn | E96: Bushel | F96: Nonirrigated | G96: Arkansas_Conway_Nonirrigated | H96: 78 | I96: 81 | J96: 63 | K96: 63 | L96: 68 | M96: 168 | N96: 116 | O96: 111 | P96: 126 | Q96: 138.1944444 | R96: 84.42 | S96: 177.9 | T96: 124.11 | U96: 121.7 | V96: 135.48 | W96: 93.42 | X96: 83.03 | Y96: 128.15 | AD96: Arkansas_Clay_Nonirrigated | AE96: 05021 | AF96: Arkansas | AG96: Clay | AI96: Corn | AJ96: Bushel | AK96: Nonirrigated | AL96: 170.74 | AM96: 177.9 | AN96: 191.99 | AO96: 167.24 | AP96: 145.73 | AR96: 171.96 | AS96: 3.7 | AT96: 636.25 | AU96: 547.18 | AV96: 63.63 | AZ96: 175.92 | BA96: 3.7 | BB96: 650.9 | BC96: 559.77 | BD96: 65.09 | BX96: Oconee | BZ96: Stark | CA96: Wells | CB96: Taylor | CC96: Seward | CD96: Rockcastle | CL96: St. Francois | CN96: Wayne | CT96: Transylvania | CV96: Wood | DC96: Warren | DD96: Lee | DG96: Washington
A97: 05031 | B97: Arkansas | C97: Craighead | D97: Corn | E97: Bushel | F97: Nonirrigated | G97: Arkansas_Craighead_Nonirrigated | H97: 167 | I97: 170 | J97: 148 | K97: 191 | L97: 191 | M97: 184 | N97: 180 | O97: 184 | P97: 181 | Q97: 196.4 | R97: 221.68 | S97: 207.54 | T97: 200.94 | U97: 204.62 | V97: 196.39 | W97: 207.03 | X97: 205.14 | Y97: 204.26 | AD97: Arkansas_Conway_Irrigated | AE97: 05029 | AF97: Arkansas | AG97: Conway | AI97: Corn | AJ97: Bushel | AK97: Irrigated | AL97: 167.07 | AM97: 172.83 | AN97: 166.91 | AO97: 120.33 | AP97: 157.99 | AR97: 163.99 | AS97: 3.7 | AT97: 606.76 | AU97: 521.81 | AV97: 60.68 | AZ97: 171.54 | BA97: 3.7 | BB97: 634.7 | BC97: 545.84 | BD97: 63.47 | BX97: Oglethorpe | BZ97: Stephenson | CA97: White | CB97: Union | CC97: Shawnee | CD97: Rowan | CL97: St. Louis | CN97: Webster | CT97: Tyrrell | CV97: Wyandot | DC97: Washington | DD97: Liberty | DG97: Westmoreland
A98: 05033 | B98: Arkansas | C98: Crawford | D98: Corn | E98: Bushel | F98: Irrigated | G98: Arkansas_Crawford_Irrigated | H98: 61 | I98: 92 | J98: 64 | K98: 82 | L98: 133 | M98: 156 | N98: 61 | O98: 115 | P98: 113 | Q98: 126.1944444 | R98: 132.51 | S98: 156.49 | T98: 69.6 | U98: 114.53 | V98: 113.07 | W98: 149 | X98: 100 | Y98: 177.68 | AD98: Arkansas_Conway_Nonirrigated | AE98: 05029 | AF98: Arkansas | AG98: Conway | AI98: Corn | AJ98: Bushel | AK98: Nonirrigated | AL98: 121.7 | AM98: 135.48 | AN98: 93.42 | AO98: 83.03 | AP98: 128.15 | AR98: 114.42 | AS98: 3.7 | AT98: 423.35 | AU98: 364.08 | AV98: 42.34 | BX98: Peach | BZ98: Tazewell | CA98: Whitley | CB98: Van Buren | CC98: Sheridan | CD98: Russell | CL98: Ste. Genevieve | CN98: Wheeler | CT98: Union | DC98: Wayne | DD98: Limestone | DG98: Wise
A99: 05035 | B99: Arkansas | C99: Crittenden | D99: Corn | E99: Bushel | F99: Nonirrigated | G99: Arkansas_Crittenden_Nonirrigated | H99: 164 | I99: 164 | J99: 135 | K99: 174 | L99: 184 | M99: 183 | N99: 173 | O99: 143 | P99: 178 | Q99: 175.2 | R99: 201.05 | S99: 180.24 | T99: 158.49 | U99: 181.29 | V99: 198.3 | W99: 168.12 | X99: 180.9 | Y99: 185.27 | AD99: Arkansas_Craighead_Nonirrigated | AE99: 05031 | AF99: Arkansas | AG99: Craighead | AI99: Corn | AJ99: Bushel | AK99: Nonirrigated | AL99: 204.62 | AM99: 196.39 | AN99: 207.03 | AO99: 205.14 | AP99: 204.26 | AR99: 204.67 | AS99: 3.7 | AT99: 757.28 | AU99: 651.26 | AV99: 75.73 | BX99: Pierce | BZ99: Union | CB99: Wapello | CC99: Sherman | CD99: Scott | CL99: Saline | CN99: York | CT99: Vance | DC99: Weakley | DD99: Lipscomb | DG99: Wythe
A100: 05037 | B100: Arkansas | C100: Cross | D100: Corn | E100: Bushel | F100: Nonirrigated | G100: Arkansas_Cross_Nonirrigated | H100: 153 | I100: 150 | J100: 136 | K100: 169 | L100: 205 | M100: 174 | N100: 197 | O100: 186 | P100: 194 | Q100: 186.2 | R100: 202.93 | S100: 195.28 | T100: 183.59 | U100: 178.68 | V100: 194.42 | W100: 184.81 | X100: 198.53 | Y100: 179.37 | AD100: Arkansas_Crawford_Irrigated | AE100: 05033 | AF100: Arkansas | AG100: Crawford | AI100: Corn | AJ100: Bushel | AK100: Irrigated | AL100: 114.53 | AM100: 113.07 | AN100: 149 | AO100: 100 | AP100: 177.68 | AR100: 125.53 | AS100: 3.7 | AT100: 464.46 | AU100: 399.44 | AV100: 46.45 | BX100: Pike | BZ100: Vermilion | CB100: Warren | CC100: Smith | CD100: Shelby | CL100: Schuyler | CT100: Wake | DC100: White | DD100: Live Oak | DG100: York, Poquoson City
A101: 05041 | B101: Arkansas | C101: Desha | D101: Corn | E101: Bushel | F101: Nonirrigated | G101: Arkansas_Desha_Nonirrigated | H101: 170 | I101: 181 | J101: 178 | K101: 201 | L101: 196 | M101: 204 | N101: 194 | O101: 186 | P101: 194 | Q101: 192.3 | R101: 217.42 | S101: 216.6 | T101: 207.08 | U101: 194.5 | V101: 218.8 | W101: 188.54 | X101: 188.45 | Y101: 187.72 | AD101: Arkansas_Crawford_Nonirrigated | AE101: 05033 | AF101: Arkansas | AG101: Crawford | AI101: Corn | AJ101: Bushel | AK101: Nonirrigated | AL101: 121.2 | AM101: 101 | AN101: 69 | AO101: 62.4 | AP101: 130.74 | AR101: 97.07 | AS101: 3.7 | AT101: 359.16 | AU101: 308.88 | AV101: 35.92 | BX101: Polk | BZ101: Wabash | CB101: Washington | CC101: Stafford | CD101: Simpson | CL101: Scotland | CT101: Warren | DC101: Williamson | DD101: Lubbock | DG101: Chesapeake
A102: 05043 | B102: Arkansas | C102: Drew | D102: Corn | E102: Bushel | F102: Nonirrigated | G102: Arkansas_Drew_Nonirrigated | H102: 164 | I102: 171 | J102: 160 | K102: 193 | L102: 191 | M102: 206 | N102: 189 | O102: 185 | P102: 188 | Q102: 186.1 | R102: 203.75 | S102: 204.18 | T102: 205.88 | U102: 195.29 | V102: 219.12 | W102: 193.12 | X102: 179.53 | Y102: 179.61 | AD102: Arkansas_Crittenden_Nonirrigated | AE102: 05035 | AF102: Arkansas | AG102: Crittenden | AI102: Corn | AJ102: Bushel | AK102: Nonirrigated | AL102: 181.29 | AM102: 198.3 | AN102: 168.12 | AO102: 180.9 | AP102: 185.27 | AR102: 182.49 | AS102: 3.7 | AT102: 675.21 | AU102: 580.68 | AV102: 67.52 | BX102: Pulaski | BZ102: Warren | CB102: Wayne | CC102: Stanton | CD102: Spencer | CL102: Scott | CT102: Washington | DC102: Wilson | DD102: Lynn | DG102: Suffolk
A103: 05045 | B103: Arkansas | C103: Faulkner | D103: Corn | E103: Bushel | F103: Nonirrigated | G103: Arkansas_Faulkner_Nonirrigated | H103: 69 | I103: 130 | J103: 69 | K103: 69 | L103: 69 | M103: 138 | N103: 116 | O103: 84 | P103: 126 | Q103: 117.75 | R103: 177 | S103: 139 | T103: 83 | U103: 116.83 | V103: 130 | W103: 106.29 | X103: 145.37 | Y103: 116.7 | AD103: Arkansas_Cross_Nonirrigated | AE103: 05037 | AF103: Arkansas | AG103: Cross | AI103: Corn | AJ103: Bushel | AK103: Nonirrigated | AL103: 178.68 | AM103: 194.42 | AN103: 184.81 | AO103: 198.53 | AP103: 179.37 | AR103: 186.2 | AS103: 3.7 | AT103: 688.94 | AU103: 592.49 | AV103: 68.89 | BX103: Putnam | BZ103: Washington | CB103: Webster | CC103: Stevens | CD103: Taylor | CL103: Shelby | CT103: Watauga | DD103: Mcculloch | DG103: Virginia Beach
A104: 05047 | B104: Arkansas | C104: Franklin | D104: Corn | E104: Bushel | F104: Nonirrigated | G104: Arkansas_Franklin_Nonirrigated | H104: 61 | I104: 91 | J104: 61 | K104: 61 | L104: 61 | M104: 171 | N104: 76 | O104: 113 | P104: 159 | Q104: 144.7222222 | R104: 69.6 | S104: 117.62 | T104: 75.82 | U104: 112.73 | V104: 158.93 | W104: 61.6 | X104: 62.4 | Y104: 124.25 | AD104: Arkansas_Desha_Nonirrigated | AE104: 05041 | AF104: Arkansas | AG104: Desha | AI104: Corn | AJ104: Bushel | AK104: Nonirrigated | AL104: 194.5 | AM104: 218.8 | AN104: 188.54 | AO104: 188.45 | AP104: 187.72 | AR104: 190.5 | AS104: 3.7 | AT104: 704.85 | AU104: 606.17 | AV104: 70.49 | BX104: Quitman | BZ104: Wayne | CB104: Winnebago | CC104: Sumner | CD104: Todd | CL104: Stoddard | CT104: Wayne | DD104: Mclennan
A105: 05049 | B105: Arkansas | C105: Fulton | D105: Corn | E105: Bushel | F105: Nonirrigated | G105: Arkansas_Fulton_Nonirrigated | H105: 99 | I105: 104 | J105: 65 | K105: 74 | L105: 166 | M105: 163 | N105: 134 | O105: 124 | P105: 165 | Q105: 167.4722222 | R105: 164 | S105: 163 | T105: 134 | U105: 124 | V105: 165 | W105: 150 | X105: 131 | Y105: 175.34 | AD105: Arkansas_Drew_Nonirrigated | AE105: 05043 | AF105: Arkansas | AG105: Drew | AI105: Corn | AJ105: Bushel | AK105: Nonirrigated | AL105: 195.29 | AM105: 219.12 | AN105: 193.12 | AO105: 179.53 | AP105: 179.61 | AR105: 189.34 | AS105: 3.7 | AT105: 700.56 | AU105: 602.48 | AV105: 70.06 | BX105: Randolph | BZ105: White | CB105: Winneshiek | CC105: Thomas | CD105: Trigg | CL105: Sullivan | CT105: Wilkes | DD105: Matagorda
A106: 05055 | B106: Arkansas | C106: Greene | D106: Corn | E106: Bushel | F106: Irrigated | G106: Arkansas_Greene_Irrigated | Q106: 176.3 | R106: 211.31 | S106: 210.18 | T106: 192.9 | U106: 202.54 | V106: 204.71 | W106: 195.6 | X106: 199.88 | Y106: 192.03 | AD106: Arkansas_Faulkner_Nonirrigated | AE106: 05045 | AF106: Arkansas | AG106: Faulkner | AI106: Corn | AJ106: Bushel | AK106: Nonirrigated | AL106: 116.83 | AM106: 130 | AN106: 106.29 | AO106: 145.37 | AP106: 116.7 | AR106: 121.18 | AS106: 3.7 | AT106: 448.37 | AU106: 385.6 | AV106: 44.84 | BX106: Richmond | BZ106: Whiteside | CB106: Woodbury | CC106: Trego | CD106: Trimble | CL106: Texas | CT106: Wilson | DD106: Medina
A107: 05055 | B107: Arkansas | C107: Greene | D107: Corn | E107: Bushel | F107: Nonirrigated | G107: Arkansas_Greene_Nonirrigated | H107: 144 | I107: 158 | J107: 108 | K107: 145 | L107: 176 | M107: 183 | N107: 175 | O107: 168 | P107: 180 | Q107: 176.3 | R107: 105.93 | S107: 128.01 | T107: 119.2 | U107: 102.12 | V107: 125.93 | W107: 107.9 | X107: 132.09 | Y107: 122.91 | AD107: Arkansas_Franklin_Nonirrigated | AE107: 05047 | AF107: Arkansas | AG107: Franklin | AI107: Corn | AJ107: Bushel | AK107: Nonirrigated | AL107: 112.73 | AM107: 158.93 | AN107: 61.6 | AO107: 62.4 | AP107: 124.25 | AR107: 99.79 | AS107: 3.7 | AT107: 369.22 | AU107: 317.53 | AV107: 36.92 | BX107: Rockdale | BZ107: Will | CB107: Worth | CC107: Wabaunsee | CD107: Union | CL107: Vernon | CT107: Yadkin | DD107: Milam
A108: 05057 | B108: Arkansas | C108: Hempstead | D108: Corn | E108: Bushel | F108: Nonirrigated | G108: Arkansas_Hempstead_Nonirrigated | H108: 72 | I108: 104 | J108: 104 | K108: 131 | L108: 99 | M108: 165 | N108: 134 | O108: 88 | P108: 137 | Q108: 140.3888889 | R108: 99 | S108: 165 | T108: 134 | U108: 88 | V108: 137 | W108: 80.8 | X108: 123.64 | Y108: 175.34 | AD108: Arkansas_Fulton_Nonirrigated | AE108: 05049 | AF108: Arkansas | AG108: Fulton | AI108: Corn | AJ108: Bushel | AK108: Nonirrigated | AL108: 124 | AM108: 165 | AN108: 150 | AO108: 131 | AP108: 175.34 | AR108: 148.67 | AS108: 3.7 | AT108: 550.08 | AU108: 473.07 | AV108: 55.01 | BX108: Schley | BZ108: Williamson | CB108: Wright | CC108: Wallace | CD108: Warren | CL108: Warren | CT108: Yancey | DD108: Mitchell
A109: 05061 | B109: Arkansas | C109: Howard | D109: Corn | E109: Bushel | F109: Nonirrigated | G109: Arkansas_Howard_Nonirrigated | H109: 79 | I109: 104 | J109: 104 | K109: 131 | L109: 110 | M109: 165 | N109: 134 | O109: 124 | P109: 150 | Q109: 158.8333333 | R109: 110 | S109: 165 | T109: 134 | U109: 124 | V109: 150 | W109: 150 | X109: 123.64 | Y109: 175.34 | AD109: Arkansas_Greene_Irrigated | AE109: 05055 | AF109: Arkansas | AG109: Greene | AI109: Corn | AJ109: Bushel | AK109: Irrigated | AL109: 202.54 | AM109: 204.71 | AN109: 195.6 | AO109: 199.88 | AP109: 192.03 | AR109: 199.34 | AS109: 3.7 | AT109: 737.56 | AU109: 634.3 | AV109: 73.76 | BX109: Screven | BZ109: Winnebago | CC109: Washington | CD109: Washington | CL109: Wayne | DD109: Moore
A110: 05063 | B110: Arkansas | C110: Independence | D110: Corn | E110: Bushel | F110: Irrigated | G110: Arkansas_Independence_Irrigated | H110: 146 | I110: 130 | J110: 90 | K110: 146 | L110: 166 | M110: 176 | N110: 142 | O110: 157 | P110: 99 | Q110: 141.3611111 | R110: 183.21 | S110: 190.37 | T110: 153.59 | U110: 171.59 | V110: 125.8 | W110: 174.59 | X110: 165.9 | Y110: 170.93 | AD110: Arkansas_Greene_Nonirrigated | AE110: 05055 | AF110: Arkansas | AG110: Greene | AI110: Corn | AJ110: Bushel | AK110: Nonirrigated | AL110: 102.12 | AM110: 125.93 | AN110: 107.9 | AO110: 132.09 | AP110: 122.91 | AR110: 118.91 | AS110: 3.7 | AT110: 439.97 | AU110: 378.37 | AV110: 44 | BX110: Seminole | BZ110: Woodford | CC110: Wichita | CD110: Wayne | CL110: Webster | DD110: Motley
A111: 05063 | B111: Arkansas | C111: Independence | D111: Corn | E111: Bushel | F111: Nonirrigated | G111: Arkansas_Independence_Nonirrigated | H111: 128 | I111: 85 | J111: 60 | K111: 72 | L111: 118 | M111: 145 | N111: 123 | O111: 126 | P111: 81 | Q111: 115.3888889 | R111: 130.52 | S111: 155.44 | T111: 131.32 | U111: 136.87 | V111: 90.54 | W111: 114.75 | X111: 145.51 | Y111: 133.05 | AD111: Arkansas_Hempstead_Nonirrigated | AE111: 05057 | AF111: Arkansas | AG111: Hempstead | AI111: Corn | AJ111: Bushel | AK111: Nonirrigated | AL111: 88 | AM111: 137 | AN111: 80.8 | AO111: 123.64 | AP111: 175.34 | AR111: 116.21 | AS111: 3.7 | AT111: 429.98 | AU111: 369.78 | AV111: 43 | BX111: Spalding | CC111: Wilson | CD111: Webster | CL111: Worth | DD111: Navarro
A112: 05067 | B112: Arkansas | C112: Jackson | D112: Corn | E112: Bushel | F112: Nonirrigated | G112: Arkansas_Jackson_Nonirrigated | H112: 144 | I112: 148 | J112: 111 | K112: 166 | L112: 173 | M112: 173 | N112: 156 | O112: 144 | P112: 129 | Q112: 177 | R112: 187.63 | S112: 184.14 | T112: 124.97 | U112: 154.42 | V112: 127.4 | W112: 179.42 | X112: 170.1 | Y112: 166.39 | AD112: Arkansas_Howard_Nonirrigated | AE112: 05061 | AF112: Arkansas | AG112: Howard | AI112: Corn | AJ112: Bushel | AK112: Nonirrigated | AL112: 124 | AM112: 150 | AN112: 150 | AO112: 123.64 | AP112: 175.34 | AR112: 141.33 | AS112: 3.7 | AT112: 522.92 | AU112: 449.71 | AV112: 52.29 | BX112: Stewart | CC112: Woodson | CD112: Whitley | CL112: Wright | DD112: Nolan
A113: 05069 | B113: Arkansas | C113: Jefferson | D113: Corn | E113: Bushel | F113: Irrigated | G113: Arkansas_Jefferson_Irrigated | Q113: 192.7 | R113: 176.38 | S113: 218.84 | T113: 183.62 | U113: 184.21 | V113: 213.19 | W113: 181.42 | X113: 161.76 | Y113: 160.45 | AD113: Arkansas_Independence_Irrigated | AE113: 05063 | AF113: Arkansas | AG113: Independence | AI113: Corn | AJ113: Bushel | AK113: Irrigated | AL113: 171.59 | AM113: 125.8 | AN113: 174.59 | AO113: 165.9 | AP113: 170.93 | AR113: 169.47 | AS113: 3.7 | AT113: 627.04 | AU113: 539.25 | AV113: 62.7 | BX113: Sumter | CC113: Wyandotte | CD113: Wolfe | DD113: Nueces
A114: 05069 | B114: Arkansas | C114: Jefferson | D114: Corn | E114: Bushel | F114: Nonirrigated | G114: Arkansas_Jefferson_Nonirrigated | H114: 166 | I114: 166 | J114: 155 | K114: 192 | L114: 194 | M114: 201 | N114: 200 | O114: 190 | P114: 187 | Q114: 192.7 | R114: 134.28 | S114: 188.59 | T114: 173.15 | U114: 96.32 | V114: 94.4 | W114: 92.48 | X114: 111.11 | Y114: 122.23 | AD114: Arkansas_Independence_Nonirrigated | AE114: 05063 | AF114: Arkansas | AG114: Independence | AI114: Corn | AJ114: Bushel | AK114: Nonirrigated | AL114: 136.87 | AM114: 90.54 | AN114: 114.75 | AO114: 145.51 | AP114: 133.05 | AR114: 128.22 | AS114: 3.7 | AT114: 474.41 | AU114: 407.99 | AV114: 47.44 | BX114: Talbot | CD114: Woodford | DD114: Ochiltree
A115: 05071 | B115: Arkansas | C115: Johnson | D115: Corn | E115: Bushel | F115: Nonirrigated | G115: Arkansas_Johnson_Nonirrigated | H115: 67 | I115: 121 | J115: 67 | K115: 67 | L115: 115 | M115: 167 | N115: 67 | O115: 137 | P115: 151 | Q115: 146.8888889 | R115: 96.24 | S115: 167.17 | T115: 76 | U115: 123.96 | V115: 138.45 | W115: 99.51 | X115: 70.4 | Y115: 115.14 | AD115: Arkansas_Izard_Nonirrigated | AE115: 05065 | AF115: Arkansas | AG115: Izard | AI115: Corn | AJ115: Bushel | AK115: Nonirrigated | AL115: 124 | AM115: 165 | AN115: 150 | AO115: 131 | AP115: 175.34 | AR115: 148.67 | AS115: 3.7 | AT115: 550.08 | AU115: 473.07 | AV115: 55.01 | BX115: Taliaferro | DD115: Oldham
A116: 05073 | B116: Arkansas | C116: Lafayette | D116: Corn | E116: Bushel | F116: Irrigated | G116: Arkansas_Lafayette_Irrigated | H116: 125 | I116: 137 | J116: 128 | K116: 163 | L116: 171 | M116: 183 | N116: 122 | O116: 127 | P116: 205 | Q116: 176.0555556 | R116: 186.16 | S116: 195.62 | T116: 131.79 | U116: 142.61 | V116: 218.46 | W116: 176.56 | X116: 159.51 | Y116: 150.16 | AD116: Arkansas_Jackson_Nonirrigated | AE116: 05067 | AF116: Arkansas | AG116: Jackson | AI116: Corn | AJ116: Bushel | AK116: Nonirrigated | AL116: 154.42 | AM116: 127.4 | AN116: 179.42 | AO116: 170.1 | AP116: 166.39 | AR116: 163.64 | AS116: 3.7 | AT116: 605.47 | AU116: 520.7 | AV116: 60.55 | BX116: Tattnall | DD116: Parmer
A117: 05073 | B117: Arkansas | C117: Lafayette | D117: Corn | E117: Bushel | F117: Nonirrigated | G117: Arkansas_Lafayette_Nonirrigated | H117: 65 | I117: 102 | J117: 65 | K117: 65 | L117: 112 | M117: 135 | N117: 113 | O117: 90 | P117: 163 | Q117: 144.6111111 | R117: 123.2 | S117: 144.04 | T117: 120.57 | U117: 100.68 | V117: 172.25 | W117: 100.15 | X117: 104.84 | Y117: 111.37 | AD117: Arkansas_Jefferson_Irrigated | AE117: 05069 | AF117: Arkansas | AG117: Jefferson | AI117: Corn | AJ117: Bushel | AK117: Irrigated | AL117: 184.21 | AM117: 213.19 | AN117: 181.42 | AO117: 161.76 | AP117: 160.45 | AR117: 175.8 | AS117: 3.7 | AT117: 650.46 | AU117: 559.4 | AV117: 65.05 | BX117: Taylor | DD117: Pecos
A118: 05075 | B118: Arkansas | C118: Lawrence | D118: Corn | E118: Bushel | F118: Nonirrigated | G118: Arkansas_Lawrence_Nonirrigated | H118: 129 | I118: 160 | J118: 118 | K118: 175 | L118: 168 | M118: 166 | N118: 164 | O118: 167 | P118: 152 | Q118: 171.7777778 | R118: 177.45 | S118: 178.39 | T118: 167.61 | U118: 173.46 | V118: 156.75 | W118: 177.07 | X118: 183.24 | Y118: 179.94 | AD118: Arkansas_Jefferson_Nonirrigated | AE118: 05069 | AF118: Arkansas | AG118: Jefferson | AI118: Corn | AJ118: Bushel | AK118: Nonirrigated | AL118: 96.32 | AM118: 94.4 | AN118: 92.48 | AO118: 111.11 | AP118: 122.23 | AR118: 100.61 | AS118: 3.7 | AT118: 372.26 | AU118: 320.14 | AV118: 37.23 | BX118: Telfair | DD118: Potter
A119: 05077 | B119: Arkansas | C119: Lee | D119: Corn | E119: Bushel | F119: Irrigated | G119: Arkansas_Lee_Irrigated | Q119: 168.4 | R119: 206.54 | S119: 209.74 | T119: 176.64 | U119: 189.8 | V119: 196.35 | W119: 187.07 | X119: 197.65 | Y119: 196.01 | AD119: Arkansas_Johnson_Nonirrigated | AE119: 05071 | AF119: Arkansas | AG119: Johnson | AI119: Corn | AJ119: Bushel | AK119: Nonirrigated | AL119: 123.96 | AM119: 138.45 | AN119: 99.51 | AO119: 70.4 | AP119: 115.14 | AR119: 112.87 | AS119: 3.7 | AT119: 417.62 | AU119: 359.15 | AV119: 41.76 | BX119: Terrell | DD119: Rains
A120: 05077 | B120: Arkansas | C120: Lee | D120: Corn | E120: Bushel | F120: Nonirrigated | G120: Arkansas_Lee_Nonirrigated | H120: 142 | I120: 133 | J120: 102 | K120: 168 | L120: 174 | M120: 178 | N120: 165 | O120: 149 | P120: 182 | Q120: 168.4 | R120: 86.52 | S120: 118.5 | T120: 83.28 | U120: 108.49 | V120: 176.06 | W120: 146.81 | X120: 120.24 | Y120: 174.71 | AD120: Arkansas_Lafayette_Irrigated | AE120: 05073 | AF120: Arkansas | AG120: Lafayette | AI120: Corn | AJ120: Bushel | AK120: Irrigated | AL120: 142.61 | AM120: 218.46 | AN120: 176.56 | AO120: 159.51 | AP120: 150.16 | AR120: 162.08 | AS120: 3.7 | AT120: 599.7 | AU120: 515.74 | AV120: 59.97 | BX120: Thomas | DD120: Randall
A121: 05079 | B121: Arkansas | C121: Lincoln | D121: Corn | E121: Bushel | F121: Nonirrigated | G121: Arkansas_Lincoln_Nonirrigated | H121: 161 | I121: 165 | J121: 152 | K121: 192 | L121: 190 | M121: 195 | N121: 193 | O121: 181 | P121: 185 | Q121: 193.2 | R121: 204.36 | S121: 214.66 | T121: 198.65 | U121: 175.67 | V121: 183.29 | W121: 155.2 | X121: 140.68 | Y121: 143.92 | AD121: Arkansas_Lafayette_Nonirrigated | AE121: 05073 | AF121: Arkansas | AG121: Lafayette | AI121: Corn | AJ121: Bushel | AK121: Nonirrigated | AL121: 100.68 | AM121: 172.25 | AN121: 100.15 | AO121: 104.84 | AP121: 111.37 | AR121: 105.63 | AS121: 3.7 | AT121: 390.83 | AU121: 336.11 | AV121: 39.08 | BX121: Tift | DD121: Reagan
A122: 05081 | B122: Arkansas | C122: Little River | D122: Corn | E122: Bushel | F122: Irrigated | G122: Arkansas_Little River_Irrigated | H122: 196 | I122: 202 | J122: 134 | K122: 168 | L122: 172 | M122: 191 | N122: 122 | O122: 111 | P122: 176 | Q122: 134.0555556 | R122: 172.35 | S122: 191 | T122: 122 | U122: 111.37 | V122: 176.08 | W122: 141.62 | X122: 125 | Y122: 120.48 | AD122: Arkansas_Lawrence_Nonirrigated | AE122: 05075 | AF122: Arkansas | AG122: Lawrence | AI122: Corn | AJ122: Bushel | AK122: Nonirrigated | AL122: 173.46 | AM122: 156.75 | AN122: 177.07 | AO122: 183.24 | AP122: 179.94 | AR122: 176.82 | AS122: 3.7 | AT122: 654.23 | AU122: 562.64 | AV122: 65.42 | BX122: Toombs | DD122: Red River
A123: 05081 | B123: Arkansas | C123: Little River | D123: Corn | E123: Bushel | F123: Nonirrigated | G123: Arkansas_Little River_Nonirrigated | H123: 62 | I123: 97 | J123: 70 | K123: 69 | L123: 111 | M123: 121 | N123: 62 | O123: 62 | P123: 134 | Q123: 105.8055556 | R123: 110.79 | S123: 121.37 | T123: 71.2 | U123: 71.2 | V123: 133.63 | W123: 87.2 | X123: 85 | Y123: 96.63 | AD123: Arkansas_Lee_Irrigated | AE123: 05077 | AF123: Arkansas | AG123: Lee | AI123: Corn | AJ123: Bushel | AK123: Irrigated | AL123: 189.8 | AM123: 196.35 | AN123: 187.07 | AO123: 197.65 | AP123: 196.01 | AR123: 194.05 | AS123: 3.7 | AT123: 717.99 | AU123: 617.47 | AV123: 71.8 | BX123: Towns | DD123: Reeves
A124: 05083 | B124: Arkansas | C124: Logan | D124: Corn | E124: Bushel | F124: Nonirrigated | G124: Arkansas_Logan_Nonirrigated | H124: 75 | I124: 122 | J124: 74 | K124: 74 | L124: 97 | M124: 150 | N124: 170 | O124: 91 | P124: 107 | Q124: 131.9166667 | R124: 84 | S124: 147.56 | T124: 113.2 | U124: 91.37 | V124: 107.13 | W124: 76 | X124: 76 | Y124: 109.5 | AD124: Arkansas_Lee_Nonirrigated | AE124: 05077 | AF124: Arkansas | AG124: Lee | AI124: Corn | AJ124: Bushel | AK124: Nonirrigated | AL124: 108.49 | AM124: 176.06 | AN124: 146.81 | AO124: 120.24 | AP124: 174.71 | AR124: 147.25 | AS124: 3.7 | AT124: 544.83 | AU124: 468.55 | AV124: 54.48 | BX124: Treutlen | DD124: Refugio
A125: 05085 | B125: Arkansas | C125: Lonoke | D125: Corn | E125: Bushel | F125: Nonirrigated | G125: Arkansas_Lonoke_Nonirrigated | H125: 169 | I125: 175 | J125: 157 | K125: 189 | L125: 198 | M125: 199 | N125: 190 | O125: 173 | P125: 187 | Q125: 185.3 | R125: 204.02 | S125: 211.51 | T125: 194.47 | U125: 177.4 | V125: 206.17 | W125: 186.39 | X125: 181.52 | Y125: 186.46 | AD125: Arkansas_Lincoln_Nonirrigated | AE125: 05079 | AF125: Arkansas | AG125: Lincoln | AI125: Corn | AJ125: Bushel | AK125: Nonirrigated | AL125: 175.67 | AM125: 183.29 | AN125: 155.2 | AO125: 140.68 | AP125: 143.92 | AR125: 158.26 | AS125: 3.7 | AT125: 585.56 | AU125: 503.58 | AV125: 58.56 | BX125: Turner | DD125: Roberts
A126: 05091 | B126: Arkansas | C126: Miller | D126: Corn | E126: Bushel | F126: Irrigated | G126: Arkansas_Miller_Irrigated | R126: 160.02 | S126: 181.39 | T126: 133.44 | U126: 146.61 | V126: 170 | W126: 122.44 | X126: 104 | Y126: 99.49 | AD126: Arkansas_Little River_Irrigated | AE126: 05081 | AF126: Arkansas | AG126: Little River | AI126: Corn | AJ126: Bushel | AK126: Irrigated | AL126: 111.37 | AM126: 176.08 | AN126: 141.62 | AO126: 125 | AP126: 120.48 | AR126: 129.03 | AS126: 3.7 | AT126: 477.41 | AU126: 410.57 | AV126: 47.74 | BX126: Twiggs | DD126: Robertson
A127: 05091 | B127: Arkansas | C127: Miller | D127: Corn | E127: Bushel | F127: Nonirrigated | G127: Arkansas_Miller_Nonirrigated | H127: 63 | I127: 88 | J127: 63 | K127: 63 | L127: 99 | M127: 164 | N127: 86 | O127: 88 | P127: 137 | Q127: 131.4722222 | R127: 104.92 | S127: 132.17 | T127: 80.08 | U127: 81.11 | V127: 135.51 | W127: 70.6 | X127: 74.18 | Y127: 88.37 | AD127: Arkansas_Little River_Nonirrigated | AE127: 05081 | AF127: Arkansas | AG127: Little River | AI127: Corn | AJ127: Bushel | AK127: Nonirrigated | AL127: 71.2 | AM127: 133.63 | AN127: 87.2 | AO127: 85 | AP127: 96.63 | AR127: 89.61 | AS127: 3.7 | AT127: 331.56 | AU127: 285.14 | AV127: 33.16 | BX127: Union | DD127: Rockwall
A128: 05093 | B128: Arkansas | C128: Mississippi | D128: Corn | E128: Bushel | F128: Irrigated | G128: Arkansas_Mississippi_Irrigated | Q128: 200 | R128: 205.66 | S128: 201.2 | T128: 170.15 | U128: 190.35 | V128: 204.89 | W128: 189.02 | X128: 183.74 | Y128: 182.36 | AD128: Arkansas_Logan_Nonirrigated | AE128: 05083 | AF128: Arkansas | AG128: Logan | AI128: Corn | AJ128: Bushel | AK128: Nonirrigated | AL128: 91.37 | AM128: 107.13 | AN128: 76 | AO128: 76 | AP128: 109.5 | AR128: 91.5 | AS128: 3.7 | AT128: 338.55 | AU128: 291.15 | AV128: 33.86 | BX128: Upson | DD128: Runnels
A129: 05093 | B129: Arkansas | C129: Mississippi | D129: Corn | E129: Bushel | F129: Nonirrigated | G129: Arkansas_Mississippi_Nonirrigated | H129: 161 | I129: 163 | J129: 130 | K129: 169 | L129: 195 | M129: 201 | N129: 173 | O129: 169 | P129: 156 | Q129: 200 | R129: 184.72 | S129: 170.66 | T129: 97.13 | U129: 139.36 | V129: 165.27 | W129: 141.24 | X129: 158.69 | Y129: 163.81 | AD129: Arkansas_Lonoke_Nonirrigated | AE129: 05085 | AF129: Arkansas | AG129: Lonoke | AI129: Corn | AJ129: Bushel | AK129: Nonirrigated | AL129: 177.4 | AM129: 206.17 | AN129: 186.39 | AO129: 181.52 | AP129: 186.46 | AR129: 184.79 | AS129: 3.7 | AT129: 683.72 | AU129: 588 | AV129: 68.37 | BX129: Walker | DD129: San Patricio
A130: 05095 | B130: Arkansas | C130: Monroe | D130: Corn | E130: Bushel | F130: Nonirrigated | G130: Arkansas_Monroe_Nonirrigated | H130: 147 | I130: 138 | J130: 115 | K130: 177 | L130: 182 | M130: 184 | N130: 180 | O130: 163 | P130: 177 | Q130: 173.2 | R130: 195.08 | S130: 199.04 | T130: 183.54 | U130: 182.07 | V130: 193.77 | W130: 176.8 | X130: 173.44 | Y130: 182.2 | AD130: Arkansas_Miller_Irrigated | AE130: 05091 | AF130: Arkansas | AG130: Miller | AI130: Corn | AJ130: Bushel | AK130: Irrigated | AL130: 146.61 | AM130: 170 | AN130: 122.44 | AO130: 104 | AP130: 99.49 | AR130: 124.35 | AS130: 3.7 | AT130: 460.1 | AU130: 395.69 | AV130: 46.01 | BX130: Walton | DD130: Scurry
A131: 05099 | B131: Arkansas | C131: Nevada | D131: Corn | E131: Bushel | F131: Nonirrigated | G131: Arkansas_Nevada_Nonirrigated | H131: 90 | I131: 76 | J131: 70 | K131: 70 | L131: 187 | M131: 163 | N131: 134 | O131: 124 | P131: 165 | Q131: 175.3055556 | R131: 187 | S131: 163 | T131: 134 | U131: 124 | V131: 165 | W131: 150 | X131: 131 | Y131: 175.34 | AD131: Arkansas_Miller_Nonirrigated | AE131: 05091 | AF131: Arkansas | AG131: Miller | AI131: Corn | AJ131: Bushel | AK131: Nonirrigated | AL131: 81.11 | AM131: 135.51 | AN131: 70.6 | AO131: 74.18 | AP131: 88.37 | AR131: 81.22 | AS131: 3.7 | AT131: 300.51 | AU131: 258.44 | AV131: 30.05 | BX131: Ware | DD131: Shackelford
A132: 05105 | B132: Arkansas | C132: Perry | D132: Corn | E132: Bushel | F132: Nonirrigated | G132: Arkansas_Perry_Nonirrigated | H132: 78 | I132: 128 | J132: 86 | K132: 133 | L132: 180 | M132: 113 | N132: 64 | O132: 151 | P132: 179 | Q132: 157.6388889 | R132: 180 | S132: 113.41 | T132: 72.8 | U132: 151 | V132: 179 | W132: 80 | X132: 145.37 | Y132: 116.7 | AD132: Arkansas_Mississippi_Irrigated | AE132: 05093 | AF132: Arkansas | AG132: Mississippi | AI132: Corn | AJ132: Bushel | AK132: Irrigated | AL132: 190.35 | AM132: 204.89 | AN132: 189.02 | AO132: 183.74 | AP132: 182.36 | AR132: 187.7 | AS132: 3.7 | AT132: 694.49 | AU132: 597.26 | AV132: 69.45 | BX132: Warren | DD132: Sherman
A133: 05107 | B133: Arkansas | C133: Phillips | D133: Corn | E133: Bushel | F133: Irrigated | G133: Arkansas_Phillips_Irrigated | Q133: 166.7 | R133: 188.38 | S133: 202.82 | T133: 170.45 | U133: 184.85 | V133: 177.89 | W133: 170.21 | X133: 182.35 | Y133: 173.99 | AD133: Arkansas_Mississippi_Nonirrigated | AE133: 05093 | AF133: Arkansas | AG133: Mississippi | AI133: Corn | AJ133: Bushel | AK133: Nonirrigated | AL133: 139.36 | AM133: 165.27 | AN133: 141.24 | AO133: 158.69 | AP133: 163.81 | AR133: 154.58 | AS133: 3.7 | AT133: 571.95 | AU133: 491.88 | AV133: 57.2 | BX133: Washington | DD133: Starr
A134: 05107 | B134: Arkansas | C134: Phillips | D134: Corn | E134: Bushel | F134: Nonirrigated | G134: Arkansas_Phillips_Nonirrigated | H134: 148 | I134: 127 | J134: 120 | K134: 182 | L134: 188 | M134: 197 | N134: 185 | O134: 169 | P134: 163 | Q134: 166.7 | R134: 113.7 | S134: 123.6 | T134: 95.48 | U134: 91.52 | V134: 96.02 | W134: 142.74 | X134: 120.72 | Y134: 135.39 | AD134: Arkansas_Monroe_Nonirrigated | AE134: 05095 | AF134: Arkansas | AG134: Monroe | AI134: Corn | AJ134: Bushel | AK134: Nonirrigated | AL134: 182.07 | AM134: 193.77 | AN134: 176.8 | AO134: 173.44 | AP134: 182.2 | AR134: 180.36 | AS134: 3.7 | AT134: 667.33 | AU134: 573.9 | AV134: 66.73 | BX134: Wayne | DD134: Stephens
A135: 05109 | B135: Arkansas | C135: Pike | D135: Corn | E135: Bushel | F135: Nonirrigated | G135: Arkansas_Pike_Nonirrigated | H135: 79 | I135: 104 | J135: 104 | K135: 131 | L135: 110 | M135: 165 | N135: 134 | O135: 124 | P135: 150 | Q135: 158.8333333 | R135: 110 | S135: 165 | T135: 134 | AD135: Arkansas_Nevada_Nonirrigated | AE135: 05099 | AF135: Arkansas | AG135: Nevada | AI135: Corn | AJ135: Bushel | AK135: Nonirrigated | AL135: 124 | AM135: 165 | AN135: 150 | AO135: 131 | AP135: 175.34 | AR135: 148.67 | AS135: 3.7 | AT135: 550.08 | AU135: 473.07 | AV135: 55.01 | BX135: Webster | DD135: Swisher
A136: 05111 | B136: Arkansas | C136: Poinsett | D136: Corn | E136: Bushel | F136: Nonirrigated | G136: Arkansas_Poinsett_Nonirrigated | H136: 128 | I136: 149 | J136: 145 | K136: 171 | L136: 194 | M136: 180 | N136: 192 | O136: 175 | P136: 193 | Q136: 197.2 | R136: 211.32 | S136: 198.18 | T136: 191.24 | U136: 195.34 | V136: 198.81 | W136: 194.74 | X136: 190.15 | Y136: 196.33 | AD136: Arkansas_Perry_Nonirrigated | AE136: 05105 | AF136: Arkansas | AG136: Perry | AI136: Corn | AJ136: Bushel | AK136: Nonirrigated | AL136: 151 | AM136: 179 | AN136: 80 | AO136: 145.37 | AP136: 116.7 | AR136: 137.69 | AS136: 3.7 | AT136: 509.45 | AU136: 438.13 | AV136: 50.95 | BX136: Wheeler | DD136: Tarrant
A137: 05115 | B137: Arkansas | C137: Pope | D137: Corn | E137: Bushel | F137: Nonirrigated | G137: Arkansas_Pope_Nonirrigated | H137: 76 | I137: 97 | J137: 41 | K137: 41 | L137: 68 | M137: 138 | N137: 77 | O137: 76 | P137: 102 | Q137: 97.05555556 | R137: 106 | S137: 164.71 | T137: 83.55 | U137: 119.62 | V137: 130 | W137: 119.14 | X137: 74.4 | Y137: 116.7 | AD137: Arkansas_Phillips_Irrigated | AE137: 05107 | AF137: Arkansas | AG137: Phillips | AI137: Corn | AJ137: Bushel | AK137: Irrigated | AL137: 184.85 | AM137: 177.89 | AN137: 170.21 | AO137: 182.35 | AP137: 173.99 | AR137: 178.08 | AS137: 3.7 | AT137: 658.9 | AU137: 566.65 | AV137: 65.89 | BX137: White | DD137: Taylor
A138: 05117 | B138: Arkansas | C138: Prairie | D138: Corn | E138: Bushel | F138: Nonirrigated | G138: Arkansas_Prairie_Nonirrigated | H138: 170 | I138: 170 | J138: 147 | K138: 194 | L138: 184 | M138: 186 | N138: 187 | O138: 183 | P138: 186 | Q138: 191.1 | R138: 201.97 | S138: 205.93 | T138: 181.99 | U138: 186.86 | V138: 197.23 | W138: 193.72 | X138: 176.52 | Y138: 199.09 | AD138: Arkansas_Phillips_Nonirrigated | AE138: 05107 | AF138: Arkansas | AG138: Phillips | AI138: Corn | AJ138: Bushel | AK138: Nonirrigated | AL138: 91.52 | AM138: 96.02 | AN138: 142.74 | AO138: 120.72 | AP138: 135.39 | AR138: 117.38 | AS138: 3.7 | AT138: 434.31 | AU138: 373.51 | AV138: 43.43 | BX138: Whitfield | DD138: Terry
A139: 05119 | B139: Arkansas | C139: Pulaski | D139: Corn | E139: Bushel | F139: Nonirrigated | G139: Arkansas_Pulaski_Nonirrigated | H139: 154 | I139: 131 | J139: 119 | K139: 169 | L139: 180 | M139: 185 | N139: 155 | O139: 151 | P139: 179 | Q139: 178.7777778 | R139: 180.41 | S139: 185.03 | T139: 154.82 | U139: 151.07 | V139: 179.13 | W139: 130.94 | X139: 133.63 | Y139: 164.69 | AD139: Arkansas_Poinsett_Nonirrigated | AE139: 05111 | AF139: Arkansas | AG139: Poinsett | AI139: Corn | AJ139: Bushel | AK139: Nonirrigated | AL139: 195.34 | AM139: 198.81 | AN139: 194.74 | AO139: 190.15 | AP139: 196.33 | AR139: 195.47 | AS139: 3.7 | AT139: 723.24 | AU139: 621.99 | AV139: 72.32 | BX139: Wilcox | DD139: Tom Green
A140: 05121 | B140: Arkansas | C140: Randolph | D140: Corn | E140: Bushel | F140: Nonirrigated | G140: Arkansas_Randolph_Nonirrigated | H140: 141 | I140: 130 | J140: 106 | K140: 165 | L140: 187 | M140: 181 | N140: 159 | O140: 174 | P140: 153 | Q140: 176.2 | R140: 204.16 | S140: 213.97 | T140: 174.42 | U140: 176.44 | V140: 144.51 | W140: 187.9 | X140: 195.37 | Y140: 183 | AD140: Arkansas_Pope_Nonirrigated | AE140: 05115 | AF140: Arkansas | AG140: Pope | AI140: Corn | AJ140: Bushel | AK140: Nonirrigated | AL140: 119.62 | AM140: 130 | AN140: 119.14 | AO140: 74.4 | AP140: 116.7 | AR140: 118.49 | AS140: 3.7 | AT140: 438.41 | AU140: 377.03 | AV140: 43.84 | BX140: Wilkes | DD140: Travis
A141: 05123 | B141: Arkansas | C141: St. Francis | D141: Corn | E141: Bushel | F141: Irrigated | G141: Arkansas_St. Francis_Irrigated | R141: 200.07 | S141: 209.82 | T141: 192.36 | U141: 178.28 | V141: 211.21 | W141: 191.13 | X141: 192.57 | Y141: 193.52 | AD141: Arkansas_Prairie_Nonirrigated | AE141: 05117 | AF141: Arkansas | AG141: Prairie | AI141: Corn | AJ141: Bushel | AK141: Nonirrigated | AL141: 186.86 | AM141: 197.23 | AN141: 193.72 | AO141: 176.52 | AP141: 199.09 | AR141: 192.6 | AS141: 3.7 | AT141: 712.62 | AU141: 612.85 | AV141: 71.26 | BX141: Wilkinson | DD141: Upton
A142: 05123 | B142: Arkansas | C142: St. Francis | D142: Corn | E142: Bushel | F142: Nonirrigated | G142: Arkansas_St. Francis_Nonirrigated | H142: 156 | I142: 160 | J142: 158 | K142: 180 | L142: 172 | M142: 179 | N142: 166 | O142: 159 | P142: 182 | Q142: 177.6666667 | R142: 136.67 | S142: 201.26 | T142: 117.6 | U142: 111.59 | V142: 200.2 | W142: 126.73 | X142: 151.29 | Y142: 160 | AD142: Arkansas_Pulaski_Nonirrigated | AE142: 05119 | AF142: Arkansas | AG142: Pulaski | AI142: Corn | AJ142: Bushel | AK142: Nonirrigated | AL142: 151.07 | AM142: 179.13 | AN142: 130.94 | AO142: 133.63 | AP142: 164.69 | AR142: 149.8 | AS142: 3.7 | AT142: 554.26 | AU142: 476.66 | AV142: 55.43 | BX142: Worth | DD142: Uvalde
A143: 05131 | B143: Arkansas | C143: Sebastian | D143: Corn | E143: Bushel | F143: Nonirrigated | G143: Arkansas_Sebastian_Nonirrigated | H143: 64 | I143: 80 | J143: 55 | K143: 83 | L143: 110 | M143: 124 | N143: 110 | O143: 124 | P143: 133 | Q143: 144.6944444 | R143: 110 | S143: 124.2 | T143: 110 | U143: 124 | V143: 133 | W143: 71 | X143: 62.4 | Y143: 116.7 | AD143: Arkansas_Randolph_Nonirrigated | AE143: 05121 | AF143: Arkansas | AG143: Randolph | AI143: Corn | AJ143: Bushel | AK143: Nonirrigated | AL143: 176.44 | AM143: 144.51 | AN143: 187.9 | AO143: 195.37 | AP143: 183 | AR143: 182.45 | AS143: 3.7 | AT143: 675.07 | AU143: 580.56 | AV143: 67.51 | DD143: Victoria
A144: 05133 | B144: Arkansas | C144: Sevier | D144: Corn | E144: Bushel | F144: Nonirrigated | G144: Arkansas_Sevier_Nonirrigated | H144: 72 | I144: 104 | J144: 104 | K144: 131 | L144: 110 | M144: 165 | N144: 134 | O144: 124 | P144: 150 | Q144: 160.3888889 | R144: 110 | S144: 165 | T144: 134 | U144: 124 | V144: 150 | W144: 150 | X144: 123.64 | Y144: 175.34 | AD144: Arkansas_Sebastian_Nonirrigated | AE144: 05131 | AF144: Arkansas | AG144: Sebastian | AI144: Corn | AJ144: Bushel | AK144: Nonirrigated | AL144: 124 | AM144: 133 | AN144: 71 | AO144: 62.4 | AP144: 116.7 | AR144: 103.9 | AS144: 3.7 | AT144: 384.43 | AU144: 330.61 | AV144: 38.44 | DD144: Waller
A145: 05135 | B145: Arkansas | C145: Sharp | D145: Corn | E145: Bushel | F145: Nonirrigated | G145: Arkansas_Sharp_Nonirrigated | H145: 99 | I145: 104 | J145: 65 | K145: 74 | L145: 166 | M145: 163 | N145: 134 | O145: 171 | P145: 153 | Q145: 179.1111111 | R145: 164 | S145: 163 | T145: 134 | U145: 171 | V145: 153 | W145: 150 | X145: 139 | Y145: 175.34 | AD145: Arkansas_Sevier_Nonirrigated | AE145: 05133 | AF145: Arkansas | AG145: Sevier | AI145: Corn | AJ145: Bushel | AK145: Nonirrigated | AL145: 124 | AM145: 150 | AN145: 150 | AO145: 123.64 | AP145: 175.34 | AR145: 141.33 | DD145: Wharton
A146: 05145 | B146: Arkansas | C146: White | D146: Corn | E146: Bushel | F146: Nonirrigated | G146: Arkansas_White_Nonirrigated | H146: 118 | I146: 124 | J146: 89 | K146: 168 | L146: 154 | M146: 195 | N146: 147 | O146: 177 | P146: 183 | Q146: 184.7 | R146: 192.18 | S146: 186.93 | T146: 158.12 | U146: 136.62 | V146: 187.2 | W146: 125.64 | X146: 177.14 | Y146: 179.63 | AD146: Arkansas_Sharp_Nonirrigated | AE146: 05135 | AF146: Arkansas | AG146: Sharp | AI146: Corn | AJ146: Bushel | AK146: Nonirrigated | AL146: 171 | AM146: 153 | AN146: 150 | AO146: 139 | AP146: 175.34 | AR146: 158 | AS146: 3.7 | AT146: 584.6 | AU146: 502.76 | AV146: 58.46 | DD146: Wheeler
A147: 05147 | B147: Arkansas | C147: Woodruff | D147: Corn | E147: Bushel | F147: Irrigated | G147: Arkansas_Woodruff_Irrigated | Q147: 188.1 | R147: 196.27 | S147: 204.6 | T147: 169.57 | U147: 175.71 | V147: 166.81 | W147: 159.54 | X147: 172.83 | Y147: 166.98 | AD147: Arkansas_St. Francis_Irrigated | AE147: 05123 | AF147: Arkansas | AG147: St. Francis | AI147: Corn | AJ147: Bushel | AK147: Irrigated | AL147: 178.28 | AM147: 211.21 | AN147: 191.13 | AO147: 192.57 | AP147: 193.52 | AR147: 192.41 | AS147: 3.7 | AT147: 711.92 | AU147: 612.25 | AV147: 71.19 | DD147: Wichita
A148: 05147 | B148: Arkansas | C148: Woodruff | D148: Corn | E148: Bushel | F148: Nonirrigated | G148: Arkansas_Woodruff_Nonirrigated | H148: 139 | I148: 153 | J148: 144 | K148: 176 | L148: 166 | M148: 173 | N148: 163 | O148: 160 | P148: 165 | Q148: 188.1 | R148: 158.99 | S148: 165.75 | T148: 119.8 | U148: 147.49 | V148: 177.58 | W148: 129.29 | X148: 130.57 | Y148: 122.77 | AD148: Arkansas_St. Francis_Nonirrigated | AE148: 05123 | AF148: Arkansas | AG148: St. Francis | AI148: Corn | AJ148: Bushel | AK148: Nonirrigated | AL148: 111.59 | AM148: 200.2 | AN148: 126.73 | AO148: 151.29 | AP148: 160 | AR148: 146.01 | AS148: 3.7 | AT148: 540.24 | AU148: 464.61 | AV148: 54.02 | DD148: Wilbarger
A149: 05149 | B149: Arkansas | C149: Yell | D149: Corn | E149: Bushel | F149: Nonirrigated | G149: Arkansas_Yell_Nonirrigated | H149: 74 | I149: 88 | J149: 61 | K149: 61 | L149: 68 | M149: 121 | N149: 116 | O149: 116 | P149: 77 | Q149: 109.0555556 | R149: 146.17 | S149: 139.9 | T149: 95.03 | U149: 117.31 | V149: 115.42 | W149: 118.42 | X149: 80.8 | Y149: 116.36 | AD149: Arkansas_White_Nonirrigated | AE149: 05145 | AF149: Arkansas | AG149: White | AI149: Corn | AJ149: Bushel | AK149: Nonirrigated | AL149: 136.62 | AM149: 187.2 | AN149: 125.64 | AO149: 177.14 | AP149: 179.63 | AR149: 164.46 | AS149: 3.7 | AT149: 608.5 | AU149: 523.31 | AV149: 60.85 | DD149: Willacy
A150: 06001 | B150: California | C150: Alameda | D150: Corn | E150: Bushel | F150: Nonirrigated | G150: California_Alameda_Nonirrigated | H150: 154 | I150: 186 | J150: 154 | K150: 152 | L150: 169 | M150: 173 | N150: 150 | O150: 181 | P150: 181 | Q150: 175.5 | R150: 169 | S150: 173 | T150: 150 | U150: 181 | V150: 181 | W150: 181 | X150: 188 | Y150: 176 | AD150: Arkansas_Woodruff_Irrigated | AE150: 05147 | AF150: Arkansas | AG150: Woodruff | AI150: Corn | AJ150: Bushel | AK150: Irrigated | AL150: 175.71 | AM150: 166.81 | AN150: 159.54 | AO150: 172.83 | AP150: 166.98 | AR150: 168.87 | AS150: 3.7 | AT150: 624.82 | AU150: 537.35 | AV150: 62.48 | DD150: Williamson
A151: 06005 | B151: California | C151: Amador | D151: Corn | E151: Bushel | F151: Nonirrigated | G151: California_Amador_Nonirrigated | H151: 169 | I151: 179 | J151: 183 | K151: 208 | L151: 180 | M151: 199 | N151: 150 | O151: 181 | P151: 181 | Q151: 179.3611111 | R151: 180 | S151: 199 | T151: 150 | U151: 181 | V151: 181 | W151: 181 | X151: 178 | Y151: 176 | AD151: Arkansas_Woodruff_Nonirrigated | AE151: 05147 | AF151: Arkansas | AG151: Woodruff | AI151: Corn | AJ151: Bushel | AK151: Nonirrigated | AL151: 147.49 | AM151: 177.58 | AN151: 129.29 | AO151: 130.57 | AP151: 122.77 | AR151: 135.78 | AS151: 3.7 | AT151: 502.39 | AU151: 432.06 | AV151: 50.24 | DD151: Wilson
A152: 06011 | B152: California | C152: Colusa | D152: Corn | E152: Bushel | F152: Nonirrigated | G152: California_Colusa_Nonirrigated | H152: 168 | I152: 224 | J152: 166 | K152: 221 | L152: 200 | M152: 179 | N152: 225 | O152: 202 | P152: 200 | Q152: 209.8333333 | R152: 233.83 | S152: 185.9 | T152: 230.52 | U152: 211.56 | V152: 154.95 | W152: 226.65 | X152: 217.49 | Y152: 225.52 | AD152: Arkansas_Yell_Nonirrigated | AE152: 05149 | AF152: Arkansas | AG152: Yell | AI152: Corn | AJ152: Bushel | AK152: Nonirrigated | AL152: 117.31 | AM152: 115.42 | AN152: 118.42 | AO152: 80.8 | AP152: 116.36 | AR152: 116.36 | AS152: 3.7 | AT152: 430.53 | AU152: 370.26 | AV152: 43.05 | DD152: Wise
A153: 06013 | B153: California | C153: Contra Costa | D153: Corn | E153: Bushel | F153: Nonirrigated | G153: California_Contra Costa_Nonirrigated | H153: 131 | I153: 172 | J153: 148 | K153: 138 | L153: 133 | M153: 150 | N153: 150 | O153: 181 | P153: 181 | Q153: 174.0277778 | R153: 136.18 | S153: 152.45 | T153: 151.96 | U153: 185.38 | V153: 184.65 | W153: 183.92 | X153: 176.19 | Y153: 174.46 | AD153: California_Alameda_Nonirrigated | AE153: 06001 | AF153: California | AG153: Alameda | AI153: Corn | AJ153: Bushel | AK153: Nonirrigated | AL153: 181 | AM153: 181 | AN153: 181 | AO153: 188 | AP153: 176 | AR153: 181 | DD153: Yoakum
A154: 06019 | B154: California | C154: Fresno | D154: Corn | E154: Bushel | F154: Nonirrigated | G154: California_Fresno_Nonirrigated | H154: 187 | I154: 193 | J154: 140 | K154: 181 | L154: 193 | M154: 159 | N154: 166 | O154: 166 | P154: 173 | Q154: 164.1944444 | R154: 142.2 | S154: 142.1 | T154: 166.4 | U154: 166.6 | V154: 173.5 | W154: 185.4 | X154: 156.92 | Y154: 169.2 | AD154: California_Amador_Nonirrigated | AE154: 06005 | AF154: California | AG154: Amador | AI154: Corn | AJ154: Bushel | AK154: Nonirrigated | AL154: 181 | AM154: 181 | AN154: 181 | AO154: 178 | AP154: 176 | AR154: 180 | AS154: 3.7 | AT154: 666 | AU154: 572.76 | AV154: 66.6 | DD154: Young
A155: 06021 | B155: California | C155: Glenn | D155: Corn | E155: Bushel | F155: Nonirrigated | G155: California_Glenn_Nonirrigated | H155: 183 | I155: 242 | J155: 233 | K155: 214 | L155: 200 | M155: 197 | N155: 193 | O155: 255 | P155: 199 | Q155: 162 | R155: 207.62 | S155: 203.05 | T155: 198.28 | U155: 260.82 | V155: 203.12 | W155: 165.64 | X155: 164.73 | Y155: 247.1 | AD155: California_Colusa_Nonirrigated | AE155: 06011 | AF155: California | AG155: Colusa | AI155: Corn | AJ155: Bushel | AK155: Nonirrigated | AL155: 211.56 | AM155: 154.95 | AN155: 226.65 | AO155: 217.49 | AP155: 225.52 | AR155: 218.19 | AS155: 3.7 | AT155: 807.3 | AU155: 694.28 | AV155: 80.73 | DD155: Zavala
A156: 06025 | B156: California | C156: Imperial | D156: Corn | E156: Bushel | F156: Nonirrigated | G156: California_Imperial_Nonirrigated | H156: 154 | I156: 156 | J156: 105 | K156: 105 | L156: 178 | M156: 159 | R156: 178 | S156: 159 | T156: 1688 | AD156: California_Contra Costa_Nonirrigated | AE156: 06013 | AF156: California | AG156: Contra Costa | AI156: Corn | AJ156: Bushel | AK156: Nonirrigated | AL156: 185.38 | AM156: 184.65 | AN156: 183.92 | AO156: 176.19 | AP156: 174.46 | AR156: 181.59
A157: 06029 | B157: California | C157: Kern | D157: Corn | E157: Bushel | F157: Nonirrigated | G157: California_Kern_Nonirrigated | H157: 187 | I157: 193 | J157: 189 | K157: 120 | L157: 193 | M157: 159 | N157: 122 | O157: 157 | P157: 173 | Q157: 144.3055556 | R157: 193.6 | S157: 159.5 | T157: 137.2 | U157: 157.42 | V157: 173.5 | W157: 185.4 | X157: 167.3 | Y157: 174.2 | AD157: California_Fresno_Nonirrigated | AE157: 06019 | AF157: California | AG157: Fresno | AI157: Corn | AJ157: Bushel | AK157: Nonirrigated | AL157: 166.6 | AM157: 173.5 | AN157: 185.4 | AO157: 156.92 | AP157: 169.2 | AR157: 169.77 | AS157: 3.7 | AT157: 628.15 | AU157: 540.21 | AV157: 62.82
A158: 06031 | B158: California | C158: Kings | D158: Corn | E158: Bushel | F158: Nonirrigated | G158: California_Kings_Nonirrigated | H158: 187 | I158: 193 | J158: 228 | K158: 161 | L158: 225 | M158: 159 | N158: 166 | O158: 157 | P158: 157 | Q158: 151.9444444 | R158: 225.6 | S158: 159.5 | T158: 166.4 | U158: 157.6 | V158: 157.5 | W158: 185.4 | X158: 183.58 | Y158: 174.2 | AD158: California_Glenn_Nonirrigated | AE158: 06021 | AF158: California | AG158: Glenn | AI158: Corn | AJ158: Bushel | AK158: Nonirrigated | AL158: 260.82 | AM158: 203.12 | AN158: 165.64 | AO158: 164.73 | AP158: 247.1 | AR158: 205.29 | AS158: 3.7 | AT158: 759.57 | AU158: 653.23 | AV158: 75.96
A159: 06047 | B159: California | C159: Merced | D159: Corn | E159: Bushel | F159: Nonirrigated | G159: California_Merced_Nonirrigated | H159: 187 | I159: 193 | J159: 189 | K159: 201 | L159: 198 | M159: 159 | N159: 146 | O159: 119 | P159: 157 | Q159: 132.9444444 | R159: 198.72 | S159: 159.6 | T159: 146.88 | U159: 136.6 | V159: 157.5 | W159: 185.4 | X159: 173.43 | Y159: 156.17 | AD159: California_Kern_Nonirrigated | AE159: 06029 | AF159: California | AG159: Kern | AI159: Corn | AJ159: Bushel | AK159: Nonirrigated | AL159: 157.42 | AM159: 173.5 | AN159: 185.4 | AO159: 167.3 | AP159: 174.2 | AR159: 171.67 | AS159: 3.7 | AT159: 635.18 | AU159: 546.25 | AV159: 63.52
A160: 06061 | B160: California | C160: Placer | D160: Corn | E160: Bushel | F160: Nonirrigated | G160: California_Placer_Nonirrigated | H160: 160 | I160: 156 | J160: 163 | K160: 208 | L160: 178 | M160: 125 | N160: 166 | O160: 166 | P160: 165 | Q160: 162.9722222 | R160: 178 | S160: 144.8 | T160: 166 | U160: 166 | V160: 165 | W160: 165 | X160: 179 | Y160: 157 | AD160: California_Kings_Nonirrigated | AE160: 06031 | AF160: California | AG160: Kings | AI160: Corn | AJ160: Bushel | AK160: Nonirrigated | AL160: 157.6 | AM160: 157.5 | AN160: 185.4 | AO160: 183.58 | AP160: 174.2 | AR160: 171.79 | AS160: 3.7 | AT160: 635.62 | AU160: 546.63 | AV160: 63.56
A161: 06065 | B161: California | C161: Riverside | D161: Corn | E161: Bushel | F161: Nonirrigated | G161: California_Riverside_Nonirrigated | H161: 154 | I161: 156 | J161: 125 | K161: 125 | L161: 178 | M161: 125 | N161: 168 | O161: 157 | P161: 157 | Q161: 157.8611111 | R161: 178 | S161: 143.2 | T161: 168 | U161: 157 | V161: 157 | W161: 157 | X161: 154 | Y161: 147 | AD161: California_Madera_Nonirrigated | AE161: 06039 | AF161: California | AG161: Madera | AI161: Corn | AJ161: Bushel | AK161: Nonirrigated | AL161: 174.6 | AM161: 131.7 | AN161: 168.4 | AO161: 171.3 | AP161: 165.2 | AR161: 168.3 | AS161: 3.7 | AT161: 622.71 | AU161: 535.53 | AV161: 62.27
A162: 06067 | B162: California | C162: Sacramento | D162: Corn | E162: Bushel | F162: Irrigated | G162: California_Sacramento_Irrigated | Q162: 172.9 | R162: 179.83 | S162: 177.12 | T162: 162.91 | U162: 190.77 | V162: 173.67 | W162: 164.92 | X162: 166.34 | Y162: 168.7 | AD162: California_Merced_Nonirrigated | AE162: 06047 | AF162: California | AG162: Merced | AI162: Corn | AJ162: Bushel | AK162: Nonirrigated | AL162: 136.6 | AM162: 157.5 | AN162: 185.4 | AO162: 173.43 | AP162: 156.17 | AR162: 162.37 | AS162: 3.7 | AT162: 600.77 | AU162: 516.66 | AV162: 60.08
A163: 06067 | B163: California | C163: Sacramento | D163: Corn | E163: Bushel | F163: Nonirrigated | G163: California_Sacramento_Nonirrigated | H163: 159 | I163: 166 | J163: 180 | K163: 170 | L163: 178 | M163: 173 | N163: 157 | O163: 214 | P163: 165 | Q163: 172.9 | R163: 69 | S163: 69 | T163: 63 | U163: 75 | V163: 68 | W163: 73 | X163: 69 | Y163: 71 | AD163: California_Placer_Nonirrigated | AE163: 06061 | AF163: California | AG163: Placer | AI163: Corn | AJ163: Bushel | AK163: Nonirrigated | AL163: 166 | AM163: 165 | AN163: 165 | AO163: 179 | AP163: 157 | AR163: 165.33 | AS163: 3.7 | AT163: 611.72 | AU163: 526.08 | AV163: 61.17
A164: 06069 | B164: California | C164: San Benito | D164: Corn | E164: Bushel | F164: Nonirrigated | G164: California_San Benito_Nonirrigated | H164: 154 | I164: 156 | J164: 166 | K164: 152 | L164: 178 | M164: 163 | N164: 166 | O164: 166 | P164: 165 | Q164: 169.9722222 | R164: 178 | S164: 163 | T164: 166 | U164: 166 | V164: 165 | W164: 165 | X164: 172 | Y164: 165 | AD164: California_Riverside_Nonirrigated | AE164: 06065 | AF164: California | AG164: Riverside | AI164: Corn | AJ164: Bushel | AK164: Nonirrigated | AL164: 157 | AM164: 157 | AN164: 157 | AO164: 154 | AP164: 147 | AR164: 156 | AS164: 3.7 | AT164: 577.2 | AU164: 496.39 | AV164: 57.72
A165: 06077 | B165: California | C165: San Joaquin | D165: Corn | E165: Bushel | F165: Nonirrigated | G165: California_San Joaquin_Nonirrigated | H165: 179 | I165: 193 | J165: 186 | K165: 174 | L165: 182 | M165: 152 | N165: 158 | O165: 181 | P165: 170 | Q165: 138.9 | R165: 176.45 | S165: 152.16 | T165: 163.87 | U165: 162.6 | V165: 174.25 | W165: 188.38 | X165: 179.02 | Y165: 154.49 | AD165: California_Sacramento_Irrigated | AE165: 06067 | AF165: California | AG165: Sacramento | AI165: Corn | AJ165: Bushel | AK165: Irrigated | AL165: 190.77 | AM165: 173.67 | AN165: 164.92 | AO165: 166.34 | AP165: 168.7 | AR165: 169.57 | AS165: 3.7 | AT165: 627.41 | AU165: 539.57 | AV165: 62.74
A166: 06095 | B166: California | C166: Solano | D166: Corn | E166: Bushel | F166: Nonirrigated | G166: California_Solano_Nonirrigated | H166: 168 | I166: 203 | J166: 194 | K166: 208 | L166: 211 | M166: 170 | N166: 156 | O166: 194 | P166: 178 | Q166: 164.7 | R166: 181.17 | S166: 176.1 | T166: 160.48 | U166: 198.8 | V166: 181.55 | W166: 167.95 | X166: 159.24 | Y166: 229.39 | AD166: California_Sacramento_Nonirrigated | AE166: 06067 | AF166: California | AG166: Sacramento | AI166: Corn | AJ166: Bushel | AK166: Nonirrigated | AL166: 75 | AM166: 68 | AN166: 73 | AO166: 69 | AP166: 71 | AR166: 71 | AS166: 3.7 | AT166: 262.7 | AU166: 225.92 | AV166: 26.27
A167: 06097 | B167: California | C167: Sonoma | D167: Corn | E167: Bushel | F167: Nonirrigated | G167: California_Sonoma_Nonirrigated | H167: 154 | I167: 194 | J167: 184 | K167: 152 | L167: 207 | M167: 184 | N167: 166 | O167: 194 | P167: 173 | Q167: 184.6666667 | R167: 207 | S167: 184 | T167: 166 | U167: 194 | V167: 173 | W167: 173 | X167: 189 | Y167: 169 | AD167: California_San Benito_Nonirrigated | AE167: 06069 | AF167: California | AG167: San Benito | AI167: Corn | AJ167: Bushel | AK167: Nonirrigated | AL167: 166 | AM167: 165 | AN167: 165 | AO167: 172 | AP167: 165 | AR167: 165.33 | AS167: 3.7 | AT167: 611.72 | AU167: 526.08 | AV167: 61.17
A168: 06099 | B168: California | C168: Stanislaus | D168: Corn | E168: Bushel | F168: Nonirrigated | G168: California_Stanislaus_Nonirrigated | H168: 187 | I168: 193 | J168: 128 | K168: 134 | L168: 193 | M168: 125 | N168: 166 | O168: 181 | P168: 173 | Q168: 150 | R168: 193.72 | S168: 142.2 | T168: 166.48 | U168: 181.6 | V168: 173.5 | W168: 150.4 | X168: 175.3 | Y168: 176.2 | AD168: California_San Joaquin_Nonirrigated | AE168: 06077 | AF168: California | AG168: San Joaquin | AI168: Corn | AJ168: Bushel | AK168: Nonirrigated | AL168: 162.6 | AM168: 174.25 | AN168: 188.38 | AO168: 179.02 | AP168: 154.49 | AR168: 171.96 | AS168: 3.7 | AT168: 636.25 | AU168: 547.18 | AV168: 63.63
A169: 06101 | B169: California | C169: Sutter | D169: Corn | E169: Bushel | F169: Nonirrigated | G169: California_Sutter_Nonirrigated | H169: 221 | I169: 202 | J169: 232 | K169: 227 | L169: 179 | M169: 221 | N169: 228 | O169: 264 | P169: 188 | Q169: 210 | R169: 233.06 | S169: 225.39 | T169: 233.1 | U169: 241.74 | V169: 196.06 | W169: 225.74 | X169: 233.89 | Y169: 215.49 | AD169: California_Solano_Nonirrigated | AE169: 06095 | AF169: California | AG169: Solano | AI169: Corn | AJ169: Bushel | AK169: Nonirrigated | AL169: 198.8 | AM169: 181.55 | AN169: 167.95 | AO169: 159.24 | AP169: 229.39 | AR169: 182.77 | AS169: 3.7 | AT169: 676.25 | AU169: 581.58 | AV169: 67.63
A170: 06103 | B170: California | C170: Tehama | D170: Corn | E170: Bushel | F170: Nonirrigated | G170: California_Tehama_Nonirrigated | H170: 168 | I170: 225 | J170: 189 | K170: 194 | L170: 200 | M170: 179 | N170: 200 | O170: 157 | P170: 173 | Q170: 172.4722222 | R170: 209.84 | S170: 187.2 | T170: 206.56 | U170: 165.4 | V170: 180 | W170: 188.6 | X170: 202.2 | Y170: 196.8 | AD170: California_Sonoma_Nonirrigated | AE170: 06097 | AF170: California | AG170: Sonoma | AI170: Corn | AJ170: Bushel | AK170: Nonirrigated | AL170: 194 | AM170: 173 | AN170: 173 | AO170: 189 | AP170: 169 | AR170: 178.33 | AS170: 3.7 | AT170: 659.82 | AU170: 567.45 | AV170: 65.98
A171: 06107 | B171: California | C171: Tulare | D171: Corn | E171: Bushel | F171: Nonirrigated | G171: California_Tulare_Nonirrigated | H171: 187 | I171: 193 | J171: 234 | K171: 239 | L171: 232 | M171: 186 | N171: 200 | O171: 194 | P171: 198 | Q171: 200.8333333 | R171: 233.12 | S171: 186.6 | T171: 200.48 | U171: 194.77 | V171: 198.88 | W171: 185.4 | X171: 183.58 | Y171: 193.2 | AD171: California_Stanislaus_Nonirrigated | AE171: 06099 | AF171: California | AG171: Stanislaus | AI171: Corn | AJ171: Bushel | AK171: Nonirrigated | AL171: 181.6 | AM171: 173.5 | AN171: 150.4 | AO171: 175.3 | AP171: 176.2 | AR171: 175 | AS171: 3.7 | AT171: 647.5 | AU171: 556.85 | AV171: 64.75
A172: 06113 | B172: California | C172: Yolo | D172: Corn | E172: Bushel | F172: Nonirrigated | G172: California_Yolo_Nonirrigated | H172: 158 | I172: 206 | J172: 169 | K172: 166 | L172: 213 | M172: 146 | N172: 141 | O172: 210 | P172: 182 | Q172: 196.7 | R172: 190.72 | S172: 152.39 | T172: 145.78 | U172: 214.68 | V172: 169.29 | W172: 200.91 | X172: 193.28 | Y172: 224.31 | AD172: California_Sutter_Nonirrigated | AE172: 06101 | AF172: California | AG172: Sutter | AI172: Corn | AJ172: Bushel | AK172: Nonirrigated | AL172: 241.74 | AM172: 196.06 | AN172: 225.74 | AO172: 233.89 | AP172: 215.49 | AR172: 225.04 | AS172: 3.7 | AT172: 832.65 | AU172: 716.08 | AV172: 83.27
A173: 06115 | B173: California | C173: Yuba | D173: Corn | E173: Bushel | F173: Nonirrigated | G173: California_Yuba_Nonirrigated | H173: 168 | I173: 200 | J173: 189 | K173: 194 | L173: 200 | M173: 179 | N173: 164 | O173: 214 | P173: 173 | Q173: 186.5277778 | R173: 208.46 | S173: 186.05 | T173: 169.64 | U173: 223.72 | V173: 181.1 | W173: 189.48 | X173: 214.86 | Y173: 194.24 | AD173: California_Tehama_Nonirrigated | AE173: 06103 | AF173: California | AG173: Tehama | AI173: Corn | AJ173: Bushel | AK173: Nonirrigated | AL173: 165.4 | AM173: 180 | AN173: 188.6 | AO173: 202.2 | AP173: 196.8 | AR173: 188.47 | AS173: 3.7 | AT173: 697.34 | AU173: 599.71 | AV173: 69.73
A174: 08001 | B174: Colorado | C174: Adams | D174: Corn | E174: Bushel | F174: Irrigated | G174: Colorado_Adams_Irrigated | H174: 164 | I174: 160 | J174: 142 | K174: 136 | L174: 157 | M174: 162 | N174: 186 | O174: 169 | P174: 190 | Q174: 51.5 | R174: 162.57 | S174: 166.9 | T174: 189.52 | U174: 148.78 | V174: 195.29 | W174: 157.36 | X174: 156.48 | Y174: 126.04 | AD174: California_Tulare_Nonirrigated | AE174: 06107 | AF174: California | AG174: Tulare | AI174: Corn | AJ174: Bushel | AK174: Nonirrigated | AL174: 194.77 | AM174: 198.88 | AN174: 185.4 | AO174: 183.58 | AP174: 193.2 | AR174: 191.12 | AS174: 3.7 | AT174: 707.14 | AU174: 608.14 | AV174: 70.71
A175: 08001 | B175: Colorado | C175: Adams | D175: Corn | E175: Bushel | F175: Nonirrigated | G175: Colorado_Adams_Nonirrigated | H175: 57 | I175: 36 | J175: 25 | K175: 19 | L175: 36 | M175: 76 | N175: 64 | O175: 50 | P175: 55 | Q175: 51.5 | R175: 35.68 | S175: 75.91 | T175: 57.55 | U175: 54.72 | V175: 44.49 | W175: 25.48 | X175: 38.13 | Y175: 33.6 | AD175: California_Yolo_Nonirrigated | AE175: 06113 | AF175: California | AG175: Yolo | AI175: Corn | AJ175: Bushel | AK175: Nonirrigated | AL175: 214.68 | AM175: 169.29 | AN175: 200.91 | AO175: 193.28 | AP175: 224.31 | AR175: 202.96 | AS175: 3.7 | AT175: 750.95 | AU175: 645.82 | AV175: 75.1
A176: 08003 | B176: Colorado | C176: Alamosa | D176: Corn | E176: Bushel | F176: Nonirrigated | G176: Colorado_Alamosa_Nonirrigated | H176: 153 | I176: 151 | J176: 136 | K176: 133 | L176: 143 | M176: 153 | N176: 159 | O176: 145 | P176: 147 | Q176: 148.6666667 | R176: 143 | S176: 153 | T176: 159 | U176: 145 | V176: 147 | W176: 127 | X176: 120.54 | Y176: 118.29 | AD176: California_Yuba_Nonirrigated | AE176: 06115 | AF176: California | AG176: Yuba | AI176: Corn | AJ176: Bushel | AK176: Nonirrigated | AL176: 223.72 | AM176: 181.1 | AN176: 189.48 | AO176: 214.86 | AP176: 194.24 | AR176: 199.53 | AS176: 3.7 | AT176: 738.26 | AU176: 634.9 | AV176: 73.83
A177: 08005 | B177: Colorado | C177: Arapahoe | D177: Corn | E177: Bushel | F177: Nonirrigated | G177: Colorado_Arapahoe_Nonirrigated | H177: 141 | I177: 43 | J177: 28 | K177: 24 | L177: 31 | M177: 77 | N177: 60 | O177: 38 | P177: 44 | Q177: 30.16666667 | R177: 31.24 | S177: 77.37 | T177: 59.76 | U177: 38.3 | V177: 43.64 | W177: 27.2 | X177: 38.16 | Y177: 31.2 | AD177: Colorado_Adams_Irrigated | AE177: 08001 | AF177: Colorado | AG177: Adams | AI177: Corn | AJ177: Bushel | AK177: Irrigated | AL177: 148.78 | AM177: 195.29 | AN177: 157.36 | AO177: 156.48 | AP177: 126.04 | AR177: 154.21 | AS177: 3.7 | AT177: 570.58 | AU177: 490.7 | AV177: 57.06
A178: 08009 | B178: Colorado | C178: Baca | D178: Corn | E178: Bushel | F178: Irrigated | G178: Colorado_Baca_Irrigated | H178: 197 | I178: 184 | J178: 124 | K178: 143 | L178: 187 | M178: 179 | N178: 121 | O178: 164 | P178: 156 | Q178: 145.5 | R178: 199.02 | S178: 189.31 | T178: 174.45 | U178: 187.76 | V178: 163.21 | W178: 187.17 | X178: 150.34 | Y178: 140.49 | AD178: Colorado_Adams_Nonirrigated | AE178: 08001 | AF178: Colorado | AG178: Adams | AI178: Corn | AJ178: Bushel | AK178: Nonirrigated | AL178: 54.72 | AM178: 44.49 | AN178: 25.48 | AO178: 38.13 | AP178: 33.6 | AR178: 38.74 | AS178: 3.7 | AT178: 143.34 | AU178: 123.27 | AV178: 14.33
A179: 08009 | B179: Colorado | C179: Baca | D179: Corn | E179: Bushel | F179: Nonirrigated | G179: Colorado_Baca_Nonirrigated | H179: 24 | I179: 32 | J179: 19 | K179: 19 | L179: 19 | M179: 21 | N179: 39 | O179: 58 | P179: 88 | Q179: 66.77777778 | R179: 21.6 | S179: 21.6 | T179: 39.47 | U179: 50.49 | V179: 81.59 | W179: 57.91 | X179: 35.78 | Y179: 26.4 | AD179: Colorado_Alamosa_Nonirrigated | AE179: 08003 | AF179: Colorado | AG179: Alamosa | AI179: Corn | AJ179: Bushel | AK179: Nonirrigated | AL179: 145 | AM179: 147 | AN179: 127 | AO179: 120.54 | AP179: 118.29 | AR179: 130.85 | AS179: 3.7 | AT179: 484.15 | AU179: 416.37 | AV179: 48.42
A180: 08011 | B180: Colorado | C180: Bent | D180: Corn | E180: Bushel | F180: Nonirrigated | G180: Colorado_Bent_Nonirrigated | H180: 132 | I180: 143 | J180: 132 | K180: 78 | L180: 128 | M180: 125 | N180: 144 | O180: 155 | P180: 164 | Q180: 176.2 | R180: 138.2 | S180: 122.02 | T180: 168.32 | U180: 167.77 | V180: 186.59 | W180: 112.82 | X180: 155.1 | Y180: 121.19 | AD180: Colorado_Arapahoe_Nonirrigated | AE180: 08005 | AF180: Colorado | AG180: Arapahoe | AI180: Corn | AJ180: Bushel | AK180: Nonirrigated | AL180: 38.3 | AM180: 43.64 | AN180: 27.2 | AO180: 38.16 | AP180: 31.2 | AR180: 35.89 | AS180: 3.7 | AT180: 132.79 | AU180: 114.2 | AV180: 13.28
A181: 08013 | B181: Colorado | C181: Boulder | D181: Corn | E181: Bushel | F181: Nonirrigated | G181: Colorado_Boulder_Nonirrigated | H181: 169 | I181: 155 | J181: 173 | K181: 162 | L181: 155 | M181: 175 | N181: 168 | O181: 153 | P181: 160 | Q181: 160.0833333 | R181: 162.46 | S181: 181.63 | T181: 173.18 | U181: 169.63 | V181: 190.28 | W181: 128.66 | X181: 172.89 | Y181: 191.97 | AD181: Colorado_Baca_Irrigated | AE181: 08009 | AF181: Colorado | AG181: Baca | AI181: Corn | AJ181: Bushel | AK181: Irrigated | AL181: 187.76 | AM181: 163.21 | AN181: 187.17 | AO181: 150.34 | AP181: 140.49 | AR181: 166.91 | AS181: 3.7 | AT181: 617.57 | AU181: 531.11 | AV181: 61.76
A182: 08017 | B182: Colorado | C182: Cheyenne | D182: Corn | E182: Bushel | F182: Irrigated | G182: Colorado_Cheyenne_Irrigated | H182: 179 | I182: 204 | J182: 191 | K182: 145 | L182: 189 | M182: 174 | N182: 188 | O182: 176 | P182: 164 | Q182: 93.1 | R182: 185.52 | S182: 177.03 | T182: 203.83 | U182: 163.93 | V182: 195.18 | W182: 197.83 | X182: 141.33 | Y182: 167.67 | AD182: Colorado_Baca_Nonirrigated | AE182: 08009 | AF182: Colorado | AG182: Baca | AI182: Corn | AJ182: Bushel | AK182: Nonirrigated | AL182: 50.49 | AM182: 81.59 | AN182: 57.91 | AO182: 35.78 | AP182: 26.4 | AR182: 48.06 | AS182: 3.7 | AT182: 177.82 | AU182: 152.93 | AV182: 17.78
A183: 08017 | B183: Colorado | C183: Cheyenne | D183: Corn | E183: Bushel | F183: Nonirrigated | G183: Colorado_Cheyenne_Nonirrigated | H183: 91 | I183: 82 | J183: 51 | K183: 13 | L183: 13 | M183: 42 | N183: 74 | O183: 54 | P183: 88 | Q183: 93.1 | R183: 16.63 | S183: 42.33 | T183: 73.88 | U183: 56.96 | V183: 87.82 | W183: 63.77 | X183: 60.34 | Y183: 29.6 | AD183: Colorado_Bent_Nonirrigated | AE183: 08011 | AF183: Colorado | AG183: Bent | AI183: Corn | AJ183: Bushel | AK183: Nonirrigated | AL183: 167.77 | AM183: 186.59 | AN183: 112.82 | AO183: 155.1 | AP183: 121.19 | AR183: 148.02 | AS183: 3.7 | AT183: 547.67 | AU183: 471 | AV183: 54.77
A184: 08021 | B184: Colorado | C184: Conejos | D184: Corn | E184: Bushel | F184: Nonirrigated | G184: Colorado_Conejos_Nonirrigated | H184: 153 | I184: 151 | J184: 136 | K184: 133 | L184: 131 | M184: 153 | N184: 159 | O184: 145 | P184: 147 | Q184: 147.3333333 | R184: 131 | S184: 153 | T184: 159 | U184: 145 | V184: 147 | W184: 127 | X184: 120.54 | Y184: 118.29 | AD184: Colorado_Boulder_Nonirrigated | AE184: 08013 | AF184: Colorado | AG184: Boulder | AI184: Corn | AJ184: Bushel | AK184: Nonirrigated | AL184: 169.63 | AM184: 190.28 | AN184: 128.66 | AO184: 172.89 | AP184: 191.97 | AR184: 177.6 | AS184: 3.7 | AT184: 657.12 | AU184: 565.12 | AV184: 65.71
A185: 08025 | B185: Colorado | C185: Crowley | D185: Corn | E185: Bushel | F185: Nonirrigated | G185: Colorado_Crowley_Nonirrigated | H185: 116 | I185: 138 | J185: 98 | K185: 100 | L185: 128 | M185: 142 | N185: 192 | O185: 71 | P185: 148 | Q185: 138.9722222 | R185: 137.3 | S185: 149.75 | T185: 198.2 | U185: 92.14 | V185: 157.34 | W185: 132.69 | X185: 157.75 | Y185: 106.98 | AD185: Colorado_Broomfield_Nonirrigated | AE185: 08014 | AF185: Colorado | AG185: Broomfield | AI185: Corn | AJ185: Bushel | AK185: Nonirrigated | AL185: 146 | AM185: 131 | AN185: 96 | AO185: 96 | AP185: 168.86 | AR185: 124.33 | AS185: 3.7 | AT185: 460.02 | AU185: 395.62 | AV185: 46
A186: 08029 | B186: Colorado | C186: Delta | D186: Corn | E186: Bushel | F186: Nonirrigated | G186: Colorado_Delta_Nonirrigated | H186: 175 | I186: 182 | J186: 197 | K186: 185 | L186: 197 | M186: 202 | N186: 190 | O186: 195 | P186: 176 | Q186: 192.6111111 | R186: 200.5 | S186: 204.97 | T186: 218.32 | U186: 203.44 | V186: 216.82 | W186: 190.88 | X186: 168.44 | Y186: 178.84 | AD186: Colorado_Cheyenne_Irrigated | AE186: 08017 | AF186: Colorado | AG186: Cheyenne | AI186: Corn | AJ186: Bushel | AK186: Irrigated | AL186: 163.93 | AM186: 195.18 | AN186: 197.83 | AO186: 141.33 | AP186: 167.67 | AR186: 175.59 | AS186: 3.7 | AT186: 649.68 | AU186: 558.72 | AV186: 64.97
A187: 08031 | B187: Colorado | C187: Denver | D187: Corn | E187: Bushel | F187: Nonirrigated | G187: Colorado_Denver_Nonirrigated | H187: 141 | I187: 140 | J187: 116 | K187: 88 | L187: 113 | M187: 135 | N187: 141 | O187: 126 | P187: 133 | Q187: 127.8055556 | R187: 113 | S187: 135 | T187: 141 | AD187: Colorado_Cheyenne_Nonirrigated | AE187: 08017 | AF187: Colorado | AG187: Cheyenne | AI187: Corn | AJ187: Bushel | AK187: Nonirrigated | AL187: 56.96 | AM187: 87.82 | AN187: 63.77 | AO187: 60.34 | AP187: 29.6 | AR187: 60.36 | AS187: 3.7 | AT187: 223.33 | AU187: 192.06 | AV187: 22.33
A188: 08033 | B188: Colorado | C188: Dolores | D188: Corn | E188: Bushel | F188: Nonirrigated | G188: Colorado_Dolores_Nonirrigated | H188: 187 | I188: 193 | J188: 201 | K188: 193 | L188: 204 | M188: 153 | N188: 171 | O188: 108 | P188: 147 | Q188: 130.0833333 | R188: 204 | S188: 153 | T188: 171 | U188: 120.8 | V188: 147 | W188: 127 | X188: 120.8 | Y188: 120.8 | AD188: Colorado_Conejos_Nonirrigated | AE188: 08021 | AF188: Colorado | AG188: Conejos | AI188: Corn | AJ188: Bushel | AK188: Nonirrigated | AL188: 145 | AM188: 147 | AN188: 127 | AO188: 120.54 | AP188: 118.29 | AR188: 130.85 | AS188: 3.7 | AT188: 484.15 | AU188: 416.37 | AV188: 48.42
A189: 08039 | B189: Colorado | C189: Elbert | D189: Corn | E189: Bushel | F189: Nonirrigated | G189: Colorado_Elbert_Nonirrigated | H189: 55 | I189: 65 | J189: 52 | K189: 23 | L189: 32 | M189: 44 | N189: 74 | O189: 37 | P189: 71 | Q189: 54.08333333 | R189: 33.1 | S189: 44.9 | T189: 65.98 | U189: 47.08 | V189: 47.68 | W189: 34.48 | X189: 54.35 | Y189: 32.44 | AD189: Colorado_Crowley_Nonirrigated | AE189: 08025 | AF189: Colorado | AG189: Crowley | AI189: Corn | AJ189: Bushel | AK189: Nonirrigated | AL189: 92.14 | AM189: 157.34 | AN189: 132.69 | AO189: 157.75 | AP189: 106.98 | AR189: 132.34 | AS189: 3.7 | AT189: 489.66 | AU189: 421.11 | AV189: 48.97
A190: 08041 | B190: Colorado | C190: El Paso | D190: Corn | E190: Bushel | F190: Nonirrigated | G190: Colorado_El Paso_Nonirrigated | H190: 141 | I190: 140 | J190: 116 | K190: 93 | L190: 113 | M190: 135 | N190: 141 | O190: 126 | P190: 133 | Q190: 127.9444444 | R190: 113 | S190: 135 | T190: 141 | U190: 126 | V190: 133 | W190: 127 | X190: 115.91 | Y190: 118.29 | AD190: Colorado_Delta_Nonirrigated | AE190: 08029 | AF190: Colorado | AG190: Delta | AI190: Corn | AJ190: Bushel | AK190: Nonirrigated | AL190: 203.44 | AM190: 216.82 | AN190: 190.88 | AO190: 168.44 | AP190: 178.84 | AR190: 191.05 | AS190: 3.7 | AT190: 706.89 | AU190: 607.93 | AV190: 70.69
A191: 08045 | B191: Colorado | C191: Garfield | D191: Corn | E191: Bushel | F191: Nonirrigated | G191: Colorado_Garfield_Nonirrigated | H191: 214 | I191: 219 | J191: 213 | K191: 185 | L191: 197 | M191: 153 | N191: 171 | O191: 145 | P191: 147 | Q191: 132.1666667 | R191: 197 | S191: 153 | T191: 171 | U191: 145 | V191: 147 | W191: 136.8 | X191: 136.8 | Y191: 177.02 | AD191: Colorado_Dolores_Nonirrigated | AE191: 08033 | AF191: Colorado | AG191: Dolores | AI191: Corn | AJ191: Bushel | AK191: Nonirrigated | AL191: 120.8 | AM191: 147 | AN191: 127 | AO191: 120.8 | AP191: 120.8 | AR191: 122.87 | AS191: 3.7 | AT191: 454.62 | AU191: 390.97 | AV191: 45.46
A192: 08055 | B192: Colorado | C192: Huerfano | D192: Corn | E192: Bushel | F192: Nonirrigated | G192: Colorado_Huerfano_Nonirrigated | H192: 150 | I192: 140 | J192: 92 | K192: 100 | L192: 128 | M192: 142 | N192: 159 | O192: 148 | P192: 148 | Q192: 150.1111111 | R192: 131.2 | S192: 142 | T192: 159 | U192: 148 | V192: 148 | W192: 144 | X192: 153 | Y192: 144 | AD192: Colorado_El Paso_Nonirrigated | AE192: 08041 | AF192: Colorado | AG192: El Paso | AI192: Corn | AJ192: Bushel | AK192: Nonirrigated | AL192: 126 | AM192: 133 | AN192: 127 | AO192: 115.91 | AP192: 118.29 | AR192: 123.76 | AS192: 3.7 | AT192: 457.91 | AU192: 393.8 | AV192: 45.79
A193: 08061 | B193: Colorado | C193: Kiowa | D193: Corn | E193: Bushel | F193: Nonirrigated | G193: Colorado_Kiowa_Nonirrigated | H193: 79 | I193: 60 | J193: 52 | K193: 18 | L193: 34 | M193: 22 | N193: 77 | O193: 50 | P193: 92 | Q193: 66.9 | R193: 26.06 | S193: 26.93 | T193: 57.5 | U193: 43.17 | V193: 95.97 | W193: 52.89 | X193: 65.56 | Y193: 31.32 | AD193: Colorado_Elbert_Nonirrigated | AE193: 08039 | AF193: Colorado | AG193: Elbert | AI193: Corn | AJ193: Bushel | AK193: Nonirrigated | AL193: 47.08 | AM193: 47.68 | AN193: 34.48 | AO193: 54.35 | AP193: 32.44 | AR193: 43.08 | AS193: 3.7 | AT193: 159.4 | AU193: 137.08 | AV193: 15.94
A194: 08063 | B194: Colorado | C194: Kit Carson | D194: Corn | E194: Bushel | F194: Irrigated | G194: Colorado_Kit Carson_Irrigated | H194: 182 | I194: 195 | J194: 176 | K194: 117 | L194: 159 | M194: 145 | N194: 185 | O194: 184 | P194: 191 | Q194: 121.7 | R194: 167.72 | S194: 164.17 | T194: 200.37 | U194: 197.67 | V194: 211.98 | W194: 187.05 | X194: 154.14 | Y194: 150.19 | AD194: Colorado_Garfield_Nonirrigated | AE194: 08045 | AF194: Colorado | AG194: Garfield | AI194: Corn | AJ194: Bushel | AK194: Nonirrigated | AL194: 145 | AM194: 147 | AN194: 136.8 | AO194: 136.8 | AP194: 177.02 | AR194: 142.93 | AS194: 3.7 | AT194: 528.84 | AU194: 454.8 | AV194: 52.88
A195: 08063 | B195: Colorado | C195: Kit Carson | D195: Corn | E195: Bushel | F195: Nonirrigated | G195: Colorado_Kit Carson_Nonirrigated | H195: 90 | I195: 87 | J195: 59 | K195: 21 | L195: 26 | M195: 44 | N195: 67 | O195: 75 | P195: 97 | Q195: 121.7 | R195: 27.43 | S195: 62.89 | T195: 83.04 | U195: 87.01 | V195: 101.2 | W195: 77.61 | X195: 69.7 | Y195: 36.8 | AD195: Colorado_Huerfano_Nonirrigated | AE195: 08055 | AF195: Colorado | AG195: Huerfano | AI195: Corn | AJ195: Bushel | AK195: Nonirrigated | AL195: 148 | AM195: 148 | AN195: 144 | AO195: 153 | AP195: 144 | AR195: 146.67 | AS195: 3.7 | AT195: 542.68 | AU195: 466.7 | AV195: 54.27
A196: 08067 | B196: Colorado | C196: La Plata | D196: Corn | E196: Bushel | F196: Nonirrigated | G196: Colorado_La Plata_Nonirrigated | H196: 187 | I196: 193 | J196: 201 | K196: 193 | L196: 204 | M196: 153 | N196: 171 | O196: 108 | P196: 147 | Q196: 130.0833333 | R196: 204 | S196: 153 | T196: 171 | U196: 108 | V196: 147 | W196: 127 | X196: 183.8 | Y196: 177.02 | AD196: Colorado_Kiowa_Nonirrigated | AE196: 08061 | AF196: Colorado | AG196: Kiowa | AI196: Corn | AJ196: Bushel | AK196: Nonirrigated | AL196: 43.17 | AM196: 95.97 | AN196: 52.89 | AO196: 65.56 | AP196: 31.32 | AR196: 53.87 | AS196: 3.7 | AT196: 199.32 | AU196: 171.42 | AV196: 19.93
A197: 08069 | B197: Colorado | C197: Larimer | D197: Corn | E197: Bushel | F197: Nonirrigated | G197: Colorado_Larimer_Nonirrigated | H197: 149 | I197: 184 | J197: 157 | K197: 126 | L197: 106 | M197: 136 | N197: 129 | O197: 99 | P197: 155 | Q197: 114.8055556 | R197: 152.81 | S197: 154.34 | T197: 181.97 | U197: 168.69 | V197: 171.55 | W197: 158.51 | X197: 162.88 | Y197: 176.05 | AD197: Colorado_Kit Carson_Irrigated | AE197: 08063 | AF197: Colorado | AG197: Kit Carson | AI197: Corn | AJ197: Bushel | AK197: Irrigated | AL197: 197.67 | AM197: 211.98 | AN197: 187.05 | AO197: 154.14 | AP197: 150.19 | AR197: 179.62 | AS197: 3.7 | AT197: 664.59 | AU197: 571.55 | AV197: 66.46
A198: 08071 | B198: Colorado | C198: Las Animas | D198: Corn | E198: Bushel | F198: Nonirrigated | G198: Colorado_Las Animas_Nonirrigated | H198: 150 | I198: 140 | J198: 92 | K198: 100 | L198: 128 | M198: 142 | N198: 159 | O198: 148 | P198: 148 | Q198: 150.1111111 | R198: 128 | S198: 142 | T198: 159 | U198: 148 | V198: 148 | W198: 129 | X198: 114.06 | Y198: 118.29 | AD198: Colorado_Kit Carson_Nonirrigated | AE198: 08063 | AF198: Colorado | AG198: Kit Carson | AI198: Corn | AJ198: Bushel | AK198: Nonirrigated | AL198: 87.01 | AM198: 101.2 | AN198: 77.61 | AO198: 69.7 | AP198: 36.8 | AR198: 78.11 | AS198: 3.7 | AT198: 289.01 | AU198: 248.55 | AV198: 28.9
A199: 08073 | B199: Colorado | C199: Lincoln | D199: Corn | E199: Bushel | F199: Irrigated | G199: Colorado_Lincoln_Irrigated | Q199: 52.8 | R199: 164.94 | S199: 119.5 | T199: 153.84 | U199: 138.73 | V199: 164.51 | W199: 120.21 | X199: 165.61 | Y199: 111.22 | AD199: Colorado_La Plata_Nonirrigated | AE199: 08067 | AF199: Colorado | AG199: La Plata | AI199: Corn | AJ199: Bushel | AK199: Nonirrigated | AL199: 108 | AM199: 147 | AN199: 127 | AO199: 183.8 | AP199: 177.02 | AR199: 150.34 | AS199: 3.7 | AT199: 556.26 | AU199: 478.38 | AV199: 55.63
A200: 08073 | B200: Colorado | C200: Lincoln | D200: Corn | E200: Bushel | F200: Nonirrigated | G200: Colorado_Lincoln_Nonirrigated | H200: 57 | I200: 57 | J200: 41 | K200: 22 | L200: 30 | M200: 63 | N200: 73 | O200: 60 | P200: 63 | Q200: 52.8 | R200: 28.11 | S200: 48.14 | T200: 61.15 | U200: 50.2 | V200: 59.71 | W200: 44.22 | X200: 47.46 | Y200: 33.6 | AD200: Colorado_Larimer_Nonirrigated | AE200: 08069 | AF200: Colorado | AG200: Larimer | AI200: Corn | AJ200: Bushel | AK200: Nonirrigated | AL200: 168.69 | AM200: 171.55 | AN200: 158.51 | AO200: 162.88 | AP200: 176.05 | AR200: 167.71 | AS200: 3.7 | AT200: 620.53 | AU200: 533.66 | AV200: 62.05
... 925 more rows

Sheet Soybean Data (hidden)
A1: ARC-CO TREND ADJUSTED YIELDS, BENCHMARK YIELDS AND GUARANTEE REVENUES FOR PROGRAM YEAR 2019 | AE1: ARC-CO TREND ADJUSTED YIELDS, BENCHMARK YIELDS AND GUARANTEE REVENUES FOR PROGRAM YEAR 2022 | AR1: Program Year 2022 Benchmark Yields and Revenues | BA1: Program Year 2019 Benchmark Yields and Revenues
AR2: A | AS2: B | AT2: C | AU2: D | AV2: E | BA2: A | BB2: B | BC2: C | BD2: D | BE2: E
H3: 2014 Farm Bill Data | R3: 2018 Farm Bill Data | AT3: (A * B) | AU3: (86% of C) | AV3: (10% of C) | BC3: (A * B) | BD3: (86% of C) | BE3: (10% of C)
A4: ST_Cty | B4: State Name | C4: County Name | D4: Crop Name | E4: Unit | F4: ARC-CO Yield Designation | G4: OSU Decision Tool Identification | H4: 2009 non trend adjusted (county yield or 70% of T yield) | I4: 2010 non trend adjusted (county yield or 70% of T yield) | J4: 2011 non trend adjusted (county yield or 70% of T yield) | K4: 2012 non trend adjusted (county yield or 70% of T yield) | L4: 2013 non trend adjusted (county yield or 70% of T yield) | M4: 2014 non trend adjusted (county yield or 70% of T yield) | N4: 2015 non trend adjusted (county yield or 70% of T yield) | O4: 2016 non trend adjusted (county yield or 70% of T yield) | P4: 2017 non trend adjusted (county yield or 70% of T yield) | Q4: 2018 non trend adjusted (county yield or 70% of T Yield) | R4: 2013 trend adjusted (county yield or 80% of T) | S4: 2014 trend adjusted (county yield or 80% of T) | T4: 2015 trend adjusted (county yield or 80% of T) | U4: 2016 trend adjusted (county yield or 80% of T) | V4: 2017 trend adjusted (county yield or 80% of T) | W4: 2018 trend adjusted (county yield or 80% of T) | X4: 2019 trend adjusted (county yield or 80% of T) | Y4: 2020 trend adjusted (county yield or 80% of T) | Z4: 2021 trend adjusted (county yield or 80% of T) | AA4: 2022 trend adjusted (county yield or 80% of T) | AE4: ST_Cty | AF4: State Name | AG4: County Name | AH4: Sub County | AI4: Crop Name | AJ4: Unit | AK4: ARC-CO Yield Designation | AL4: 2016 trend adjusted (county yield or 80% of T) | AM4: 2017 trend adjusted (county yield or 80% of T) | AN4: 2018 trend adjusted (county yield or 80% of T) | AO4: 2019 trend adjusted (county yield or 80% of T) | AP4: 2020 trend adjusted (county yield or 80% of T) | AR4: 2022 Bench Mark (2015-19 olympic avg) | AS4: 2022 Bench Mark Price (2015-19 olympic avg) | AT4: 2022 Benchmark Revenue | AU4: 2022 Guarantee Revenue | AV4: 2022 Maximum Payment Rate | BA4: 2019 Bench Mark (2013-17 olympic avg) | BB4: 2019 Bench Mark Price (2013-17 olympic avg) | BC4: 2019 Benchmark Revenue | BD4: 2019 Guarantee Revenue | BE4: 2019 Maximum Payment Rate | BH4: =Soybean!C6 -> Adair | BQ4: Name Selection
A5: 01001 | B5: Alabama | C5: Autauga | D5: Soybeans | E5: Bushel | F5: Nonirrigated | G5: Alabama_Autauga_Nonirrigated | H5: 27 | I5: 18 | J5: 24 | K5: 24 | L5: 39 | M5: 42 | N5: 39 | O5: 33 | P5: 41 | Q5: 44.30555556 | R5: 40.69 | S5: 42.14 | T5: 43.41 | U5: 32.57 | V5: 40.52 | W5: 28.69 | X5: 28.92 | Y5: 41 | AD5: Alabama_Autauga_Nonirrigated | AE5: 01001 | AF5: Alabama | AG5: Autauga | AI5: Soybeans | AJ5: Bushel | AK5: Nonirrigated | AL5: 32.57 | AM5: 40.52 | AN5: 28.69 | AO5: 28.92 | AP5: 41 | AR5: 34 | AS5: 9.12 | AT5: 310.08 | AU5: 266.67 | AV5: 31.01 | BA5: 166.94 | BB5: 3.7 | BC5: 617.68 | BD5: 531.2 | BE5: 61.77 | BG5: County, | BH5: 2014-2020 Farm Bill Performance for | BK5: 20% Yield Increase | BL5: 1.2
A6: 01003 | B6: Alabama | C6: Baldwin | D6: Soybeans | E6: Bushel | F6: Irrigated | G6: Alabama_Baldwin_Irrigated | R6: 41.28 | S6: 44.37 | T6: 43.91 | U6: 35.93 | V6: 41.05 | W6: 60.14 | X6: 53.22 | Y6: 62.48 | AD6: Alabama_Baldwin_Irrigated | AE6: 01003 | AF6: Alabama | AG6: Baldwin | AI6: Soybeans | AJ6: Bushel | AK6: Irrigated | AL6: 35.93 | AM6: 41.05 | AN6: 60.14 | AO6: 53.22 | AP6: 62.48 | AR6: 51.47 | AS6: 9.12 | AT6: 469.41 | AU6: 403.69 | AV6: 46.94 | BA6: 176.65 | BB6: 3.7 | BC6: 653.61 | BD6: 562.1 | BE6: 65.36 | BG6: =Soybean!C5 -> Missouri | BH6: =BG5&" "&BG6&"-"&BG7 -> County, Missouri-Soybean | BK6: 15% Yield Increase | BL6: 1.15
A7: 01003 | B7: Alabama | C7: Baldwin | D7: Soybeans | E7: Bushel | F7: Nonirrigated | G7: Alabama_Baldwin_Nonirrigated | H7: 40 | I7: 40 | J7: 36 | K7: 41 | L7: 41 | M7: 43 | N7: 43 | O7: 41 | P7: 41 | Q7: 46.6 | R7: 38.36 | S7: 44.64 | T7: 43.23 | U7: 42.73 | V7: 46.07 | W7: 41.64 | X7: 35.89 | Y7: 42.19 | AD7: Alabama_Baldwin_Nonirrigated | AE7: 01003 | AF7: Alabama | AG7: Baldwin | AI7: Soybeans | AJ7: Bushel | AK7: Nonirrigated | AL7: 42.73 | AM7: 46.07 | AN7: 41.64 | AO7: 35.89 | AP7: 42.19 | AR7: 42.19 | AS7: 9.12 | AT7: 384.77 | AU7: 330.9 | AV7: 38.48 | BA7: 155.89 | BB7: 3.7 | BC7: 576.79 | BD7: 496.04 | BE7: 57.68 | BG7: Soybean | BK7: 10% Yield Increase | BL7: 1.1
A8: 01005 | B8: Alabama | C8: Barbour | D8: Soybeans | E8: Bushel | F8: Nonirrigated | G8: Alabama_Barbour_Nonirrigated | H8: 37 | I8: 20 | J8: 23 | K8: 41 | L8: 52 | M8: 51 | N8: 52 | O8: 33 | P8: 23 | Q8: 41.13888889 | R8: 52.32 | S8: 50.92 | T8: 34.45 | U8: 33 | V8: 23 | W8: 40 | X8: 33.11 | Y8: 42.24 | AD8: Alabama_Barbour_Nonirrigated | AE8: 01005 | AF8: Alabama | AG8: Barbour | AI8: Soybeans | AJ8: Bushel | AK8: Nonirrigated | AL8: 33 | AM8: 23 | AN8: 40 | AO8: 33.11 | AP8: 42.24 | AR8: 35.37 | AS8: 9.12 | AT8: 322.57 | AU8: 277.41 | AV8: 32.26 | BA8: 155.54 | BB8: 3.7 | BC8: 575.5 | BD8: 494.93 | BE8: 57.55 | BH8: Estimated 2021 & Implied 2022 ARC-CO Performance for | BK8: 5% Yield Increase | BL8: 1.05 | BQ8: Alabama | BR8: Arizona | BS8: Arkansas | BT8: California | BU8: Colorado | BV8: Connecticut | BW8: Delaware | BX8: Florida | BY8: Georgia | BZ8: Idaho | CA8: Illinois | CB8: Indiana | CC8: Iowa | CD8: Kansas | CE8: Kentucky | CF8: Louisiana | CG8: Maine | CH8: Maryland | CI8: Massachusetts | CJ8: Michigan | CK8: Minnesota | CL8: Mississippi | CM8: Missouri | CN8: Montana | CO8: Nebraska | CP8: Nevada | CQ8: New Hampshire | CR8: New Jersey | CS8: New Mexico | CT8: New York | CU8: North Carolina | CV8: North Dakota | CW8: Ohio | CX8: Oklahoma | CY8: Oregon | CZ8: Pennsylvania | DA8: Rhode Island | DB8: South Carolina | DC8: South Dakota | DD8: Tennessee | DE8: Texas | DF8: Utah | DG8: Vermont | DH8: Virginia | DI8: Washington | DJ8: West Virginia | DK8: Wisconsin
A9: 01009 | B9: Alabama | C9: Blount | D9: Soybeans | E9: Bushel | F9: Nonirrigated | G9: Alabama_Blount_Nonirrigated | H9: 44 | I9: 24 | J9: 30 | K9: 41 | L9: 48 | M9: 33 | N9: 44 | O9: 24 | P9: 49 | Q9: 40.3 | R9: 47.78 | S9: 39.81 | T9: 48.47 | U9: 30.1 | V9: 50.2 | W9: 46.89 | X9: 43.56 | Y9: 55.34 | AD9: Alabama_Blount_Nonirrigated | AE9: 01009 | AF9: Alabama | AG9: Blount | AI9: Soybeans | AJ9: Bushel | AK9: Nonirrigated | AL9: 30.1 | AM9: 50.2 | AN9: 46.89 | AO9: 43.56 | AP9: 55.34 | AR9: 46.88 | AS9: 9.12 | AT9: 427.55 | AU9: 367.69 | AV9: 42.76 | BA9: 156.6 | BB9: 3.7 | BC9: 579.42 | BD9: 498.3 | BE9: 57.94 | BK9: Zero Change from Forecast | BL9: 1 | BQ9: Autauga | BR9: Cochise | BS9: Arkansas | BT9: Yolo | BU9: Baca | BV9: Hartford | BW9: Kent | BX9: Alachua | BY9: Appling | BZ9: Bonneville | CA9: Adams | CB9: Adams | CC9: Adair | CD9: Allen | CE9: Adair | CF9: Acadia | CG9: Androscoggin | CH9: Allegany | CI9: Worcester | CJ9: Alcona | CK9: Aitkin | CL9: Adams | CM9: Adair | CN9: Lake | CO9: Adams | CQ9: Coos | CR9: Atlantic | CS9: Curry | CT9: Albany | CU9: Alamance | CV9: Adams | CW9: Adams | CX9: Alfalfa | CY9: Marion | CZ9: Adams | DB9: Abbeville | DC9: Aurora | DD9: Bedford | DE9: Armstrong | DF9: Cache | DG9: Addison | DH9: Accomack | DI9: Columbia | DJ9: Berkeley | DK9: Adams
A10: 01011 | B10: Alabama | C10: Bullock | D10: Soybeans | E10: Bushel | F10: Nonirrigated | G10: Alabama_Bullock_Nonirrigated | H10: 32 | I10: 35 | J10: 38 | K10: 41 | L10: 49 | M10: 29 | Q10: 42.9047619 | R10: 43.8 | S10: 31.35 | T10: 34.5 | U10: 23.19 | V10: 28 | W10: 32 | X10: 32 | Y10: 44 | AD10: Alabama_Bullock_Nonirrigated | AE10: 01011 | AF10: Alabama | AG10: Bullock | AI10: Soybeans | AJ10: Bushel | AK10: Nonirrigated | AL10: 23.19 | AM10: 28 | AN10: 32 | AO10: 32 | AP10: 44 | AR10: 30.67 | AS10: 9.12 | AT10: 279.71 | AU10: 240.55 | AV10: 27.97 | BA10: 170.89 | BB10: 3.7 | BC10: 632.29 | BD10: 543.77 | BE10: 63.23 | BK10: 5% Yield Decrease | BL10: 0.95 | BQ10: Baldwin | BR10: Lapaz | BS10: Ashley | BU10: Bent | BW10: New Castle | BX10: Calhoun | BY10: Atkinson | CA10: Alexander | CB10: Allen | CC10: Adams | CD10: Anderson | CE10: Allen | CF10: Allen | CG10: Houlton | CH10: Anne Arundel | CJ10: Allegan | CK10: Anoka | CL10: Alcorn | CM10: Andrew | CN10: Mccone | CO10: Antelope | CR10: Burlington | CS10: Roosevelt | CT10: Allegany | CU10: Alexander | CV10: Barnes | CW10: Allen | CX10: Beaver | CY10: Umatilla | CZ10: Allegheny | DB10: Aiken | DC10: Beadle | DD10: Benton | DE10: Austin | DG10: Chittenden | DH10: Albemarle, Charlottesville City | DI10: Franklin | DJ10: Greenbrier | DK10: Ashland
A11: 01013 | B11: Alabama | C11: Butler | D11: Soybeans | E11: Bushel | F11: Nonirrigated | G11: Alabama_Butler_Nonirrigated | H11: 39 | I11: 32 | J11: 33 | K11: 23 | L11: 32 | M11: 42 | N11: 39 | O11: 30 | P11: 23 | Q11: 29.30555556 | R11: 32.06 | S11: 42 | T11: 39 | U11: 30 | V11: 23 | W11: 41 | X11: 32.42 | Y11: 37 | AD11: Alabama_Butler_Nonirrigated | AE11: 01013 | AF11: Alabama | AG11: Butler | AI11: Soybeans | AJ11: Bushel | AK11: Nonirrigated | AL11: 30 | AM11: 23 | AN11: 41 | AO11: 32.42 | AP11: 37 | AR11: 33.14 | AS11: 9.12 | AT11: 302.24 | AU11: 259.93 | AV11: 30.22 | BA11: 127.4 | BB11: 3.7 | BC11: 471.38 | BD11: 405.39 | BE11: 47.14 | BG11: Lable | BH11: ='Soybean Data'!BH5&""&Soybean!C6&" "&'Soybean Data'!BH6 -> 2014-2020 Farm Bill Performance for Adair County, Missouri-Soybean | BK11: 10% Yield Decrease | BL11: 0.9 | BQ11: Barbour | BR11: Pinal | BS11: Benton | BU11: Cheyenne | BW11: Sussex | BX11: Columbia | BY11: Bacon | CA11: Bond | CB11: Bartholomew | CC11: Allamakee | CD11: Atchison | CE11: Anderson | CF11: Ascension | CG11: Aroostook | CH11: Baltimore | CJ11: Alpena | CK11: Becker | CL11: Amite | CM11: Atchison | CN11: Musselshell | CO11: Arthur | CR11: Camden | CT11: Broome | CU11: Anson | CV11: Benson | CW11: Ashland | CX11: Beckham | CY11: Union | CZ11: Armstrong | DB11: Allendale | DC11: Bennett | DD11: Bledsoe | DE11: Bailey | DG11: Franklin | DH11: Alleghany, Covington City | DI11: Spokane | DJ11: Hardy | DK11: Barron
A12: 01015 | B12: Alabama | C12: Calhoun | D12: Soybeans | E12: Bushel | F12: Nonirrigated | G12: Alabama_Calhoun_Nonirrigated | H12: 37 | I12: 20 | J12: 28 | K12: 33 | L12: 43 | M12: 33 | N12: 32 | O12: 26 | P12: 35 | Q12: 33.38888889 | R12: 44.11 | S12: 35.2 | T12: 37.91 | U12: 26.93 | V12: 42.82 | W12: 36.76 | X12: 29.77 | Y12: 37.14 | AD12: Alabama_Calhoun_Nonirrigated | AE12: 01015 | AF12: Alabama | AG12: Calhoun | AI12: Soybeans | AJ12: Bushel | AK12: Nonirrigated | AL12: 26.93 | AM12: 42.82 | AN12: 36.76 | AO12: 29.77 | AP12: 37.14 | AR12: 34.56 | AS12: 9.12 | AT12: 315.19 | AU12: 271.06 | AV12: 31.52 | BA12: 191.01 | BB12: 3.7 | BC12: 706.74 | BD12: 607.8 | BE12: 70.67 | BG12: Lable | BH12: ='Soybean Data'!BH8&" "&Soybean!C6&" "&'Soybean Data'!BH6 -> Estimated 2021 & Implied 2022 ARC-CO Performance for Adair County, Missouri-Soybean | BK12: 15% Yield Decrease | BL12: 0.85 | BQ12: Blount | BR12: Yuma | BS12: Chicot | BU12: Kiowa | BX12: Escambia | BY12: Baker | CA12: Boone | CB12: Benton | CC12: Appanoose | CD12: Barber | CE12: Ballard | CF12: Assumption | CG12: Fort Kent | CH12: Calvert | CJ12: Antrim | CK12: Beltrami | CL12: Attala | CM12: Audrain | CN12: Phillips | CO12: Banner | CR12: Cape May | CT12: Cattaraugus | CU12: Beaufort | CV12: Bottineau | CW12: Ashtabula | CX12: Blaine | CZ12: Beaver | DB12: Anderson | DC12: Bon Homme | DD12: Blount | DE12: Bastrop | DG12: Grand Isle | DH12: Amelia | DI12: Walla Walla | DJ12: Jackson | DK12: Bayfield
